{"text_format":"1","workbook":"xlsx","n_sheets":5,"sheets":["Instrucciones","Municipio-Depto","Consumo","Curva","Listas"],"not_rendered":{"charts":1,"images":1,"macros":0,"external_links":0,"defined_names":7,"comments":1,"pivot_tables":0},"unopened":[],"bounds":{"document_bytes":16777216,"sheet_cells":100000,"rows_first":2000,"rows_last":500,"rows_between":2000,"halvings":0,"cell_chars":16384,"cell_head_chars":4096},"cells_cut":0,"cells_raw":0,"read":"whole","date_system":"1900"}

{"sheet":"Instrucciones","index":0,"n_rows":11,"n_cols":2,"rows_kept":11,"cut":false,"hidden":false,"merged":[[7,0,7,1]]}
[]
[]
[]
[]
[]
[]
[]
["La UPME, se permite disponer el formato para el reporte de la información base para la actualización y seguimiento del Indice de Cobertura de Energía Eléctrica con fecha de corte a diciembre 31 del año inmediatamente anterior a la presentación de esta información, para lo cual se hacen las siguientes precisiones:"]
["1.","Usuarios Residenciales: Corresponde a la infraestructura física de la vivienda que cuenta con el servicio de energía eléctrica, independientemente de cuántas personas ó de cuántos hogares viven en ésta e independiente de su situación comercial a la fecha de corte.\n- Para el caso de regiones atendidas por más de un Operador de Red, solo indicar el total de viviendas y los usuarios atendidos por su empresa con el fin de evitar duplicidad en la información.\n- Adicione la informacion de áreas especiales según la siguiente clasificación:\n     - Barrio Subnormal: Es el asentamiento humano ubicado en las cabeceras de municipios o distritos que (i) no tenga servicio público domiciliario de energía eléctrica o que este se obtenga a través de derivaciones del SDL o de una Acometida, efectuadas sin aprobación del respectivo OR; (ii) que no se trate de zonas donde se deba suspender el servicio de electricidad, en general en aquellas zonas en las que esté prohibido prestar el servicio, y iii) Certificación de la autoridad competente en la cual conste la clasificación y existencia de los Barrios Subnormales. (Decreto 111 de 2012).\n      - Zonas de Difícil Gestión: Conjunto de usuarios ubicados en una misma zona geográfica conectada al SIN, delimitada eléctricamente, que presenta durante el último año una de las siguientes características: (i) Cartera vencida mayor a 90 días por parte del 50% o más de los usuarios de estratos 1 y 2 de la zona, o (ii) Niveles de pérdidas de energía superiores al 40% respecto a la energía de entrada al SDL que atiende exclusivamente a dicha zona. Así mismo el Comercializador de Energía Eléctrica, debe demostrar que los resultados de la gestión en cartera y pérdidas han sido negativos por causas no imputables a la propia empresa. (Decreto 111 de 2012)\n       - Área Rural de Menor Desarrollo: Es el área perteneciente al sector rural de un municipio o distrito que reúne las siguientes características: (i) presenta un índice superior a 54.4, conforme con el indicador de las Necesidades Básicas Insatisfechas publicado por el DANE, y (ii) está conectada al circuito de alimentación por medio del cual se le suministra el servicio público de energía eléctrica. (Decreto 111 de 2012.\n- Si la fuente de su reporte corresponde a los datos del SUI, éste deberá ser validado para que no se duplique información por los ciclos de facturación.\n- Valide los datos con años anteriores y documente en las casillas de observación los cambios importantes (columna W y columna AS de la hoja Municipio-Depto)."]
["2.","En la hoja de \"Municipio-Depto\" se debe indicar los Usuarios, Viviendas y viviendas sin servicio, tanto en cabecera municipal como resto. Diligencie las columnas de color amarillo, elija los valores que corresponda en las columnas de color verde y revise los cálculos de las columnas de color azul.\nLos usuarios atendidos reportados por el OR deben corresponder a viviendas que efectivamente cuentan con servicio de energía eléctrica, es decir que en este número no se debe considerar proyecciones del DANE o crecimiento vegetativo de la población. Adicionalmente, si no se cuenta con usuarios potenciales (Viviendas sin servicio, VSS) en el mercado que atiende, el OR debe poner cero en las columnas destinadas para tal fin . En caso contrario, si se dejan estas columnas en blanco no se tiene la certeza salvo que el OR envíe alguna aclaración al respecto si tienen o no mapeadas esas VSS en el mercado que atienden"]
["3.","Se debe revisar y completar la información georeferenciada a nivel de SITIOS UPME, en la herramienta que se encuentra en  https://sig.upme.gov.co/SitiosUpme, ingresando con su usuario y contraseña asignados, si no cuenta con un usuario puede hacer la solicitud mediante solicitud oficial a correspondencia@upme.gov.co "]

{"sheet":"Municipio-Depto","index":1,"n_rows":1164,"n_cols":33,"rows_kept":1164,"cut":false,"hidden":false,"merged":[[4,3,4,8],[5,28,5,30],[4,9,4,21],[4,24,4,26],[4,28,4,30],[5,9,5,15],[5,16,5,18],[5,19,5,21],[5,24,5,26]]}
[null,null,null,"Índice de Cobertura de Energía Eléctrica - ICEE "]
[null,null,null,"REPORTE DE VIVIENDAS CON SERVICIO ATENDIDAS Y VIVIENDAS SIN SERVICIO DE CADA OPERADOR DE RED"]
[]
[]
[null,null,null,"Diligencie las casillas en amarillo y seleccione de la lista desplegable las casillas verdes",null,null,null,null,null,"Usuarios Residenciales atendidos por los Operadores de Red / Prestadores del servicio",null,null,null,null,null,null,null,null,null,null,null,null,null,null,"Viviendas reportadas por el operador ",null,null,null,"Viviendas sin servicio - VSS- ",null,null,null,"Documentar Diferencias"]
[null,null,null,null,null,null,null,null,null,"Usuarios Residenciales\nSistema Interconectado Nacional - SIN",null,null,null,null,null,null,"Usuarios Residenciales\nZonas No interconectadas",null,null,"Total usuarios Residenciales\nSIN + ZNI",null,null,"Documente los cambios en la cantidad de usuarios atendidos con respecto a años anteriores",null,"Total unidades de vivienda \n(Solo si cuenta con dicha información)",null,null,null,"Registre la información de la cantidad de VSS",null,null,null,"Campo para documentar cambios significativos de usuarios potenciales (viviendas sin servicio, VSS) con respecto al año anterior"]
[null,null,null,"Depto",null,"Cod-DANE","Municipio","OR quien reporta.\nSeleccione en la lista","Fecha de Corte","Usuarios\nCabecera Municipal -CM-\nSIN","Usuarios\nResto\nSIN","Usuarios Totales\nSIN","Usuario Barrios Subnormales.\nNo. Viviendas","Cant. de Macromedidores - Barrios Subnormales","Usuarios Zonas de Dificil Gestion\nNo. Viviendas","Usuario áreas de menor desarrollo\nNo. Viviendas","Usuarios Cabecera Municipal -CM-\nZNI","Usuario Resto\nZNI","Usuarios totales\nZNI","Total Usuarios Cabecera Municipal -CM-","Total Usuarios Resto","Total Usuarios","Observación",null,"Viviendas Cabecera Municipal -CM- (Urbanas)","Viviendas Resto (Rurales)","Total Viviendas",null,"VSS Cabecera Municipal -CM-","VSS Resto","VSS total",null,"Observaciones"]
[null,null,null,"Antioquia",{"$f":"LEFT(F8,2)","v":"05"},"05001","Medellín","Operador de Red","Vigencia",null,null,{"$f":"J8+K8","v":0},null,null,null,null,null,null,{"$f":"Q8+R8","v":0},{"$f":"J8+M8+O8+Q8","v":0},{"$f":"K8+P8+R8","v":0},{"$f":"T8+U8","v":0},null,null,null,null,{"$f":"Y8+Z8","v":0},null,null,null,{"$f":"AC8+AD8","v":0}]
[null,null,null,"Antioquia","05","05002","Abejorral","Operador de Red","Vigencia",null,null,0,null,null,null,null,null,null,0,{"$f":"J9+M9+O9+Q9","v":0},0,0,null,null,null,null,0,null,null,null,0]
[null,null,null,"Antioquia","05","05004","Abriaquí","Operador de Red","Vigencia",null,null,0,null,null,null,null,null,null,0,0,0,0,null,null,null,null,0,null,null,null,0]
[null,null,null,"Antioquia","05","05021","Alejandría","Operador de Red","Vigencia",null,null,0,null,null,null,null,null,null,0,0,0,0,null,null,null,null,0,null,null,null,0]
[null,null,null,"Antioquia","05","05030","Amagá","Operador de Red","Vigencia",null,null,0,null,null,null,null,null,null,0,0,0,0,null,null,null,null,0,null,null,null,0]
[null,null,null,"Antioquia","05","05031","Amalfi","Operador de Red","Vigencia",null,null,0,null,null,null,null,null,null,0,0,0,0,null,null,null,null,0,null,null,null,0]
[null,null,null,"Antioquia","05","05034","Andes","Operador de Red","Vigencia",null,null,0,null,null,null,null,null,null,0,0,0,0,null,null,null,null,0,null,null,null,0]
[null,null,null,"Antioquia","05","05036","Angelópolis","Operador de Red","Vigencia",null,null,0,null,null,null,null,null,null,0,0,0,0,null,null,null,null,0,null,null,null,0]
[null,null,null,"Antioquia","05","05038","Angostura","Operador de Red","Vigencia",null,null,0,null,null,null,null,null,null,0,0,0,0,null,null,null,null,0,null,null,null,0]
[null,null,null,"Antioquia","05","05040","Anorí","Operador de Red","Vigencia",null,null,0,null,null,null,null,null,null,0,0,0,0,null,null,null,null,0,null,null,null,0]
[null,null,null,"Antioquia","05","05042","Santafé de Antioquia","Operador de Red","Vigencia",null,null,0,null,null,null,null,null,null,0,0,0,0,null,null,null,null,0,null,null,null,0]
[null,null,null,"Antioquia","05","05044","Anza","Operador de Red","Vigencia",null,null,0,null,null,null,null,null,null,0,0,0,0,null,null,null,null,0,null,null,null,0]
[null,null,null,"Antioquia","05","05045","Apartadó","Operador de Red","Vigencia",null,null,0,null,null,null,null,null,null,0,0,0,0,null,null,null,null,0,null,null,null,0]
[null,null,null,"Antioquia","05","05051","Arboletes","Operador de Red","Vigencia",null,null,0,null,null,null,null,null,null,0,0,0,0,null,null,null,null,0,null,null,null,0]
[null,null,null,"Antioquia","05","05055","Argelia","Operador de Red","Vigencia",null,null,0,null,null,null,null,null,null,0,0,0,0,null,null,null,null,0,null,null,null,0]
[null,null,null,"Antioquia","05","05059","Armenia","Operador de Red","Vigencia",null,null,0,null,null,null,null,null,null,0,0,0,0,null,null,null,null,0,null,null,null,0]
[null,null,null,"Antioquia","05","05079","Barbosa","Operador de Red","Vigencia",null,null,0,null,null,null,null,null,null,0,0,0,0,null,null,null,null,0,null,null,null,0]
[null,null,null,"Antioquia","05","05086","Belmira","Operador de Red","Vigencia",null,null,0,null,null,null,null,null,null,0,0,0,0,null,null,null,null,0,null,null,null,0]
[null,null,null,"Antioquia","05","05088","Bello","Operador de Red","Vigencia",null,null,0,null,null,null,null,null,null,0,0,0,0,null,null,null,null,0,null,null,null,0]
[null,null,null,"Antioquia","05","05091","Betania","Operador de Red","Vigencia",null,null,0,null,null,null,null,null,null,0,0,0,0,null,null,null,null,0,null,null,null,0]
[null,null,null,"Antioquia","05","05093","Betulia","Operador de Red","Vigencia",null,null,0,null,null,null,null,null,null,0,0,0,0,null,null,null,null,0,null,null,null,0]
[null,null,null,"Antioquia","05","05101","Ciudad Bolívar","Operador de Red","Vigencia",null,null,0,null,null,null,null,null,null,0,0,0,0,null,null,null,null,0,null,null,null,0]
[null,null,null,"Antioquia","05","05107","Briceño","Operador de Red","Vigencia",null,null,0,null,null,null,null,null,null,0,0,0,0,null,null,null,null,0,null,null,null,0]
[null,null,null,"Antioquia","05","05113","Buriticá","Operador de Red","Vigencia",null,null,0,null,null,null,null,null,null,0,0,0,0,null,null,null,null,0,null,null,null,0]
[null,null,null,"Antioquia","05","05120","Cáceres","Operador de Red","Vigencia",null,null,0,null,null,null,null,null,null,0,0,0,0,null,null,null,null,0,null,null,null,0]
[null,null,null,"Antioquia","05","05125","Caicedo","Operador de Red","Vigencia",null,null,0,null,null,null,null,null,null,0,0,0,0,null,null,null,null,0,null,null,null,0]
[null,null,null,"Antioquia","05","05129","Caldas","Operador de Red","Vigencia",null,null,0,null,null,null,null,null,null,0,0,0,0,null,null,null,null,0,null,null,null,0]
[null,null,null,"Antioquia","05","05134","Campamento","Operador de Red","Vigencia",null,null,0,null,null,null,null,null,null,0,0,0,0,null,null,null,null,0,null,null,null,0]
[null,null,null,"Antioquia","05","05138","Cañasgordas","Operador de Red","Vigencia",null,null,0,null,null,null,null,null,null,0,0,0,0,null,null,null,null,0,null,null,null,0]
[null,null,null,"Antioquia","05","05142","Caracolí","Operador de Red","Vigencia",null,null,0,null,null,null,null,null,null,0,0,0,0,null,null,null,null,0,null,null,null,0]
[null,null,null,"Antioquia","05","05145","Caramanta","Operador de Red","Vigencia",null,null,0,null,null,null,null,null,null,0,0,0,0,null,null,null,null,0,null,null,null,0]
[null,null,null,"Antioquia","05","05147","Carepa","Operador de Red","Vigencia",null,null,0,null,null,null,null,null,null,0,0,0,0,null,null,null,null,0,null,null,null,0]
[null,null,null,"Antioquia","05","05148","El Carmen de Viboral","Operador de Red","Vigencia",null,null,0,null,null,null,null,null,null,0,0,0,0,null,null,null,null,0,null,null,null,0]
[null,null,null,"Antioquia","05","05150","Carolina","Operador de Red","Vigencia",null,null,0,null,null,null,null,null,null,0,0,0,0,null,null,null,null,0,null,null,null,0]
[null,null,null,"Antioquia","05","05154","Caucasia","Operador de Red","Vigencia",null,null,0,null,null,null,null,null,null,0,0,0,0,null,null,null,null,0,null,null,null,0]
[null,null,null,"Antioquia","05","05172","Chigorodó","Operador de Red","Vigencia",null,null,0,null,null,null,null,null,null,0,0,0,0,null,null,null,null,0,null,null,null,0]
[null,null,null,"Antioquia","05","05190","Cisneros","Operador de Red","Vigencia",null,null,0,null,null,null,null,null,null,0,0,0,0,null,null,null,null,0,null,null,null,0]
[null,null,null,"Antioquia","05","05197","Cocorná","Operador de Red","Vigencia",null,null,0,null,null,null,null,null,null,0,0,0,0,null,null,null,null,0,null,null,null,0]
[null,null,null,"Antioquia","05","05206","Concepción","Operador de Red","Vigencia",null,null,0,null,null,null,null,null,null,0,0,0,0,null,null,null,null,0,null,null,null,0]
[null,null,null,"Antioquia","05","05209","Concordia","Operador de Red","Vigencia",null,null,0,null,null,null,null,null,null,0,0,0,0,null,null,null,null,0,null,null,null,0]
[null,null,null,"Antioquia","05","05212","Copacabana","Operador de Red","Vigencia",null,null,0,null,null,null,null,null,null,0,0,0,0,null,null,null,null,0,null,null,null,0]
[null,null,null,"Antioquia","05","05234","Dabeiba","Operador de Red","Vigencia",null,null,0,null,null,null,null,null,null,0,0,0,0,null,null,null,null,0,null,null,null,0]
[null,null,null,"Antioquia","05","05237","Don Matías","Operador de Red","Vigencia",null,null,0,null,null,null,null,null,null,0,0,0,0,null,null,null,null,0,null,null,null,0]
[null,null,null,"Antioquia","05","05240","Ebéjico","Operador de Red","Vigencia",null,null,0,null,null,null,null,null,null,0,0,0,0,null,null,null,null,0,null,null,null,0]
[null,null,null,"Antioquia","05","05250","El Bagre","Operador de Red","Vigencia",null,null,0,null,null,null,null,null,null,0,0,0,0,null,null,null,null,0,null,null,null,0]
[null,null,null,"Antioquia","05","05264","Entrerrios","Operador de Red","Vigencia",null,null,0,null,null,null,null,null,null,0,0,0,0,null,null,null,null,0,null,null,null,0]
[null,null,null,"Antioquia","05","05266","Envigado","Operador de Red","Vigencia",null,null,0,null,null,null,null,null,null,0,0,0,0,null,null,null,null,0,null,null,null,0]
[null,null,null,"Antioquia","05","05282","Fredonia","Operador de Red","Vigencia",null,null,0,null,null,null,null,null,null,0,0,0,0,null,null,null,null,0,null,null,null,0]
[null,null,null,"Antioquia","05","05284","Frontino","Operador de Red","Vigencia",null,null,0,null,null,null,null,null,null,0,0,0,0,null,null,null,null,0,null,null,null,0]
[null,null,null,"Antioquia","05","05306","Giraldo","Operador de Red","Vigencia",null,null,0,null,null,null,null,null,null,0,0,0,0,null,null,null,null,0,null,null,null,0]
[null,null,null,"Antioquia","05","05308","Girardota","Operador de Red","Vigencia",null,null,0,null,null,null,null,null,null,0,0,0,0,null,null,null,null,0,null,null,null,0]
[null,null,null,"Antioquia","05","05310","Gómez Plata","Operador de Red","Vigencia",null,null,0,null,null,null,null,null,null,0,0,0,0,null,null,null,null,0,null,null,null,0]
[null,null,null,"Antioquia","05","05313","Granada","Operador de Red","Vigencia",null,null,0,null,null,null,null,null,null,0,0,0,0,null,null,null,null,0,null,null,null,0]
[null,null,null,"Antioquia","05","05315","Guadalupe","Operador de Red","Vigencia",null,null,0,null,null,null,null,null,null,0,0,0,0,null,null,null,null,0,null,null,null,0]
[null,null,null,"Antioquia","05","05318","Guarne","Operador de Red","Vigencia",null,null,0,null,null,null,null,null,null,0,0,0,0,null,null,null,null,0,null,null,null,0]
[null,null,null,"Antioquia","05","05321","Guatapé","Operador de Red","Vigencia",null,null,0,null,null,null,null,null,null,0,0,0,0,null,null,null,null,0,null,null,null,0]
[null,null,null,"Antioquia","05","05347","Heliconia","Operador de Red","Vigencia",null,null,0,null,null,null,null,null,null,0,0,0,0,null,null,null,null,0,null,null,null,0]
[null,null,null,"Antioquia","05","05353","Hispania","Operador de Red","Vigencia",null,null,0,null,null,null,null,null,null,0,0,0,0,null,null,null,null,0,null,null,null,0]
[null,null,null,"Antioquia","05","05360","Itagui","Operador de Red","Vigencia",null,null,0,null,null,null,null,null,null,0,0,0,0,null,null,null,null,0,null,null,null,0]
[null,null,null,"Antioquia","05","05361","Ituango","Operador de Red","Vigencia",null,null,0,null,null,null,null,null,null,0,0,0,0,null,null,null,null,0,null,null,null,0]
[null,null,null,"Antioquia","05","05364","Jardín","Operador de Red","Vigencia",null,null,0,null,null,null,null,null,null,0,0,0,0,null,null,null,null,0,null,null,null,0]
[null,null,null,"Antioquia","05","05368","Jericó","Operador de Red","Vigencia",null,null,0,null,null,null,null,null,null,0,0,0,0,null,null,null,null,0,null,null,null,0]
[null,null,null,"Antioquia","05","05376","La Ceja","Operador de Red","Vigencia",null,null,0,null,null,null,null,null,null,0,0,0,0,null,null,null,null,0,null,null,null,0]
[null,null,null,"Antioquia","05","05380","La Estrella","Operador de Red","Vigencia",null,null,0,null,null,null,null,null,null,0,0,0,0,null,null,null,null,0,null,null,null,0]
[null,null,null,"Antioquia","05","05390","La Pintada","Operador de Red","Vigencia",null,null,0,null,null,null,null,null,null,0,0,0,0,null,null,null,null,0,null,null,null,0]
[null,null,null,"Antioquia","05","05400","La Unión","Operador de Red","Vigencia",null,null,0,null,null,null,null,null,null,0,0,0,0,null,null,null,null,0,null,null,null,0]
[null,null,null,"Antioquia","05","05411","Liborina","Operador de Red","Vigencia",null,null,0,null,null,null,null,null,null,0,0,0,0,null,null,null,null,0,null,null,null,0]
[null,null,null,"Antioquia","05","05425","Maceo","Operador de Red","Vigencia",null,null,0,null,null,null,null,null,null,0,0,0,0,null,null,null,null,0,null,null,null,0]
[null,null,null,"Antioquia","05","05440","Marinilla","Operador de Red","Vigencia",null,null,0,null,null,null,null,null,null,0,0,0,0,null,null,null,null,0,null,null,null,0]
[null,null,null,"Antioquia","05","05467","Montebello","Operador de Red","Vigencia",null,null,0,null,null,null,null,null,null,0,0,0,0,null,null,null,null,0,null,null,null,0]
[null,null,null,"Antioquia","05","05475","Murindó","Operador de Red","Vigencia",null,null,0,null,null,null,null,null,null,0,0,0,0,null,null,null,null,0,null,null,null,0]
[null,null,null,"Antioquia","05","05480","Mutatá","Operador de Red","Vigencia",null,null,0,null,null,null,null,null,null,0,0,0,0,null,null,null,null,0,null,null,null,0]
[null,null,null,"Antioquia","05","05483","Nariño","Operador de Red","Vigencia",null,null,0,null,null,null,null,null,null,0,0,0,0,null,null,null,null,0,null,null,null,0]
[null,null,null,"Antioquia","05","05490","Necoclí","Operador de Red","Vigencia",null,null,0,null,null,null,null,null,null,0,0,0,0,null,null,null,null,0,null,null,null,0]
[null,null,null,"Antioquia","05","05495","Nechí","Operador de Red","Vigencia",null,null,0,null,null,null,null,null,null,0,0,0,0,null,null,null,null,0,null,null,null,0]
[null,null,null,"Antioquia","05","05501","Olaya","Operador de Red","Vigencia",null,null,0,null,null,null,null,null,null,0,0,0,0,null,null,null,null,0,null,null,null,0]
[null,null,null,"Antioquia","05","05541","Peñol","Operador de Red","Vigencia",null,null,0,null,null,null,null,null,null,0,0,0,0,null,null,null,null,0,null,null,null,0]
[null,null,null,"Antioquia","05","05543","Peque","Operador de Red","Vigencia",null,null,0,null,null,null,null,null,null,0,0,0,0,null,null,null,null,0,null,null,null,0]
[null,null,null,"Antioquia","05","05576","Pueblorrico","Operador de Red","Vigencia",null,null,0,null,null,null,null,null,null,0,0,0,0,null,null,null,null,0,null,null,null,0]
[null,null,null,"Antioquia","05","05579","Puerto Berrío","Operador de Red","Vigencia",null,null,0,null,null,null,null,null,null,0,0,0,0,null,null,null,null,0,null,null,null,0]
[null,null,null,"Antioquia","05","05585","Puerto Nare","Operador de Red","Vigencia",null,null,0,null,null,null,null,null,null,0,0,0,0,null,null,null,null,0,null,null,null,0]
[null,null,null,"Antioquia","05","05591","Puerto Triunfo","Operador de Red","Vigencia",null,null,0,null,null,null,null,null,null,0,0,0,0,null,null,null,null,0,null,null,null,0]
[null,null,null,"Antioquia","05","05604","Remedios","Operador de Red","Vigencia",null,null,0,null,null,null,null,null,null,0,0,0,0,null,null,null,null,0,null,null,null,0]
[null,null,null,"Antioquia","05","05607","Retiro","Operador de Red","Vigencia",null,null,0,null,null,null,null,null,null,0,0,0,0,null,null,null,null,0,null,null,null,0]
[null,null,null,"Antioquia","05","05615","Rionegro","Operador de Red","Vigencia",null,null,0,null,null,null,null,null,null,0,0,0,0,null,null,null,null,0,null,null,null,0]
[null,null,null,"Antioquia","05","05628","Sabanalarga","Operador de Red","Vigencia",null,null,0,null,null,null,null,null,null,0,0,0,0,null,null,null,null,0,null,null,null,0]
[null,null,null,"Antioquia","05","05631","Sabaneta","Operador de Red","Vigencia",null,null,0,null,null,null,null,null,null,0,0,0,0,null,null,null,null,0,null,null,null,0]
[null,null,null,"Antioquia","05","05642","Salgar","Operador de Red","Vigencia",null,null,0,null,null,null,null,null,null,0,0,0,0,null,null,null,null,0,null,null,null,0]
[null,null,null,"Antioquia","05","05647","San Andrés de Cuerquía","Operador de Red","Vigencia",null,null,0,null,null,null,null,null,null,0,0,0,0,null,null,null,null,0,null,null,null,0]
[null,null,null,"Antioquia","05","05649","San Carlos","Operador de Red","Vigencia",null,null,0,null,null,null,null,null,null,0,0,0,0,null,null,null,null,0,null,null,null,0]
[null,null,null,"Antioquia","05","05652","San Francisco","Operador de Red","Vigencia",null,null,0,null,null,null,null,null,null,0,0,0,0,null,null,null,null,0,null,null,null,0]
[null,null,null,"Antioquia","05","05656","San Jerónimo","Operador de Red","Vigencia",null,null,0,null,null,null,null,null,null,0,0,0,0,null,null,null,null,0,null,null,null,0]
[null,null,null,"Antioquia","05","05658","San José de La Montaña","Operador de Red","Vigencia",null,null,0,null,null,null,null,null,null,0,0,0,0,null,null,null,null,0,null,null,null,0]
[null,null,null,"Antioquia","05","05659","San Juan de Urabá","Operador de Red","Vigencia",null,null,0,null,null,null,null,null,null,0,0,0,0,null,null,null,null,0,null,null,null,0]
[null,null,null,"Antioquia","05","05660","San Luis","Operador de Red","Vigencia",null,null,0,null,null,null,null,null,null,0,0,0,0,null,null,null,null,0,null,null,null,0]
[null,null,null,"Antioquia","05","05664","San Pedro de los Milagros","Operador de Red","Vigencia",null,null,0,null,null,null,null,null,null,0,0,0,0,null,null,null,null,0,null,null,null,0]
[null,null,null,"Antioquia","05","05665","San Pedro de Uraba","Operador de Red","Vigencia",null,null,0,null,null,null,null,null,null,0,0,0,0,null,null,null,null,0,null,null,null,0]
[null,null,null,"Antioquia","05","05667","San Rafael","Operador de Red","Vigencia",null,null,0,null,null,null,null,null,null,0,0,0,0,null,null,null,null,0,null,null,null,0]
[null,null,null,"Antioquia","05","05670","San Roque","Operador de Red","Vigencia",null,null,0,null,null,null,null,null,null,0,0,0,0,null,null,null,null,0,null,null,null,0]
[null,null,null,"Antioquia","05","05674","San Vicente","Operador de Red","Vigencia",null,null,0,null,null,null,null,null,null,0,0,0,0,null,null,null,null,0,null,null,null,0]
[null,null,null,"Antioquia","05","05679","Santa Bárbara","Operador de Red","Vigencia",null,null,0,null,null,null,null,null,null,0,0,0,0,null,null,null,null,0,null,null,null,0]
[null,null,null,"Antioquia","05","05686","Santa Rosa de Osos","Operador de Red","Vigencia",null,null,0,null,null,null,null,null,null,0,0,0,0,null,null,null,null,0,null,null,null,0]
[null,null,null,"Antioquia","05","05690","Santo Domingo","Operador de Red","Vigencia",null,null,0,null,null,null,null,null,null,0,0,0,0,null,null,null,null,0,null,null,null,0]
[null,null,null,"Antioquia","05","05697","El Santuario","Operador de Red","Vigencia",null,null,0,null,null,null,null,null,null,0,0,0,0,null,null,null,null,0,null,null,null,0]
[null,null,null,"Antioquia","05","05736","Segovia","Operador de Red","Vigencia",null,null,0,null,null,null,null,null,null,0,0,0,0,null,null,null,null,0,null,null,null,0]
[null,null,null,"Antioquia","05","05756","Sonson","Operador de Red","Vigencia",null,null,0,null,null,null,null,null,null,0,0,0,0,null,null,null,null,0,null,null,null,0]
[null,null,null,"Antioquia","05","05761","Sopetrán","Operador de Red","Vigencia",null,null,0,null,null,null,null,null,null,0,0,0,0,null,null,null,null,0,null,null,null,0]
[null,null,null,"Antioquia","05","05789","Támesis","Operador de Red","Vigencia",null,null,0,null,null,null,null,null,null,0,0,0,0,null,null,null,null,0,null,null,null,0]
[null,null,null,"Antioquia","05","05790","Tarazá","Operador de Red","Vigencia",null,null,0,null,null,null,null,null,null,0,0,0,0,null,null,null,null,0,null,null,null,0]
[null,null,null,"Antioquia","05","05792","Tarso","Operador de Red","Vigencia",null,null,0,null,null,null,null,null,null,0,0,0,0,null,null,null,null,0,null,null,null,0]
[null,null,null,"Antioquia","05","05809","Titiribí","Operador de Red","Vigencia",null,null,0,null,null,null,null,null,null,0,0,0,0,null,null,null,null,0,null,null,null,0]
[null,null,null,"Antioquia","05","05819","Toledo","Operador de Red","Vigencia",null,null,0,null,null,null,null,null,null,0,0,0,0,null,null,null,null,0,null,null,null,0]
[null,null,null,"Antioquia","05","05837","Turbo","Operador de Red","Vigencia",null,null,0,null,null,null,null,null,null,0,0,0,0,null,null,null,null,0,null,null,null,0]
[null,null,null,"Antioquia","05","05842","Uramita","Operador de Red","Vigencia",null,null,0,null,null,null,null,null,null,0,0,0,0,null,null,null,null,0,null,null,null,0]
[null,null,null,"Antioquia","05","05847","Urrao","Operador de Red","Vigencia",null,null,0,null,null,null,null,null,null,0,0,0,0,null,null,null,null,0,null,null,null,0]
[null,null,null,"Antioquia","05","05854","Valdivia","Operador de Red","Vigencia",null,null,0,null,null,null,null,null,null,0,0,0,0,null,null,null,null,0,null,null,null,0]
[null,null,null,"Antioquia","05","05856","Valparaíso","Operador de Red","Vigencia",null,null,0,null,null,null,null,null,null,0,0,0,0,null,null,null,null,0,null,null,null,0]
[null,null,null,"Antioquia","05","05858","Vegachí","Operador de Red","Vigencia",null,null,0,null,null,null,null,null,null,0,0,0,0,null,null,null,null,0,null,null,null,0]
[null,null,null,"Antioquia","05","05861","Venecia","Operador de Red","Vigencia",null,null,0,null,null,null,null,null,null,0,0,0,0,null,null,null,null,0,null,null,null,0]
[null,null,null,"Antioquia","05","05873","Vigía del Fuerte","Operador de Red","Vigencia",null,null,0,null,null,null,null,null,null,0,0,0,0,null,null,null,null,0,null,null,null,0]
[null,null,null,"Antioquia","05","05885","Yalí","Operador de Red","Vigencia",null,null,0,null,null,null,null,null,null,0,0,0,0,null,null,null,null,0,null,null,null,0]
[null,null,null,"Antioquia","05","05887","Yarumal","Operador de Red","Vigencia",null,null,0,null,null,null,null,null,null,0,0,0,0,null,null,null,null,0,null,null,null,0]
[null,null,null,"Antioquia","05","05890","Yolombó","Operador de Red","Vigencia",null,null,0,null,null,null,null,null,null,0,0,0,0,null,null,null,null,0,null,null,null,0]
[null,null,null,"Antioquia","05","05893","Yondó","Operador de Red","Vigencia",null,null,0,null,null,null,null,null,null,0,0,0,0,null,null,null,null,0,null,null,null,0]
[null,null,null,"Antioquia","05","05895","Zaragoza","Operador de Red","Vigencia",null,null,0,null,null,null,null,null,null,0,0,0,0,null,null,null,null,0,null,null,null,0]
[null,null,null,"Atlántico","08","08001","Barranquilla","Operador de Red","Vigencia",null,null,0,null,null,null,null,null,null,0,0,0,0,null,null,null,null,0,null,null,null,0]
[null,null,null,"Atlántico","08","08078","Baranoa","Operador de Red","Vigencia",null,null,0,null,null,null,null,null,null,0,0,0,0,null,null,null,null,0,null,null,null,0]
[null,null,null,"Atlántico","08","08137","Campo de La Cruz","Operador de Red","Vigencia",null,null,0,null,null,null,null,null,null,0,0,0,0,null,null,null,null,0,null,null,null,0]
[null,null,null,"Atlántico","08","08141","Candelaria","Operador de Red","Vigencia",null,null,0,null,null,null,null,null,null,0,0,0,0,null,null,null,null,0,null,null,null,0]
[null,null,null,"Atlántico","08","08296","Galapa","Operador de Red","Vigencia",null,null,0,null,null,null,null,null,null,0,0,0,0,null,null,null,null,0,null,null,null,0]
[null,null,null,"Atlántico","08","08372","Juan de Acosta","Operador de Red","Vigencia",null,null,0,null,null,null,null,null,null,0,0,0,0,null,null,null,null,0,null,null,null,0]
[null,null,null,"Atlántico","08","08421","Luruaco","Operador de Red","Vigencia",null,null,0,null,null,null,null,null,null,0,0,0,0,null,null,null,null,0,null,null,null,0]
[null,null,null,"Atlántico","08","08433","Malambo","Operador de Red","Vigencia",null,null,0,null,null,null,null,null,null,0,0,0,0,null,null,null,null,0,null,null,null,0]
[null,null,null,"Atlántico","08","08436","Manatí","Operador de Red","Vigencia",null,null,0,null,null,null,null,null,null,0,0,0,0,null,null,null,null,0,null,null,null,0]
[null,null,null,"Atlántico","08","08520","Palmar de Varela","Operador de Red","Vigencia",null,null,0,null,null,null,null,null,null,0,0,0,0,null,null,null,null,0,null,null,null,0]
[null,null,null,"Atlántico","08","08549","Piojó","Operador de Red","Vigencia",null,null,0,null,null,null,null,null,null,0,0,0,0,null,null,null,null,0,null,null,null,0]
[null,null,null,"Atlántico","08","08558","Polonuevo","Operador de Red","Vigencia",null,null,0,null,null,null,null,null,null,0,0,0,0,null,null,null,null,0,null,null,null,0]
[null,null,null,"Atlántico","08","08560","Ponedera","Operador de Red","Vigencia",null,null,0,null,null,null,null,null,null,0,0,0,0,null,null,null,null,0,null,null,null,0]
[null,null,null,"Atlántico","08","08573","Puerto Colombia","Operador de Red","Vigencia",null,null,0,null,null,null,null,null,null,0,0,0,0,null,null,null,null,0,null,null,null,0]
[null,null,null,"Atlántico","08","08606","Repelón","Operador de Red","Vigencia",null,null,0,null,null,null,null,null,null,0,0,0,0,null,null,null,null,0,null,null,null,0]
[null,null,null,"Atlántico","08","08634","Sabanagrande","Operador de Red","Vigencia",null,null,0,null,null,null,null,null,null,0,0,0,0,null,null,null,null,0,null,null,null,0]
[null,null,null,"Atlántico","08","08638","Sabanalarga","Operador de Red","Vigencia",null,null,0,null,null,null,null,null,null,0,0,0,0,null,null,null,null,0,null,null,null,0]
[null,null,null,"Atlántico","08","08675","Santa Lucía","Operador de Red","Vigencia",null,null,0,null,null,null,null,null,null,0,0,0,0,null,null,null,null,0,null,null,null,0]
[null,null,null,"Atlántico","08","08685","Santo Tomás","Operador de Red","Vigencia",null,null,0,null,null,null,null,null,null,0,0,0,0,null,null,null,null,0,null,null,null,0]
[null,null,null,"Atlántico","08","08758","Soledad","Operador de Red","Vigencia",null,null,0,null,null,null,null,null,null,0,0,0,0,null,null,null,null,0,null,null,null,0]
[null,null,null,"Atlántico","08","08770","Suan","Operador de Red","Vigencia",null,null,0,null,null,null,null,null,null,0,0,0,0,null,null,null,null,0,null,null,null,0]
[null,null,null,"Atlántico","08","08832","Tubará","Operador de Red","Vigencia",null,null,0,null,null,null,null,null,null,0,0,0,0,null,null,null,null,0,null,null,null,0]
[null,null,null,"Atlántico","08","08849","Usiacurí","Operador de Red","Vigencia",null,null,0,null,null,null,null,null,null,0,0,0,0,null,null,null,null,0,null,null,null,0]
[null,null,null,"Bogotá, D.C.","11","11001","Bogotá, D.C.","Operador de Red","Vigencia",null,null,0,null,null,null,null,null,null,0,0,0,0,null,null,null,null,0,null,null,null,0]
[null,null,null,"Bolívar","13","13001","Cartagena","Operador de Red","Vigencia",null,null,0,null,null,null,null,null,null,0,0,0,0,null,null,null,null,0,null,null,null,0]
[null,null,null,"Bolívar","13","13006","Achí","Operador de Red","Vigencia",null,null,0,null,null,null,null,null,null,0,0,0,0,null,null,null,null,0,null,null,null,0]
[null,null,null,"Bolívar","13","13030","Altos del Rosario","Operador de Red","Vigencia",null,null,0,null,null,null,null,null,null,0,0,0,0,null,null,null,null,0,null,null,null,0]
[null,null,null,"Bolívar","13","13042","Arenal","Operador de Red","Vigencia",null,null,0,null,null,null,null,null,null,0,0,0,0,null,null,null,null,0,null,null,null,0]
[null,null,null,"Bolívar","13","13052","Arjona","Operador de Red","Vigencia",null,null,0,null,null,null,null,null,null,0,0,0,0,null,null,null,null,0,null,null,null,0]
[null,null,null,"Bolívar","13","13062","Arroyohondo","Operador de Red","Vigencia",null,null,0,null,null,null,null,null,null,0,0,0,0,null,null,null,null,0,null,null,null,0]
[null,null,null,"Bolívar","13","13074","Barranco de Loba","Operador de Red","Vigencia",null,null,0,null,null,null,null,null,null,0,0,0,0,null,null,null,null,0,null,null,null,0]
[null,null,null,"Bolívar","13","13140","Calamar","Operador de Red","Vigencia",null,null,0,null,null,null,null,null,null,0,0,0,0,null,null,null,null,0,null,null,null,0]
[null,null,null,"Bolívar","13","13160","Cantagallo","Operador de Red","Vigencia",null,null,0,null,null,null,null,null,null,0,0,0,0,null,null,null,null,0,null,null,null,0]
[null,null,null,"Bolívar","13","13188","Cicuco","Operador de Red","Vigencia",null,null,0,null,null,null,null,null,null,0,0,0,0,null,null,null,null,0,null,null,null,0]
[null,null,null,"Bolívar","13","13212","Córdoba","Operador de Red","Vigencia",null,null,0,null,null,null,null,null,null,0,0,0,0,null,null,null,null,0,null,null,null,0]
[null,null,null,"Bolívar","13","13222","Clemencia","Operador de Red","Vigencia",null,null,0,null,null,null,null,null,null,0,0,0,0,null,null,null,null,0,null,null,null,0]
[null,null,null,"Bolívar","13","13244","El Carmen de Bolívar","Operador de Red","Vigencia",null,null,0,null,null,null,null,null,null,0,0,0,0,null,null,null,null,0,null,null,null,0]
[null,null,null,"Bolívar","13","13248","El Guamo","Operador de Red","Vigencia",null,null,0,null,null,null,null,null,null,0,0,0,0,null,null,null,null,0,null,null,null,0]
[null,null,null,"Bolívar","13","13268","El Peñón","Operador de Red","Vigencia",null,null,0,null,null,null,null,null,null,0,0,0,0,null,null,null,null,0,null,null,null,0]
[null,null,null,"Bolívar","13","13300","Hatillo de Loba","Operador de Red","Vigencia",null,null,0,null,null,null,null,null,null,0,0,0,0,null,null,null,null,0,null,null,null,0]
[null,null,null,"Bolívar","13","13430","Magangué","Operador de Red","Vigencia",null,null,0,null,null,null,null,null,null,0,0,0,0,null,null,null,null,0,null,null,null,0]
[null,null,null,"Bolívar","13","13433","Mahates","Operador de Red","Vigencia",null,null,0,null,null,null,null,null,null,0,0,0,0,null,null,null,null,0,null,null,null,0]
[null,null,null,"Bolívar","13","13440","Margarita","Operador de Red","Vigencia",null,null,0,null,null,null,null,null,null,0,0,0,0,null,null,null,null,0,null,null,null,0]
[null,null,null,"Bolívar","13","13442","María La Baja","Operador de Red","Vigencia",null,null,0,null,null,null,null,null,null,0,0,0,0,null,null,null,null,0,null,null,null,0]
[null,null,null,"Bolívar","13","13458","Montecristo","Operador de Red","Vigencia",null,null,0,null,null,null,null,null,null,0,0,0,0,null,null,null,null,0,null,null,null,0]
[null,null,null,"Bolívar","13","13468","Mompós","Operador de Red","Vigencia",null,null,0,null,null,null,null,null,null,0,0,0,0,null,null,null,null,0,null,null,null,0]
[null,null,null,"Bolívar","13","13473","Morales","Operador de Red","Vigencia",null,null,0,null,null,null,null,null,null,0,0,0,0,null,null,null,null,0,null,null,null,0]
[null,null,null,"Bolívar","13","13490","Norosí","Operador de Red","Vigencia",null,null,0,null,null,null,null,null,null,0,0,0,0,null,null,null,null,0,null,null,null,0]
[null,null,null,"Bolívar","13","13549","Pinillos","Operador de Red","Vigencia",null,null,0,null,null,null,null,null,null,0,0,0,0,null,null,null,null,0,null,null,null,0]
[null,null,null,"Bolívar","13","13580","Regidor","Operador de Red","Vigencia",null,null,0,null,null,null,null,null,null,0,0,0,0,null,null,null,null,0,null,null,null,0]
[null,null,null,"Bolívar","13","13600","Río Viejo","Operador de Red","Vigencia",null,null,0,null,null,null,null,null,null,0,0,0,0,null,null,null,null,0,null,null,null,0]
[null,null,null,"Bolívar","13","13620","San Cristóbal","Operador de Red","Vigencia",null,null,0,null,null,null,null,null,null,0,0,0,0,null,null,null,null,0,null,null,null,0]
[null,null,null,"Bolívar","13","13647","San Estanislao","Operador de Red","Vigencia",null,null,0,null,null,null,null,null,null,0,0,0,0,null,null,null,null,0,null,null,null,0]
[null,null,null,"Bolívar","13","13650","San Fernando","Operador de Red","Vigencia",null,null,0,null,null,null,null,null,null,0,0,0,0,null,null,null,null,0,null,null,null,0]
[null,null,null,"Bolívar","13","13654","San Jacinto","Operador de Red","Vigencia",null,null,0,null,null,null,null,null,null,0,0,0,0,null,null,null,null,0,null,null,null,0]
[null,null,null,"Bolívar","13","13655","San Jacinto del Cauca","Operador de Red","Vigencia",null,null,0,null,null,null,null,null,null,0,0,0,0,null,null,null,null,0,null,null,null,0]
[null,null,null,"Bolívar","13","13657","San Juan Nepomuceno","Operador de Red","Vigencia",null,null,0,null,null,null,null,null,null,0,0,0,0,null,null,null,null,0,null,null,null,0]
[null,null,null,"Bolívar","13","13667","San Martín de Loba","Operador de Red","Vigencia",null,null,0,null,null,null,null,null,null,0,0,0,0,null,null,null,null,0,null,null,null,0]
[null,null,null,"Bolívar","13","13670","San Pablo","Operador de Red","Vigencia",null,null,0,null,null,null,null,null,null,0,0,0,0,null,null,null,null,0,null,null,null,0]
[null,null,null,"Bolívar","13","13673","Santa Catalina","Operador de Red","Vigencia",null,null,0,null,null,null,null,null,null,0,0,0,0,null,null,null,null,0,null,null,null,0]
[null,null,null,"Bolívar","13","13683","Santa Rosa","Operador de Red","Vigencia",null,null,0,null,null,null,null,null,null,0,0,0,0,null,null,null,null,0,null,null,null,0]
[null,null,null,"Bolívar","13","13688","Santa Rosa del Sur","Operador de Red","Vigencia",null,null,0,null,null,null,null,null,null,0,0,0,0,null,null,null,null,0,null,null,null,0]
[null,null,null,"Bolívar","13","13744","Simití","Operador de Red","Vigencia",null,null,0,null,null,null,null,null,null,0,0,0,0,null,null,null,null,0,null,null,null,0]
[null,null,null,"Bolívar","13","13760","Soplaviento","Operador de Red","Vigencia",null,null,0,null,null,null,null,null,null,0,0,0,0,null,null,null,null,0,null,null,null,0]
[null,null,null,"Bolívar","13","13780","Talaigua Nuevo","Operador de Red","Vigencia",null,null,0,null,null,null,null,null,null,0,0,0,0,null,null,null,null,0,null,null,null,0]
[null,null,null,"Bolívar","13","13810","Tiquisio","Operador de Red","Vigencia",null,null,0,null,null,null,null,null,null,0,0,0,0,null,null,null,null,0,null,null,null,0]
[null,null,null,"Bolívar","13","13836","Turbaco","Operador de Red","Vigencia",null,null,0,null,null,null,null,null,null,0,0,0,0,null,null,null,null,0,null,null,null,0]
[null,null,null,"Bolívar","13","13838","Turbaná","Operador de Red","Vigencia",null,null,0,null,null,null,null,null,null,0,0,0,0,null,null,null,null,0,null,null,null,0]
[null,null,null,"Bolívar","13","13873","Villanueva","Operador de Red","Vigencia",null,null,0,null,null,null,null,null,null,0,0,0,0,null,null,null,null,0,null,null,null,0]
[null,null,null,"Bolívar","13","13894","Zambrano","Operador de Red","Vigencia",null,null,0,null,null,null,null,null,null,0,0,0,0,null,null,null,null,0,null,null,null,0]
[null,null,null,"Boyacá","15","15001","Tunja","Operador de Red","Vigencia",null,null,0,null,null,null,null,null,null,0,0,0,0,null,null,null,null,0,null,null,null,0]
[null,null,null,"Boyacá","15","15022","Almeida","Operador de Red","Vigencia",null,null,0,null,null,null,null,null,null,0,0,0,0,null,null,null,null,0,null,null,null,0]
[null,null,null,"Boyacá","15","15047","Aquitania","Operador de Red","Vigencia",null,null,0,null,null,null,null,null,null,0,0,0,0,null,null,null,null,0,null,null,null,0]
[null,null,null,"Boyacá","15","15051","Arcabuco","Operador de Red","Vigencia",null,null,0,null,null,null,null,null,null,0,0,0,0,null,null,null,null,0,null,null,null,0]
[null,null,null,"Boyacá","15","15087","Belén","Operador de Red","Vigencia",null,null,0,null,null,null,null,null,null,0,0,0,0,null,null,null,null,0,null,null,null,0]
[null,null,null,"Boyacá","15","15090","Berbeo","Operador de Red","Vigencia",null,null,0,null,null,null,null,null,null,0,0,0,0,null,null,null,null,0,null,null,null,0]
[null,null,null,"Boyacá","15","15092","Betéitiva","Operador de Red","Vigencia",null,null,0,null,null,null,null,null,null,0,0,0,0,null,null,null,null,0,null,null,null,0]
[null,null,null,"Boyacá","15","15097","Boavita","Operador de Red","Vigencia",null,null,0,null,null,null,null,null,null,0,0,0,0,null,null,null,null,0,null,null,null,0]
[null,null,null,"Boyacá","15","15104","Boyacá","Operador de Red","Vigencia",null,null,0,null,null,null,null,null,null,0,0,0,0,null,null,null,null,0,null,null,null,0]
[null,null,null,"Boyacá","15","15106","Briceño","Operador de Red","Vigencia",null,null,0,null,null,null,null,null,null,0,0,0,0,null,null,null,null,0,null,null,null,0]
[null,null,null,"Boyacá","15","15109","Buenavista","Operador de Red","Vigencia",null,null,0,null,null,null,null,null,null,0,0,0,0,null,null,null,null,0,null,null,null,0]
[null,null,null,"Boyacá","15","15114","Busbanzá","Operador de Red","Vigencia",null,null,0,null,null,null,null,null,null,0,0,0,0,null,null,null,null,0,null,null,null,0]
[null,null,null,"Boyacá","15","15131","Caldas","Operador de Red","Vigencia",null,null,0,null,null,null,null,null,null,0,0,0,0,null,null,null,null,0,null,null,null,0]
[null,null,null,"Boyacá","15","15135","Campohermoso","Operador de Red","Vigencia",null,null,0,null,null,null,null,null,null,0,0,0,0,null,null,null,null,0,null,null,null,0]
[null,null,null,"Boyacá","15","15162","Cerinza","Operador de Red","Vigencia",null,null,0,null,null,null,null,null,null,0,0,0,0,null,null,null,null,0,null,null,null,0]
[null,null,null,"Boyacá","15","15172","Chinavita","Operador de Red","Vigencia",null,null,0,null,null,null,null,null,null,0,0,0,0,null,null,null,null,0,null,null,null,0]
[null,null,null,"Boyacá","15","15176","Chiquinquirá","Operador de Red","Vigencia",null,null,0,null,null,null,null,null,null,0,0,0,0,null,null,null,null,0,null,null,null,0]
[null,null,null,"Boyacá","15","15180","Chiscas","Operador de Red","Vigencia",null,null,0,null,null,null,null,null,null,0,0,0,0,null,null,null,null,0,null,null,null,0]
[null,null,null,"Boyacá","15","15183","Chita","Operador de Red","Vigencia",null,null,0,null,null,null,null,null,null,0,0,0,0,null,null,null,null,0,null,null,null,0]
[null,null,null,"Boyacá","15","15185","Chitaraque","Operador de Red","Vigencia",null,null,0,null,null,null,null,null,null,0,0,0,0,null,null,null,null,0,null,null,null,0]
[null,null,null,"Boyacá","15","15187","Chivatá","Operador de Red","Vigencia",null,null,0,null,null,null,null,null,null,0,0,0,0,null,null,null,null,0,null,null,null,0]
[null,null,null,"Boyacá","15","15189","Ciénega","Operador de Red","Vigencia",null,null,0,null,null,null,null,null,null,0,0,0,0,null,null,null,null,0,null,null,null,0]
[null,null,null,"Boyacá","15","15204","Cómbita","Operador de Red","Vigencia",null,null,0,null,null,null,null,null,null,0,0,0,0,null,null,null,null,0,null,null,null,0]
[null,null,null,"Boyacá","15","15212","Coper","Operador de Red","Vigencia",null,null,0,null,null,null,null,null,null,0,0,0,0,null,null,null,null,0,null,null,null,0]
[null,null,null,"Boyacá","15","15215","Corrales","Operador de Red","Vigencia",null,null,0,null,null,null,null,null,null,0,0,0,0,null,null,null,null,0,null,null,null,0]
[null,null,null,"Boyacá","15","15218","Covarachía","Operador de Red","Vigencia",null,null,0,null,null,null,null,null,null,0,0,0,0,null,null,null,null,0,null,null,null,0]
[null,null,null,"Boyacá","15","15223","Cubará","Operador de Red","Vigencia",null,null,0,null,null,null,null,null,null,0,0,0,0,null,null,null,null,0,null,null,null,0]
[null,null,null,"Boyacá","15","15224","Cucaita","Operador de Red","Vigencia",null,null,0,null,null,null,null,null,null,0,0,0,0,null,null,null,null,0,null,null,null,0]
[null,null,null,"Boyacá","15","15226","Cuítiva","Operador de Red","Vigencia",null,null,0,null,null,null,null,null,null,0,0,0,0,null,null,null,null,0,null,null,null,0]
[null,null,null,"Boyacá","15","15232","Chíquiza","Operador de Red","Vigencia",null,null,0,null,null,null,null,null,null,0,0,0,0,null,null,null,null,0,null,null,null,0]
[null,null,null,"Boyacá","15","15236","Chivor","Operador de Red","Vigencia",null,null,0,null,null,null,null,null,null,0,0,0,0,null,null,null,null,0,null,null,null,0]
[null,null,null,"Boyacá","15","15238","Duitama","Operador de Red","Vigencia",null,null,0,null,null,null,null,null,null,0,0,0,0,null,null,null,null,0,null,null,null,0]
[null,null,null,"Boyacá","15","15244","El Cocuy","Operador de Red","Vigencia",null,null,0,null,null,null,null,null,null,0,0,0,0,null,null,null,null,0,null,null,null,0]
[null,null,null,"Boyacá","15","15248","El Espino","Operador de Red","Vigencia",null,null,0,null,null,null,null,null,null,0,0,0,0,null,null,null,null,0,null,null,null,0]
[null,null,null,"Boyacá","15","15272","Firavitoba","Operador de Red","Vigencia",null,null,0,null,null,null,null,null,null,0,0,0,0,null,null,null,null,0,null,null,null,0]
[null,null,null,"Boyacá","15","15276","Floresta","Operador de Red","Vigencia",null,null,0,null,null,null,null,null,null,0,0,0,0,null,null,null,null,0,null,null,null,0]
[null,null,null,"Boyacá","15","15293","Gachantivá","Operador de Red","Vigencia",null,null,0,null,null,null,null,null,null,0,0,0,0,null,null,null,null,0,null,null,null,0]
[null,null,null,"Boyacá","15","15296","Gameza","Operador de Red","Vigencia",null,null,0,null,null,null,null,null,null,0,0,0,0,null,null,null,null,0,null,null,null,0]
[null,null,null,"Boyacá","15","15299","Garagoa","Operador de Red","Vigencia",null,null,0,null,null,null,null,null,null,0,0,0,0,null,null,null,null,0,null,null,null,0]
[null,null,null,"Boyacá","15","15317","Guacamayas","Operador de Red","Vigencia",null,null,0,null,null,null,null,null,null,0,0,0,0,null,null,null,null,0,null,null,null,0]
[null,null,null,"Boyacá","15","15322","Guateque","Operador de Red","Vigencia",null,null,0,null,null,null,null,null,null,0,0,0,0,null,null,null,null,0,null,null,null,0]
[null,null,null,"Boyacá","15","15325","Guayatá","Operador de Red","Vigencia",null,null,0,null,null,null,null,null,null,0,0,0,0,null,null,null,null,0,null,null,null,0]
[null,null,null,"Boyacá","15","15332","Güicán de la Sierra","Operador de Red","Vigencia",null,null,0,null,null,null,null,null,null,0,0,0,0,null,null,null,null,0,null,null,null,0]
[null,null,null,"Boyacá","15","15362","Iza","Operador de Red","Vigencia",null,null,0,null,null,null,null,null,null,0,0,0,0,null,null,null,null,0,null,null,null,0]
[null,null,null,"Boyacá","15","15367","Jenesano","Operador de Red","Vigencia",null,null,0,null,null,null,null,null,null,0,0,0,0,null,null,null,null,0,null,null,null,0]
[null,null,null,"Boyacá","15","15368","Jericó","Operador de Red","Vigencia",null,null,0,null,null,null,null,null,null,0,0,0,0,null,null,null,null,0,null,null,null,0]
[null,null,null,"Boyacá","15","15377","Labranzagrande","Operador de Red","Vigencia",null,null,0,null,null,null,null,null,null,0,0,0,0,null,null,null,null,0,null,null,null,0]
[null,null,null,"Boyacá","15","15380","La Capilla","Operador de Red","Vigencia",null,null,0,null,null,null,null,null,null,0,0,0,0,null,null,null,null,0,null,null,null,0]
[null,null,null,"Boyacá","15","15401","La Victoria","Operador de Red","Vigencia",null,null,0,null,null,null,null,null,null,0,0,0,0,null,null,null,null,0,null,null,null,0]
[null,null,null,"Boyacá","15","15403","La Uvita","Operador de Red","Vigencia",null,null,0,null,null,null,null,null,null,0,0,0,0,null,null,null,null,0,null,null,null,0]
[null,null,null,"Boyacá","15","15407","Villa de Leyva","Operador de Red","Vigencia",null,null,0,null,null,null,null,null,null,0,0,0,0,null,null,null,null,0,null,null,null,0]
[null,null,null,"Boyacá","15","15425","Macanal","Operador de Red","Vigencia",null,null,0,null,null,null,null,null,null,0,0,0,0,null,null,null,null,0,null,null,null,0]
[null,null,null,"Boyacá","15","15442","Maripí","Operador de Red","Vigencia",null,null,0,null,null,null,null,null,null,0,0,0,0,null,null,null,null,0,null,null,null,0]
[null,null,null,"Boyacá","15","15455","Miraflores","Operador de Red","Vigencia",null,null,0,null,null,null,null,null,null,0,0,0,0,null,null,null,null,0,null,null,null,0]
[null,null,null,"Boyacá","15","15464","Mongua","Operador de Red","Vigencia",null,null,0,null,null,null,null,null,null,0,0,0,0,null,null,null,null,0,null,null,null,0]
[null,null,null,"Boyacá","15","15466","Monguí","Operador de Red","Vigencia",null,null,0,null,null,null,null,null,null,0,0,0,0,null,null,null,null,0,null,null,null,0]
[null,null,null,"Boyacá","15","15469","Moniquirá","Operador de Red","Vigencia",null,null,0,null,null,null,null,null,null,0,0,0,0,null,null,null,null,0,null,null,null,0]
[null,null,null,"Boyacá","15","15476","Motavita","Operador de Red","Vigencia",null,null,0,null,null,null,null,null,null,0,0,0,0,null,null,null,null,0,null,null,null,0]
[null,null,null,"Boyacá","15","15480","Muzo","Operador de Red","Vigencia",null,null,0,null,null,null,null,null,null,0,0,0,0,null,null,null,null,0,null,null,null,0]
[null,null,null,"Boyacá","15","15491","Nobsa","Operador de Red","Vigencia",null,null,0,null,null,null,null,null,null,0,0,0,0,null,null,null,null,0,null,null,null,0]
[null,null,null,"Boyacá",{"$f":"LEFT(F263,2)","v":"15"},"15494","Nuevo Colón","Operador de Red","Vigencia",null,null,{"$f":"J263+K263","v":0},null,null,null,null,null,null,{"$f":"Q263+R263","v":0},{"$f":"J263+M263+O263+Q263","v":0},{"$f":"K263+P263+R263","v":0},{"$f":"T263+U263","v":0},null,null,null,null,{"$f":"Y263+Z263","v":0},null,null,null,{"$f":"AC263+AD263","v":0}]
[null,null,null,"Boyacá","15","15500","Oicatá","Operador de Red","Vigencia",null,null,0,null,null,null,null,null,null,0,0,0,0,null,null,null,null,0,null,null,null,0]
[null,null,null,"Boyacá","15","15507","Otanche","Operador de Red","Vigencia",null,null,0,null,null,null,null,null,null,0,0,0,0,null,null,null,null,0,null,null,null,0]
[null,null,null,"Boyacá","15","15511","Pachavita","Operador de Red","Vigencia",null,null,0,null,null,null,null,null,null,0,0,0,0,null,null,null,null,0,null,null,null,0]
[null,null,null,"Boyacá","15","15514","Páez","Operador de Red","Vigencia",null,null,0,null,null,null,null,null,null,0,0,0,0,null,null,null,null,0,null,null,null,0]
[null,null,null,"Boyacá","15","15516","Paipa","Operador de Red","Vigencia",null,null,0,null,null,null,null,null,null,0,0,0,0,null,null,null,null,0,null,null,null,0]
[null,null,null,"Boyacá","15","15518","Pajarito","Operador de Red","Vigencia",null,null,0,null,null,null,null,null,null,0,0,0,0,null,null,null,null,0,null,null,null,0]
[null,null,null,"Boyacá","15","15522","Panqueba","Operador de Red","Vigencia",null,null,0,null,null,null,null,null,null,0,0,0,0,null,null,null,null,0,null,null,null,0]
[null,null,null,"Boyacá","15","15531","Pauna","Operador de Red","Vigencia",null,null,0,null,null,null,null,null,null,0,0,0,0,null,null,null,null,0,null,null,null,0]
[null,null,null,"Boyacá","15","15533","Paya","Operador de Red","Vigencia",null,null,0,null,null,null,null,null,null,0,0,0,0,null,null,null,null,0,null,null,null,0]
[null,null,null,"Boyacá","15","15537","Paz de Río","Operador de Red","Vigencia",null,null,0,null,null,null,null,null,null,0,0,0,0,null,null,null,null,0,null,null,null,0]
[null,null,null,"Boyacá","15","15542","Pesca","Operador de Red","Vigencia",null,null,0,null,null,null,null,null,null,0,0,0,0,null,null,null,null,0,null,null,null,0]
[null,null,null,"Boyacá","15","15550","Pisba","Operador de Red","Vigencia",null,null,0,null,null,null,null,null,null,0,0,0,0,null,null,null,null,0,null,null,null,0]
[null,null,null,"Boyacá","15","15572","Puerto Boyacá","Operador de Red","Vigencia",null,null,0,null,null,null,null,null,null,0,0,0,0,null,null,null,null,0,null,null,null,0]
[null,null,null,"Boyacá","15","15580","Quípama","Operador de Red","Vigencia",null,null,0,null,null,null,null,null,null,0,0,0,0,null,null,null,null,0,null,null,null,0]
[null,null,null,"Boyacá","15","15599","Ramiriquí","Operador de Red","Vigencia",null,null,0,null,null,null,null,null,null,0,0,0,0,null,null,null,null,0,null,null,null,0]
[null,null,null,"Boyacá","15","15600","Ráquira","Operador de Red","Vigencia",null,null,0,null,null,null,null,null,null,0,0,0,0,null,null,null,null,0,null,null,null,0]
[null,null,null,"Boyacá","15","15621","Rondón","Operador de Red","Vigencia",null,null,0,null,null,null,null,null,null,0,0,0,0,null,null,null,null,0,null,null,null,0]
[null,null,null,"Boyacá","15","15632","Saboyá","Operador de Red","Vigencia",null,null,0,null,null,null,null,null,null,0,0,0,0,null,null,null,null,0,null,null,null,0]
[null,null,null,"Boyacá","15","15638","Sáchica","Operador de Red","Vigencia",null,null,0,null,null,null,null,null,null,0,0,0,0,null,null,null,null,0,null,null,null,0]
[null,null,null,"Boyacá","15","15646","Samacá","Operador de Red","Vigencia",null,null,0,null,null,null,null,null,null,0,0,0,0,null,null,null,null,0,null,null,null,0]
[null,null,null,"Boyacá","15","15660","San Eduardo","Operador de Red","Vigencia",null,null,0,null,null,null,null,null,null,0,0,0,0,null,null,null,null,0,null,null,null,0]
[null,null,null,"Boyacá","15","15664","San José de Pare","Operador de Red","Vigencia",null,null,0,null,null,null,null,null,null,0,0,0,0,null,null,null,null,0,null,null,null,0]
[null,null,null,"Boyacá","15","15667","San Luis de Gaceno","Operador de Red","Vigencia",null,null,0,null,null,null,null,null,null,0,0,0,0,null,null,null,null,0,null,null,null,0]
[null,null,null,"Boyacá","15","15673","San Mateo","Operador de Red","Vigencia",null,null,0,null,null,null,null,null,null,0,0,0,0,null,null,null,null,0,null,null,null,0]
[null,null,null,"Boyacá","15","15676","San Miguel de Sema","Operador de Red","Vigencia",null,null,0,null,null,null,null,null,null,0,0,0,0,null,null,null,null,0,null,null,null,0]
[null,null,null,"Boyacá","15","15681","San Pablo de Borbur","Operador de Red","Vigencia",null,null,0,null,null,null,null,null,null,0,0,0,0,null,null,null,null,0,null,null,null,0]
[null,null,null,"Boyacá","15","15686","Santana","Operador de Red","Vigencia",null,null,0,null,null,null,null,null,null,0,0,0,0,null,null,null,null,0,null,null,null,0]
[null,null,null,"Boyacá","15","15690","Santa María","Operador de Red","Vigencia",null,null,0,null,null,null,null,null,null,0,0,0,0,null,null,null,null,0,null,null,null,0]
[null,null,null,"Boyacá","15","15693","Santa Rosa de Viterbo","Operador de Red","Vigencia",null,null,0,null,null,null,null,null,null,0,0,0,0,null,null,null,null,0,null,null,null,0]
[null,null,null,"Boyacá","15","15696","Santa Sofía","Operador de Red","Vigencia",null,null,0,null,null,null,null,null,null,0,0,0,0,null,null,null,null,0,null,null,null,0]
[null,null,null,"Boyacá","15","15720","Sativanorte","Operador de Red","Vigencia",null,null,0,null,null,null,null,null,null,0,0,0,0,null,null,null,null,0,null,null,null,0]
[null,null,null,"Boyacá","15","15723","Sativasur","Operador de Red","Vigencia",null,null,0,null,null,null,null,null,null,0,0,0,0,null,null,null,null,0,null,null,null,0]
[null,null,null,"Boyacá","15","15740","Siachoque","Operador de Red","Vigencia",null,null,0,null,null,null,null,null,null,0,0,0,0,null,null,null,null,0,null,null,null,0]
[null,null,null,"Boyacá","15","15753","Soatá","Operador de Red","Vigencia",null,null,0,null,null,null,null,null,null,0,0,0,0,null,null,null,null,0,null,null,null,0]
[null,null,null,"Boyacá","15","15755","Socotá","Operador de Red","Vigencia",null,null,0,null,null,null,null,null,null,0,0,0,0,null,null,null,null,0,null,null,null,0]
[null,null,null,"Boyacá","15","15757","Socha","Operador de Red","Vigencia",null,null,0,null,null,null,null,null,null,0,0,0,0,null,null,null,null,0,null,null,null,0]
[null,null,null,"Boyacá","15","15759","Sogamoso","Operador de Red","Vigencia",null,null,0,null,null,null,null,null,null,0,0,0,0,null,null,null,null,0,null,null,null,0]
[null,null,null,"Boyacá","15","15761","Somondoco","Operador de Red","Vigencia",null,null,0,null,null,null,null,null,null,0,0,0,0,null,null,null,null,0,null,null,null,0]
[null,null,null,"Boyacá","15","15762","Sora","Operador de Red","Vigencia",null,null,0,null,null,null,null,null,null,0,0,0,0,null,null,null,null,0,null,null,null,0]
[null,null,null,"Boyacá","15","15763","Sotaquirá","Operador de Red","Vigencia",null,null,0,null,null,null,null,null,null,0,0,0,0,null,null,null,null,0,null,null,null,0]
[null,null,null,"Boyacá","15","15764","Soracá","Operador de Red","Vigencia",null,null,0,null,null,null,null,null,null,0,0,0,0,null,null,null,null,0,null,null,null,0]
[null,null,null,"Boyacá","15","15774","Susacón","Operador de Red","Vigencia",null,null,0,null,null,null,null,null,null,0,0,0,0,null,null,null,null,0,null,null,null,0]
[null,null,null,"Boyacá","15","15776","Sutamarchán","Operador de Red","Vigencia",null,null,0,null,null,null,null,null,null,0,0,0,0,null,null,null,null,0,null,null,null,0]
[null,null,null,"Boyacá","15","15778","Sutatenza","Operador de Red","Vigencia",null,null,0,null,null,null,null,null,null,0,0,0,0,null,null,null,null,0,null,null,null,0]
[null,null,null,"Boyacá","15","15790","Tasco","Operador de Red","Vigencia",null,null,0,null,null,null,null,null,null,0,0,0,0,null,null,null,null,0,null,null,null,0]
[null,null,null,"Boyacá","15","15798","Tenza","Operador de Red","Vigencia",null,null,0,null,null,null,null,null,null,0,0,0,0,null,null,null,null,0,null,null,null,0]
[null,null,null,"Boyacá","15","15804","Tibaná","Operador de Red","Vigencia",null,null,0,null,null,null,null,null,null,0,0,0,0,null,null,null,null,0,null,null,null,0]
[null,null,null,"Boyacá","15","15806","Tibasosa","Operador de Red","Vigencia",null,null,0,null,null,null,null,null,null,0,0,0,0,null,null,null,null,0,null,null,null,0]
[null,null,null,"Boyacá","15","15808","Tinjacá","Operador de Red","Vigencia",null,null,0,null,null,null,null,null,null,0,0,0,0,null,null,null,null,0,null,null,null,0]
[null,null,null,"Boyacá","15","15810","Tipacoque","Operador de Red","Vigencia",null,null,0,null,null,null,null,null,null,0,0,0,0,null,null,null,null,0,null,null,null,0]
[null,null,null,"Boyacá","15","15814","Toca","Operador de Red","Vigencia",null,null,0,null,null,null,null,null,null,0,0,0,0,null,null,null,null,0,null,null,null,0]
[null,null,null,"Boyacá","15","15816","Togüí","Operador de Red","Vigencia",null,null,0,null,null,null,null,null,null,0,0,0,0,null,null,null,null,0,null,null,null,0]
[null,null,null,"Boyacá","15","15820","Tópaga","Operador de Red","Vigencia",null,null,0,null,null,null,null,null,null,0,0,0,0,null,null,null,null,0,null,null,null,0]
[null,null,null,"Boyacá","15","15822","Tota","Operador de Red","Vigencia",null,null,0,null,null,null,null,null,null,0,0,0,0,null,null,null,null,0,null,null,null,0]
[null,null,null,"Boyacá","15","15832","Tununguá","Operador de Red","Vigencia",null,null,0,null,null,null,null,null,null,0,0,0,0,null,null,null,null,0,null,null,null,0]
[null,null,null,"Boyacá","15","15835","Turmequé","Operador de Red","Vigencia",null,null,0,null,null,null,null,null,null,0,0,0,0,null,null,null,null,0,null,null,null,0]
[null,null,null,"Boyacá","15","15837","Tuta","Operador de Red","Vigencia",null,null,0,null,null,null,null,null,null,0,0,0,0,null,null,null,null,0,null,null,null,0]
[null,null,null,"Boyacá","15","15839","Tutazá","Operador de Red","Vigencia",null,null,0,null,null,null,null,null,null,0,0,0,0,null,null,null,null,0,null,null,null,0]
[null,null,null,"Boyacá","15","15842","Umbita","Operador de Red","Vigencia",null,null,0,null,null,null,null,null,null,0,0,0,0,null,null,null,null,0,null,null,null,0]
[null,null,null,"Boyacá","15","15861","Ventaquemada","Operador de Red","Vigencia",null,null,0,null,null,null,null,null,null,0,0,0,0,null,null,null,null,0,null,null,null,0]
[null,null,null,"Boyacá","15","15879","Viracachá","Operador de Red","Vigencia",null,null,0,null,null,null,null,null,null,0,0,0,0,null,null,null,null,0,null,null,null,0]
[null,null,null,"Boyacá","15","15897","Zetaquira","Operador de Red","Vigencia",null,null,0,null,null,null,null,null,null,0,0,0,0,null,null,null,null,0,null,null,null,0]
[null,null,null,"Caldas","17","17001","Manizales","Operador de Red","Vigencia",null,null,0,null,null,null,null,null,null,0,0,0,0,null,null,null,null,0,null,null,null,0]
[null,null,null,"Caldas","17","17013","Aguadas","Operador de Red","Vigencia",null,null,0,null,null,null,null,null,null,0,0,0,0,null,null,null,null,0,null,null,null,0]
[null,null,null,"Caldas","17","17042","Anserma","Operador de Red","Vigencia",null,null,0,null,null,null,null,null,null,0,0,0,0,null,null,null,null,0,null,null,null,0]
[null,null,null,"Caldas","17","17050","Aranzazu","Operador de Red","Vigencia",null,null,0,null,null,null,null,null,null,0,0,0,0,null,null,null,null,0,null,null,null,0]
[null,null,null,"Caldas","17","17088","Belalcázar","Operador de Red","Vigencia",null,null,0,null,null,null,null,null,null,0,0,0,0,null,null,null,null,0,null,null,null,0]
[null,null,null,"Caldas","17","17174","Chinchiná","Operador de Red","Vigencia",null,null,0,null,null,null,null,null,null,0,0,0,0,null,null,null,null,0,null,null,null,0]
[null,null,null,"Caldas","17","17272","Filadelfia","Operador de Red","Vigencia",null,null,0,null,null,null,null,null,null,0,0,0,0,null,null,null,null,0,null,null,null,0]
[null,null,null,"Caldas","17","17380","La Dorada","Operador de Red","Vigencia",null,null,0,null,null,null,null,null,null,0,0,0,0,null,null,null,null,0,null,null,null,0]
[null,null,null,"Caldas","17","17388","La Merced","Operador de Red","Vigencia",null,null,0,null,null,null,null,null,null,0,0,0,0,null,null,null,null,0,null,null,null,0]
[null,null,null,"Caldas","17","17433","Manzanares","Operador de Red","Vigencia",null,null,0,null,null,null,null,null,null,0,0,0,0,null,null,null,null,0,null,null,null,0]
[null,null,null,"Caldas","17","17442","Marmato","Operador de Red","Vigencia",null,null,0,null,null,null,null,null,null,0,0,0,0,null,null,null,null,0,null,null,null,0]
[null,null,null,"Caldas","17","17444","Marquetalia","Operador de Red","Vigencia",null,null,0,null,null,null,null,null,null,0,0,0,0,null,null,null,null,0,null,null,null,0]
[null,null,null,"Caldas","17","17446","Marulanda","Operador de Red","Vigencia",null,null,0,null,null,null,null,null,null,0,0,0,0,null,null,null,null,0,null,null,null,0]
[null,null,null,"Caldas","17","17486","Neira","Operador de Red","Vigencia",null,null,0,null,null,null,null,null,null,0,0,0,0,null,null,null,null,0,null,null,null,0]
[null,null,null,"Caldas","17","17495","Norcasia","Operador de Red","Vigencia",null,null,0,null,null,null,null,null,null,0,0,0,0,null,null,null,null,0,null,null,null,0]
[null,null,null,"Caldas","17","17513","Pácora","Operador de Red","Vigencia",null,null,0,null,null,null,null,null,null,0,0,0,0,null,null,null,null,0,null,null,null,0]
[null,null,null,"Caldas","17","17524","Palestina","Operador de Red","Vigencia",null,null,0,null,null,null,null,null,null,0,0,0,0,null,null,null,null,0,null,null,null,0]
[null,null,null,"Caldas","17","17541","Pensilvania","Operador de Red","Vigencia",null,null,0,null,null,null,null,null,null,0,0,0,0,null,null,null,null,0,null,null,null,0]
[null,null,null,"Caldas","17","17614","Riosucio","Operador de Red","Vigencia",null,null,0,null,null,null,null,null,null,0,0,0,0,null,null,null,null,0,null,null,null,0]
[null,null,null,"Caldas","17","17616","Risaralda","Operador de Red","Vigencia",null,null,0,null,null,null,null,null,null,0,0,0,0,null,null,null,null,0,null,null,null,0]
[null,null,null,"Caldas","17","17653","Salamina","Operador de Red","Vigencia",null,null,0,null,null,null,null,null,null,0,0,0,0,null,null,null,null,0,null,null,null,0]
[null,null,null,"Caldas","17","17662","Samaná","Operador de Red","Vigencia",null,null,0,null,null,null,null,null,null,0,0,0,0,null,null,null,null,0,null,null,null,0]
[null,null,null,"Caldas","17","17665","San José","Operador de Red","Vigencia",null,null,0,null,null,null,null,null,null,0,0,0,0,null,null,null,null,0,null,null,null,0]
[null,null,null,"Caldas","17","17777","Supía","Operador de Red","Vigencia",null,null,0,null,null,null,null,null,null,0,0,0,0,null,null,null,null,0,null,null,null,0]
[null,null,null,"Caldas","17","17867","Victoria","Operador de Red","Vigencia",null,null,0,null,null,null,null,null,null,0,0,0,0,null,null,null,null,0,null,null,null,0]
[null,null,null,"Caldas","17","17873","Villamaría","Operador de Red","Vigencia",null,null,0,null,null,null,null,null,null,0,0,0,0,null,null,null,null,0,null,null,null,0]
[null,null,null,"Caldas","17","17877","Viterbo","Operador de Red","Vigencia",null,null,0,null,null,null,null,null,null,0,0,0,0,null,null,null,null,0,null,null,null,0]
[null,null,null,"Caquetá","18","18001","Florencia","Operador de Red","Vigencia",null,null,0,null,null,null,null,null,null,0,0,0,0,null,null,null,null,0,null,null,null,0]
[null,null,null,"Caquetá","18","18029","Albania","Operador de Red","Vigencia",null,null,0,null,null,null,null,null,null,0,0,0,0,null,null,null,null,0,null,null,null,0]
[null,null,null,"Caquetá","18","18094","Belén de Los Andaquies","Operador de Red","Vigencia",null,null,0,null,null,null,null,null,null,0,0,0,0,null,null,null,null,0,null,null,null,0]
[null,null,null,"Caquetá","18","18150","Cartagena del Chairá","Operador de Red","Vigencia",null,null,0,null,null,null,null,null,null,0,0,0,0,null,null,null,null,0,null,null,null,0]
[null,null,null,"Caquetá","18","18205","Curillo","Operador de Red","Vigencia",null,null,0,null,null,null,null,null,null,0,0,0,0,null,null,null,null,0,null,null,null,0]
[null,null,null,"Caquetá","18","18247","El Doncello","Operador de Red","Vigencia",null,null,0,null,null,null,null,null,null,0,0,0,0,null,null,null,null,0,null,null,null,0]
[null,null,null,"Caquetá","18","18256","El Paujil","Operador de Red","Vigencia",null,null,0,null,null,null,null,null,null,0,0,0,0,null,null,null,null,0,null,null,null,0]
[null,null,null,"Caquetá","18","18410","La Montañita","Operador de Red","Vigencia",null,null,0,null,null,null,null,null,null,0,0,0,0,null,null,null,null,0,null,null,null,0]
[null,null,null,"Caquetá","18","18460","Milán","Operador de Red","Vigencia",null,null,0,null,null,null,null,null,null,0,0,0,0,null,null,null,null,0,null,null,null,0]
[null,null,null,"Caquetá","18","18479","Morelia","Operador de Red","Vigencia",null,null,0,null,null,null,null,null,null,0,0,0,0,null,null,null,null,0,null,null,null,0]
[null,null,null,"Caquetá","18","18592","Puerto Rico","Operador de Red","Vigencia",null,null,0,null,null,null,null,null,null,0,0,0,0,null,null,null,null,0,null,null,null,0]
[null,null,null,"Caquetá","18","18610","San José del Fragua","Operador de Red","Vigencia",null,null,0,null,null,null,null,null,null,0,0,0,0,null,null,null,null,0,null,null,null,0]
[null,null,null,"Caquetá","18","18753","San Vicente del Caguán","Operador de Red","Vigencia",null,null,0,null,null,null,null,null,null,0,0,0,0,null,null,null,null,0,null,null,null,0]
[null,null,null,"Caquetá","18","18756","Solano","Operador de Red","Vigencia",null,null,0,null,null,null,null,null,null,0,0,0,0,null,null,null,null,0,null,null,null,0]
[null,null,null,"Caquetá","18","18785","Solita","Operador de Red","Vigencia",null,null,0,null,null,null,null,null,null,0,0,0,0,null,null,null,null,0,null,null,null,0]
[null,null,null,"Caquetá","18","18860","Valparaíso","Operador de Red","Vigencia",null,null,0,null,null,null,null,null,null,0,0,0,0,null,null,null,null,0,null,null,null,0]
[null,null,null,"Cauca","19","19001","Popayán","Operador de Red","Vigencia",null,null,0,null,null,null,null,null,null,0,0,0,0,null,null,null,null,0,null,null,null,0]
[null,null,null,"Cauca","19","19022","Almaguer","Operador de Red","Vigencia",null,null,0,null,null,null,null,null,null,0,0,0,0,null,null,null,null,0,null,null,null,0]
[null,null,null,"Cauca","19","19050","Argelia","Operador de Red","Vigencia",null,null,0,null,null,null,null,null,null,0,0,0,0,null,null,null,null,0,null,null,null,0]
[null,null,null,"Cauca","19","19075","Balboa","Operador de Red","Vigencia",null,null,0,null,null,null,null,null,null,0,0,0,0,null,null,null,null,0,null,null,null,0]
[null,null,null,"Cauca","19","19100","Bolívar","Operador de Red","Vigencia",null,null,0,null,null,null,null,null,null,0,0,0,0,null,null,null,null,0,null,null,null,0]
[null,null,null,"Cauca","19","19110","Buenos Aires","Operador de Red","Vigencia",null,null,0,null,null,null,null,null,null,0,0,0,0,null,null,null,null,0,null,null,null,0]
[null,null,null,"Cauca","19","19130","Cajibío","Operador de Red","Vigencia",null,null,0,null,null,null,null,null,null,0,0,0,0,null,null,null,null,0,null,null,null,0]
[null,null,null,"Cauca","19","19137","Caldono","Operador de Red","Vigencia",null,null,0,null,null,null,null,null,null,0,0,0,0,null,null,null,null,0,null,null,null,0]
[null,null,null,"Cauca","19","19142","Caloto","Operador de Red","Vigencia",null,null,0,null,null,null,null,null,null,0,0,0,0,null,null,null,null,0,null,null,null,0]
[null,null,null,"Cauca","19","19212","Corinto","Operador de Red","Vigencia",null,null,0,null,null,null,null,null,null,0,0,0,0,null,null,null,null,0,null,null,null,0]
[null,null,null,"Cauca","19","19256","El Tambo","Operador de Red","Vigencia",null,null,0,null,null,null,null,null,null,0,0,0,0,null,null,null,null,0,null,null,null,0]
[null,null,null,"Cauca","19","19290","Florencia","Operador de Red","Vigencia",null,null,0,null,null,null,null,null,null,0,0,0,0,null,null,null,null,0,null,null,null,0]
[null,null,null,"Cauca","19","19300","Guachené","Operador de Red","Vigencia",null,null,0,null,null,null,null,null,null,0,0,0,0,null,null,null,null,0,null,null,null,0]
[null,null,null,"Cauca","19","19318","Guapi","Operador de Red","Vigencia",null,null,0,null,null,null,null,null,null,0,0,0,0,null,null,null,null,0,null,null,null,0]
[null,null,null,"Cauca","19","19355","Inzá","Operador de Red","Vigencia",null,null,0,null,null,null,null,null,null,0,0,0,0,null,null,null,null,0,null,null,null,0]
[null,null,null,"Cauca","19","19364","Jambaló","Operador de Red","Vigencia",null,null,0,null,null,null,null,null,null,0,0,0,0,null,null,null,null,0,null,null,null,0]
[null,null,null,"Cauca","19","19392","La Sierra","Operador de Red","Vigencia",null,null,0,null,null,null,null,null,null,0,0,0,0,null,null,null,null,0,null,null,null,0]
[null,null,null,"Cauca","19","19397","La Vega","Operador de Red","Vigencia",null,null,0,null,null,null,null,null,null,0,0,0,0,null,null,null,null,0,null,null,null,0]
[null,null,null,"Cauca","19","19418","López","Operador de Red","Vigencia",null,null,0,null,null,null,null,null,null,0,0,0,0,null,null,null,null,0,null,null,null,0]
[null,null,null,"Cauca","19","19450","Mercaderes","Operador de Red","Vigencia",null,null,0,null,null,null,null,null,null,0,0,0,0,null,null,null,null,0,null,null,null,0]
[null,null,null,"Cauca","19","19455","Miranda","Operador de Red","Vigencia",null,null,0,null,null,null,null,null,null,0,0,0,0,null,null,null,null,0,null,null,null,0]
[null,null,null,"Cauca","19","19473","Morales","Operador de Red","Vigencia",null,null,0,null,null,null,null,null,null,0,0,0,0,null,null,null,null,0,null,null,null,0]
[null,null,null,"Cauca","19","19513","Padilla","Operador de Red","Vigencia",null,null,0,null,null,null,null,null,null,0,0,0,0,null,null,null,null,0,null,null,null,0]
[null,null,null,"Cauca","19","19517","Páez","Operador de Red","Vigencia",null,null,0,null,null,null,null,null,null,0,0,0,0,null,null,null,null,0,null,null,null,0]
[null,null,null,"Cauca","19","19532","Patía","Operador de Red","Vigencia",null,null,0,null,null,null,null,null,null,0,0,0,0,null,null,null,null,0,null,null,null,0]
[null,null,null,"Cauca","19","19533","Piamonte","Operador de Red","Vigencia",null,null,0,null,null,null,null,null,null,0,0,0,0,null,null,null,null,0,null,null,null,0]
[null,null,null,"Cauca","19","19548","Piendamó Tunia","Operador de Red","Vigencia",null,null,0,null,null,null,null,null,null,0,0,0,0,null,null,null,null,0,null,null,null,0]
[null,null,null,"Cauca","19","19573","Puerto Tejada","Operador de Red","Vigencia",null,null,0,null,null,null,null,null,null,0,0,0,0,null,null,null,null,0,null,null,null,0]
[null,null,null,"Cauca","19","19585","Puracé","Operador de Red","Vigencia",null,null,0,null,null,null,null,null,null,0,0,0,0,null,null,null,null,0,null,null,null,0]
[null,null,null,"Cauca","19","19622","Rosas","Operador de Red","Vigencia",null,null,0,null,null,null,null,null,null,0,0,0,0,null,null,null,null,0,null,null,null,0]
[null,null,null,"Cauca","19","19693","San Sebastián","Operador de Red","Vigencia",null,null,0,null,null,null,null,null,null,0,0,0,0,null,null,null,null,0,null,null,null,0]
[null,null,null,"Cauca","19","19698","Santander de Quilichao","Operador de Red","Vigencia",null,null,0,null,null,null,null,null,null,0,0,0,0,null,null,null,null,0,null,null,null,0]
[null,null,null,"Cauca","19","19701","Santa Rosa","Operador de Red","Vigencia",null,null,0,null,null,null,null,null,null,0,0,0,0,null,null,null,null,0,null,null,null,0]
[null,null,null,"Cauca","19","19743","Silvia","Operador de Red","Vigencia",null,null,0,null,null,null,null,null,null,0,0,0,0,null,null,null,null,0,null,null,null,0]
[null,null,null,"Cauca","19","19760","Sotara","Operador de Red","Vigencia",null,null,0,null,null,null,null,null,null,0,0,0,0,null,null,null,null,0,null,null,null,0]
[null,null,null,"Cauca","19","19780","Suárez","Operador de Red","Vigencia",null,null,0,null,null,null,null,null,null,0,0,0,0,null,null,null,null,0,null,null,null,0]
[null,null,null,"Cauca","19","19785","Sucre","Operador de Red","Vigencia",null,null,0,null,null,null,null,null,null,0,0,0,0,null,null,null,null,0,null,null,null,0]
[null,null,null,"Cauca","19","19807","Timbío","Operador de Red","Vigencia",null,null,0,null,null,null,null,null,null,0,0,0,0,null,null,null,null,0,null,null,null,0]
[null,null,null,"Cauca","19","19809","Timbiquí","Operador de Red","Vigencia",null,null,0,null,null,null,null,null,null,0,0,0,0,null,null,null,null,0,null,null,null,0]
[null,null,null,"Cauca","19","19821","Toribio","Operador de Red","Vigencia",null,null,0,null,null,null,null,null,null,0,0,0,0,null,null,null,null,0,null,null,null,0]
[null,null,null,"Cauca","19","19824","Totoró","Operador de Red","Vigencia",null,null,0,null,null,null,null,null,null,0,0,0,0,null,null,null,null,0,null,null,null,0]
[null,null,null,"Cauca","19","19845","Villa Rica","Operador de Red","Vigencia",null,null,0,null,null,null,null,null,null,0,0,0,0,null,null,null,null,0,null,null,null,0]
[null,null,null,"Cesar","20","20001","Valledupar","Operador de Red","Vigencia",null,null,0,null,null,null,null,null,null,0,0,0,0,null,null,null,null,0,null,null,null,0]
[null,null,null,"Cesar","20","20011","Aguachica","Operador de Red","Vigencia",null,null,0,null,null,null,null,null,null,0,0,0,0,null,null,null,null,0,null,null,null,0]
[null,null,null,"Cesar","20","20013","Agustín Codazzi","Operador de Red","Vigencia",null,null,0,null,null,null,null,null,null,0,0,0,0,null,null,null,null,0,null,null,null,0]
[null,null,null,"Cesar","20","20032","Astrea","Operador de Red","Vigencia",null,null,0,null,null,null,null,null,null,0,0,0,0,null,null,null,null,0,null,null,null,0]
[null,null,null,"Cesar","20","20045","Becerril","Operador de Red","Vigencia",null,null,0,null,null,null,null,null,null,0,0,0,0,null,null,null,null,0,null,null,null,0]
[null,null,null,"Cesar","20","20060","Bosconia","Operador de Red","Vigencia",null,null,0,null,null,null,null,null,null,0,0,0,0,null,null,null,null,0,null,null,null,0]
[null,null,null,"Cesar","20","20175","Chimichagua","Operador de Red","Vigencia",null,null,0,null,null,null,null,null,null,0,0,0,0,null,null,null,null,0,null,null,null,0]
[null,null,null,"Cesar","20","20178","Chiriguaná","Operador de Red","Vigencia",null,null,0,null,null,null,null,null,null,0,0,0,0,null,null,null,null,0,null,null,null,0]
[null,null,null,"Cesar","20","20228","Curumaní","Operador de Red","Vigencia",null,null,0,null,null,null,null,null,null,0,0,0,0,null,null,null,null,0,null,null,null,0]
[null,null,null,"Cesar","20","20238","El Copey","Operador de Red","Vigencia",null,null,0,null,null,null,null,null,null,0,0,0,0,null,null,null,null,0,null,null,null,0]
[null,null,null,"Cesar","20","20250","El Paso","Operador de Red","Vigencia",null,null,0,null,null,null,null,null,null,0,0,0,0,null,null,null,null,0,null,null,null,0]
[null,null,null,"Cesar","20","20295","Gamarra","Operador de Red","Vigencia",null,null,0,null,null,null,null,null,null,0,0,0,0,null,null,null,null,0,null,null,null,0]
[null,null,null,"Cesar","20","20310","González","Operador de Red","Vigencia",null,null,0,null,null,null,null,null,null,0,0,0,0,null,null,null,null,0,null,null,null,0]
[null,null,null,"Cesar","20","20383","La Gloria","Operador de Red","Vigencia",null,null,0,null,null,null,null,null,null,0,0,0,0,null,null,null,null,0,null,null,null,0]
[null,null,null,"Cesar","20","20400","La Jagua de Ibirico","Operador de Red","Vigencia",null,null,0,null,null,null,null,null,null,0,0,0,0,null,null,null,null,0,null,null,null,0]
[null,null,null,"Cesar","20","20443","Manaure Balcón del Cesar","Operador de Red","Vigencia",null,null,0,null,null,null,null,null,null,0,0,0,0,null,null,null,null,0,null,null,null,0]
[null,null,null,"Cesar","20","20517","Pailitas","Operador de Red","Vigencia",null,null,0,null,null,null,null,null,null,0,0,0,0,null,null,null,null,0,null,null,null,0]
[null,null,null,"Cesar","20","20550","Pelaya","Operador de Red","Vigencia",null,null,0,null,null,null,null,null,null,0,0,0,0,null,null,null,null,0,null,null,null,0]
[null,null,null,"Cesar","20","20570","Pueblo Bello","Operador de Red","Vigencia",null,null,0,null,null,null,null,null,null,0,0,0,0,null,null,null,null,0,null,null,null,0]
[null,null,null,"Cesar","20","20614","Río de Oro","Operador de Red","Vigencia",null,null,0,null,null,null,null,null,null,0,0,0,0,null,null,null,null,0,null,null,null,0]
[null,null,null,"Cesar","20","20621","La Paz","Operador de Red","Vigencia",null,null,0,null,null,null,null,null,null,0,0,0,0,null,null,null,null,0,null,null,null,0]
[null,null,null,"Cesar","20","20710","San Alberto","Operador de Red","Vigencia",null,null,0,null,null,null,null,null,null,0,0,0,0,null,null,null,null,0,null,null,null,0]
[null,null,null,"Cesar","20","20750","San Diego","Operador de Red","Vigencia",null,null,0,null,null,null,null,null,null,0,0,0,0,null,null,null,null,0,null,null,null,0]
[null,null,null,"Cesar","20","20770","San Martín","Operador de Red","Vigencia",null,null,0,null,null,null,null,null,null,0,0,0,0,null,null,null,null,0,null,null,null,0]
[null,null,null,"Cesar","20","20787","Tamalameque","Operador de Red","Vigencia",null,null,0,null,null,null,null,null,null,0,0,0,0,null,null,null,null,0,null,null,null,0]
[null,null,null,"Córdoba","23","23001","Montería","Operador de Red","Vigencia",null,null,0,null,null,null,null,null,null,0,0,0,0,null,null,null,null,0,null,null,null,0]
[null,null,null,"Córdoba","23","23068","Ayapel","Operador de Red","Vigencia",null,null,0,null,null,null,null,null,null,0,0,0,0,null,null,null,null,0,null,null,null,0]
[null,null,null,"Córdoba","23","23079","Buenavista","Operador de Red","Vigencia",null,null,0,null,null,null,null,null,null,0,0,0,0,null,null,null,null,0,null,null,null,0]
[null,null,null,"Córdoba","23","23090","Canalete","Operador de Red","Vigencia",null,null,0,null,null,null,null,null,null,0,0,0,0,null,null,null,null,0,null,null,null,0]
[null,null,null,"Córdoba","23","23162","Cereté","Operador de Red","Vigencia",null,null,0,null,null,null,null,null,null,0,0,0,0,null,null,null,null,0,null,null,null,0]
[null,null,null,"Córdoba","23","23168","Chimá","Operador de Red","Vigencia",null,null,0,null,null,null,null,null,null,0,0,0,0,null,null,null,null,0,null,null,null,0]
[null,null,null,"Córdoba","23","23182","Chinú","Operador de Red","Vigencia",null,null,0,null,null,null,null,null,null,0,0,0,0,null,null,null,null,0,null,null,null,0]
[null,null,null,"Córdoba","23","23189","Ciénaga de Oro","Operador de Red","Vigencia",null,null,0,null,null,null,null,null,null,0,0,0,0,null,null,null,null,0,null,null,null,0]
[null,null,null,"Córdoba","23","23300","Cotorra","Operador de Red","Vigencia",null,null,0,null,null,null,null,null,null,0,0,0,0,null,null,null,null,0,null,null,null,0]
[null,null,null,"Córdoba","23","23350","La Apartada","Operador de Red","Vigencia",null,null,0,null,null,null,null,null,null,0,0,0,0,null,null,null,null,0,null,null,null,0]
[null,null,null,"Córdoba","23","23417","Lorica","Operador de Red","Vigencia",null,null,0,null,null,null,null,null,null,0,0,0,0,null,null,null,null,0,null,null,null,0]
[null,null,null,"Córdoba","23","23419","Los Córdobas","Operador de Red","Vigencia",null,null,0,null,null,null,null,null,null,0,0,0,0,null,null,null,null,0,null,null,null,0]
[null,null,null,"Córdoba","23","23464","Momil","Operador de Red","Vigencia",null,null,0,null,null,null,null,null,null,0,0,0,0,null,null,null,null,0,null,null,null,0]
[null,null,null,"Córdoba","23","23466","Montelíbano","Operador de Red","Vigencia",null,null,0,null,null,null,null,null,null,0,0,0,0,null,null,null,null,0,null,null,null,0]
[null,null,null,"Córdoba","23","23500","Moñitos","Operador de Red","Vigencia",null,null,0,null,null,null,null,null,null,0,0,0,0,null,null,null,null,0,null,null,null,0]
[null,null,null,"Córdoba","23","23555","Planeta Rica","Operador de Red","Vigencia",null,null,0,null,null,null,null,null,null,0,0,0,0,null,null,null,null,0,null,null,null,0]
[null,null,null,"Córdoba","23","23570","Pueblo Nuevo","Operador de Red","Vigencia",null,null,0,null,null,null,null,null,null,0,0,0,0,null,null,null,null,0,null,null,null,0]
[null,null,null,"Córdoba","23","23574","Puerto Escondido","Operador de Red","Vigencia",null,null,0,null,null,null,null,null,null,0,0,0,0,null,null,null,null,0,null,null,null,0]
[null,null,null,"Córdoba","23","23580","Puerto Libertador","Operador de Red","Vigencia",null,null,0,null,null,null,null,null,null,0,0,0,0,null,null,null,null,0,null,null,null,0]
[null,null,null,"Córdoba","23","23586","Purísima","Operador de Red","Vigencia",null,null,0,null,null,null,null,null,null,0,0,0,0,null,null,null,null,0,null,null,null,0]
[null,null,null,"Córdoba","23","23660","Sahagún","Operador de Red","Vigencia",null,null,0,null,null,null,null,null,null,0,0,0,0,null,null,null,null,0,null,null,null,0]
[null,null,null,"Córdoba","23","23670","San Andrés Sotavento","Operador de Red","Vigencia",null,null,0,null,null,null,null,null,null,0,0,0,0,null,null,null,null,0,null,null,null,0]
[null,null,null,"Córdoba","23","23672","San Antero","Operador de Red","Vigencia",null,null,0,null,null,null,null,null,null,0,0,0,0,null,null,null,null,0,null,null,null,0]
[null,null,null,"Córdoba","23","23675","San Bernardo del Viento","Operador de Red","Vigencia",null,null,0,null,null,null,null,null,null,0,0,0,0,null,null,null,null,0,null,null,null,0]
[null,null,null,"Córdoba","23","23678","San Carlos","Operador de Red","Vigencia",null,null,0,null,null,null,null,null,null,0,0,0,0,null,null,null,null,0,null,null,null,0]
[null,null,null,"Córdoba","23","23682","San José de Uré","Operador de Red","Vigencia",null,null,0,null,null,null,null,null,null,0,0,0,0,null,null,null,null,0,null,null,null,0]
[null,null,null,"Córdoba","23","23686","San Pelayo","Operador de Red","Vigencia",null,null,0,null,null,null,null,null,null,0,0,0,0,null,null,null,null,0,null,null,null,0]
[null,null,null,"Córdoba","23","23807","Tierralta","Operador de Red","Vigencia",null,null,0,null,null,null,null,null,null,0,0,0,0,null,null,null,null,0,null,null,null,0]
[null,null,null,"Córdoba","23","23815","Tuchín","Operador de Red","Vigencia",null,null,0,null,null,null,null,null,null,0,0,0,0,null,null,null,null,0,null,null,null,0]
[null,null,null,"Córdoba","23","23855","Valencia","Operador de Red","Vigencia",null,null,0,null,null,null,null,null,null,0,0,0,0,null,null,null,null,0,null,null,null,0]
[null,null,null,"Cundinamarca","25","25001","Agua de Dios","Operador de Red","Vigencia",null,null,0,null,null,null,null,null,null,0,0,0,0,null,null,null,null,0,null,null,null,0]
[null,null,null,"Cundinamarca","25","25019","Albán","Operador de Red","Vigencia",null,null,0,null,null,null,null,null,null,0,0,0,0,null,null,null,null,0,null,null,null,0]
[null,null,null,"Cundinamarca","25","25035","Anapoima","Operador de Red","Vigencia",null,null,0,null,null,null,null,null,null,0,0,0,0,null,null,null,null,0,null,null,null,0]
[null,null,null,"Cundinamarca","25","25040","Anolaima","Operador de Red","Vigencia",null,null,0,null,null,null,null,null,null,0,0,0,0,null,null,null,null,0,null,null,null,0]
[null,null,null,"Cundinamarca","25","25053","Arbeláez","Operador de Red","Vigencia",null,null,0,null,null,null,null,null,null,0,0,0,0,null,null,null,null,0,null,null,null,0]
[null,null,null,"Cundinamarca","25","25086","Beltrán","Operador de Red","Vigencia",null,null,0,null,null,null,null,null,null,0,0,0,0,null,null,null,null,0,null,null,null,0]
[null,null,null,"Cundinamarca","25","25095","Bituima","Operador de Red","Vigencia",null,null,0,null,null,null,null,null,null,0,0,0,0,null,null,null,null,0,null,null,null,0]
[null,null,null,"Cundinamarca","25","25099","Bojacá","Operador de Red","Vigencia",null,null,0,null,null,null,null,null,null,0,0,0,0,null,null,null,null,0,null,null,null,0]
[null,null,null,"Cundinamarca","25","25120","Cabrera","Operador de Red","Vigencia",null,null,0,null,null,null,null,null,null,0,0,0,0,null,null,null,null,0,null,null,null,0]
[null,null,null,"Cundinamarca","25","25123","Cachipay","Operador de Red","Vigencia",null,null,0,null,null,null,null,null,null,0,0,0,0,null,null,null,null,0,null,null,null,0]
[null,null,null,"Cundinamarca","25","25126","Cajicá","Operador de Red","Vigencia",null,null,0,null,null,null,null,null,null,0,0,0,0,null,null,null,null,0,null,null,null,0]
[null,null,null,"Cundinamarca","25","25148","Caparrapí","Operador de Red","Vigencia",null,null,0,null,null,null,null,null,null,0,0,0,0,null,null,null,null,0,null,null,null,0]
[null,null,null,"Cundinamarca","25","25151","Caqueza","Operador de Red","Vigencia",null,null,0,null,null,null,null,null,null,0,0,0,0,null,null,null,null,0,null,null,null,0]
[null,null,null,"Cundinamarca","25","25154","Carmen de Carupa","Operador de Red","Vigencia",null,null,0,null,null,null,null,null,null,0,0,0,0,null,null,null,null,0,null,null,null,0]
[null,null,null,"Cundinamarca","25","25168","Chaguaní","Operador de Red","Vigencia",null,null,0,null,null,null,null,null,null,0,0,0,0,null,null,null,null,0,null,null,null,0]
[null,null,null,"Cundinamarca","25","25175","Chía","Operador de Red","Vigencia",null,null,0,null,null,null,null,null,null,0,0,0,0,null,null,null,null,0,null,null,null,0]
[null,null,null,"Cundinamarca","25","25178","Chipaque","Operador de Red","Vigencia",null,null,0,null,null,null,null,null,null,0,0,0,0,null,null,null,null,0,null,null,null,0]
[null,null,null,"Cundinamarca","25","25181","Choachí","Operador de Red","Vigencia",null,null,0,null,null,null,null,null,null,0,0,0,0,null,null,null,null,0,null,null,null,0]
[null,null,null,"Cundinamarca","25","25183","Chocontá","Operador de Red","Vigencia",null,null,0,null,null,null,null,null,null,0,0,0,0,null,null,null,null,0,null,null,null,0]
[null,null,null,"Cundinamarca","25","25200","Cogua","Operador de Red","Vigencia",null,null,0,null,null,null,null,null,null,0,0,0,0,null,null,null,null,0,null,null,null,0]
[null,null,null,"Cundinamarca","25","25214","Cota","Operador de Red","Vigencia",null,null,0,null,null,null,null,null,null,0,0,0,0,null,null,null,null,0,null,null,null,0]
[null,null,null,"Cundinamarca","25","25224","Cucunubá","Operador de Red","Vigencia",null,null,0,null,null,null,null,null,null,0,0,0,0,null,null,null,null,0,null,null,null,0]
[null,null,null,"Cundinamarca","25","25245","El Colegio","Operador de Red","Vigencia",null,null,0,null,null,null,null,null,null,0,0,0,0,null,null,null,null,0,null,null,null,0]
[null,null,null,"Cundinamarca","25","25258","El Peñón","Operador de Red","Vigencia",null,null,0,null,null,null,null,null,null,0,0,0,0,null,null,null,null,0,null,null,null,0]
[null,null,null,"Cundinamarca","25","25260","El Rosal","Operador de Red","Vigencia",null,null,0,null,null,null,null,null,null,0,0,0,0,null,null,null,null,0,null,null,null,0]
[null,null,null,"Cundinamarca","25","25269","Facatativá","Operador de Red","Vigencia",null,null,0,null,null,null,null,null,null,0,0,0,0,null,null,null,null,0,null,null,null,0]
[null,null,null,"Cundinamarca","25","25279","Fómeque","Operador de Red","Vigencia",null,null,0,null,null,null,null,null,null,0,0,0,0,null,null,null,null,0,null,null,null,0]
[null,null,null,"Cundinamarca","25","25281","Fosca","Operador de Red","Vigencia",null,null,0,null,null,null,null,null,null,0,0,0,0,null,null,null,null,0,null,null,null,0]
[null,null,null,"Cundinamarca","25","25286","Funza","Operador de Red","Vigencia",null,null,0,null,null,null,null,null,null,0,0,0,0,null,null,null,null,0,null,null,null,0]
[null,null,null,"Cundinamarca","25","25288","Fúquene","Operador de Red","Vigencia",null,null,0,null,null,null,null,null,null,0,0,0,0,null,null,null,null,0,null,null,null,0]
[null,null,null,"Cundinamarca","25","25290","Fusagasugá","Operador de Red","Vigencia",null,null,0,null,null,null,null,null,null,0,0,0,0,null,null,null,null,0,null,null,null,0]
[null,null,null,"Cundinamarca","25","25293","Gachala","Operador de Red","Vigencia",null,null,0,null,null,null,null,null,null,0,0,0,0,null,null,null,null,0,null,null,null,0]
[null,null,null,"Cundinamarca","25","25295","Gachancipá","Operador de Red","Vigencia",null,null,0,null,null,null,null,null,null,0,0,0,0,null,null,null,null,0,null,null,null,0]
[null,null,null,"Cundinamarca","25","25297","Gachetá","Operador de Red","Vigencia",null,null,0,null,null,null,null,null,null,0,0,0,0,null,null,null,null,0,null,null,null,0]
[null,null,null,"Cundinamarca","25","25299","Gama","Operador de Red","Vigencia",null,null,0,null,null,null,null,null,null,0,0,0,0,null,null,null,null,0,null,null,null,0]
[null,null,null,"Cundinamarca","25","25307","Girardot","Operador de Red","Vigencia",null,null,0,null,null,null,null,null,null,0,0,0,0,null,null,null,null,0,null,null,null,0]
[null,null,null,"Cundinamarca","25","25312","Granada","Operador de Red","Vigencia",null,null,0,null,null,null,null,null,null,0,0,0,0,null,null,null,null,0,null,null,null,0]
[null,null,null,"Cundinamarca","25","25317","Guachetá","Operador de Red","Vigencia",null,null,0,null,null,null,null,null,null,0,0,0,0,null,null,null,null,0,null,null,null,0]
[null,null,null,"Cundinamarca","25","25320","Guaduas","Operador de Red","Vigencia",null,null,0,null,null,null,null,null,null,0,0,0,0,null,null,null,null,0,null,null,null,0]
[null,null,null,"Cundinamarca","25","25322","Guasca","Operador de Red","Vigencia",null,null,0,null,null,null,null,null,null,0,0,0,0,null,null,null,null,0,null,null,null,0]
[null,null,null,"Cundinamarca","25","25324","Guataquí","Operador de Red","Vigencia",null,null,0,null,null,null,null,null,null,0,0,0,0,null,null,null,null,0,null,null,null,0]
[null,null,null,"Cundinamarca","25","25326","Guatavita","Operador de Red","Vigencia",null,null,0,null,null,null,null,null,null,0,0,0,0,null,null,null,null,0,null,null,null,0]
[null,null,null,"Cundinamarca","25","25328","Guayabal de Siquima","Operador de Red","Vigencia",null,null,0,null,null,null,null,null,null,0,0,0,0,null,null,null,null,0,null,null,null,0]
[null,null,null,"Cundinamarca","25","25335","Guayabetal","Operador de Red","Vigencia",null,null,0,null,null,null,null,null,null,0,0,0,0,null,null,null,null,0,null,null,null,0]
[null,null,null,"Cundinamarca","25","25339","Gutiérrez","Operador de Red","Vigencia",null,null,0,null,null,null,null,null,null,0,0,0,0,null,null,null,null,0,null,null,null,0]
[null,null,null,"Cundinamarca","25","25368","Jerusalén","Operador de Red","Vigencia",null,null,0,null,null,null,null,null,null,0,0,0,0,null,null,null,null,0,null,null,null,0]
[null,null,null,"Cundinamarca","25","25372","Junín","Operador de Red","Vigencia",null,null,0,null,null,null,null,null,null,0,0,0,0,null,null,null,null,0,null,null,null,0]
[null,null,null,"Cundinamarca","25","25377","La Calera","Operador de Red","Vigencia",null,null,0,null,null,null,null,null,null,0,0,0,0,null,null,null,null,0,null,null,null,0]
[null,null,null,"Cundinamarca","25","25386","La Mesa","Operador de Red","Vigencia",null,null,0,null,null,null,null,null,null,0,0,0,0,null,null,null,null,0,null,null,null,0]
[null,null,null,"Cundinamarca","25","25394","La Palma","Operador de Red","Vigencia",null,null,0,null,null,null,null,null,null,0,0,0,0,null,null,null,null,0,null,null,null,0]
[null,null,null,"Cundinamarca","25","25398","La Peña","Operador de Red","Vigencia",null,null,0,null,null,null,null,null,null,0,0,0,0,null,null,null,null,0,null,null,null,0]
[null,null,null,"Cundinamarca","25","25402","La Vega","Operador de Red","Vigencia",null,null,0,null,null,null,null,null,null,0,0,0,0,null,null,null,null,0,null,null,null,0]
[null,null,null,"Cundinamarca",{"$f":"LEFT(F518,2)","v":"25"},"25407","Lenguazaque","Operador de Red","Vigencia",null,null,{"$f":"J518+K518","v":0},null,null,null,null,null,null,{"$f":"Q518+R518","v":0},{"$f":"J518+M518+O518+Q518","v":0},{"$f":"K518+P518+R518","v":0},{"$f":"T518+U518","v":0},null,null,null,null,{"$f":"Y518+Z518","v":0},null,null,null,{"$f":"AC518+AD518","v":0}]
[null,null,null,"Cundinamarca","25","25426","Macheta","Operador de Red","Vigencia",null,null,0,null,null,null,null,null,null,0,0,0,0,null,null,null,null,0,null,null,null,0]
[null,null,null,"Cundinamarca","25","25430","Madrid","Operador de Red","Vigencia",null,null,0,null,null,null,null,null,null,0,0,0,0,null,null,null,null,0,null,null,null,0]
[null,null,null,"Cundinamarca","25","25436","Manta","Operador de Red","Vigencia",null,null,0,null,null,null,null,null,null,0,0,0,0,null,null,null,null,0,null,null,null,0]
[null,null,null,"Cundinamarca","25","25438","Medina","Operador de Red","Vigencia",null,null,0,null,null,null,null,null,null,0,0,0,0,null,null,null,null,0,null,null,null,0]
[null,null,null,"Cundinamarca","25","25473","Mosquera","Operador de Red","Vigencia",null,null,0,null,null,null,null,null,null,0,0,0,0,null,null,null,null,0,null,null,null,0]
[null,null,null,"Cundinamarca","25","25483","Nariño","Operador de Red","Vigencia",null,null,0,null,null,null,null,null,null,0,0,0,0,null,null,null,null,0,null,null,null,0]
[null,null,null,"Cundinamarca","25","25486","Nemocón","Operador de Red","Vigencia",null,null,0,null,null,null,null,null,null,0,0,0,0,null,null,null,null,0,null,null,null,0]
[null,null,null,"Cundinamarca","25","25488","Nilo","Operador de Red","Vigencia",null,null,0,null,null,null,null,null,null,0,0,0,0,null,null,null,null,0,null,null,null,0]
[null,null,null,"Cundinamarca","25","25489","Nimaima","Operador de Red","Vigencia",null,null,0,null,null,null,null,null,null,0,0,0,0,null,null,null,null,0,null,null,null,0]
[null,null,null,"Cundinamarca","25","25491","Nocaima","Operador de Red","Vigencia",null,null,0,null,null,null,null,null,null,0,0,0,0,null,null,null,null,0,null,null,null,0]
[null,null,null,"Cundinamarca","25","25506","Venecia","Operador de Red","Vigencia",null,null,0,null,null,null,null,null,null,0,0,0,0,null,null,null,null,0,null,null,null,0]
[null,null,null,"Cundinamarca","25","25513","Pacho","Operador de Red","Vigencia",null,null,0,null,null,null,null,null,null,0,0,0,0,null,null,null,null,0,null,null,null,0]
[null,null,null,"Cundinamarca","25","25518","Paime","Operador de Red","Vigencia",null,null,0,null,null,null,null,null,null,0,0,0,0,null,null,null,null,0,null,null,null,0]
[null,null,null,"Cundinamarca","25","25524","Pandi","Operador de Red","Vigencia",null,null,0,null,null,null,null,null,null,0,0,0,0,null,null,null,null,0,null,null,null,0]
[null,null,null,"Cundinamarca","25","25530","Paratebueno","Operador de Red","Vigencia",null,null,0,null,null,null,null,null,null,0,0,0,0,null,null,null,null,0,null,null,null,0]
[null,null,null,"Cundinamarca","25","25535","Pasca","Operador de Red","Vigencia",null,null,0,null,null,null,null,null,null,0,0,0,0,null,null,null,null,0,null,null,null,0]
[null,null,null,"Cundinamarca","25","25572","Puerto Salgar","Operador de Red","Vigencia",null,null,0,null,null,null,null,null,null,0,0,0,0,null,null,null,null,0,null,null,null,0]
[null,null,null,"Cundinamarca","25","25580","Pulí","Operador de Red","Vigencia",null,null,0,null,null,null,null,null,null,0,0,0,0,null,null,null,null,0,null,null,null,0]
[null,null,null,"Cundinamarca","25","25592","Quebradanegra","Operador de Red","Vigencia",null,null,0,null,null,null,null,null,null,0,0,0,0,null,null,null,null,0,null,null,null,0]
[null,null,null,"Cundinamarca","25","25594","Quetame","Operador de Red","Vigencia",null,null,0,null,null,null,null,null,null,0,0,0,0,null,null,null,null,0,null,null,null,0]
[null,null,null,"Cundinamarca","25","25596","Quipile","Operador de Red","Vigencia",null,null,0,null,null,null,null,null,null,0,0,0,0,null,null,null,null,0,null,null,null,0]
[null,null,null,"Cundinamarca","25","25599","Apulo","Operador de Red","Vigencia",null,null,0,null,null,null,null,null,null,0,0,0,0,null,null,null,null,0,null,null,null,0]
[null,null,null,"Cundinamarca","25","25612","Ricaurte","Operador de Red","Vigencia",null,null,0,null,null,null,null,null,null,0,0,0,0,null,null,null,null,0,null,null,null,0]
[null,null,null,"Cundinamarca","25","25645","San Antonio del Tequendama","Operador de Red","Vigencia",null,null,0,null,null,null,null,null,null,0,0,0,0,null,null,null,null,0,null,null,null,0]
[null,null,null,"Cundinamarca","25","25649","San Bernardo","Operador de Red","Vigencia",null,null,0,null,null,null,null,null,null,0,0,0,0,null,null,null,null,0,null,null,null,0]
[null,null,null,"Cundinamarca","25","25653","San Cayetano","Operador de Red","Vigencia",null,null,0,null,null,null,null,null,null,0,0,0,0,null,null,null,null,0,null,null,null,0]
[null,null,null,"Cundinamarca","25","25658","San Francisco","Operador de Red","Vigencia",null,null,0,null,null,null,null,null,null,0,0,0,0,null,null,null,null,0,null,null,null,0]
[null,null,null,"Cundinamarca","25","25662","San Juan de Río Seco","Operador de Red","Vigencia",null,null,0,null,null,null,null,null,null,0,0,0,0,null,null,null,null,0,null,null,null,0]
[null,null,null,"Cundinamarca","25","25718","Sasaima","Operador de Red","Vigencia",null,null,0,null,null,null,null,null,null,0,0,0,0,null,null,null,null,0,null,null,null,0]
[null,null,null,"Cundinamarca","25","25736","Sesquilé","Operador de Red","Vigencia",null,null,0,null,null,null,null,null,null,0,0,0,0,null,null,null,null,0,null,null,null,0]
[null,null,null,"Cundinamarca","25","25740","Sibaté","Operador de Red","Vigencia",null,null,0,null,null,null,null,null,null,0,0,0,0,null,null,null,null,0,null,null,null,0]
[null,null,null,"Cundinamarca","25","25743","Silvania","Operador de Red","Vigencia",null,null,0,null,null,null,null,null,null,0,0,0,0,null,null,null,null,0,null,null,null,0]
[null,null,null,"Cundinamarca","25","25745","Simijaca","Operador de Red","Vigencia",null,null,0,null,null,null,null,null,null,0,0,0,0,null,null,null,null,0,null,null,null,0]
[null,null,null,"Cundinamarca","25","25754","Soacha","Operador de Red","Vigencia",null,null,0,null,null,null,null,null,null,0,0,0,0,null,null,null,null,0,null,null,null,0]
[null,null,null,"Cundinamarca","25","25758","Sopó","Operador de Red","Vigencia",null,null,0,null,null,null,null,null,null,0,0,0,0,null,null,null,null,0,null,null,null,0]
[null,null,null,"Cundinamarca","25","25769","Subachoque","Operador de Red","Vigencia",null,null,0,null,null,null,null,null,null,0,0,0,0,null,null,null,null,0,null,null,null,0]
[null,null,null,"Cundinamarca","25","25772","Suesca","Operador de Red","Vigencia",null,null,0,null,null,null,null,null,null,0,0,0,0,null,null,null,null,0,null,null,null,0]
[null,null,null,"Cundinamarca","25","25777","Supatá","Operador de Red","Vigencia",null,null,0,null,null,null,null,null,null,0,0,0,0,null,null,null,null,0,null,null,null,0]
[null,null,null,"Cundinamarca","25","25779","Susa","Operador de Red","Vigencia",null,null,0,null,null,null,null,null,null,0,0,0,0,null,null,null,null,0,null,null,null,0]
[null,null,null,"Cundinamarca","25","25781","Sutatausa","Operador de Red","Vigencia",null,null,0,null,null,null,null,null,null,0,0,0,0,null,null,null,null,0,null,null,null,0]
[null,null,null,"Cundinamarca","25","25785","Tabio","Operador de Red","Vigencia",null,null,0,null,null,null,null,null,null,0,0,0,0,null,null,null,null,0,null,null,null,0]
[null,null,null,"Cundinamarca","25","25793","Tausa","Operador de Red","Vigencia",null,null,0,null,null,null,null,null,null,0,0,0,0,null,null,null,null,0,null,null,null,0]
[null,null,null,"Cundinamarca","25","25797","Tena","Operador de Red","Vigencia",null,null,0,null,null,null,null,null,null,0,0,0,0,null,null,null,null,0,null,null,null,0]
[null,null,null,"Cundinamarca","25","25799","Tenjo","Operador de Red","Vigencia",null,null,0,null,null,null,null,null,null,0,0,0,0,null,null,null,null,0,null,null,null,0]
[null,null,null,"Cundinamarca","25","25805","Tibacuy","Operador de Red","Vigencia",null,null,0,null,null,null,null,null,null,0,0,0,0,null,null,null,null,0,null,null,null,0]
[null,null,null,"Cundinamarca","25","25807","Tibirita","Operador de Red","Vigencia",null,null,0,null,null,null,null,null,null,0,0,0,0,null,null,null,null,0,null,null,null,0]
[null,null,null,"Cundinamarca","25","25815","Tocaima","Operador de Red","Vigencia",null,null,0,null,null,null,null,null,null,0,0,0,0,null,null,null,null,0,null,null,null,0]
[null,null,null,"Cundinamarca","25","25817","Tocancipá","Operador de Red","Vigencia",null,null,0,null,null,null,null,null,null,0,0,0,0,null,null,null,null,0,null,null,null,0]
[null,null,null,"Cundinamarca","25","25823","Topaipí","Operador de Red","Vigencia",null,null,0,null,null,null,null,null,null,0,0,0,0,null,null,null,null,0,null,null,null,0]
[null,null,null,"Cundinamarca","25","25839","Ubalá","Operador de Red","Vigencia",null,null,0,null,null,null,null,null,null,0,0,0,0,null,null,null,null,0,null,null,null,0]
[null,null,null,"Cundinamarca","25","25841","Ubaque","Operador de Red","Vigencia",null,null,0,null,null,null,null,null,null,0,0,0,0,null,null,null,null,0,null,null,null,0]
[null,null,null,"Cundinamarca","25","25843","Villa de San Diego de Ubate","Operador de Red","Vigencia",null,null,0,null,null,null,null,null,null,0,0,0,0,null,null,null,null,0,null,null,null,0]
[null,null,null,"Cundinamarca","25","25845","Une","Operador de Red","Vigencia",null,null,0,null,null,null,null,null,null,0,0,0,0,null,null,null,null,0,null,null,null,0]
[null,null,null,"Cundinamarca","25","25851","Útica","Operador de Red","Vigencia",null,null,0,null,null,null,null,null,null,0,0,0,0,null,null,null,null,0,null,null,null,0]
[null,null,null,"Cundinamarca","25","25862","Vergara","Operador de Red","Vigencia",null,null,0,null,null,null,null,null,null,0,0,0,0,null,null,null,null,0,null,null,null,0]
[null,null,null,"Cundinamarca","25","25867","Vianí","Operador de Red","Vigencia",null,null,0,null,null,null,null,null,null,0,0,0,0,null,null,null,null,0,null,null,null,0]
[null,null,null,"Cundinamarca","25","25871","Villagómez","Operador de Red","Vigencia",null,null,0,null,null,null,null,null,null,0,0,0,0,null,null,null,null,0,null,null,null,0]
[null,null,null,"Cundinamarca","25","25873","Villapinzón","Operador de Red","Vigencia",null,null,0,null,null,null,null,null,null,0,0,0,0,null,null,null,null,0,null,null,null,0]
[null,null,null,"Cundinamarca","25","25875","Villeta","Operador de Red","Vigencia",null,null,0,null,null,null,null,null,null,0,0,0,0,null,null,null,null,0,null,null,null,0]
[null,null,null,"Cundinamarca","25","25878","Viotá","Operador de Red","Vigencia",null,null,0,null,null,null,null,null,null,0,0,0,0,null,null,null,null,0,null,null,null,0]
[null,null,null,"Cundinamarca","25","25885","Yacopí","Operador de Red","Vigencia",null,null,0,null,null,null,null,null,null,0,0,0,0,null,null,null,null,0,null,null,null,0]
[null,null,null,"Cundinamarca","25","25898","Zipacón","Operador de Red","Vigencia",null,null,0,null,null,null,null,null,null,0,0,0,0,null,null,null,null,0,null,null,null,0]
[null,null,null,"Cundinamarca","25","25899","Zipaquirá","Operador de Red","Vigencia",null,null,0,null,null,null,null,null,null,0,0,0,0,null,null,null,null,0,null,null,null,0]
[null,null,null,"Chocó","27","27001","Quibdó","Operador de Red","Vigencia",null,null,0,null,null,null,null,null,null,0,0,0,0,null,null,null,null,0,null,null,null,0]
[null,null,null,"Chocó","27","27006","Acandí","Operador de Red","Vigencia",null,null,0,null,null,null,null,null,null,0,0,0,0,null,null,null,null,0,null,null,null,0]
[null,null,null,"Chocó","27","27025","Alto Baudo","Operador de Red","Vigencia",null,null,0,null,null,null,null,null,null,0,0,0,0,null,null,null,null,0,null,null,null,0]
[null,null,null,"Chocó","27","27050","Atrato","Operador de Red","Vigencia",null,null,0,null,null,null,null,null,null,0,0,0,0,null,null,null,null,0,null,null,null,0]
[null,null,null,"Chocó","27","27073","Bagadó","Operador de Red","Vigencia",null,null,0,null,null,null,null,null,null,0,0,0,0,null,null,null,null,0,null,null,null,0]
[null,null,null,"Chocó","27","27075","Bahía Solano","Operador de Red","Vigencia",null,null,0,null,null,null,null,null,null,0,0,0,0,null,null,null,null,0,null,null,null,0]
[null,null,null,"Chocó","27","27077","Bajo Baudó","Operador de Red","Vigencia",null,null,0,null,null,null,null,null,null,0,0,0,0,null,null,null,null,0,null,null,null,0]
[null,null,null,"Chocó","27","27099","Bojaya","Operador de Red","Vigencia",null,null,0,null,null,null,null,null,null,0,0,0,0,null,null,null,null,0,null,null,null,0]
[null,null,null,"Chocó","27","27135","El Cantón del San Pablo","Operador de Red","Vigencia",null,null,0,null,null,null,null,null,null,0,0,0,0,null,null,null,null,0,null,null,null,0]
[null,null,null,"Chocó","27","27150","Carmen del Darien","Operador de Red","Vigencia",null,null,0,null,null,null,null,null,null,0,0,0,0,null,null,null,null,0,null,null,null,0]
[null,null,null,"Chocó","27","27160","Cértegui","Operador de Red","Vigencia",null,null,0,null,null,null,null,null,null,0,0,0,0,null,null,null,null,0,null,null,null,0]
[null,null,null,"Chocó","27","27205","Condoto","Operador de Red","Vigencia",null,null,0,null,null,null,null,null,null,0,0,0,0,null,null,null,null,0,null,null,null,0]
[null,null,null,"Chocó","27","27245","El Carmen de Atrato","Operador de Red","Vigencia",null,null,0,null,null,null,null,null,null,0,0,0,0,null,null,null,null,0,null,null,null,0]
[null,null,null,"Chocó","27","27250","El Litoral del San Juan","Operador de Red","Vigencia",null,null,0,null,null,null,null,null,null,0,0,0,0,null,null,null,null,0,null,null,null,0]
[null,null,null,"Chocó","27","27361","Istmina","Operador de Red","Vigencia",null,null,0,null,null,null,null,null,null,0,0,0,0,null,null,null,null,0,null,null,null,0]
[null,null,null,"Chocó","27","27372","Juradó","Operador de Red","Vigencia",null,null,0,null,null,null,null,null,null,0,0,0,0,null,null,null,null,0,null,null,null,0]
[null,null,null,"Chocó","27","27413","Lloró","Operador de Red","Vigencia",null,null,0,null,null,null,null,null,null,0,0,0,0,null,null,null,null,0,null,null,null,0]
[null,null,null,"Chocó","27","27425","Medio Atrato","Operador de Red","Vigencia",null,null,0,null,null,null,null,null,null,0,0,0,0,null,null,null,null,0,null,null,null,0]
[null,null,null,"Chocó","27","27430","Medio Baudó","Operador de Red","Vigencia",null,null,0,null,null,null,null,null,null,0,0,0,0,null,null,null,null,0,null,null,null,0]
[null,null,null,"Chocó","27","27450","Medio San Juan","Operador de Red","Vigencia",null,null,0,null,null,null,null,null,null,0,0,0,0,null,null,null,null,0,null,null,null,0]
[null,null,null,"Chocó","27","27491","Nóvita","Operador de Red","Vigencia",null,null,0,null,null,null,null,null,null,0,0,0,0,null,null,null,null,0,null,null,null,0]
[null,null,null,"Chocó","27","27495","Nuquí","Operador de Red","Vigencia",null,null,0,null,null,null,null,null,null,0,0,0,0,null,null,null,null,0,null,null,null,0]
[null,null,null,"Chocó","27","27580","Río Iró","Operador de Red","Vigencia",null,null,0,null,null,null,null,null,null,0,0,0,0,null,null,null,null,0,null,null,null,0]
[null,null,null,"Chocó","27","27600","Río Quito","Operador de Red","Vigencia",null,null,0,null,null,null,null,null,null,0,0,0,0,null,null,null,null,0,null,null,null,0]
[null,null,null,"Chocó","27","27615","Riosucio","Operador de Red","Vigencia",null,null,0,null,null,null,null,null,null,0,0,0,0,null,null,null,null,0,null,null,null,0]
[null,null,null,"Chocó","27","27660","San José del Palmar","Operador de Red","Vigencia",null,null,0,null,null,null,null,null,null,0,0,0,0,null,null,null,null,0,null,null,null,0]
[null,null,null,"Chocó","27","27745","Sipí","Operador de Red","Vigencia",null,null,0,null,null,null,null,null,null,0,0,0,0,null,null,null,null,0,null,null,null,0]
[null,null,null,"Chocó","27","27787","Tadó","Operador de Red","Vigencia",null,null,0,null,null,null,null,null,null,0,0,0,0,null,null,null,null,0,null,null,null,0]
[null,null,null,"Chocó","27","27800","Unguía","Operador de Red","Vigencia",null,null,0,null,null,null,null,null,null,0,0,0,0,null,null,null,null,0,null,null,null,0]
[null,null,null,"Chocó","27","27810","Unión Panamericana","Operador de Red","Vigencia",null,null,0,null,null,null,null,null,null,0,0,0,0,null,null,null,null,0,null,null,null,0]
[null,null,null,"Huila","41","41001","Neiva","Operador de Red","Vigencia",null,null,0,null,null,null,null,null,null,0,0,0,0,null,null,null,null,0,null,null,null,0]
[null,null,null,"Huila","41","41006","Acevedo","Operador de Red","Vigencia",null,null,0,null,null,null,null,null,null,0,0,0,0,null,null,null,null,0,null,null,null,0]
[null,null,null,"Huila","41","41013","Agrado","Operador de Red","Vigencia",null,null,0,null,null,null,null,null,null,0,0,0,0,null,null,null,null,0,null,null,null,0]
[null,null,null,"Huila","41","41016","Aipe","Operador de Red","Vigencia",null,null,0,null,null,null,null,null,null,0,0,0,0,null,null,null,null,0,null,null,null,0]
[null,null,null,"Huila","41","41020","Algeciras","Operador de Red","Vigencia",null,null,0,null,null,null,null,null,null,0,0,0,0,null,null,null,null,0,null,null,null,0]
[null,null,null,"Huila","41","41026","Altamira","Operador de Red","Vigencia",null,null,0,null,null,null,null,null,null,0,0,0,0,null,null,null,null,0,null,null,null,0]
[null,null,null,"Huila","41","41078","Baraya","Operador de Red","Vigencia",null,null,0,null,null,null,null,null,null,0,0,0,0,null,null,null,null,0,null,null,null,0]
[null,null,null,"Huila","41","41132","Campoalegre","Operador de Red","Vigencia",null,null,0,null,null,null,null,null,null,0,0,0,0,null,null,null,null,0,null,null,null,0]
[null,null,null,"Huila","41","41206","Colombia","Operador de Red","Vigencia",null,null,0,null,null,null,null,null,null,0,0,0,0,null,null,null,null,0,null,null,null,0]
[null,null,null,"Huila","41","41244","Elías","Operador de Red","Vigencia",null,null,0,null,null,null,null,null,null,0,0,0,0,null,null,null,null,0,null,null,null,0]
[null,null,null,"Huila","41","41298","Garzón","Operador de Red","Vigencia",null,null,0,null,null,null,null,null,null,0,0,0,0,null,null,null,null,0,null,null,null,0]
[null,null,null,"Huila","41","41306","Gigante","Operador de Red","Vigencia",null,null,0,null,null,null,null,null,null,0,0,0,0,null,null,null,null,0,null,null,null,0]
[null,null,null,"Huila","41","41319","Guadalupe","Operador de Red","Vigencia",null,null,0,null,null,null,null,null,null,0,0,0,0,null,null,null,null,0,null,null,null,0]
[null,null,null,"Huila","41","41349","Hobo","Operador de Red","Vigencia",null,null,0,null,null,null,null,null,null,0,0,0,0,null,null,null,null,0,null,null,null,0]
[null,null,null,"Huila","41","41357","Iquira","Operador de Red","Vigencia",null,null,0,null,null,null,null,null,null,0,0,0,0,null,null,null,null,0,null,null,null,0]
[null,null,null,"Huila","41","41359","Isnos","Operador de Red","Vigencia",null,null,0,null,null,null,null,null,null,0,0,0,0,null,null,null,null,0,null,null,null,0]
[null,null,null,"Huila","41","41378","La Argentina","Operador de Red","Vigencia",null,null,0,null,null,null,null,null,null,0,0,0,0,null,null,null,null,0,null,null,null,0]
[null,null,null,"Huila","41","41396","La Plata","Operador de Red","Vigencia",null,null,0,null,null,null,null,null,null,0,0,0,0,null,null,null,null,0,null,null,null,0]
[null,null,null,"Huila","41","41483","Nátaga","Operador de Red","Vigencia",null,null,0,null,null,null,null,null,null,0,0,0,0,null,null,null,null,0,null,null,null,0]
[null,null,null,"Huila","41","41503","Oporapa","Operador de Red","Vigencia",null,null,0,null,null,null,null,null,null,0,0,0,0,null,null,null,null,0,null,null,null,0]
[null,null,null,"Huila","41","41518","Paicol","Operador de Red","Vigencia",null,null,0,null,null,null,null,null,null,0,0,0,0,null,null,null,null,0,null,null,null,0]
[null,null,null,"Huila","41","41524","Palermo","Operador de Red","Vigencia",null,null,0,null,null,null,null,null,null,0,0,0,0,null,null,null,null,0,null,null,null,0]
[null,null,null,"Huila","41","41530","Palestina","Operador de Red","Vigencia",null,null,0,null,null,null,null,null,null,0,0,0,0,null,null,null,null,0,null,null,null,0]
[null,null,null,"Huila","41","41548","Pital","Operador de Red","Vigencia",null,null,0,null,null,null,null,null,null,0,0,0,0,null,null,null,null,0,null,null,null,0]
[null,null,null,"Huila","41","41551","Pitalito","Operador de Red","Vigencia",null,null,0,null,null,null,null,null,null,0,0,0,0,null,null,null,null,0,null,null,null,0]
[null,null,null,"Huila","41","41615","Rivera","Operador de Red","Vigencia",null,null,0,null,null,null,null,null,null,0,0,0,0,null,null,null,null,0,null,null,null,0]
[null,null,null,"Huila","41","41660","Saladoblanco","Operador de Red","Vigencia",null,null,0,null,null,null,null,null,null,0,0,0,0,null,null,null,null,0,null,null,null,0]
[null,null,null,"Huila","41","41668","San Agustín","Operador de Red","Vigencia",null,null,0,null,null,null,null,null,null,0,0,0,0,null,null,null,null,0,null,null,null,0]
[null,null,null,"Huila","41","41676","Santa María","Operador de Red","Vigencia",null,null,0,null,null,null,null,null,null,0,0,0,0,null,null,null,null,0,null,null,null,0]
[null,null,null,"Huila","41","41770","Suaza","Operador de Red","Vigencia",null,null,0,null,null,null,null,null,null,0,0,0,0,null,null,null,null,0,null,null,null,0]
[null,null,null,"Huila","41","41791","Tarqui","Operador de Red","Vigencia",null,null,0,null,null,null,null,null,null,0,0,0,0,null,null,null,null,0,null,null,null,0]
[null,null,null,"Huila","41","41797","Tesalia","Operador de Red","Vigencia",null,null,0,null,null,null,null,null,null,0,0,0,0,null,null,null,null,0,null,null,null,0]
[null,null,null,"Huila","41","41799","Tello","Operador de Red","Vigencia",null,null,0,null,null,null,null,null,null,0,0,0,0,null,null,null,null,0,null,null,null,0]
[null,null,null,"Huila","41","41801","Teruel","Operador de Red","Vigencia",null,null,0,null,null,null,null,null,null,0,0,0,0,null,null,null,null,0,null,null,null,0]
[null,null,null,"Huila","41","41807","Timaná","Operador de Red","Vigencia",null,null,0,null,null,null,null,null,null,0,0,0,0,null,null,null,null,0,null,null,null,0]
[null,null,null,"Huila","41","41872","Villavieja","Operador de Red","Vigencia",null,null,0,null,null,null,null,null,null,0,0,0,0,null,null,null,null,0,null,null,null,0]
[null,null,null,"Huila","41","41885","Yaguará","Operador de Red","Vigencia",null,null,0,null,null,null,null,null,null,0,0,0,0,null,null,null,null,0,null,null,null,0]
[null,null,null,"La Guajira","44","44001","Riohacha","Operador de Red","Vigencia",null,null,0,null,null,null,null,null,null,0,0,0,0,null,null,null,null,0,null,null,null,0]
[null,null,null,"La Guajira","44","44035","Albania","Operador de Red","Vigencia",null,null,0,null,null,null,null,null,null,0,0,0,0,null,null,null,null,0,null,null,null,0]
[null,null,null,"La Guajira","44","44078","Barrancas","Operador de Red","Vigencia",null,null,0,null,null,null,null,null,null,0,0,0,0,null,null,null,null,0,null,null,null,0]
[null,null,null,"La Guajira","44","44090","Dibulla","Operador de Red","Vigencia",null,null,0,null,null,null,null,null,null,0,0,0,0,null,null,null,null,0,null,null,null,0]
[null,null,null,"La Guajira","44","44098","Distracción","Operador de Red","Vigencia",null,null,0,null,null,null,null,null,null,0,0,0,0,null,null,null,null,0,null,null,null,0]
[null,null,null,"La Guajira","44","44110","El Molino","Operador de Red","Vigencia",null,null,0,null,null,null,null,null,null,0,0,0,0,null,null,null,null,0,null,null,null,0]
[null,null,null,"La Guajira","44","44279","Fonseca","Operador de Red","Vigencia",null,null,0,null,null,null,null,null,null,0,0,0,0,null,null,null,null,0,null,null,null,0]
[null,null,null,"La Guajira","44","44378","Hatonuevo","Operador de Red","Vigencia",null,null,0,null,null,null,null,null,null,0,0,0,0,null,null,null,null,0,null,null,null,0]
[null,null,null,"La Guajira","44","44420","La Jagua del Pilar","Operador de Red","Vigencia",null,null,0,null,null,null,null,null,null,0,0,0,0,null,null,null,null,0,null,null,null,0]
[null,null,null,"La Guajira","44","44430","Maicao","Operador de Red","Vigencia",null,null,0,null,null,null,null,null,null,0,0,0,0,null,null,null,null,0,null,null,null,0]
[null,null,null,"La Guajira","44","44560","Manaure","Operador de Red","Vigencia",null,null,0,null,null,null,null,null,null,0,0,0,0,null,null,null,null,0,null,null,null,0]
[null,null,null,"La Guajira","44","44650","San Juan del Cesar","Operador de Red","Vigencia",null,null,0,null,null,null,null,null,null,0,0,0,0,null,null,null,null,0,null,null,null,0]
[null,null,null,"La Guajira","44","44847","Uribia","Operador de Red","Vigencia",null,null,0,null,null,null,null,null,null,0,0,0,0,null,null,null,null,0,null,null,null,0]
[null,null,null,"La Guajira","44","44855","Urumita","Operador de Red","Vigencia",null,null,0,null,null,null,null,null,null,0,0,0,0,null,null,null,null,0,null,null,null,0]
[null,null,null,"La Guajira","44","44874","Villanueva","Operador de Red","Vigencia",null,null,0,null,null,null,null,null,null,0,0,0,0,null,null,null,null,0,null,null,null,0]
[null,null,null,"Magdalena","47","47001","Santa Marta","Operador de Red","Vigencia",null,null,0,null,null,null,null,null,null,0,0,0,0,null,null,null,null,0,null,null,null,0]
[null,null,null,"Magdalena","47","47030","Algarrobo","Operador de Red","Vigencia",null,null,0,null,null,null,null,null,null,0,0,0,0,null,null,null,null,0,null,null,null,0]
[null,null,null,"Magdalena","47","47053","Aracataca","Operador de Red","Vigencia",null,null,0,null,null,null,null,null,null,0,0,0,0,null,null,null,null,0,null,null,null,0]
[null,null,null,"Magdalena","47","47058","Ariguaní","Operador de Red","Vigencia",null,null,0,null,null,null,null,null,null,0,0,0,0,null,null,null,null,0,null,null,null,0]
[null,null,null,"Magdalena","47","47161","Cerro San Antonio","Operador de Red","Vigencia",null,null,0,null,null,null,null,null,null,0,0,0,0,null,null,null,null,0,null,null,null,0]
[null,null,null,"Magdalena","47","47170","Chivolo","Operador de Red","Vigencia",null,null,0,null,null,null,null,null,null,0,0,0,0,null,null,null,null,0,null,null,null,0]
[null,null,null,"Magdalena","47","47189","Ciénaga","Operador de Red","Vigencia",null,null,0,null,null,null,null,null,null,0,0,0,0,null,null,null,null,0,null,null,null,0]
[null,null,null,"Magdalena","47","47205","Concordia","Operador de Red","Vigencia",null,null,0,null,null,null,null,null,null,0,0,0,0,null,null,null,null,0,null,null,null,0]
[null,null,null,"Magdalena","47","47245","El Banco","Operador de Red","Vigencia",null,null,0,null,null,null,null,null,null,0,0,0,0,null,null,null,null,0,null,null,null,0]
[null,null,null,"Magdalena","47","47258","El Piñon","Operador de Red","Vigencia",null,null,0,null,null,null,null,null,null,0,0,0,0,null,null,null,null,0,null,null,null,0]
[null,null,null,"Magdalena","47","47268","El Retén","Operador de Red","Vigencia",null,null,0,null,null,null,null,null,null,0,0,0,0,null,null,null,null,0,null,null,null,0]
[null,null,null,"Magdalena","47","47288","Fundación","Operador de Red","Vigencia",null,null,0,null,null,null,null,null,null,0,0,0,0,null,null,null,null,0,null,null,null,0]
[null,null,null,"Magdalena","47","47318","Guamal","Operador de Red","Vigencia",null,null,0,null,null,null,null,null,null,0,0,0,0,null,null,null,null,0,null,null,null,0]
[null,null,null,"Magdalena","47","47460","Nueva Granada","Operador de Red","Vigencia",null,null,0,null,null,null,null,null,null,0,0,0,0,null,null,null,null,0,null,null,null,0]
[null,null,null,"Magdalena","47","47541","Pedraza","Operador de Red","Vigencia",null,null,0,null,null,null,null,null,null,0,0,0,0,null,null,null,null,0,null,null,null,0]
[null,null,null,"Magdalena","47","47545","Pijiño del Carmen","Operador de Red","Vigencia",null,null,0,null,null,null,null,null,null,0,0,0,0,null,null,null,null,0,null,null,null,0]
[null,null,null,"Magdalena","47","47551","Pivijay","Operador de Red","Vigencia",null,null,0,null,null,null,null,null,null,0,0,0,0,null,null,null,null,0,null,null,null,0]
[null,null,null,"Magdalena","47","47555","Plato","Operador de Red","Vigencia",null,null,0,null,null,null,null,null,null,0,0,0,0,null,null,null,null,0,null,null,null,0]
[null,null,null,"Magdalena","47","47570","Puebloviejo","Operador de Red","Vigencia",null,null,0,null,null,null,null,null,null,0,0,0,0,null,null,null,null,0,null,null,null,0]
[null,null,null,"Magdalena","47","47605","Remolino","Operador de Red","Vigencia",null,null,0,null,null,null,null,null,null,0,0,0,0,null,null,null,null,0,null,null,null,0]
[null,null,null,"Magdalena","47","47660","Sabanas de San Angel","Operador de Red","Vigencia",null,null,0,null,null,null,null,null,null,0,0,0,0,null,null,null,null,0,null,null,null,0]
[null,null,null,"Magdalena","47","47675","Salamina","Operador de Red","Vigencia",null,null,0,null,null,null,null,null,null,0,0,0,0,null,null,null,null,0,null,null,null,0]
[null,null,null,"Magdalena","47","47692","San Sebastián de Buenavista","Operador de Red","Vigencia",null,null,0,null,null,null,null,null,null,0,0,0,0,null,null,null,null,0,null,null,null,0]
[null,null,null,"Magdalena","47","47703","San Zenón","Operador de Red","Vigencia",null,null,0,null,null,null,null,null,null,0,0,0,0,null,null,null,null,0,null,null,null,0]
[null,null,null,"Magdalena","47","47707","Santa Ana","Operador de Red","Vigencia",null,null,0,null,null,null,null,null,null,0,0,0,0,null,null,null,null,0,null,null,null,0]
[null,null,null,"Magdalena","47","47720","Santa Bárbara de Pinto","Operador de Red","Vigencia",null,null,0,null,null,null,null,null,null,0,0,0,0,null,null,null,null,0,null,null,null,0]
[null,null,null,"Magdalena","47","47745","Sitionuevo","Operador de Red","Vigencia",null,null,0,null,null,null,null,null,null,0,0,0,0,null,null,null,null,0,null,null,null,0]
[null,null,null,"Magdalena","47","47798","Tenerife","Operador de Red","Vigencia",null,null,0,null,null,null,null,null,null,0,0,0,0,null,null,null,null,0,null,null,null,0]
[null,null,null,"Magdalena","47","47960","Zapayán","Operador de Red","Vigencia",null,null,0,null,null,null,null,null,null,0,0,0,0,null,null,null,null,0,null,null,null,0]
[null,null,null,"Magdalena","47","47980","Zona Bananera","Operador de Red","Vigencia",null,null,0,null,null,null,null,null,null,0,0,0,0,null,null,null,null,0,null,null,null,0]
[null,null,null,"Meta","50","50001","Villavicencio","Operador de Red","Vigencia",null,null,0,null,null,null,null,null,null,0,0,0,0,null,null,null,null,0,null,null,null,0]
[null,null,null,"Meta","50","50006","Acacías","Operador de Red","Vigencia",null,null,0,null,null,null,null,null,null,0,0,0,0,null,null,null,null,0,null,null,null,0]
[null,null,null,"Meta","50","50110","Barranca de Upía","Operador de Red","Vigencia",null,null,0,null,null,null,null,null,null,0,0,0,0,null,null,null,null,0,null,null,null,0]
[null,null,null,"Meta","50","50124","Cabuyaro","Operador de Red","Vigencia",null,null,0,null,null,null,null,null,null,0,0,0,0,null,null,null,null,0,null,null,null,0]
[null,null,null,"Meta","50","50150","Castilla la Nueva","Operador de Red","Vigencia",null,null,0,null,null,null,null,null,null,0,0,0,0,null,null,null,null,0,null,null,null,0]
[null,null,null,"Meta","50","50223","Cubarral","Operador de Red","Vigencia",null,null,0,null,null,null,null,null,null,0,0,0,0,null,null,null,null,0,null,null,null,0]
[null,null,null,"Meta","50","50226","Cumaral","Operador de Red","Vigencia",null,null,0,null,null,null,null,null,null,0,0,0,0,null,null,null,null,0,null,null,null,0]
[null,null,null,"Meta","50","50245","El Calvario","Operador de Red","Vigencia",null,null,0,null,null,null,null,null,null,0,0,0,0,null,null,null,null,0,null,null,null,0]
[null,null,null,"Meta","50","50251","El Castillo","Operador de Red","Vigencia",null,null,0,null,null,null,null,null,null,0,0,0,0,null,null,null,null,0,null,null,null,0]
[null,null,null,"Meta","50","50270","El Dorado","Operador de Red","Vigencia",null,null,0,null,null,null,null,null,null,0,0,0,0,null,null,null,null,0,null,null,null,0]
[null,null,null,"Meta","50","50287","Fuente de Oro","Operador de Red","Vigencia",null,null,0,null,null,null,null,null,null,0,0,0,0,null,null,null,null,0,null,null,null,0]
[null,null,null,"Meta","50","50313","Granada","Operador de Red","Vigencia",null,null,0,null,null,null,null,null,null,0,0,0,0,null,null,null,null,0,null,null,null,0]
[null,null,null,"Meta","50","50318","Guamal","Operador de Red","Vigencia",null,null,0,null,null,null,null,null,null,0,0,0,0,null,null,null,null,0,null,null,null,0]
[null,null,null,"Meta","50","50325","Mapiripán","Operador de Red","Vigencia",null,null,0,null,null,null,null,null,null,0,0,0,0,null,null,null,null,0,null,null,null,0]
[null,null,null,"Meta","50","50330","Mesetas","Operador de Red","Vigencia",null,null,0,null,null,null,null,null,null,0,0,0,0,null,null,null,null,0,null,null,null,0]
[null,null,null,"Meta","50","50350","La Macarena","Operador de Red","Vigencia",null,null,0,null,null,null,null,null,null,0,0,0,0,null,null,null,null,0,null,null,null,0]
[null,null,null,"Meta","50","50370","Uribe","Operador de Red","Vigencia",null,null,0,null,null,null,null,null,null,0,0,0,0,null,null,null,null,0,null,null,null,0]
[null,null,null,"Meta","50","50400","Lejanías","Operador de Red","Vigencia",null,null,0,null,null,null,null,null,null,0,0,0,0,null,null,null,null,0,null,null,null,0]
[null,null,null,"Meta","50","50450","Puerto Concordia","Operador de Red","Vigencia",null,null,0,null,null,null,null,null,null,0,0,0,0,null,null,null,null,0,null,null,null,0]
[null,null,null,"Meta","50","50568","Puerto Gaitán","Operador de Red","Vigencia",null,null,0,null,null,null,null,null,null,0,0,0,0,null,null,null,null,0,null,null,null,0]
[null,null,null,"Meta","50","50573","Puerto López","Operador de Red","Vigencia",null,null,0,null,null,null,null,null,null,0,0,0,0,null,null,null,null,0,null,null,null,0]
[null,null,null,"Meta","50","50577","Puerto Lleras","Operador de Red","Vigencia",null,null,0,null,null,null,null,null,null,0,0,0,0,null,null,null,null,0,null,null,null,0]
[null,null,null,"Meta","50","50590","Puerto Rico","Operador de Red","Vigencia",null,null,0,null,null,null,null,null,null,0,0,0,0,null,null,null,null,0,null,null,null,0]
[null,null,null,"Meta","50","50606","Restrepo","Operador de Red","Vigencia",null,null,0,null,null,null,null,null,null,0,0,0,0,null,null,null,null,0,null,null,null,0]
[null,null,null,"Meta","50","50680","San Carlos de Guaroa","Operador de Red","Vigencia",null,null,0,null,null,null,null,null,null,0,0,0,0,null,null,null,null,0,null,null,null,0]
[null,null,null,"Meta","50","50683","San Juan de Arama","Operador de Red","Vigencia",null,null,0,null,null,null,null,null,null,0,0,0,0,null,null,null,null,0,null,null,null,0]
[null,null,null,"Meta","50","50686","San Juanito","Operador de Red","Vigencia",null,null,0,null,null,null,null,null,null,0,0,0,0,null,null,null,null,0,null,null,null,0]
[null,null,null,"Meta","50","50689","San Martín","Operador de Red","Vigencia",null,null,0,null,null,null,null,null,null,0,0,0,0,null,null,null,null,0,null,null,null,0]
[null,null,null,"Meta","50","50711","Vistahermosa","Operador de Red","Vigencia",null,null,0,null,null,null,null,null,null,0,0,0,0,null,null,null,null,0,null,null,null,0]
[null,null,null,"Nariño","52","52001","Pasto","Operador de Red","Vigencia",null,null,0,null,null,null,null,null,null,0,0,0,0,null,null,null,null,0,null,null,null,0]
[null,null,null,"Nariño","52","52019","Albán","Operador de Red","Vigencia",null,null,0,null,null,null,null,null,null,0,0,0,0,null,null,null,null,0,null,null,null,0]
[null,null,null,"Nariño","52","52022","Aldana","Operador de Red","Vigencia",null,null,0,null,null,null,null,null,null,0,0,0,0,null,null,null,null,0,null,null,null,0]
[null,null,null,"Nariño","52","52036","Ancuyá","Operador de Red","Vigencia",null,null,0,null,null,null,null,null,null,0,0,0,0,null,null,null,null,0,null,null,null,0]
[null,null,null,"Nariño","52","52051","Arboleda","Operador de Red","Vigencia",null,null,0,null,null,null,null,null,null,0,0,0,0,null,null,null,null,0,null,null,null,0]
[null,null,null,"Nariño","52","52079","Barbacoas","Operador de Red","Vigencia",null,null,0,null,null,null,null,null,null,0,0,0,0,null,null,null,null,0,null,null,null,0]
[null,null,null,"Nariño","52","52083","Belén","Operador de Red","Vigencia",null,null,0,null,null,null,null,null,null,0,0,0,0,null,null,null,null,0,null,null,null,0]
[null,null,null,"Nariño","52","52110","Buesaco","Operador de Red","Vigencia",null,null,0,null,null,null,null,null,null,0,0,0,0,null,null,null,null,0,null,null,null,0]
[null,null,null,"Nariño","52","52203","Colón","Operador de Red","Vigencia",null,null,0,null,null,null,null,null,null,0,0,0,0,null,null,null,null,0,null,null,null,0]
[null,null,null,"Nariño","52","52207","Consacá","Operador de Red","Vigencia",null,null,0,null,null,null,null,null,null,0,0,0,0,null,null,null,null,0,null,null,null,0]
[null,null,null,"Nariño","52","52210","Contadero","Operador de Red","Vigencia",null,null,0,null,null,null,null,null,null,0,0,0,0,null,null,null,null,0,null,null,null,0]
[null,null,null,"Nariño","52","52215","Córdoba","Operador de Red","Vigencia",null,null,0,null,null,null,null,null,null,0,0,0,0,null,null,null,null,0,null,null,null,0]
[null,null,null,"Nariño","52","52224","Cuaspud","Operador de Red","Vigencia",null,null,0,null,null,null,null,null,null,0,0,0,0,null,null,null,null,0,null,null,null,0]
[null,null,null,"Nariño","52","52227","Cumbal","Operador de Red","Vigencia",null,null,0,null,null,null,null,null,null,0,0,0,0,null,null,null,null,0,null,null,null,0]
[null,null,null,"Nariño","52","52233","Cumbitara","Operador de Red","Vigencia",null,null,0,null,null,null,null,null,null,0,0,0,0,null,null,null,null,0,null,null,null,0]
[null,null,null,"Nariño","52","52240","Chachagüí","Operador de Red","Vigencia",null,null,0,null,null,null,null,null,null,0,0,0,0,null,null,null,null,0,null,null,null,0]
[null,null,null,"Nariño","52","52250","El Charco","Operador de Red","Vigencia",null,null,0,null,null,null,null,null,null,0,0,0,0,null,null,null,null,0,null,null,null,0]
[null,null,null,"Nariño","52","52254","El Peñol","Operador de Red","Vigencia",null,null,0,null,null,null,null,null,null,0,0,0,0,null,null,null,null,0,null,null,null,0]
[null,null,null,"Nariño","52","52256","El Rosario","Operador de Red","Vigencia",null,null,0,null,null,null,null,null,null,0,0,0,0,null,null,null,null,0,null,null,null,0]
[null,null,null,"Nariño","52","52258","El Tablón","Operador de Red","Vigencia",null,null,0,null,null,null,null,null,null,0,0,0,0,null,null,null,null,0,null,null,null,0]
[null,null,null,"Nariño","52","52260","El Tambo","Operador de Red","Vigencia",null,null,0,null,null,null,null,null,null,0,0,0,0,null,null,null,null,0,null,null,null,0]
[null,null,null,"Nariño","52","52287","Funes","Operador de Red","Vigencia",null,null,0,null,null,null,null,null,null,0,0,0,0,null,null,null,null,0,null,null,null,0]
[null,null,null,"Nariño","52","52317","Guachucal","Operador de Red","Vigencia",null,null,0,null,null,null,null,null,null,0,0,0,0,null,null,null,null,0,null,null,null,0]
[null,null,null,"Nariño","52","52320","Guaitarilla","Operador de Red","Vigencia",null,null,0,null,null,null,null,null,null,0,0,0,0,null,null,null,null,0,null,null,null,0]
[null,null,null,"Nariño","52","52323","Gualmatán","Operador de Red","Vigencia",null,null,0,null,null,null,null,null,null,0,0,0,0,null,null,null,null,0,null,null,null,0]
[null,null,null,"Nariño","52","52352","Iles","Operador de Red","Vigencia",null,null,0,null,null,null,null,null,null,0,0,0,0,null,null,null,null,0,null,null,null,0]
[null,null,null,"Nariño","52","52354","Imués","Operador de Red","Vigencia",null,null,0,null,null,null,null,null,null,0,0,0,0,null,null,null,null,0,null,null,null,0]
[null,null,null,"Nariño","52","52356","Ipiales","Operador de Red","Vigencia",null,null,0,null,null,null,null,null,null,0,0,0,0,null,null,null,null,0,null,null,null,0]
[null,null,null,"Nariño","52","52378","La Cruz","Operador de Red","Vigencia",null,null,0,null,null,null,null,null,null,0,0,0,0,null,null,null,null,0,null,null,null,0]
[null,null,null,"Nariño","52","52381","La Florida","Operador de Red","Vigencia",null,null,0,null,null,null,null,null,null,0,0,0,0,null,null,null,null,0,null,null,null,0]
[null,null,null,"Nariño","52","52385","La Llanada","Operador de Red","Vigencia",null,null,0,null,null,null,null,null,null,0,0,0,0,null,null,null,null,0,null,null,null,0]
[null,null,null,"Nariño","52","52390","La Tola","Operador de Red","Vigencia",null,null,0,null,null,null,null,null,null,0,0,0,0,null,null,null,null,0,null,null,null,0]
[null,null,null,"Nariño","52","52399","La Unión","Operador de Red","Vigencia",null,null,0,null,null,null,null,null,null,0,0,0,0,null,null,null,null,0,null,null,null,0]
[null,null,null,"Nariño","52","52405","Leiva","Operador de Red","Vigencia",null,null,0,null,null,null,null,null,null,0,0,0,0,null,null,null,null,0,null,null,null,0]
[null,null,null,"Nariño","52","52411","Linares","Operador de Red","Vigencia",null,null,0,null,null,null,null,null,null,0,0,0,0,null,null,null,null,0,null,null,null,0]
[null,null,null,"Nariño","52","52418","Los Andes","Operador de Red","Vigencia",null,null,0,null,null,null,null,null,null,0,0,0,0,null,null,null,null,0,null,null,null,0]
[null,null,null,"Nariño","52","52427","Magüi","Operador de Red","Vigencia",null,null,0,null,null,null,null,null,null,0,0,0,0,null,null,null,null,0,null,null,null,0]
[null,null,null,"Nariño","52","52435","Mallama","Operador de Red","Vigencia",null,null,0,null,null,null,null,null,null,0,0,0,0,null,null,null,null,0,null,null,null,0]
[null,null,null,"Nariño","52","52473","Mosquera","Operador de Red","Vigencia",null,null,0,null,null,null,null,null,null,0,0,0,0,null,null,null,null,0,null,null,null,0]
[null,null,null,"Nariño","52","52480","Nariño","Operador de Red","Vigencia",null,null,0,null,null,null,null,null,null,0,0,0,0,null,null,null,null,0,null,null,null,0]
[null,null,null,"Nariño","52","52490","Olaya Herrera","Operador de Red","Vigencia",null,null,0,null,null,null,null,null,null,0,0,0,0,null,null,null,null,0,null,null,null,0]
[null,null,null,"Nariño","52","52506","Ospina","Operador de Red","Vigencia",null,null,0,null,null,null,null,null,null,0,0,0,0,null,null,null,null,0,null,null,null,0]
[null,null,null,"Nariño","52","52520","Francisco Pizarro","Operador de Red","Vigencia",null,null,0,null,null,null,null,null,null,0,0,0,0,null,null,null,null,0,null,null,null,0]
[null,null,null,"Nariño","52","52540","Policarpa","Operador de Red","Vigencia",null,null,0,null,null,null,null,null,null,0,0,0,0,null,null,null,null,0,null,null,null,0]
[null,null,null,"Nariño","52","52560","Potosí","Operador de Red","Vigencia",null,null,0,null,null,null,null,null,null,0,0,0,0,null,null,null,null,0,null,null,null,0]
[null,null,null,"Nariño","52","52565","Providencia","Operador de Red","Vigencia",null,null,0,null,null,null,null,null,null,0,0,0,0,null,null,null,null,0,null,null,null,0]
[null,null,null,"Nariño","52","52573","Puerres","Operador de Red","Vigencia",null,null,0,null,null,null,null,null,null,0,0,0,0,null,null,null,null,0,null,null,null,0]
[null,null,null,"Nariño","52","52585","Pupiales","Operador de Red","Vigencia",null,null,0,null,null,null,null,null,null,0,0,0,0,null,null,null,null,0,null,null,null,0]
[null,null,null,"Nariño","52","52612","Ricaurte","Operador de Red","Vigencia",null,null,0,null,null,null,null,null,null,0,0,0,0,null,null,null,null,0,null,null,null,0]
[null,null,null,"Nariño","52","52621","Roberto Payán","Operador de Red","Vigencia",null,null,0,null,null,null,null,null,null,0,0,0,0,null,null,null,null,0,null,null,null,0]
[null,null,null,"Nariño",{"$f":"LEFT(F773,2)","v":"52"},"52678","Samaniego","Operador de Red","Vigencia",null,null,{"$f":"J773+K773","v":0},null,null,null,null,null,null,{"$f":"Q773+R773","v":0},{"$f":"J773+M773+O773+Q773","v":0},{"$f":"K773+P773+R773","v":0},{"$f":"T773+U773","v":0},null,null,null,null,{"$f":"Y773+Z773","v":0},null,null,null,{"$f":"AC773+AD773","v":0}]
[null,null,null,"Nariño","52","52683","Sandoná","Operador de Red","Vigencia",null,null,0,null,null,null,null,null,null,0,0,0,0,null,null,null,null,0,null,null,null,0]
[null,null,null,"Nariño","52","52685","San Bernardo","Operador de Red","Vigencia",null,null,0,null,null,null,null,null,null,0,0,0,0,null,null,null,null,0,null,null,null,0]
[null,null,null,"Nariño","52","52687","San Lorenzo","Operador de Red","Vigencia",null,null,0,null,null,null,null,null,null,0,0,0,0,null,null,null,null,0,null,null,null,0]
[null,null,null,"Nariño","52","52693","San Pablo","Operador de Red","Vigencia",null,null,0,null,null,null,null,null,null,0,0,0,0,null,null,null,null,0,null,null,null,0]
[null,null,null,"Nariño","52","52694","San Pedro de Cartago","Operador de Red","Vigencia",null,null,0,null,null,null,null,null,null,0,0,0,0,null,null,null,null,0,null,null,null,0]
[null,null,null,"Nariño","52","52696","Santa Bárbara","Operador de Red","Vigencia",null,null,0,null,null,null,null,null,null,0,0,0,0,null,null,null,null,0,null,null,null,0]
[null,null,null,"Nariño","52","52699","Santacruz","Operador de Red","Vigencia",null,null,0,null,null,null,null,null,null,0,0,0,0,null,null,null,null,0,null,null,null,0]
[null,null,null,"Nariño","52","52720","Sapuyes","Operador de Red","Vigencia",null,null,0,null,null,null,null,null,null,0,0,0,0,null,null,null,null,0,null,null,null,0]
[null,null,null,"Nariño","52","52786","Taminango","Operador de Red","Vigencia",null,null,0,null,null,null,null,null,null,0,0,0,0,null,null,null,null,0,null,null,null,0]
[null,null,null,"Nariño","52","52788","Tangua","Operador de Red","Vigencia",null,null,0,null,null,null,null,null,null,0,0,0,0,null,null,null,null,0,null,null,null,0]
[null,null,null,"Nariño","52","52835","Tumaco","Operador de Red","Vigencia",null,null,0,null,null,null,null,null,null,0,0,0,0,null,null,null,null,0,null,null,null,0]
[null,null,null,"Nariño","52","52838","Túquerres","Operador de Red","Vigencia",null,null,0,null,null,null,null,null,null,0,0,0,0,null,null,null,null,0,null,null,null,0]
[null,null,null,"Nariño","52","52885","Yacuanquer","Operador de Red","Vigencia",null,null,0,null,null,null,null,null,null,0,0,0,0,null,null,null,null,0,null,null,null,0]
[null,null,null,"Norte de Santander","54","54001","San José de Cúcuta","Operador de Red","Vigencia",null,null,0,null,null,null,null,null,null,0,0,0,0,null,null,null,null,0,null,null,null,0]
[null,null,null,"Norte de Santander","54","54003","Abrego","Operador de Red","Vigencia",null,null,0,null,null,null,null,null,null,0,0,0,0,null,null,null,null,0,null,null,null,0]
[null,null,null,"Norte de Santander","54","54051","Arboledas","Operador de Red","Vigencia",null,null,0,null,null,null,null,null,null,0,0,0,0,null,null,null,null,0,null,null,null,0]
[null,null,null,"Norte de Santander","54","54099","Bochalema","Operador de Red","Vigencia",null,null,0,null,null,null,null,null,null,0,0,0,0,null,null,null,null,0,null,null,null,0]
[null,null,null,"Norte de Santander","54","54109","Bucarasica","Operador de Red","Vigencia",null,null,0,null,null,null,null,null,null,0,0,0,0,null,null,null,null,0,null,null,null,0]
[null,null,null,"Norte de Santander","54","54125","Cácota","Operador de Red","Vigencia",null,null,0,null,null,null,null,null,null,0,0,0,0,null,null,null,null,0,null,null,null,0]
[null,null,null,"Norte de Santander","54","54128","Cachirá","Operador de Red","Vigencia",null,null,0,null,null,null,null,null,null,0,0,0,0,null,null,null,null,0,null,null,null,0]
[null,null,null,"Norte de Santander","54","54172","Chinácota","Operador de Red","Vigencia",null,null,0,null,null,null,null,null,null,0,0,0,0,null,null,null,null,0,null,null,null,0]
[null,null,null,"Norte de Santander","54","54174","Chitagá","Operador de Red","Vigencia",null,null,0,null,null,null,null,null,null,0,0,0,0,null,null,null,null,0,null,null,null,0]
[null,null,null,"Norte de Santander","54","54206","Convención","Operador de Red","Vigencia",null,null,0,null,null,null,null,null,null,0,0,0,0,null,null,null,null,0,null,null,null,0]
[null,null,null,"Norte de Santander","54","54223","Cucutilla","Operador de Red","Vigencia",null,null,0,null,null,null,null,null,null,0,0,0,0,null,null,null,null,0,null,null,null,0]
[null,null,null,"Norte de Santander","54","54239","Durania","Operador de Red","Vigencia",null,null,0,null,null,null,null,null,null,0,0,0,0,null,null,null,null,0,null,null,null,0]
[null,null,null,"Norte de Santander","54","54245","El Carmen","Operador de Red","Vigencia",null,null,0,null,null,null,null,null,null,0,0,0,0,null,null,null,null,0,null,null,null,0]
[null,null,null,"Norte de Santander","54","54250","El Tarra","Operador de Red","Vigencia",null,null,0,null,null,null,null,null,null,0,0,0,0,null,null,null,null,0,null,null,null,0]
[null,null,null,"Norte de Santander","54","54261","El Zulia","Operador de Red","Vigencia",null,null,0,null,null,null,null,null,null,0,0,0,0,null,null,null,null,0,null,null,null,0]
[null,null,null,"Norte de Santander","54","54313","Gramalote","Operador de Red","Vigencia",null,null,0,null,null,null,null,null,null,0,0,0,0,null,null,null,null,0,null,null,null,0]
[null,null,null,"Norte de Santander","54","54344","Hacarí","Operador de Red","Vigencia",null,null,0,null,null,null,null,null,null,0,0,0,0,null,null,null,null,0,null,null,null,0]
[null,null,null,"Norte de Santander","54","54347","Herrán","Operador de Red","Vigencia",null,null,0,null,null,null,null,null,null,0,0,0,0,null,null,null,null,0,null,null,null,0]
[null,null,null,"Norte de Santander","54","54377","Labateca","Operador de Red","Vigencia",null,null,0,null,null,null,null,null,null,0,0,0,0,null,null,null,null,0,null,null,null,0]
[null,null,null,"Norte de Santander","54","54385","La Esperanza","Operador de Red","Vigencia",null,null,0,null,null,null,null,null,null,0,0,0,0,null,null,null,null,0,null,null,null,0]
[null,null,null,"Norte de Santander","54","54398","La Playa","Operador de Red","Vigencia",null,null,0,null,null,null,null,null,null,0,0,0,0,null,null,null,null,0,null,null,null,0]
[null,null,null,"Norte de Santander","54","54405","Los Patios","Operador de Red","Vigencia",null,null,0,null,null,null,null,null,null,0,0,0,0,null,null,null,null,0,null,null,null,0]
[null,null,null,"Norte de Santander","54","54418","Lourdes","Operador de Red","Vigencia",null,null,0,null,null,null,null,null,null,0,0,0,0,null,null,null,null,0,null,null,null,0]
[null,null,null,"Norte de Santander","54","54480","Mutiscua","Operador de Red","Vigencia",null,null,0,null,null,null,null,null,null,0,0,0,0,null,null,null,null,0,null,null,null,0]
[null,null,null,"Norte de Santander","54","54498","Ocaña","Operador de Red","Vigencia",null,null,0,null,null,null,null,null,null,0,0,0,0,null,null,null,null,0,null,null,null,0]
[null,null,null,"Norte de Santander","54","54518","Pamplona","Operador de Red","Vigencia",null,null,0,null,null,null,null,null,null,0,0,0,0,null,null,null,null,0,null,null,null,0]
[null,null,null,"Norte de Santander","54","54520","Pamplonita","Operador de Red","Vigencia",null,null,0,null,null,null,null,null,null,0,0,0,0,null,null,null,null,0,null,null,null,0]
[null,null,null,"Norte de Santander","54","54553","Puerto Santander","Operador de Red","Vigencia",null,null,0,null,null,null,null,null,null,0,0,0,0,null,null,null,null,0,null,null,null,0]
[null,null,null,"Norte de Santander","54","54599","Ragonvalia","Operador de Red","Vigencia",null,null,0,null,null,null,null,null,null,0,0,0,0,null,null,null,null,0,null,null,null,0]
[null,null,null,"Norte de Santander","54","54660","Salazar","Operador de Red","Vigencia",null,null,0,null,null,null,null,null,null,0,0,0,0,null,null,null,null,0,null,null,null,0]
[null,null,null,"Norte de Santander","54","54670","San Calixto","Operador de Red","Vigencia",null,null,0,null,null,null,null,null,null,0,0,0,0,null,null,null,null,0,null,null,null,0]
[null,null,null,"Norte de Santander","54","54673","San Cayetano","Operador de Red","Vigencia",null,null,0,null,null,null,null,null,null,0,0,0,0,null,null,null,null,0,null,null,null,0]
[null,null,null,"Norte de Santander","54","54680","Santiago","Operador de Red","Vigencia",null,null,0,null,null,null,null,null,null,0,0,0,0,null,null,null,null,0,null,null,null,0]
[null,null,null,"Norte de Santander","54","54720","Sardinata","Operador de Red","Vigencia",null,null,0,null,null,null,null,null,null,0,0,0,0,null,null,null,null,0,null,null,null,0]
[null,null,null,"Norte de Santander","54","54743","Silos","Operador de Red","Vigencia",null,null,0,null,null,null,null,null,null,0,0,0,0,null,null,null,null,0,null,null,null,0]
[null,null,null,"Norte de Santander","54","54800","Teorama","Operador de Red","Vigencia",null,null,0,null,null,null,null,null,null,0,0,0,0,null,null,null,null,0,null,null,null,0]
[null,null,null,"Norte de Santander","54","54810","Tibú","Operador de Red","Vigencia",null,null,0,null,null,null,null,null,null,0,0,0,0,null,null,null,null,0,null,null,null,0]
[null,null,null,"Norte de Santander","54","54820","Toledo","Operador de Red","Vigencia",null,null,0,null,null,null,null,null,null,0,0,0,0,null,null,null,null,0,null,null,null,0]
[null,null,null,"Norte de Santander","54","54871","Villa Caro","Operador de Red","Vigencia",null,null,0,null,null,null,null,null,null,0,0,0,0,null,null,null,null,0,null,null,null,0]
[null,null,null,"Norte de Santander","54","54874","Villa del Rosario","Operador de Red","Vigencia",null,null,0,null,null,null,null,null,null,0,0,0,0,null,null,null,null,0,null,null,null,0]
[null,null,null,"Quindio","63","63001","Armenia","Operador de Red","Vigencia",null,null,0,null,null,null,null,null,null,0,0,0,0,null,null,null,null,0,null,null,null,0]
[null,null,null,"Quindio","63","63111","Buenavista","Operador de Red","Vigencia",null,null,0,null,null,null,null,null,null,0,0,0,0,null,null,null,null,0,null,null,null,0]
[null,null,null,"Quindio","63","63130","Calarca","Operador de Red","Vigencia",null,null,0,null,null,null,null,null,null,0,0,0,0,null,null,null,null,0,null,null,null,0]
[null,null,null,"Quindio","63","63190","Circasia","Operador de Red","Vigencia",null,null,0,null,null,null,null,null,null,0,0,0,0,null,null,null,null,0,null,null,null,0]
[null,null,null,"Quindio","63","63212","Córdoba","Operador de Red","Vigencia",null,null,0,null,null,null,null,null,null,0,0,0,0,null,null,null,null,0,null,null,null,0]
[null,null,null,"Quindio","63","63272","Filandia","Operador de Red","Vigencia",null,null,0,null,null,null,null,null,null,0,0,0,0,null,null,null,null,0,null,null,null,0]
[null,null,null,"Quindio","63","63302","Génova","Operador de Red","Vigencia",null,null,0,null,null,null,null,null,null,0,0,0,0,null,null,null,null,0,null,null,null,0]
[null,null,null,"Quindio","63","63401","La Tebaida","Operador de Red","Vigencia",null,null,0,null,null,null,null,null,null,0,0,0,0,null,null,null,null,0,null,null,null,0]
[null,null,null,"Quindio","63","63470","Montenegro","Operador de Red","Vigencia",null,null,0,null,null,null,null,null,null,0,0,0,0,null,null,null,null,0,null,null,null,0]
[null,null,null,"Quindio","63","63548","Pijao","Operador de Red","Vigencia",null,null,0,null,null,null,null,null,null,0,0,0,0,null,null,null,null,0,null,null,null,0]
[null,null,null,"Quindio","63","63594","Quimbaya","Operador de Red","Vigencia",null,null,0,null,null,null,null,null,null,0,0,0,0,null,null,null,null,0,null,null,null,0]
[null,null,null,"Quindio","63","63690","Salento","Operador de Red","Vigencia",null,null,0,null,null,null,null,null,null,0,0,0,0,null,null,null,null,0,null,null,null,0]
[null,null,null,"Risaralda","66","66001","Pereira","Operador de Red","Vigencia",null,null,0,null,null,null,null,null,null,0,0,0,0,null,null,null,null,0,null,null,null,0]
[null,null,null,"Risaralda","66","66045","Apía","Operador de Red","Vigencia",null,null,0,null,null,null,null,null,null,0,0,0,0,null,null,null,null,0,null,null,null,0]
[null,null,null,"Risaralda","66","66075","Balboa","Operador de Red","Vigencia",null,null,0,null,null,null,null,null,null,0,0,0,0,null,null,null,null,0,null,null,null,0]
[null,null,null,"Risaralda","66","66088","Belén de Umbría","Operador de Red","Vigencia",null,null,0,null,null,null,null,null,null,0,0,0,0,null,null,null,null,0,null,null,null,0]
[null,null,null,"Risaralda","66","66170","Dosquebradas","Operador de Red","Vigencia",null,null,0,null,null,null,null,null,null,0,0,0,0,null,null,null,null,0,null,null,null,0]
[null,null,null,"Risaralda","66","66318","Guática","Operador de Red","Vigencia",null,null,0,null,null,null,null,null,null,0,0,0,0,null,null,null,null,0,null,null,null,0]
[null,null,null,"Risaralda","66","66383","La Celia","Operador de Red","Vigencia",null,null,0,null,null,null,null,null,null,0,0,0,0,null,null,null,null,0,null,null,null,0]
[null,null,null,"Risaralda","66","66400","La Virginia","Operador de Red","Vigencia",null,null,0,null,null,null,null,null,null,0,0,0,0,null,null,null,null,0,null,null,null,0]
[null,null,null,"Risaralda","66","66440","Marsella","Operador de Red","Vigencia",null,null,0,null,null,null,null,null,null,0,0,0,0,null,null,null,null,0,null,null,null,0]
[null,null,null,"Risaralda","66","66456","Mistrató","Operador de Red","Vigencia",null,null,0,null,null,null,null,null,null,0,0,0,0,null,null,null,null,0,null,null,null,0]
[null,null,null,"Risaralda","66","66572","Pueblo Rico","Operador de Red","Vigencia",null,null,0,null,null,null,null,null,null,0,0,0,0,null,null,null,null,0,null,null,null,0]
[null,null,null,"Risaralda","66","66594","Quinchía","Operador de Red","Vigencia",null,null,0,null,null,null,null,null,null,0,0,0,0,null,null,null,null,0,null,null,null,0]
[null,null,null,"Risaralda","66","66682","Santa Rosa de Cabal","Operador de Red","Vigencia",null,null,0,null,null,null,null,null,null,0,0,0,0,null,null,null,null,0,null,null,null,0]
[null,null,null,"Risaralda","66","66687","Santuario","Operador de Red","Vigencia",null,null,0,null,null,null,null,null,null,0,0,0,0,null,null,null,null,0,null,null,null,0]
[null,null,null,"Santander","68","68001","Bucaramanga","Operador de Red","Vigencia",null,null,0,null,null,null,null,null,null,0,0,0,0,null,null,null,null,0,null,null,null,0]
[null,null,null,"Santander","68","68013","Aguada","Operador de Red","Vigencia",null,null,0,null,null,null,null,null,null,0,0,0,0,null,null,null,null,0,null,null,null,0]
[null,null,null,"Santander","68","68020","Albania","Operador de Red","Vigencia",null,null,0,null,null,null,null,null,null,0,0,0,0,null,null,null,null,0,null,null,null,0]
[null,null,null,"Santander","68","68051","Aratoca","Operador de Red","Vigencia",null,null,0,null,null,null,null,null,null,0,0,0,0,null,null,null,null,0,null,null,null,0]
[null,null,null,"Santander","68","68077","Barbosa","Operador de Red","Vigencia",null,null,0,null,null,null,null,null,null,0,0,0,0,null,null,null,null,0,null,null,null,0]
[null,null,null,"Santander","68","68079","Barichara","Operador de Red","Vigencia",null,null,0,null,null,null,null,null,null,0,0,0,0,null,null,null,null,0,null,null,null,0]
[null,null,null,"Santander","68","68081","Barrancabermeja","Operador de Red","Vigencia",null,null,0,null,null,null,null,null,null,0,0,0,0,null,null,null,null,0,null,null,null,0]
[null,null,null,"Santander","68","68092","Betulia","Operador de Red","Vigencia",null,null,0,null,null,null,null,null,null,0,0,0,0,null,null,null,null,0,null,null,null,0]
[null,null,null,"Santander","68","68101","Bolívar","Operador de Red","Vigencia",null,null,0,null,null,null,null,null,null,0,0,0,0,null,null,null,null,0,null,null,null,0]
[null,null,null,"Santander","68","68121","Cabrera","Operador de Red","Vigencia",null,null,0,null,null,null,null,null,null,0,0,0,0,null,null,null,null,0,null,null,null,0]
[null,null,null,"Santander","68","68132","California","Operador de Red","Vigencia",null,null,0,null,null,null,null,null,null,0,0,0,0,null,null,null,null,0,null,null,null,0]
[null,null,null,"Santander","68","68147","Capitanejo","Operador de Red","Vigencia",null,null,0,null,null,null,null,null,null,0,0,0,0,null,null,null,null,0,null,null,null,0]
[null,null,null,"Santander","68","68152","Carcasí","Operador de Red","Vigencia",null,null,0,null,null,null,null,null,null,0,0,0,0,null,null,null,null,0,null,null,null,0]
[null,null,null,"Santander","68","68160","Cepitá","Operador de Red","Vigencia",null,null,0,null,null,null,null,null,null,0,0,0,0,null,null,null,null,0,null,null,null,0]
[null,null,null,"Santander","68","68162","Cerrito","Operador de Red","Vigencia",null,null,0,null,null,null,null,null,null,0,0,0,0,null,null,null,null,0,null,null,null,0]
[null,null,null,"Santander","68","68167","Charalá","Operador de Red","Vigencia",null,null,0,null,null,null,null,null,null,0,0,0,0,null,null,null,null,0,null,null,null,0]
[null,null,null,"Santander","68","68169","Charta","Operador de Red","Vigencia",null,null,0,null,null,null,null,null,null,0,0,0,0,null,null,null,null,0,null,null,null,0]
[null,null,null,"Santander","68","68176","Chima","Operador de Red","Vigencia",null,null,0,null,null,null,null,null,null,0,0,0,0,null,null,null,null,0,null,null,null,0]
[null,null,null,"Santander","68","68179","Chipatá","Operador de Red","Vigencia",null,null,0,null,null,null,null,null,null,0,0,0,0,null,null,null,null,0,null,null,null,0]
[null,null,null,"Santander","68","68190","Cimitarra","Operador de Red","Vigencia",null,null,0,null,null,null,null,null,null,0,0,0,0,null,null,null,null,0,null,null,null,0]
[null,null,null,"Santander","68","68207","Concepción","Operador de Red","Vigencia",null,null,0,null,null,null,null,null,null,0,0,0,0,null,null,null,null,0,null,null,null,0]
[null,null,null,"Santander","68","68209","Confines","Operador de Red","Vigencia",null,null,0,null,null,null,null,null,null,0,0,0,0,null,null,null,null,0,null,null,null,0]
[null,null,null,"Santander","68","68211","Contratación","Operador de Red","Vigencia",null,null,0,null,null,null,null,null,null,0,0,0,0,null,null,null,null,0,null,null,null,0]
[null,null,null,"Santander","68","68217","Coromoro","Operador de Red","Vigencia",null,null,0,null,null,null,null,null,null,0,0,0,0,null,null,null,null,0,null,null,null,0]
[null,null,null,"Santander","68","68229","Curití","Operador de Red","Vigencia",null,null,0,null,null,null,null,null,null,0,0,0,0,null,null,null,null,0,null,null,null,0]
[null,null,null,"Santander","68","68235","El Carmen de Chucurí","Operador de Red","Vigencia",null,null,0,null,null,null,null,null,null,0,0,0,0,null,null,null,null,0,null,null,null,0]
[null,null,null,"Santander","68","68245","El Guacamayo","Operador de Red","Vigencia",null,null,0,null,null,null,null,null,null,0,0,0,0,null,null,null,null,0,null,null,null,0]
[null,null,null,"Santander","68","68250","El Peñón","Operador de Red","Vigencia",null,null,0,null,null,null,null,null,null,0,0,0,0,null,null,null,null,0,null,null,null,0]
[null,null,null,"Santander","68","68255","El Playón","Operador de Red","Vigencia",null,null,0,null,null,null,null,null,null,0,0,0,0,null,null,null,null,0,null,null,null,0]
[null,null,null,"Santander","68","68264","Encino","Operador de Red","Vigencia",null,null,0,null,null,null,null,null,null,0,0,0,0,null,null,null,null,0,null,null,null,0]
[null,null,null,"Santander","68","68266","Enciso","Operador de Red","Vigencia",null,null,0,null,null,null,null,null,null,0,0,0,0,null,null,null,null,0,null,null,null,0]
[null,null,null,"Santander","68","68271","Florián","Operador de Red","Vigencia",null,null,0,null,null,null,null,null,null,0,0,0,0,null,null,null,null,0,null,null,null,0]
[null,null,null,"Santander","68","68276","Floridablanca","Operador de Red","Vigencia",null,null,0,null,null,null,null,null,null,0,0,0,0,null,null,null,null,0,null,null,null,0]
[null,null,null,"Santander","68","68296","Galán","Operador de Red","Vigencia",null,null,0,null,null,null,null,null,null,0,0,0,0,null,null,null,null,0,null,null,null,0]
[null,null,null,"Santander","68","68298","Gambita","Operador de Red","Vigencia",null,null,0,null,null,null,null,null,null,0,0,0,0,null,null,null,null,0,null,null,null,0]
[null,null,null,"Santander","68","68307","Girón","Operador de Red","Vigencia",null,null,0,null,null,null,null,null,null,0,0,0,0,null,null,null,null,0,null,null,null,0]
[null,null,null,"Santander","68","68318","Guaca","Operador de Red","Vigencia",null,null,0,null,null,null,null,null,null,0,0,0,0,null,null,null,null,0,null,null,null,0]
[null,null,null,"Santander","68","68320","Guadalupe","Operador de Red","Vigencia",null,null,0,null,null,null,null,null,null,0,0,0,0,null,null,null,null,0,null,null,null,0]
[null,null,null,"Santander","68","68322","Guapotá","Operador de Red","Vigencia",null,null,0,null,null,null,null,null,null,0,0,0,0,null,null,null,null,0,null,null,null,0]
[null,null,null,"Santander","68","68324","Guavatá","Operador de Red","Vigencia",null,null,0,null,null,null,null,null,null,0,0,0,0,null,null,null,null,0,null,null,null,0]
[null,null,null,"Santander","68","68327","Güepsa","Operador de Red","Vigencia",null,null,0,null,null,null,null,null,null,0,0,0,0,null,null,null,null,0,null,null,null,0]
[null,null,null,"Santander","68","68344","Hato","Operador de Red","Vigencia",null,null,0,null,null,null,null,null,null,0,0,0,0,null,null,null,null,0,null,null,null,0]
[null,null,null,"Santander","68","68368","Jesús María","Operador de Red","Vigencia",null,null,0,null,null,null,null,null,null,0,0,0,0,null,null,null,null,0,null,null,null,0]
[null,null,null,"Santander","68","68370","Jordán","Operador de Red","Vigencia",null,null,0,null,null,null,null,null,null,0,0,0,0,null,null,null,null,0,null,null,null,0]
[null,null,null,"Santander","68","68377","La Belleza","Operador de Red","Vigencia",null,null,0,null,null,null,null,null,null,0,0,0,0,null,null,null,null,0,null,null,null,0]
[null,null,null,"Santander","68","68385","Landázuri","Operador de Red","Vigencia",null,null,0,null,null,null,null,null,null,0,0,0,0,null,null,null,null,0,null,null,null,0]
[null,null,null,"Santander","68","68397","La Paz","Operador de Red","Vigencia",null,null,0,null,null,null,null,null,null,0,0,0,0,null,null,null,null,0,null,null,null,0]
[null,null,null,"Santander","68","68406","Lebríja","Operador de Red","Vigencia",null,null,0,null,null,null,null,null,null,0,0,0,0,null,null,null,null,0,null,null,null,0]
[null,null,null,"Santander","68","68418","Los Santos","Operador de Red","Vigencia",null,null,0,null,null,null,null,null,null,0,0,0,0,null,null,null,null,0,null,null,null,0]
[null,null,null,"Santander","68","68425","Macaravita","Operador de Red","Vigencia",null,null,0,null,null,null,null,null,null,0,0,0,0,null,null,null,null,0,null,null,null,0]
[null,null,null,"Santander","68","68432","Málaga","Operador de Red","Vigencia",null,null,0,null,null,null,null,null,null,0,0,0,0,null,null,null,null,0,null,null,null,0]
[null,null,null,"Santander","68","68444","Matanza","Operador de Red","Vigencia",null,null,0,null,null,null,null,null,null,0,0,0,0,null,null,null,null,0,null,null,null,0]
[null,null,null,"Santander","68","68464","Mogotes","Operador de Red","Vigencia",null,null,0,null,null,null,null,null,null,0,0,0,0,null,null,null,null,0,null,null,null,0]
[null,null,null,"Santander","68","68468","Molagavita","Operador de Red","Vigencia",null,null,0,null,null,null,null,null,null,0,0,0,0,null,null,null,null,0,null,null,null,0]
[null,null,null,"Santander","68","68498","Ocamonte","Operador de Red","Vigencia",null,null,0,null,null,null,null,null,null,0,0,0,0,null,null,null,null,0,null,null,null,0]
[null,null,null,"Santander","68","68500","Oiba","Operador de Red","Vigencia",null,null,0,null,null,null,null,null,null,0,0,0,0,null,null,null,null,0,null,null,null,0]
[null,null,null,"Santander","68","68502","Onzaga","Operador de Red","Vigencia",null,null,0,null,null,null,null,null,null,0,0,0,0,null,null,null,null,0,null,null,null,0]
[null,null,null,"Santander","68","68522","Palmar","Operador de Red","Vigencia",null,null,0,null,null,null,null,null,null,0,0,0,0,null,null,null,null,0,null,null,null,0]
[null,null,null,"Santander","68","68524","Palmas del Socorro","Operador de Red","Vigencia",null,null,0,null,null,null,null,null,null,0,0,0,0,null,null,null,null,0,null,null,null,0]
[null,null,null,"Santander","68","68533","Páramo","Operador de Red","Vigencia",null,null,0,null,null,null,null,null,null,0,0,0,0,null,null,null,null,0,null,null,null,0]
[null,null,null,"Santander","68","68547","Piedecuesta","Operador de Red","Vigencia",null,null,0,null,null,null,null,null,null,0,0,0,0,null,null,null,null,0,null,null,null,0]
[null,null,null,"Santander","68","68549","Pinchote","Operador de Red","Vigencia",null,null,0,null,null,null,null,null,null,0,0,0,0,null,null,null,null,0,null,null,null,0]
[null,null,null,"Santander","68","68572","Puente Nacional","Operador de Red","Vigencia",null,null,0,null,null,null,null,null,null,0,0,0,0,null,null,null,null,0,null,null,null,0]
[null,null,null,"Santander","68","68573","Puerto Parra","Operador de Red","Vigencia",null,null,0,null,null,null,null,null,null,0,0,0,0,null,null,null,null,0,null,null,null,0]
[null,null,null,"Santander","68","68575","Puerto Wilches","Operador de Red","Vigencia",null,null,0,null,null,null,null,null,null,0,0,0,0,null,null,null,null,0,null,null,null,0]
[null,null,null,"Santander","68","68615","Rionegro","Operador de Red","Vigencia",null,null,0,null,null,null,null,null,null,0,0,0,0,null,null,null,null,0,null,null,null,0]
[null,null,null,"Santander","68","68655","Sabana de Torres","Operador de Red","Vigencia",null,null,0,null,null,null,null,null,null,0,0,0,0,null,null,null,null,0,null,null,null,0]
[null,null,null,"Santander","68","68669","San Andrés","Operador de Red","Vigencia",null,null,0,null,null,null,null,null,null,0,0,0,0,null,null,null,null,0,null,null,null,0]
[null,null,null,"Santander","68","68673","San Benito","Operador de Red","Vigencia",null,null,0,null,null,null,null,null,null,0,0,0,0,null,null,null,null,0,null,null,null,0]
[null,null,null,"Santander","68","68679","San Gil","Operador de Red","Vigencia",null,null,0,null,null,null,null,null,null,0,0,0,0,null,null,null,null,0,null,null,null,0]
[null,null,null,"Santander","68","68682","San Joaquín","Operador de Red","Vigencia",null,null,0,null,null,null,null,null,null,0,0,0,0,null,null,null,null,0,null,null,null,0]
[null,null,null,"Santander","68","68684","San José de Miranda","Operador de Red","Vigencia",null,null,0,null,null,null,null,null,null,0,0,0,0,null,null,null,null,0,null,null,null,0]
[null,null,null,"Santander","68","68686","San Miguel","Operador de Red","Vigencia",null,null,0,null,null,null,null,null,null,0,0,0,0,null,null,null,null,0,null,null,null,0]
[null,null,null,"Santander","68","68689","San Vicente de Chucurí","Operador de Red","Vigencia",null,null,0,null,null,null,null,null,null,0,0,0,0,null,null,null,null,0,null,null,null,0]
[null,null,null,"Santander","68","68705","Santa Bárbara","Operador de Red","Vigencia",null,null,0,null,null,null,null,null,null,0,0,0,0,null,null,null,null,0,null,null,null,0]
[null,null,null,"Santander","68","68720","Santa Helena del Opón","Operador de Red","Vigencia",null,null,0,null,null,null,null,null,null,0,0,0,0,null,null,null,null,0,null,null,null,0]
[null,null,null,"Santander","68","68745","Simacota","Operador de Red","Vigencia",null,null,0,null,null,null,null,null,null,0,0,0,0,null,null,null,null,0,null,null,null,0]
[null,null,null,"Santander","68","68755","Socorro","Operador de Red","Vigencia",null,null,0,null,null,null,null,null,null,0,0,0,0,null,null,null,null,0,null,null,null,0]
[null,null,null,"Santander","68","68770","Suaita","Operador de Red","Vigencia",null,null,0,null,null,null,null,null,null,0,0,0,0,null,null,null,null,0,null,null,null,0]
[null,null,null,"Santander","68","68773","Sucre","Operador de Red","Vigencia",null,null,0,null,null,null,null,null,null,0,0,0,0,null,null,null,null,0,null,null,null,0]
[null,null,null,"Santander","68","68780","Suratá","Operador de Red","Vigencia",null,null,0,null,null,null,null,null,null,0,0,0,0,null,null,null,null,0,null,null,null,0]
[null,null,null,"Santander","68","68820","Tona","Operador de Red","Vigencia",null,null,0,null,null,null,null,null,null,0,0,0,0,null,null,null,null,0,null,null,null,0]
[null,null,null,"Santander","68","68855","Valle de San José","Operador de Red","Vigencia",null,null,0,null,null,null,null,null,null,0,0,0,0,null,null,null,null,0,null,null,null,0]
[null,null,null,"Santander","68","68861","Vélez","Operador de Red","Vigencia",null,null,0,null,null,null,null,null,null,0,0,0,0,null,null,null,null,0,null,null,null,0]
[null,null,null,"Santander","68","68867","Vetas","Operador de Red","Vigencia",null,null,0,null,null,null,null,null,null,0,0,0,0,null,null,null,null,0,null,null,null,0]
[null,null,null,"Santander","68","68872","Villanueva","Operador de Red","Vigencia",null,null,0,null,null,null,null,null,null,0,0,0,0,null,null,null,null,0,null,null,null,0]
[null,null,null,"Santander","68","68895","Zapatoca","Operador de Red","Vigencia",null,null,0,null,null,null,null,null,null,0,0,0,0,null,null,null,null,0,null,null,null,0]
[null,null,null,"Sucre","70","70001","Sincelejo","Operador de Red","Vigencia",null,null,0,null,null,null,null,null,null,0,0,0,0,null,null,null,null,0,null,null,null,0]
[null,null,null,"Sucre","70","70110","Buenavista","Operador de Red","Vigencia",null,null,0,null,null,null,null,null,null,0,0,0,0,null,null,null,null,0,null,null,null,0]
[null,null,null,"Sucre","70","70124","Caimito","Operador de Red","Vigencia",null,null,0,null,null,null,null,null,null,0,0,0,0,null,null,null,null,0,null,null,null,0]
[null,null,null,"Sucre","70","70204","Colosó","Operador de Red","Vigencia",null,null,0,null,null,null,null,null,null,0,0,0,0,null,null,null,null,0,null,null,null,0]
[null,null,null,"Sucre","70","70215","Corozal","Operador de Red","Vigencia",null,null,0,null,null,null,null,null,null,0,0,0,0,null,null,null,null,0,null,null,null,0]
[null,null,null,"Sucre","70","70221","Coveñas","Operador de Red","Vigencia",null,null,0,null,null,null,null,null,null,0,0,0,0,null,null,null,null,0,null,null,null,0]
[null,null,null,"Sucre","70","70230","Chalán","Operador de Red","Vigencia",null,null,0,null,null,null,null,null,null,0,0,0,0,null,null,null,null,0,null,null,null,0]
[null,null,null,"Sucre","70","70233","El Roble","Operador de Red","Vigencia",null,null,0,null,null,null,null,null,null,0,0,0,0,null,null,null,null,0,null,null,null,0]
[null,null,null,"Sucre","70","70235","Galeras","Operador de Red","Vigencia",null,null,0,null,null,null,null,null,null,0,0,0,0,null,null,null,null,0,null,null,null,0]
[null,null,null,"Sucre","70","70265","Guaranda","Operador de Red","Vigencia",null,null,0,null,null,null,null,null,null,0,0,0,0,null,null,null,null,0,null,null,null,0]
[null,null,null,"Sucre","70","70400","La Unión","Operador de Red","Vigencia",null,null,0,null,null,null,null,null,null,0,0,0,0,null,null,null,null,0,null,null,null,0]
[null,null,null,"Sucre","70","70418","Los Palmitos","Operador de Red","Vigencia",null,null,0,null,null,null,null,null,null,0,0,0,0,null,null,null,null,0,null,null,null,0]
[null,null,null,"Sucre","70","70429","Majagual","Operador de Red","Vigencia",null,null,0,null,null,null,null,null,null,0,0,0,0,null,null,null,null,0,null,null,null,0]
[null,null,null,"Sucre","70","70473","Morroa","Operador de Red","Vigencia",null,null,0,null,null,null,null,null,null,0,0,0,0,null,null,null,null,0,null,null,null,0]
[null,null,null,"Sucre","70","70508","Ovejas","Operador de Red","Vigencia",null,null,0,null,null,null,null,null,null,0,0,0,0,null,null,null,null,0,null,null,null,0]
[null,null,null,"Sucre","70","70523","Palmito","Operador de Red","Vigencia",null,null,0,null,null,null,null,null,null,0,0,0,0,null,null,null,null,0,null,null,null,0]
[null,null,null,"Sucre","70","70670","Sampués","Operador de Red","Vigencia",null,null,0,null,null,null,null,null,null,0,0,0,0,null,null,null,null,0,null,null,null,0]
[null,null,null,"Sucre","70","70678","San Benito Abad","Operador de Red","Vigencia",null,null,0,null,null,null,null,null,null,0,0,0,0,null,null,null,null,0,null,null,null,0]
[null,null,null,"Sucre","70","70702","San Juan de Betulia","Operador de Red","Vigencia",null,null,0,null,null,null,null,null,null,0,0,0,0,null,null,null,null,0,null,null,null,0]
[null,null,null,"Sucre","70","70708","San Marcos","Operador de Red","Vigencia",null,null,0,null,null,null,null,null,null,0,0,0,0,null,null,null,null,0,null,null,null,0]
[null,null,null,"Sucre","70","70713","San Onofre","Operador de Red","Vigencia",null,null,0,null,null,null,null,null,null,0,0,0,0,null,null,null,null,0,null,null,null,0]
[null,null,null,"Sucre","70","70717","San Pedro","Operador de Red","Vigencia",null,null,0,null,null,null,null,null,null,0,0,0,0,null,null,null,null,0,null,null,null,0]
[null,null,null,"Sucre","70","70742","Sincé","Operador de Red","Vigencia",null,null,0,null,null,null,null,null,null,0,0,0,0,null,null,null,null,0,null,null,null,0]
[null,null,null,"Sucre","70","70771","Sucre","Operador de Red","Vigencia",null,null,0,null,null,null,null,null,null,0,0,0,0,null,null,null,null,0,null,null,null,0]
[null,null,null,"Sucre","70","70820","Santiago de Tolú","Operador de Red","Vigencia",null,null,0,null,null,null,null,null,null,0,0,0,0,null,null,null,null,0,null,null,null,0]
[null,null,null,"Sucre","70","70823","Tolú Viejo","Operador de Red","Vigencia",null,null,0,null,null,null,null,null,null,0,0,0,0,null,null,null,null,0,null,null,null,0]
[null,null,null,"Tolima","73","73001","Ibagué","Operador de Red","Vigencia",null,null,0,null,null,null,null,null,null,0,0,0,0,null,null,null,null,0,null,null,null,0]
[null,null,null,"Tolima","73","73024","Alpujarra","Operador de Red","Vigencia",null,null,0,null,null,null,null,null,null,0,0,0,0,null,null,null,null,0,null,null,null,0]
[null,null,null,"Tolima","73","73026","Alvarado","Operador de Red","Vigencia",null,null,0,null,null,null,null,null,null,0,0,0,0,null,null,null,null,0,null,null,null,0]
[null,null,null,"Tolima","73","73030","Ambalema","Operador de Red","Vigencia",null,null,0,null,null,null,null,null,null,0,0,0,0,null,null,null,null,0,null,null,null,0]
[null,null,null,"Tolima","73","73043","Anzoátegui","Operador de Red","Vigencia",null,null,0,null,null,null,null,null,null,0,0,0,0,null,null,null,null,0,null,null,null,0]
[null,null,null,"Tolima","73","73055","Armero","Operador de Red","Vigencia",null,null,0,null,null,null,null,null,null,0,0,0,0,null,null,null,null,0,null,null,null,0]
[null,null,null,"Tolima","73","73067","Ataco","Operador de Red","Vigencia",null,null,0,null,null,null,null,null,null,0,0,0,0,null,null,null,null,0,null,null,null,0]
[null,null,null,"Tolima","73","73124","Cajamarca","Operador de Red","Vigencia",null,null,0,null,null,null,null,null,null,0,0,0,0,null,null,null,null,0,null,null,null,0]
[null,null,null,"Tolima","73","73148","Carmen de Apicalá","Operador de Red","Vigencia",null,null,0,null,null,null,null,null,null,0,0,0,0,null,null,null,null,0,null,null,null,0]
[null,null,null,"Tolima","73","73152","Casabianca","Operador de Red","Vigencia",null,null,0,null,null,null,null,null,null,0,0,0,0,null,null,null,null,0,null,null,null,0]
[null,null,null,"Tolima","73","73168","Chaparral","Operador de Red","Vigencia",null,null,0,null,null,null,null,null,null,0,0,0,0,null,null,null,null,0,null,null,null,0]
[null,null,null,"Tolima","73","73200","Coello","Operador de Red","Vigencia",null,null,0,null,null,null,null,null,null,0,0,0,0,null,null,null,null,0,null,null,null,0]
[null,null,null,"Tolima","73","73217","Coyaima","Operador de Red","Vigencia",null,null,0,null,null,null,null,null,null,0,0,0,0,null,null,null,null,0,null,null,null,0]
[null,null,null,"Tolima","73","73226","Cunday","Operador de Red","Vigencia",null,null,0,null,null,null,null,null,null,0,0,0,0,null,null,null,null,0,null,null,null,0]
[null,null,null,"Tolima","73","73236","Dolores","Operador de Red","Vigencia",null,null,0,null,null,null,null,null,null,0,0,0,0,null,null,null,null,0,null,null,null,0]
[null,null,null,"Tolima","73","73268","Espinal","Operador de Red","Vigencia",null,null,0,null,null,null,null,null,null,0,0,0,0,null,null,null,null,0,null,null,null,0]
[null,null,null,"Tolima","73","73270","Falan","Operador de Red","Vigencia",null,null,0,null,null,null,null,null,null,0,0,0,0,null,null,null,null,0,null,null,null,0]
[null,null,null,"Tolima","73","73275","Flandes","Operador de Red","Vigencia",null,null,0,null,null,null,null,null,null,0,0,0,0,null,null,null,null,0,null,null,null,0]
[null,null,null,"Tolima","73","73283","Fresno","Operador de Red","Vigencia",null,null,0,null,null,null,null,null,null,0,0,0,0,null,null,null,null,0,null,null,null,0]
[null,null,null,"Tolima","73","73319","Guamo","Operador de Red","Vigencia",null,null,0,null,null,null,null,null,null,0,0,0,0,null,null,null,null,0,null,null,null,0]
[null,null,null,"Tolima","73","73347","Herveo","Operador de Red","Vigencia",null,null,0,null,null,null,null,null,null,0,0,0,0,null,null,null,null,0,null,null,null,0]
[null,null,null,"Tolima","73","73349","Honda","Operador de Red","Vigencia",null,null,0,null,null,null,null,null,null,0,0,0,0,null,null,null,null,0,null,null,null,0]
[null,null,null,"Tolima","73","73352","Icononzo","Operador de Red","Vigencia",null,null,0,null,null,null,null,null,null,0,0,0,0,null,null,null,null,0,null,null,null,0]
[null,null,null,"Tolima","73","73408","Lérida","Operador de Red","Vigencia",null,null,0,null,null,null,null,null,null,0,0,0,0,null,null,null,null,0,null,null,null,0]
[null,null,null,"Tolima","73","73411","Líbano","Operador de Red","Vigencia",null,null,0,null,null,null,null,null,null,0,0,0,0,null,null,null,null,0,null,null,null,0]
[null,null,null,"Tolima","73","73443","Mariquita","Operador de Red","Vigencia",null,null,0,null,null,null,null,null,null,0,0,0,0,null,null,null,null,0,null,null,null,0]
[null,null,null,"Tolima","73","73449","Melgar","Operador de Red","Vigencia",null,null,0,null,null,null,null,null,null,0,0,0,0,null,null,null,null,0,null,null,null,0]
[null,null,null,"Tolima","73","73461","Murillo","Operador de Red","Vigencia",null,null,0,null,null,null,null,null,null,0,0,0,0,null,null,null,null,0,null,null,null,0]
[null,null,null,"Tolima","73","73483","Natagaima","Operador de Red","Vigencia",null,null,0,null,null,null,null,null,null,0,0,0,0,null,null,null,null,0,null,null,null,0]
[null,null,null,"Tolima","73","73504","Ortega","Operador de Red","Vigencia",null,null,0,null,null,null,null,null,null,0,0,0,0,null,null,null,null,0,null,null,null,0]
[null,null,null,"Tolima","73","73520","Palocabildo","Operador de Red","Vigencia",null,null,0,null,null,null,null,null,null,0,0,0,0,null,null,null,null,0,null,null,null,0]
[null,null,null,"Tolima","73","73547","Piedras","Operador de Red","Vigencia",null,null,0,null,null,null,null,null,null,0,0,0,0,null,null,null,null,0,null,null,null,0]
[null,null,null,"Tolima","73","73555","Planadas","Operador de Red","Vigencia",null,null,0,null,null,null,null,null,null,0,0,0,0,null,null,null,null,0,null,null,null,0]
[null,null,null,"Tolima","73","73563","Prado","Operador de Red","Vigencia",null,null,0,null,null,null,null,null,null,0,0,0,0,null,null,null,null,0,null,null,null,0]
[null,null,null,"Tolima","73","73585","Purificación","Operador de Red","Vigencia",null,null,0,null,null,null,null,null,null,0,0,0,0,null,null,null,null,0,null,null,null,0]
[null,null,null,"Tolima","73","73616","Rioblanco","Operador de Red","Vigencia",null,null,0,null,null,null,null,null,null,0,0,0,0,null,null,null,null,0,null,null,null,0]
[null,null,null,"Tolima","73","73622","Roncesvalles","Operador de Red","Vigencia",null,null,0,null,null,null,null,null,null,0,0,0,0,null,null,null,null,0,null,null,null,0]
[null,null,null,"Tolima","73","73624","Rovira","Operador de Red","Vigencia",null,null,0,null,null,null,null,null,null,0,0,0,0,null,null,null,null,0,null,null,null,0]
[null,null,null,"Tolima","73","73671","Saldaña","Operador de Red","Vigencia",null,null,0,null,null,null,null,null,null,0,0,0,0,null,null,null,null,0,null,null,null,0]
[null,null,null,"Tolima","73","73675","San Antonio","Operador de Red","Vigencia",null,null,0,null,null,null,null,null,null,0,0,0,0,null,null,null,null,0,null,null,null,0]
[null,null,null,"Tolima","73","73678","San Luis","Operador de Red","Vigencia",null,null,0,null,null,null,null,null,null,0,0,0,0,null,null,null,null,0,null,null,null,0]
[null,null,null,"Tolima","73","73686","Santa Isabel","Operador de Red","Vigencia",null,null,0,null,null,null,null,null,null,0,0,0,0,null,null,null,null,0,null,null,null,0]
[null,null,null,"Tolima","73","73770","Suárez","Operador de Red","Vigencia",null,null,0,null,null,null,null,null,null,0,0,0,0,null,null,null,null,0,null,null,null,0]
[null,null,null,"Tolima","73","73854","Valle de San Juan","Operador de Red","Vigencia",null,null,0,null,null,null,null,null,null,0,0,0,0,null,null,null,null,0,null,null,null,0]
[null,null,null,"Tolima","73","73861","Venadillo","Operador de Red","Vigencia",null,null,0,null,null,null,null,null,null,0,0,0,0,null,null,null,null,0,null,null,null,0]
[null,null,null,"Tolima","73","73870","Villahermosa","Operador de Red","Vigencia",null,null,0,null,null,null,null,null,null,0,0,0,0,null,null,null,null,0,null,null,null,0]
[null,null,null,"Tolima","73","73873","Villarrica","Operador de Red","Vigencia",null,null,0,null,null,null,null,null,null,0,0,0,0,null,null,null,null,0,null,null,null,0]
[null,null,null,"Valle del Cauca","76","76001","Santiago de Cali","Operador de Red","Vigencia",null,null,0,null,null,null,null,null,null,0,0,0,0,null,null,null,null,0,null,null,null,0]
[null,null,null,"Valle del Cauca","76","76020","Alcalá","Operador de Red","Vigencia",null,null,0,null,null,null,null,null,null,0,0,0,0,null,null,null,null,0,null,null,null,0]
[null,null,null,"Valle del Cauca","76","76036","Andalucía","Operador de Red","Vigencia",null,null,0,null,null,null,null,null,null,0,0,0,0,null,null,null,null,0,null,null,null,0]
[null,null,null,"Valle del Cauca","76","76041","Ansermanuevo","Operador de Red","Vigencia",null,null,0,null,null,null,null,null,null,0,0,0,0,null,null,null,null,0,null,null,null,0]
[null,null,null,"Valle del Cauca","76","76054","Argelia","Operador de Red","Vigencia",null,null,0,null,null,null,null,null,null,0,0,0,0,null,null,null,null,0,null,null,null,0]
[null,null,null,"Valle del Cauca","76","76100","Bolívar","Operador de Red","Vigencia",null,null,0,null,null,null,null,null,null,0,0,0,0,null,null,null,null,0,null,null,null,0]
[null,null,null,"Valle del Cauca","76","76109","Buenaventura","Operador de Red","Vigencia",null,null,0,null,null,null,null,null,null,0,0,0,0,null,null,null,null,0,null,null,null,0]
[null,null,null,"Valle del Cauca","76","76111","Guadalajara de Buga","Operador de Red","Vigencia",null,null,0,null,null,null,null,null,null,0,0,0,0,null,null,null,null,0,null,null,null,0]
[null,null,null,"Valle del Cauca","76","76113","Bugalagrande","Operador de Red","Vigencia",null,null,0,null,null,null,null,null,null,0,0,0,0,null,null,null,null,0,null,null,null,0]
[null,null,null,"Valle del Cauca","76","76122","Caicedonia","Operador de Red","Vigencia",null,null,0,null,null,null,null,null,null,0,0,0,0,null,null,null,null,0,null,null,null,0]
[null,null,null,"Valle del Cauca","76","76126","Calima","Operador de Red","Vigencia",null,null,0,null,null,null,null,null,null,0,0,0,0,null,null,null,null,0,null,null,null,0]
[null,null,null,"Valle del Cauca","76","76130","Candelaria","Operador de Red","Vigencia",null,null,0,null,null,null,null,null,null,0,0,0,0,null,null,null,null,0,null,null,null,0]
[null,null,null,"Valle del Cauca","76","76147","Cartago","Operador de Red","Vigencia",null,null,0,null,null,null,null,null,null,0,0,0,0,null,null,null,null,0,null,null,null,0]
[null,null,null,"Valle del Cauca","76","76233","Dagua","Operador de Red","Vigencia",null,null,0,null,null,null,null,null,null,0,0,0,0,null,null,null,null,0,null,null,null,0]
[null,null,null,"Valle del Cauca","76","76243","El Águila","Operador de Red","Vigencia",null,null,0,null,null,null,null,null,null,0,0,0,0,null,null,null,null,0,null,null,null,0]
[null,null,null,"Valle del Cauca",{"$f":"LEFT(F1028,2)","v":"76"},"76246","El Cairo","Operador de Red","Vigencia",null,null,{"$f":"J1028+K1028","v":0},null,null,null,null,null,null,{"$f":"Q1028+R1028","v":0},{"$f":"J1028+M1028+O1028+Q1028","v":0},{"$f":"K1028+P1028+R1028","v":0},{"$f":"T1028+U1028","v":0},null,null,null,null,{"$f":"Y1028+Z1028","v":0},null,null,null,{"$f":"AC1028+AD1028","v":0}]
[null,null,null,"Valle del Cauca","76","76248","El Cerrito","Operador de Red","Vigencia",null,null,0,null,null,null,null,null,null,0,0,0,0,null,null,null,null,0,null,null,null,0]
[null,null,null,"Valle del Cauca","76","76250","El Dovio","Operador de Red","Vigencia",null,null,0,null,null,null,null,null,null,0,0,0,0,null,null,null,null,0,null,null,null,0]
[null,null,null,"Valle del Cauca","76","76275","Florida","Operador de Red","Vigencia",null,null,0,null,null,null,null,null,null,0,0,0,0,null,null,null,null,0,null,null,null,0]
[null,null,null,"Valle del Cauca","76","76306","Ginebra","Operador de Red","Vigencia",null,null,0,null,null,null,null,null,null,0,0,0,0,null,null,null,null,0,null,null,null,0]
[null,null,null,"Valle del Cauca","76","76318","Guacarí","Operador de Red","Vigencia",null,null,0,null,null,null,null,null,null,0,0,0,0,null,null,null,null,0,null,null,null,0]
[null,null,null,"Valle del Cauca","76","76364","Jamundí","Operador de Red","Vigencia",null,null,0,null,null,null,null,null,null,0,0,0,0,null,null,null,null,0,null,null,null,0]
[null,null,null,"Valle del Cauca","76","76377","La Cumbre","Operador de Red","Vigencia",null,null,0,null,null,null,null,null,null,0,0,0,0,null,null,null,null,0,null,null,null,0]
[null,null,null,"Valle del Cauca","76","76400","La Unión","Operador de Red","Vigencia",null,null,0,null,null,null,null,null,null,0,0,0,0,null,null,null,null,0,null,null,null,0]
[null,null,null,"Valle del Cauca","76","76403","La Victoria","Operador de Red","Vigencia",null,null,0,null,null,null,null,null,null,0,0,0,0,null,null,null,null,0,null,null,null,0]
[null,null,null,"Valle del Cauca","76","76497","Obando","Operador de Red","Vigencia",null,null,0,null,null,null,null,null,null,0,0,0,0,null,null,null,null,0,null,null,null,0]
[null,null,null,"Valle del Cauca","76","76520","Palmira","Operador de Red","Vigencia",null,null,0,null,null,null,null,null,null,0,0,0,0,null,null,null,null,0,null,null,null,0]
[null,null,null,"Valle del Cauca","76","76563","Pradera","Operador de Red","Vigencia",null,null,0,null,null,null,null,null,null,0,0,0,0,null,null,null,null,0,null,null,null,0]
[null,null,null,"Valle del Cauca","76","76606","Restrepo","Operador de Red","Vigencia",null,null,0,null,null,null,null,null,null,0,0,0,0,null,null,null,null,0,null,null,null,0]
[null,null,null,"Valle del Cauca","76","76616","Riofrío","Operador de Red","Vigencia",null,null,0,null,null,null,null,null,null,0,0,0,0,null,null,null,null,0,null,null,null,0]
[null,null,null,"Valle del Cauca","76","76622","Roldanillo","Operador de Red","Vigencia",null,null,0,null,null,null,null,null,null,0,0,0,0,null,null,null,null,0,null,null,null,0]
[null,null,null,"Valle del Cauca","76","76670","San Pedro","Operador de Red","Vigencia",null,null,0,null,null,null,null,null,null,0,0,0,0,null,null,null,null,0,null,null,null,0]
[null,null,null,"Valle del Cauca","76","76736","Sevilla","Operador de Red","Vigencia",null,null,0,null,null,null,null,null,null,0,0,0,0,null,null,null,null,0,null,null,null,0]
[null,null,null,"Valle del Cauca","76","76823","Toro","Operador de Red","Vigencia",null,null,0,null,null,null,null,null,null,0,0,0,0,null,null,null,null,0,null,null,null,0]
[null,null,null,"Valle del Cauca","76","76828","Trujillo","Operador de Red","Vigencia",null,null,0,null,null,null,null,null,null,0,0,0,0,null,null,null,null,0,null,null,null,0]
[null,null,null,"Valle del Cauca","76","76834","Tuluá","Operador de Red","Vigencia",null,null,0,null,null,null,null,null,null,0,0,0,0,null,null,null,null,0,null,null,null,0]
[null,null,null,"Valle del Cauca","76","76845","Ulloa","Operador de Red","Vigencia",null,null,0,null,null,null,null,null,null,0,0,0,0,null,null,null,null,0,null,null,null,0]
[null,null,null,"Valle del Cauca","76","76863","Versalles","Operador de Red","Vigencia",null,null,0,null,null,null,null,null,null,0,0,0,0,null,null,null,null,0,null,null,null,0]
[null,null,null,"Valle del Cauca","76","76869","Vijes","Operador de Red","Vigencia",null,null,0,null,null,null,null,null,null,0,0,0,0,null,null,null,null,0,null,null,null,0]
[null,null,null,"Valle del Cauca","76","76890","Yotoco","Operador de Red","Vigencia",null,null,0,null,null,null,null,null,null,0,0,0,0,null,null,null,null,0,null,null,null,0]
[null,null,null,"Valle del Cauca","76","76892","Yumbo","Operador de Red","Vigencia",null,null,0,null,null,null,null,null,null,0,0,0,0,null,null,null,null,0,null,null,null,0]
[null,null,null,"Valle del Cauca","76","76895","Zarzal","Operador de Red","Vigencia",null,null,0,null,null,null,null,null,null,0,0,0,0,null,null,null,null,0,null,null,null,0]
[null,null,null,"Arauca","81","81001","Arauca","Operador de Red","Vigencia",null,null,0,null,null,null,null,null,null,0,0,0,0,null,null,null,null,0,null,null,null,0]
[null,null,null,"Arauca","81","81065","Arauquita","Operador de Red","Vigencia",null,null,0,null,null,null,null,null,null,0,0,0,0,null,null,null,null,0,null,null,null,0]
[null,null,null,"Arauca","81","81220","Cravo Norte","Operador de Red","Vigencia",null,null,0,null,null,null,null,null,null,0,0,0,0,null,null,null,null,0,null,null,null,0]
[null,null,null,"Arauca","81","81300","Fortul","Operador de Red","Vigencia",null,null,0,null,null,null,null,null,null,0,0,0,0,null,null,null,null,0,null,null,null,0]
[null,null,null,"Arauca","81","81591","Puerto Rondón","Operador de Red","Vigencia",null,null,0,null,null,null,null,null,null,0,0,0,0,null,null,null,null,0,null,null,null,0]
[null,null,null,"Arauca","81","81736","Saravena","Operador de Red","Vigencia",null,null,0,null,null,null,null,null,null,0,0,0,0,null,null,null,null,0,null,null,null,0]
[null,null,null,"Arauca","81","81794","Tame","Operador de Red","Vigencia",null,null,0,null,null,null,null,null,null,0,0,0,0,null,null,null,null,0,null,null,null,0]
[null,null,null,"Casanare","85","85001","Yopal","Operador de Red","Vigencia",null,null,0,null,null,null,null,null,null,0,0,0,0,null,null,null,null,0,null,null,null,0]
[null,null,null,"Casanare","85","85010","Aguazul","Operador de Red","Vigencia",null,null,0,null,null,null,null,null,null,0,0,0,0,null,null,null,null,0,null,null,null,0]
[null,null,null,"Casanare","85","85015","Chámeza","Operador de Red","Vigencia",null,null,0,null,null,null,null,null,null,0,0,0,0,null,null,null,null,0,null,null,null,0]
[null,null,null,"Casanare","85","85125","Hato Corozal","Operador de Red","Vigencia",null,null,0,null,null,null,null,null,null,0,0,0,0,null,null,null,null,0,null,null,null,0]
[null,null,null,"Casanare","85","85136","La Salina","Operador de Red","Vigencia",null,null,0,null,null,null,null,null,null,0,0,0,0,null,null,null,null,0,null,null,null,0]
[null,null,null,"Casanare","85","85139","Maní","Operador de Red","Vigencia",null,null,0,null,null,null,null,null,null,0,0,0,0,null,null,null,null,0,null,null,null,0]
[null,null,null,"Casanare","85","85162","Monterrey","Operador de Red","Vigencia",null,null,0,null,null,null,null,null,null,0,0,0,0,null,null,null,null,0,null,null,null,0]
[null,null,null,"Casanare","85","85225","Nunchía","Operador de Red","Vigencia",null,null,0,null,null,null,null,null,null,0,0,0,0,null,null,null,null,0,null,null,null,0]
[null,null,null,"Casanare","85","85230","Orocué","Operador de Red","Vigencia",null,null,0,null,null,null,null,null,null,0,0,0,0,null,null,null,null,0,null,null,null,0]
[null,null,null,"Casanare","85","85250","Paz de Ariporo","Operador de Red","Vigencia",null,null,0,null,null,null,null,null,null,0,0,0,0,null,null,null,null,0,null,null,null,0]
[null,null,null,"Casanare","85","85263","Pore","Operador de Red","Vigencia",null,null,0,null,null,null,null,null,null,0,0,0,0,null,null,null,null,0,null,null,null,0]
[null,null,null,"Casanare","85","85279","Recetor","Operador de Red","Vigencia",null,null,0,null,null,null,null,null,null,0,0,0,0,null,null,null,null,0,null,null,null,0]
[null,null,null,"Casanare","85","85300","Sabanalarga","Operador de Red","Vigencia",null,null,0,null,null,null,null,null,null,0,0,0,0,null,null,null,null,0,null,null,null,0]
[null,null,null,"Casanare","85","85315","Sácama","Operador de Red","Vigencia",null,null,0,null,null,null,null,null,null,0,0,0,0,null,null,null,null,0,null,null,null,0]
[null,null,null,"Casanare","85","85325","San Luis de Palenque","Operador de Red","Vigencia",null,null,0,null,null,null,null,null,null,0,0,0,0,null,null,null,null,0,null,null,null,0]
[null,null,null,"Casanare","85","85400","Támara","Operador de Red","Vigencia",null,null,0,null,null,null,null,null,null,0,0,0,0,null,null,null,null,0,null,null,null,0]
[null,null,null,"Casanare","85","85410","Tauramena","Operador de Red","Vigencia",null,null,0,null,null,null,null,null,null,0,0,0,0,null,null,null,null,0,null,null,null,0]
[null,null,null,"Casanare","85","85430","Trinidad","Operador de Red","Vigencia",null,null,0,null,null,null,null,null,null,0,0,0,0,null,null,null,null,0,null,null,null,0]
[null,null,null,"Casanare","85","85440","Villanueva","Operador de Red","Vigencia",null,null,0,null,null,null,null,null,null,0,0,0,0,null,null,null,null,0,null,null,null,0]
[null,null,null,"Putumayo","86","86001","Mocoa","Operador de Red","Vigencia",null,null,0,null,null,null,null,null,null,0,0,0,0,null,null,null,null,0,null,null,null,0]
[null,null,null,"Putumayo","86","86219","Colón","Operador de Red","Vigencia",null,null,0,null,null,null,null,null,null,0,0,0,0,null,null,null,null,0,null,null,null,0]
[null,null,null,"Putumayo","86","86320","Orito","Operador de Red","Vigencia",null,null,0,null,null,null,null,null,null,0,0,0,0,null,null,null,null,0,null,null,null,0]
[null,null,null,"Putumayo","86","86568","Puerto Asís","Operador de Red","Vigencia",null,null,0,null,null,null,null,null,null,0,0,0,0,null,null,null,null,0,null,null,null,0]
[null,null,null,"Putumayo","86","86569","Puerto Caicedo","Operador de Red","Vigencia",null,null,0,null,null,null,null,null,null,0,0,0,0,null,null,null,null,0,null,null,null,0]
[null,null,null,"Putumayo","86","86571","Puerto Guzmán","Operador de Red","Vigencia",null,null,0,null,null,null,null,null,null,0,0,0,0,null,null,null,null,0,null,null,null,0]
[null,null,null,"Putumayo","86","86573","Leguízamo","Operador de Red","Vigencia",null,null,0,null,null,null,null,null,null,0,0,0,0,null,null,null,null,0,null,null,null,0]
[null,null,null,"Putumayo","86","86749","Sibundoy","Operador de Red","Vigencia",null,null,0,null,null,null,null,null,null,0,0,0,0,null,null,null,null,0,null,null,null,0]
[null,null,null,"Putumayo","86","86755","San Francisco","Operador de Red","Vigencia",null,null,0,null,null,null,null,null,null,0,0,0,0,null,null,null,null,0,null,null,null,0]
[null,null,null,"Putumayo","86","86757","San Miguel","Operador de Red","Vigencia",null,null,0,null,null,null,null,null,null,0,0,0,0,null,null,null,null,0,null,null,null,0]
[null,null,null,"Putumayo","86","86760","Santiago","Operador de Red","Vigencia",null,null,0,null,null,null,null,null,null,0,0,0,0,null,null,null,null,0,null,null,null,0]
[null,null,null,"Putumayo","86","86865","Valle del Guamuez","Operador de Red","Vigencia",null,null,0,null,null,null,null,null,null,0,0,0,0,null,null,null,null,0,null,null,null,0]
[null,null,null,"Putumayo","86","86885","Villagarzón","Operador de Red","Vigencia",null,null,0,null,null,null,null,null,null,0,0,0,0,null,null,null,null,0,null,null,null,0]
[null,null,null,"Archipiélago de San Andrés y Providencia","88","88001","San Andrés","Operador de Red","Vigencia",null,null,0,null,null,null,null,null,null,0,0,0,0,null,null,null,null,0,null,null,null,0]
[null,null,null,"Archipiélago de San Andrés y Providencia","88","88564","Providencia y Santa Catalina","Operador de Red","Vigencia",null,null,0,null,null,null,null,null,null,0,0,0,0,null,null,null,null,0,null,null,null,0]
[null,null,null,"Amazonas","91","91001","Leticia","Operador de Red","Vigencia",null,null,0,null,null,null,null,null,null,0,0,0,0,null,null,null,null,0,null,null,null,0]
[null,null,null,"Amazonas","91","91263","El Encanto (ANM)","Operador de Red","Vigencia",null,null,0,null,null,null,null,null,null,0,0,0,0,null,null,null,null,0,null,null,null,0]
[null,null,null,"Amazonas","91","91405","La Chorrera (ANM)","Operador de Red","Vigencia",null,null,0,null,null,null,null,null,null,0,0,0,0,null,null,null,null,0,null,null,null,0]
[null,null,null,"Amazonas","91","91407","La Pedrera (ANM)","Operador de Red","Vigencia",null,null,0,null,null,null,null,null,null,0,0,0,0,null,null,null,null,0,null,null,null,0]
[null,null,null,"Amazonas","91","91430","La Victoria (ANM)","Operador de Red","Vigencia",null,null,0,null,null,null,null,null,null,0,0,0,0,null,null,null,null,0,null,null,null,0]
[null,null,null,"Amazonas","91","91460","Miriti - Paraná (ANM)","Operador de Red","Vigencia",null,null,0,null,null,null,null,null,null,0,0,0,0,null,null,null,null,0,null,null,null,0]
[null,null,null,"Amazonas","91","91530","Puerto Alegría (ANM)","Operador de Red","Vigencia",null,null,0,null,null,null,null,null,null,0,0,0,0,null,null,null,null,0,null,null,null,0]
[null,null,null,"Amazonas","91","91536","Puerto Arica (ANM)","Operador de Red","Vigencia",null,null,0,null,null,null,null,null,null,0,0,0,0,null,null,null,null,0,null,null,null,0]
[null,null,null,"Amazonas","91","91540","Puerto Nariño","Operador de Red","Vigencia",null,null,0,null,null,null,null,null,null,0,0,0,0,null,null,null,null,0,null,null,null,0]
[null,null,null,"Amazonas","91","91669","Santander (ANM)","Operador de Red","Vigencia",null,null,0,null,null,null,null,null,null,0,0,0,0,null,null,null,null,0,null,null,null,0]
[null,null,null,"Amazonas","91","91798","Tarapacá (ANM)","Operador de Red","Vigencia",null,null,0,null,null,null,null,null,null,0,0,0,0,null,null,null,null,0,null,null,null,0]
[null,null,null,"Guainía","94","94001","Inírida","Operador de Red","Vigencia",null,null,0,null,null,null,null,null,null,0,0,0,0,null,null,null,null,0,null,null,null,0]
[null,null,null,"Guainía","94","94343","Barrancominas","Operador de Red","Vigencia",null,null,0,null,null,null,null,null,null,0,0,0,0,null,null,null,null,0,null,null,null,0]
[null,null,null,"Guainía","94","94883","San Felipe (ANM)","Operador de Red","Vigencia",null,null,0,null,null,null,null,null,null,0,0,0,0,null,null,null,null,0,null,null,null,0]
[null,null,null,"Guainía","94","94884","Puerto Colombia (ANM)","Operador de Red","Vigencia",null,null,0,null,null,null,null,null,null,0,0,0,0,null,null,null,null,0,null,null,null,0]
[null,null,null,"Guainía","94","94885","La Guadalupe (ANM)","Operador de Red","Vigencia",null,null,0,null,null,null,null,null,null,0,0,0,0,null,null,null,null,0,null,null,null,0]
[null,null,null,"Guainía","94","94886","Cacahual (ANM)","Operador de Red","Vigencia",null,null,0,null,null,null,null,null,null,0,0,0,0,null,null,null,null,0,null,null,null,0]
[null,null,null,"Guainía","94","94887","Paná Paná (ANM)","Operador de Red","Vigencia",null,null,0,null,null,null,null,null,null,0,0,0,0,null,null,null,null,0,null,null,null,0]
[null,null,null,"Guainía","94","94888","Morichal (ANM)","Operador de Red","Vigencia",null,null,0,null,null,null,null,null,null,0,0,0,0,null,null,null,null,0,null,null,null,0]
[null,null,null,"Guaviare","95","95001","San José del Guaviare","Operador de Red","Vigencia",null,null,0,null,null,null,null,null,null,0,0,0,0,null,null,null,null,0,null,null,null,0]
[null,null,null,"Guaviare","95","95015","Calamar","Operador de Red","Vigencia",null,null,0,null,null,null,null,null,null,0,0,0,0,null,null,null,null,0,null,null,null,0]
[null,null,null,"Guaviare","95","95025","El Retorno","Operador de Red","Vigencia",null,null,0,null,null,null,null,null,null,0,0,0,0,null,null,null,null,0,null,null,null,0]
[null,null,null,"Guaviare","95","95200","Miraflores","Operador de Red","Vigencia",null,null,0,null,null,null,null,null,null,0,0,0,0,null,null,null,null,0,null,null,null,0]
[null,null,null,"Vaupés","97","97001","Mitú","Operador de Red","Vigencia",null,null,0,null,null,null,null,null,null,0,0,0,0,null,null,null,null,0,null,null,null,0]
[null,null,null,"Vaupés","97","97161","Caruru","Operador de Red","Vigencia",null,null,0,null,null,null,null,null,null,0,0,0,0,null,null,null,null,0,null,null,null,0]
[null,null,null,"Vaupés","97","97511","Pacoa (ANM)","Operador de Red","Vigencia",null,null,0,null,null,null,null,null,null,0,0,0,0,null,null,null,null,0,null,null,null,0]
[null,null,null,"Vaupés","97","97666","Taraira","Operador de Red","Vigencia",null,null,0,null,null,null,null,null,null,0,0,0,0,null,null,null,null,0,null,null,null,0]
[null,null,null,"Vaupés","97","97777","Papunaua (ANM)","Operador de Red","Vigencia",null,null,0,null,null,null,null,null,null,0,0,0,0,null,null,null,null,0,null,null,null,0]
[null,null,null,"Vaupés","97","97889","Yavaraté (ANM)","Operador de Red","Vigencia",null,null,0,null,null,null,null,null,null,0,0,0,0,null,null,null,null,0,null,null,null,0]
[null,null,null,"Vichada","99","99001","Puerto Carreño","Operador de Red","Vigencia",null,null,0,null,null,null,null,null,null,0,0,0,0,null,null,null,null,0,null,null,null,0]
[null,null,null,"Vichada","99","99524","La Primavera","Operador de Red","Vigencia",null,null,0,null,null,null,null,null,null,0,0,0,0,null,null,null,null,0,null,null,null,0]
[null,null,null,"Vichada","99","99624","Santa Rosalía","Operador de Red","Vigencia",null,null,0,null,null,null,null,null,null,0,0,0,0,null,null,null,null,0,null,null,null,0]
[null,null,null,"Vichada","99","99773","Cumaribo","Operador de Red","Vigencia",null,null,0,null,null,null,null,null,null,0,0,0,0,null,null,null,null,0,null,null,null,0]
[null,null,null,null,null,1,2,3,null,5,6,7,8,9,10,11,12,13,14,15,16,17,18,19,46,47,48,49,57,58,59,69,92]
[null,null,null,"ANTIOQUIA","05",null,null,null,null,{"$f":"SUMIFS(J$8:J$1128,$E$8:$E$1128,$E1130)","v":0},0,0,0,null,{"$f":"SUMIFS(O$8:O$1128,$E$8:$E$1128,$E1130)","v":0},0,0,0,0,0,0,0,null,null,{"$f":"SUMIFS(Y$8:Y$1128,$E$8:$E$1128,$E1130)","v":0},0,0,null,{"$f":"SUMIFS(AC$8:AC$1128,$E$8:$E$1128,$E1130)","v":0},0,{"$f":"+AC1130+AD1130","v":0}]
[null,null,null,"ATLÁNTICO","08",null,null,null,null,{"$f":"SUMIFS(J$8:J$1128,$E$8:$E$1128,$E1131)","v":0},0,0,0,null,{"$f":"SUMIFS(O$8:O$1128,$E$8:$E$1128,$E1131)","v":0},0,0,0,0,0,0,0,null,null,{"$f":"SUMIFS(Y$8:Y$1128,$E$8:$E$1128,$E1131)","v":0},0,0,null,{"$f":"SUMIFS(AC$8:AC$1128,$E$8:$E$1128,$E1131)","v":0},0,0]
[null,null,null,"BOGOTA D.C.","11",null,null,null,null,{"$f":"SUMIFS(J$8:J$1128,$E$8:$E$1128,$E1132)","v":0},0,0,0,null,{"$f":"SUMIFS(O$8:O$1128,$E$8:$E$1128,$E1132)","v":0},0,0,0,0,0,0,0,null,null,{"$f":"SUMIFS(Y$8:Y$1128,$E$8:$E$1128,$E1132)","v":0},0,0,null,{"$f":"SUMIFS(AC$8:AC$1128,$E$8:$E$1128,$E1132)","v":0},0,0]
[null,null,null,"BOLIVAR","13",null,null,null,null,{"$f":"SUMIFS(J$8:J$1128,$E$8:$E$1128,$E1133)","v":0},0,0,0,null,{"$f":"SUMIFS(O$8:O$1128,$E$8:$E$1128,$E1133)","v":0},0,0,0,0,0,0,0,null,null,{"$f":"SUMIFS(Y$8:Y$1128,$E$8:$E$1128,$E1133)","v":0},0,0,null,{"$f":"SUMIFS(AC$8:AC$1128,$E$8:$E$1128,$E1133)","v":0},0,0]
[null,null,null,"BOYACÁ","15",null,null,null,null,{"$f":"SUMIFS(J$8:J$1128,$E$8:$E$1128,$E1134)","v":0},0,0,0,null,{"$f":"SUMIFS(O$8:O$1128,$E$8:$E$1128,$E1134)","v":0},0,0,0,0,0,0,0,null,null,{"$f":"SUMIFS(Y$8:Y$1128,$E$8:$E$1128,$E1134)","v":0},0,0,null,{"$f":"SUMIFS(AC$8:AC$1128,$E$8:$E$1128,$E1134)","v":0},0,0]
[null,null,null,"CALDAS","17",null,null,null,null,{"$f":"SUMIFS(J$8:J$1128,$E$8:$E$1128,$E1135)","v":0},0,0,0,null,{"$f":"SUMIFS(O$8:O$1128,$E$8:$E$1128,$E1135)","v":0},0,0,0,0,0,0,0,null,null,{"$f":"SUMIFS(Y$8:Y$1128,$E$8:$E$1128,$E1135)","v":0},0,0,null,{"$f":"SUMIFS(AC$8:AC$1128,$E$8:$E$1128,$E1135)","v":0},0,0]
[null,null,null,"CAQUETÁ","18",null,null,null,null,{"$f":"SUMIFS(J$8:J$1128,$E$8:$E$1128,$E1136)","v":0},0,0,0,null,{"$f":"SUMIFS(O$8:O$1128,$E$8:$E$1128,$E1136)","v":0},0,0,0,0,0,0,0,null,null,{"$f":"SUMIFS(Y$8:Y$1128,$E$8:$E$1128,$E1136)","v":0},0,0,null,{"$f":"SUMIFS(AC$8:AC$1128,$E$8:$E$1128,$E1136)","v":0},0,0]
[null,null,null,"CAUCA","19",null,null,null,null,{"$f":"SUMIFS(J$8:J$1128,$E$8:$E$1128,$E1137)","v":0},0,0,0,null,{"$f":"SUMIFS(O$8:O$1128,$E$8:$E$1128,$E1137)","v":0},0,0,0,0,0,0,0,null,null,{"$f":"SUMIFS(Y$8:Y$1128,$E$8:$E$1128,$E1137)","v":0},0,0,null,{"$f":"SUMIFS(AC$8:AC$1128,$E$8:$E$1128,$E1137)","v":0},0,0]
[null,null,null,"CESAR","20",null,null,null,null,{"$f":"SUMIFS(J$8:J$1128,$E$8:$E$1128,$E1138)","v":0},0,0,0,null,{"$f":"SUMIFS(O$8:O$1128,$E$8:$E$1128,$E1138)","v":0},0,0,0,0,0,0,0,null,null,{"$f":"SUMIFS(Y$8:Y$1128,$E$8:$E$1128,$E1138)","v":0},0,0,null,{"$f":"SUMIFS(AC$8:AC$1128,$E$8:$E$1128,$E1138)","v":0},0,0]
[null,null,null,"CÓRDOBA","23",null,null,null,null,{"$f":"SUMIFS(J$8:J$1128,$E$8:$E$1128,$E1139)","v":0},0,0,0,null,{"$f":"SUMIFS(O$8:O$1128,$E$8:$E$1128,$E1139)","v":0},0,0,0,0,0,0,0,null,null,{"$f":"SUMIFS(Y$8:Y$1128,$E$8:$E$1128,$E1139)","v":0},0,0,null,{"$f":"SUMIFS(AC$8:AC$1128,$E$8:$E$1128,$E1139)","v":0},0,0]
[null,null,null,"CUNDINAMARCA","25",null,null,null,null,{"$f":"SUMIFS(J$8:J$1128,$E$8:$E$1128,$E1140)","v":0},0,0,0,null,{"$f":"SUMIFS(O$8:O$1128,$E$8:$E$1128,$E1140)","v":0},0,0,0,0,0,0,0,null,null,{"$f":"SUMIFS(Y$8:Y$1128,$E$8:$E$1128,$E1140)","v":0},0,0,null,{"$f":"SUMIFS(AC$8:AC$1128,$E$8:$E$1128,$E1140)","v":0},0,0]
[null,null,null,"CHOCÓ","27",null,null,null,null,{"$f":"SUMIFS(J$8:J$1128,$E$8:$E$1128,$E1141)","v":0},0,0,0,null,{"$f":"SUMIFS(O$8:O$1128,$E$8:$E$1128,$E1141)","v":0},0,0,0,0,0,0,0,null,null,{"$f":"SUMIFS(Y$8:Y$1128,$E$8:$E$1128,$E1141)","v":0},0,0,null,{"$f":"SUMIFS(AC$8:AC$1128,$E$8:$E$1128,$E1141)","v":0},0,0]
[null,null,null,"HUILA","41",null,null,null,null,{"$f":"SUMIFS(J$8:J$1128,$E$8:$E$1128,$E1142)","v":0},0,0,0,null,{"$f":"SUMIFS(O$8:O$1128,$E$8:$E$1128,$E1142)","v":0},0,0,0,0,0,0,0,null,null,{"$f":"SUMIFS(Y$8:Y$1128,$E$8:$E$1128,$E1142)","v":0},0,0,null,{"$f":"SUMIFS(AC$8:AC$1128,$E$8:$E$1128,$E1142)","v":0},0,0]
[null,null,null,"LA GUAJIRA ","44",null,null,null,null,{"$f":"SUMIFS(J$8:J$1128,$E$8:$E$1128,$E1143)","v":0},0,0,0,null,{"$f":"SUMIFS(O$8:O$1128,$E$8:$E$1128,$E1143)","v":0},0,0,0,0,0,0,0,null,null,{"$f":"SUMIFS(Y$8:Y$1128,$E$8:$E$1128,$E1143)","v":0},0,0,null,{"$f":"SUMIFS(AC$8:AC$1128,$E$8:$E$1128,$E1143)","v":0},0,0]
[null,null,null,"MAGDALENA","47",null,null,null,null,{"$f":"SUMIFS(J$8:J$1128,$E$8:$E$1128,$E1144)","v":0},0,0,0,null,{"$f":"SUMIFS(O$8:O$1128,$E$8:$E$1128,$E1144)","v":0},0,0,0,0,0,0,0,null,null,{"$f":"SUMIFS(Y$8:Y$1128,$E$8:$E$1128,$E1144)","v":0},0,0,null,{"$f":"SUMIFS(AC$8:AC$1128,$E$8:$E$1128,$E1144)","v":0},0,0]
[null,null,null,"META","50",null,null,null,null,{"$f":"SUMIFS(J$8:J$1128,$E$8:$E$1128,$E1145)","v":0},0,0,0,null,{"$f":"SUMIFS(O$8:O$1128,$E$8:$E$1128,$E1145)","v":0},0,0,0,0,0,0,0,null,null,{"$f":"SUMIFS(Y$8:Y$1128,$E$8:$E$1128,$E1145)","v":0},0,0,null,{"$f":"SUMIFS(AC$8:AC$1128,$E$8:$E$1128,$E1145)","v":0},0,0]
[null,null,null,"NARIÑO","52",null,null,null,null,{"$f":"SUMIFS(J$8:J$1128,$E$8:$E$1128,$E1146)","v":0},0,0,0,null,{"$f":"SUMIFS(O$8:O$1128,$E$8:$E$1128,$E1146)","v":0},0,0,0,0,0,0,0,null,null,{"$f":"SUMIFS(Y$8:Y$1128,$E$8:$E$1128,$E1146)","v":0},0,0,null,{"$f":"SUMIFS(AC$8:AC$1128,$E$8:$E$1128,$E1146)","v":0},0,0]
[null,null,null,"NORTE DE SANTANDER","54",null,null,null,null,{"$f":"SUMIFS(J$8:J$1128,$E$8:$E$1128,$E1147)","v":0},0,0,0,null,{"$f":"SUMIFS(O$8:O$1128,$E$8:$E$1128,$E1147)","v":0},0,0,0,0,0,0,0,null,null,{"$f":"SUMIFS(Y$8:Y$1128,$E$8:$E$1128,$E1147)","v":0},0,0,null,{"$f":"SUMIFS(AC$8:AC$1128,$E$8:$E$1128,$E1147)","v":0},0,0]
[null,null,null,"QUINDIO","63",null,null,null,null,{"$f":"SUMIFS(J$8:J$1128,$E$8:$E$1128,$E1148)","v":0},0,0,0,null,{"$f":"SUMIFS(O$8:O$1128,$E$8:$E$1128,$E1148)","v":0},0,0,0,0,0,0,0,null,null,{"$f":"SUMIFS(Y$8:Y$1128,$E$8:$E$1128,$E1148)","v":0},0,0,null,{"$f":"SUMIFS(AC$8:AC$1128,$E$8:$E$1128,$E1148)","v":0},0,0]
[null,null,null,"RISARALDA","66",null,null,null,null,{"$f":"SUMIFS(J$8:J$1128,$E$8:$E$1128,$E1149)","v":0},0,0,0,null,{"$f":"SUMIFS(O$8:O$1128,$E$8:$E$1128,$E1149)","v":0},0,0,0,0,0,0,0,null,null,{"$f":"SUMIFS(Y$8:Y$1128,$E$8:$E$1128,$E1149)","v":0},0,0,null,{"$f":"SUMIFS(AC$8:AC$1128,$E$8:$E$1128,$E1149)","v":0},0,0]
[null,null,null,"SANTANDER","68",null,null,null,null,{"$f":"SUMIFS(J$8:J$1128,$E$8:$E$1128,$E1150)","v":0},0,0,0,null,{"$f":"SUMIFS(O$8:O$1128,$E$8:$E$1128,$E1150)","v":0},0,0,0,0,0,0,0,null,null,{"$f":"SUMIFS(Y$8:Y$1128,$E$8:$E$1128,$E1150)","v":0},0,0,null,{"$f":"SUMIFS(AC$8:AC$1128,$E$8:$E$1128,$E1150)","v":0},0,0]
[null,null,null,"SUCRE","70",null,null,null,null,{"$f":"SUMIFS(J$8:J$1128,$E$8:$E$1128,$E1151)","v":0},0,0,0,null,{"$f":"SUMIFS(O$8:O$1128,$E$8:$E$1128,$E1151)","v":0},0,0,0,0,0,0,0,null,null,{"$f":"SUMIFS(Y$8:Y$1128,$E$8:$E$1128,$E1151)","v":0},0,0,null,{"$f":"SUMIFS(AC$8:AC$1128,$E$8:$E$1128,$E1151)","v":0},0,0]
[null,null,null,"TOLIMA","73",null,null,null,null,{"$f":"SUMIFS(J$8:J$1128,$E$8:$E$1128,$E1152)","v":0},0,0,0,null,{"$f":"SUMIFS(O$8:O$1128,$E$8:$E$1128,$E1152)","v":0},0,0,0,0,0,0,0,null,null,{"$f":"SUMIFS(Y$8:Y$1128,$E$8:$E$1128,$E1152)","v":0},0,0,null,{"$f":"SUMIFS(AC$8:AC$1128,$E$8:$E$1128,$E1152)","v":0},0,0]
[null,null,null,"VALLE DEL CAUCA","76",null,null,null,null,{"$f":"SUMIFS(J$8:J$1128,$E$8:$E$1128,$E1153)","v":0},0,0,0,null,{"$f":"SUMIFS(O$8:O$1128,$E$8:$E$1128,$E1153)","v":0},0,0,0,0,0,0,0,null,null,{"$f":"SUMIFS(Y$8:Y$1128,$E$8:$E$1128,$E1153)","v":0},0,0,null,{"$f":"SUMIFS(AC$8:AC$1128,$E$8:$E$1128,$E1153)","v":0},0,0]
[null,null,null,"ARAUCA","81",null,null,null,null,{"$f":"SUMIFS(J$8:J$1128,$E$8:$E$1128,$E1154)","v":0},0,0,0,null,{"$f":"SUMIFS(O$8:O$1128,$E$8:$E$1128,$E1154)","v":0},0,0,0,0,0,0,0,null,null,{"$f":"SUMIFS(Y$8:Y$1128,$E$8:$E$1128,$E1154)","v":0},0,0,null,{"$f":"SUMIFS(AC$8:AC$1128,$E$8:$E$1128,$E1154)","v":0},0,0]
[null,null,null,"CASANARE","85",null,null,null,null,{"$f":"SUMIFS(J$8:J$1128,$E$8:$E$1128,$E1155)","v":0},0,0,0,null,{"$f":"SUMIFS(O$8:O$1128,$E$8:$E$1128,$E1155)","v":0},0,0,0,0,0,0,0,null,null,{"$f":"SUMIFS(Y$8:Y$1128,$E$8:$E$1128,$E1155)","v":0},0,0,null,{"$f":"SUMIFS(AC$8:AC$1128,$E$8:$E$1128,$E1155)","v":0},0,0]
[null,null,null,"PUTUMAYO","86",null,null,null,null,{"$f":"SUMIFS(J$8:J$1128,$E$8:$E$1128,$E1156)","v":0},0,0,0,null,{"$f":"SUMIFS(O$8:O$1128,$E$8:$E$1128,$E1156)","v":0},0,0,0,0,0,0,0,null,null,{"$f":"SUMIFS(Y$8:Y$1128,$E$8:$E$1128,$E1156)","v":0},0,0,null,{"$f":"SUMIFS(AC$8:AC$1128,$E$8:$E$1128,$E1156)","v":0},0,0]
[null,null,null,"ARCH. SAN ANDRÉS Y PROVIDENCIA","88",null,null,null,null,{"$f":"SUMIFS(J$8:J$1128,$E$8:$E$1128,$E1157)","v":0},0,0,0,null,{"$f":"SUMIFS(O$8:O$1128,$E$8:$E$1128,$E1157)","v":0},0,0,0,0,0,0,0,null,null,{"$f":"SUMIFS(Y$8:Y$1128,$E$8:$E$1128,$E1157)","v":0},0,0,null,{"$f":"SUMIFS(AC$8:AC$1128,$E$8:$E$1128,$E1157)","v":0},0,0]
[null,null,null,"AMAZONAS","91",null,null,null,null,{"$f":"SUMIFS(J$8:J$1128,$E$8:$E$1128,$E1158)","v":0},0,0,0,null,{"$f":"SUMIFS(O$8:O$1128,$E$8:$E$1128,$E1158)","v":0},0,0,0,0,0,0,0,null,null,{"$f":"SUMIFS(Y$8:Y$1128,$E$8:$E$1128,$E1158)","v":0},0,0,null,{"$f":"SUMIFS(AC$8:AC$1128,$E$8:$E$1128,$E1158)","v":0},0,0]
[null,null,null,"GUAINIA","94",null,null,null,null,{"$f":"SUMIFS(J$8:J$1128,$E$8:$E$1128,$E1159)","v":0},0,0,0,null,{"$f":"SUMIFS(O$8:O$1128,$E$8:$E$1128,$E1159)","v":0},0,0,0,0,0,0,0,null,null,{"$f":"SUMIFS(Y$8:Y$1128,$E$8:$E$1128,$E1159)","v":0},0,0,null,{"$f":"SUMIFS(AC$8:AC$1128,$E$8:$E$1128,$E1159)","v":0},0,0]
[null,null,null,"GUAVIARE","95",null,null,null,null,{"$f":"SUMIFS(J$8:J$1128,$E$8:$E$1128,$E1160)","v":0},0,0,0,null,{"$f":"SUMIFS(O$8:O$1128,$E$8:$E$1128,$E1160)","v":0},0,0,0,0,0,0,0,null,null,{"$f":"SUMIFS(Y$8:Y$1128,$E$8:$E$1128,$E1160)","v":0},0,0,null,{"$f":"SUMIFS(AC$8:AC$1128,$E$8:$E$1128,$E1160)","v":0},0,0]
[null,null,null,"VAUPÉS","97",null,null,null,null,{"$f":"SUMIFS(J$8:J$1128,$E$8:$E$1128,$E1161)","v":0},0,0,0,null,{"$f":"SUMIFS(O$8:O$1128,$E$8:$E$1128,$E1161)","v":0},0,0,0,0,0,0,0,null,null,{"$f":"SUMIFS(Y$8:Y$1128,$E$8:$E$1128,$E1161)","v":0},0,0,null,{"$f":"SUMIFS(AC$8:AC$1128,$E$8:$E$1128,$E1161)","v":0},0,0]
[null,null,null,"VICHADA","99",null,null,null,null,{"$f":"SUMIFS(J$8:J$1128,$E$8:$E$1128,$E1162)","v":0},0,0,0,null,{"$f":"SUMIFS(O$8:O$1128,$E$8:$E$1128,$E1162)","v":0},0,0,0,0,0,0,0,null,{"$f":"SUM(X1130:X1161)","v":0},{"$f":"SUMIFS(Y$8:Y$1128,$E$8:$E$1128,$E1162)","v":0},0,0,null,{"$f":"SUMIFS(AC$8:AC$1128,$E$8:$E$1128,$E1162)","v":0},0,0]
[null,null,null,"TOTAL NACIONAL","100",null,null,null,null,{"$f":"SUM(J1130:J1162)","v":0},0,0,0,null,{"$f":"SUM(O1130:O1162)","v":0},0,0,0,0,0,0,0,null,{"$f":"SUM(X1130:X1162)","v":0},{"$f":"SUM(Y1130:Y1162)","v":0},0,0,null,{"$f":"SUM(AC1130:AC1162)","v":0},0,0]
[null,null,null,null,1,2,3,4,null,6,7,8,9,10,11,12,13,14,15,16,17,18,19,20,47,48,49,50,58,59,60,70,93]

{"sheet":"Consumo","index":2,"n_rows":1130,"n_cols":12,"rows_kept":1130,"cut":false,"hidden":false,"merged":[[0,1,0,10]]}
[null,"Consumo residencial rural a nivel municipal [kWh]\nEl Operador de Red debe reportar el consumo residencial promedio anual de energía a nivel rural para cada municipio de su área de influencia de los últimos 5 años previos al reporte del PECOR."]
[null,"Cod_Dane","Depto","Cod_Dane","Municipio","Nombre compuesto\nDepto-Mpio","Año 1","Año 2","Año 3","Año 4","Año 5"]
[null,"91","Amazonas","91263","CD. El Encanto",{"$f":"CONCATENATE(C3,\"-\",E3)","v":"Amazonas-CD. El Encanto"}]
[null,"91","Amazonas","91405","CD. La Chorrera",{"$f":"CONCATENATE(C4,\"-\",E4)","v":"Amazonas-CD. La Chorrera"}]
[null,"91","Amazonas","91407","CD. La Pedrera","Amazonas-CD. La Pedrera"]
[null,"91","Amazonas","91430","CD. La Victoria1","Amazonas-CD. La Victoria1"]
[null,"91","Amazonas","91460","CD. Miriti-Parana","Amazonas-CD. Miriti-Parana"]
[null,"91","Amazonas","91536","CD. Puerto Arica3","Amazonas-CD. Puerto Arica3"]
[null,"91","Amazonas","91669","CD. Puerto Santander","Amazonas-CD. Puerto Santander"]
[null,"91","Amazonas","91798","CD. Tarapaca","Amazonas-CD. Tarapaca"]
[null,"91","Amazonas","91530","CD.Puerto Alegría2",{"$f":"CONCATENATE(C11,\"-\",E11)","v":"Amazonas-CD.Puerto Alegría2"}]
[null,"91","Amazonas","91001","Leticia","Amazonas-Leticia"]
[null,"91","Amazonas","91540","Puerto Nariño","Amazonas-Puerto Nariño"]
[null,"05","Antioquia","05002","Abejorral","Antioquia-Abejorral"]
[null,"05","Antioquia","05004","Abriaqui","Antioquia-Abriaqui"]
[null,"05","Antioquia","05021","Alejandría","Antioquia-Alejandría"]
[null,"05","Antioquia","05030","Amaga","Antioquia-Amaga"]
[null,"05","Antioquia","05031","Amalfi","Antioquia-Amalfi"]
[null,"05","Antioquia","05034","Andes","Antioquia-Andes"]
[null,"05","Antioquia","05036","Angelopolis","Antioquia-Angelopolis"]
[null,"05","Antioquia","05038","Angostura","Antioquia-Angostura"]
[null,"05","Antioquia","05040","Anorí","Antioquia-Anorí"]
[null,"05","Antioquia","05042","Antioquia","Antioquia-Antioquia"]
[null,"05","Antioquia","05044","Anza","Antioquia-Anza"]
[null,"05","Antioquia","05045","Apartado","Antioquia-Apartado"]
[null,"05","Antioquia","05051","Arboletes","Antioquia-Arboletes"]
[null,"05","Antioquia","05055","Argelia","Antioquia-Argelia"]
[null,"05","Antioquia","05059","Armenia","Antioquia-Armenia"]
[null,"05","Antioquia","05079","Barbosa","Antioquia-Barbosa"]
[null,"05","Antioquia","05088","Bello","Antioquia-Bello"]
[null,"05","Antioquia","05086","Belmira","Antioquia-Belmira"]
[null,"05","Antioquia","05091","Betania","Antioquia-Betania"]
[null,"05","Antioquia","05093","Betulia","Antioquia-Betulia"]
[null,"05","Antioquia","05101","Bolívar","Antioquia-Bolívar"]
[null,"05","Antioquia","05107","Briceño","Antioquia-Briceño"]
[null,"05","Antioquia","05113","Buritica","Antioquia-Buritica"]
[null,"05","Antioquia","05120","Cáceres","Antioquia-Cáceres"]
[null,"05","Antioquia","05125","Caicedo","Antioquia-Caicedo"]
[null,"05","Antioquia","05129","Caldas","Antioquia-Caldas"]
[null,"05","Antioquia","05134","Campamento","Antioquia-Campamento"]
[null,"05","Antioquia","05138","Cañasgordas","Antioquia-Cañasgordas"]
[null,"05","Antioquia","05142","Caracolí","Antioquia-Caracolí"]
[null,"05","Antioquia","05145","Caramanta","Antioquia-Caramanta"]
[null,"05","Antioquia","05147","Carepa","Antioquia-Carepa"]
[null,"05","Antioquia","05148","Carmen De Viboral","Antioquia-Carmen De Viboral"]
[null,"05","Antioquia","05150","Carolina","Antioquia-Carolina"]
[null,"05","Antioquia","05154","Caucasia","Antioquia-Caucasia"]
[null,"05","Antioquia","05172","Chigorodó","Antioquia-Chigorodó"]
[null,"05","Antioquia","05190","Cisneros","Antioquia-Cisneros"]
[null,"05","Antioquia","05197","Cocorná","Antioquia-Cocorná"]
[null,"05","Antioquia","05206","Concepción","Antioquia-Concepción"]
[null,"05","Antioquia","05209","Concordia","Antioquia-Concordia"]
[null,"05","Antioquia","05212","Copacabana","Antioquia-Copacabana"]
[null,"05","Antioquia","05234","Dabeiba","Antioquia-Dabeiba"]
[null,"05","Antioquia","05237","Don Matías","Antioquia-Don Matías"]
[null,"05","Antioquia","05240","Ebejico","Antioquia-Ebejico"]
[null,"05","Antioquia","05250","El Bagre","Antioquia-El Bagre"]
[null,"05","Antioquia","05264","Entrerrios","Antioquia-Entrerrios"]
[null,"05","Antioquia","05266","Envigado","Antioquia-Envigado"]
[null,"05","Antioquia","05282","Fredonia","Antioquia-Fredonia"]
[null,"05","Antioquia","05284","Frontino","Antioquia-Frontino"]
[null,"05","Antioquia","05306","Giraldo","Antioquia-Giraldo"]
[null,"05","Antioquia","05308","Girardota","Antioquia-Girardota"]
[null,"05","Antioquia","05310","Gómez Plata","Antioquia-Gómez Plata"]
[null,"05","Antioquia","05313","Granada","Antioquia-Granada"]
[null,"05","Antioquia","05315","Guadalupe","Antioquia-Guadalupe"]
[null,"05","Antioquia","05318","Guarne",{"$f":"CONCATENATE(C67,\"-\",E67)","v":"Antioquia-Guarne"}]
[null,"05","Antioquia","05321","Guatapé","Antioquia-Guatapé"]
[null,"05","Antioquia","05347","Heliconia","Antioquia-Heliconia"]
[null,"05","Antioquia","05353","Hispania","Antioquia-Hispania"]
[null,"05","Antioquia","05360","Itagui","Antioquia-Itagui"]
[null,"05","Antioquia","05361","Ituango","Antioquia-Ituango"]
[null,"05","Antioquia","05364","Jardín","Antioquia-Jardín"]
[null,"05","Antioquia","05368","Jericó","Antioquia-Jericó"]
[null,"05","Antioquia","05376","La Ceja","Antioquia-La Ceja"]
[null,"05","Antioquia","05380","La Estrella","Antioquia-La Estrella"]
[null,"05","Antioquia","05390","La Pintada4","Antioquia-La Pintada4"]
[null,"05","Antioquia","05400","La Unión","Antioquia-La Unión"]
[null,"05","Antioquia","05411","Liborina","Antioquia-Liborina"]
[null,"05","Antioquia","05425","Maceo","Antioquia-Maceo"]
[null,"05","Antioquia","05440","Marinilla","Antioquia-Marinilla"]
[null,"05","Antioquia","05001","Medellín","Antioquia-Medellín"]
[null,"05","Antioquia","05467","Montebello","Antioquia-Montebello"]
[null,"05","Antioquia","05475","Murindó","Antioquia-Murindó"]
[null,"05","Antioquia","05480","Mutatá","Antioquia-Mutatá"]
[null,"05","Antioquia","05483","Nariño","Antioquia-Nariño"]
[null,"05","Antioquia","05495","Nechí","Antioquia-Nechí"]
[null,"05","Antioquia","05490","Necoclí","Antioquia-Necoclí"]
[null,"05","Antioquia","05501","Olaya","Antioquia-Olaya"]
[null,"05","Antioquia","05541","Peñol","Antioquia-Peñol"]
[null,"05","Antioquia","05543","Peque","Antioquia-Peque"]
[null,"05","Antioquia","05576","Pueblorrico","Antioquia-Pueblorrico"]
[null,"05","Antioquia","05579","Puerto Berrío","Antioquia-Puerto Berrío"]
[null,"05","Antioquia","05585","Puerto Nare (La Magdalena)","Antioquia-Puerto Nare (La Magdalena)"]
[null,"05","Antioquia","05591","Puerto Triunfo","Antioquia-Puerto Triunfo"]
[null,"05","Antioquia","05604","Remedios","Antioquia-Remedios"]
[null,"05","Antioquia","05607","Retiro","Antioquia-Retiro"]
[null,"05","Antioquia","05615","Rionegro","Antioquia-Rionegro"]
[null,"05","Antioquia","05628","Sabanalarga","Antioquia-Sabanalarga"]
[null,"05","Antioquia","05631","Sabaneta","Antioquia-Sabaneta"]
[null,"05","Antioquia","05642","Salgar","Antioquia-Salgar"]
[null,"05","Antioquia","05647","San Andrés","Antioquia-San Andrés"]
[null,"05","Antioquia","05649","San Carlos","Antioquia-San Carlos"]
[null,"05","Antioquia","05652","San Francisco","Antioquia-San Francisco"]
[null,"05","Antioquia","05656","San Jerónimo","Antioquia-San Jerónimo"]
[null,"05","Antioquia","05658","San José De La Montaña","Antioquia-San José De La Montaña"]
[null,"05","Antioquia","05659","San Juan De Uraba","Antioquia-San Juan De Uraba"]
[null,"05","Antioquia","05660","San Luis","Antioquia-San Luis"]
[null,"05","Antioquia","05664","San Pedro","Antioquia-San Pedro"]
[null,"05","Antioquia","05665","San Pedro De Uraba","Antioquia-San Pedro De Uraba"]
[null,"05","Antioquia","05667","San Rafael","Antioquia-San Rafael"]
[null,"05","Antioquia","05670","San Roque","Antioquia-San Roque"]
[null,"05","Antioquia","05674","San Vicente","Antioquia-San Vicente"]
[null,"05","Antioquia","05679","Santa Bárbara","Antioquia-Santa Bárbara"]
[null,"05","Antioquia","05686","Santa Rosa De Osos","Antioquia-Santa Rosa De Osos"]
[null,"05","Antioquia","05690","Santo Domingo","Antioquia-Santo Domingo"]
[null,"05","Antioquia","05697","Santuario","Antioquia-Santuario"]
[null,"05","Antioquia","05736","Segovia","Antioquia-Segovia"]
[null,"05","Antioquia","05756","Sonson","Antioquia-Sonson"]
[null,"05","Antioquia","05761","Sopetrán","Antioquia-Sopetrán"]
[null,"05","Antioquia","05789","Támesis","Antioquia-Támesis"]
[null,"05","Antioquia","05790","Taraza","Antioquia-Taraza"]
[null,"05","Antioquia","05792","Tarso","Antioquia-Tarso"]
[null,"05","Antioquia","05809","Titiribí","Antioquia-Titiribí"]
[null,"05","Antioquia","05819","Toledo","Antioquia-Toledo"]
[null,"05","Antioquia","05837","Turbo","Antioquia-Turbo"]
[null,"05","Antioquia","05842","Uramita","Antioquia-Uramita"]
[null,"05","Antioquia","05847","Urrao","Antioquia-Urrao"]
[null,"05","Antioquia","05854","Valdivia","Antioquia-Valdivia"]
[null,"05","Antioquia","05856","Valparaíso","Antioquia-Valparaíso"]
[null,"05","Antioquia","05858","Vegachi",{"$f":"CONCATENATE(C131,\"-\",E131)","v":"Antioquia-Vegachi"}]
[null,"05","Antioquia","05861","Venecia","Antioquia-Venecia"]
[null,"05","Antioquia","05873","Vigía Del Fuerte","Antioquia-Vigía Del Fuerte"]
[null,"05","Antioquia","05885","Yali","Antioquia-Yali"]
[null,"05","Antioquia","05887","Yarumal","Antioquia-Yarumal"]
[null,"05","Antioquia","05890","Yolombó","Antioquia-Yolombó"]
[null,"05","Antioquia","05893","Yondó","Antioquia-Yondó"]
[null,"05","Antioquia","05895","Zaragoza","Antioquia-Zaragoza"]
[null,"81","Arauca","81001","Arauca","Arauca-Arauca"]
[null,"81","Arauca","81065","Arauquita","Arauca-Arauquita"]
[null,"81","Arauca","81220","Cravo Norte","Arauca-Cravo Norte"]
[null,"81","Arauca","81300","Fortul","Arauca-Fortul"]
[null,"81","Arauca","81591","Puerto Rondón","Arauca-Puerto Rondón"]
[null,"81","Arauca","81736","Saravena","Arauca-Saravena"]
[null,"81","Arauca","81794","Tame","Arauca-Tame"]
[null,"08","Atlántico","08078","Baranoa","Atlántico-Baranoa"]
[null,"08","Atlántico","08001","Barranquilla","Atlántico-Barranquilla"]
[null,"08","Atlántico","08137","Campo de la Cruz","Atlántico-Campo de la Cruz"]
[null,"08","Atlántico","08141","Candelaria","Atlántico-Candelaria"]
[null,"08","Atlántico","08296","Galapa","Atlántico-Galapa"]
[null,"08","Atlántico","08372","Juan de Acosta","Atlántico-Juan de Acosta"]
[null,"08","Atlántico","08421","Luruaco","Atlántico-Luruaco"]
[null,"08","Atlántico","08433","Malambo","Atlántico-Malambo"]
[null,"08","Atlántico","08436","Manatí","Atlántico-Manatí"]
[null,"08","Atlántico","08520","Palmar De Varela","Atlántico-Palmar De Varela"]
[null,"08","Atlántico","08549","Piojó","Atlántico-Piojó"]
[null,"08","Atlántico","08558","Polo Nuevo","Atlántico-Polo Nuevo"]
[null,"08","Atlántico","08560","Ponedera","Atlántico-Ponedera"]
[null,"08","Atlántico","08573","Puerto Colombia","Atlántico-Puerto Colombia"]
[null,"08","Atlántico","08606","Repelón","Atlántico-Repelón"]
[null,"08","Atlántico","08634","Sabanagrande","Atlántico-Sabanagrande"]
[null,"08","Atlántico","08638","Sabanalarga","Atlántico-Sabanalarga"]
[null,"08","Atlántico","08675","Santa Lucia","Atlántico-Santa Lucia"]
[null,"08","Atlántico","08685","Santo Tomas","Atlántico-Santo Tomas"]
[null,"08","Atlántico","08758","Soledad","Atlántico-Soledad"]
[null,"08","Atlántico","08770","Suan","Atlántico-Suan"]
[null,"08","Atlántico","08832","Tubará","Atlántico-Tubará"]
[null,"08","Atlántico","08849","Usiacurí","Atlántico-Usiacurí"]
[null,"11","BOGOTA D.C.","11001","Bogotá","BOGOTA D.C.-Bogotá"]
[null,"13","Bolívar","13006","Achí5a","Bolívar-Achí5a"]
[null,"13","Bolívar","13030","Altos del Rosario5","Bolívar-Altos del Rosario5"]
[null,"13","Bolívar","13042","Arenal6","Bolívar-Arenal6"]
[null,"13","Bolívar","13052","Arjona","Bolívar-Arjona"]
[null,"13","Bolívar","13062","Arroyohondo7","Bolívar-Arroyohondo7"]
[null,"13","Bolívar","13074","Barranco de Loba","Bolívar-Barranco de Loba"]
[null,"13","Bolívar","13140","Calamar","Bolívar-Calamar"]
[null,"13","Bolívar","13160","Cantagallo8","Bolívar-Cantagallo8"]
[null,"13","Bolívar","13001","Cartagena","Bolívar-Cartagena"]
[null,"13","Bolívar","13188","Cicuco9","Bolívar-Cicuco9"]
[null,"13","Bolívar","13222","Clemencia10","Bolívar-Clemencia10"]
[null,"13","Bolívar","13212","Córdoba","Bolívar-Córdoba"]
[null,"13","Bolívar","13244","El Carmen de Bolívar","Bolívar-El Carmen de Bolívar"]
[null,"13","Bolívar","13248","El Guamo","Bolívar-El Guamo"]
[null,"13","Bolívar","13268","El Peñon11","Bolívar-El Peñon11"]
[null,"13","Bolívar","13300","Hatillo de Loba12","Bolívar-Hatillo de Loba12"]
[null,"13","Bolívar","13430","Magangue","Bolívar-Magangue"]
[null,"13","Bolívar","13433","Mahates","Bolívar-Mahates"]
[null,"13","Bolívar","13440","Margarita","Bolívar-Margarita"]
[null,"13","Bolívar","13442","Maria la Baja","Bolívar-Maria la Baja"]
[null,"13","Bolívar","13468","Mompos","Bolívar-Mompos"]
[null,"13","Bolívar","13458","Montecristo13","Bolívar-Montecristo13"]
[null,"13","Bolívar","13473","Morales","Bolívar-Morales"]
[null,"13","Bolívar","13490","Norosi","Bolívar-Norosi"]
[null,"13","Bolívar","13549","Pinillos5a","Bolívar-Pinillos5a"]
[null,"13","Bolívar","13580","Regidor14",{"$f":"CONCATENATE(C195,\"-\",E195)","v":"Bolívar-Regidor14"}]
[null,"13","Bolívar","13600","Río Viejo","Bolívar-Río Viejo"]
[null,"13","Bolívar","13620","San Cristobal15","Bolívar-San Cristobal15"]
[null,"13","Bolívar","13647","San Estanislao","Bolívar-San Estanislao"]
[null,"13","Bolívar","13650","San Fernando","Bolívar-San Fernando"]
[null,"13","Bolívar","13654","San Jacinto","Bolívar-San Jacinto"]
[null,"13","Bolívar","13655","San Jacinto del Cauca16","Bolívar-San Jacinto del Cauca16"]
[null,"13","Bolívar","13657","San Juan Nepomuceno","Bolívar-San Juan Nepomuceno"]
[null,"13","Bolívar","13667","San Martín de Loba","Bolívar-San Martín de Loba"]
[null,"13","Bolívar","13670","San Pablo","Bolívar-San Pablo"]
[null,"13","Bolívar","13673","Santa Catalina","Bolívar-Santa Catalina"]
[null,"13","Bolívar","13683","Santa Rosa","Bolívar-Santa Rosa"]
[null,"13","Bolívar","13688","Santa Rosa del Sur","Bolívar-Santa Rosa del Sur"]
[null,"13","Bolívar","13744","Simití","Bolívar-Simití"]
[null,"13","Bolívar","13760","Soplaviento","Bolívar-Soplaviento"]
[null,"13","Bolívar","13780","Talaigua Nuevo","Bolívar-Talaigua Nuevo"]
[null,"13","Bolívar","13810","Tiquisio17","Bolívar-Tiquisio17"]
[null,"13","Bolívar","13836","Turbaco","Bolívar-Turbaco"]
[null,"13","Bolívar","13838","Turbaná","Bolívar-Turbaná"]
[null,"13","Bolívar","13873","Villanueva","Bolívar-Villanueva"]
[null,"13","Bolívar","13894","Zambrano","Bolívar-Zambrano"]
[null,"15","Boyacá","15022","Almeida","Boyacá-Almeida"]
[null,"15","Boyacá","15047","Aquitania","Boyacá-Aquitania"]
[null,"15","Boyacá","15051","Arcabuco","Boyacá-Arcabuco"]
[null,"15","Boyacá","15087","Belén","Boyacá-Belén"]
[null,"15","Boyacá","15090","Berbeo","Boyacá-Berbeo"]
[null,"15","Boyacá","15092","Beteitiva","Boyacá-Beteitiva"]
[null,"15","Boyacá","15097","Boavita","Boyacá-Boavita"]
[null,"15","Boyacá","15104","Boyacá","Boyacá-Boyacá"]
[null,"15","Boyacá","15106","Briceño","Boyacá-Briceño"]
[null,"15","Boyacá","15109","Buenavista","Boyacá-Buenavista"]
[null,"15","Boyacá","15114","Busbanza","Boyacá-Busbanza"]
[null,"15","Boyacá","15131","Caldas","Boyacá-Caldas"]
[null,"15","Boyacá","15135","Campohermoso","Boyacá-Campohermoso"]
[null,"15","Boyacá","15162","Cerinza","Boyacá-Cerinza"]
[null,"15","Boyacá","15172","Chinavita","Boyacá-Chinavita"]
[null,"15","Boyacá","15176","Chiquinquirá","Boyacá-Chiquinquirá"]
[null,"15","Boyacá","15232","Chiquiza","Boyacá-Chiquiza"]
[null,"15","Boyacá","15180","Chiscas","Boyacá-Chiscas"]
[null,"15","Boyacá","15183","Chita","Boyacá-Chita"]
[null,"15","Boyacá","15185","Chitaraque","Boyacá-Chitaraque"]
[null,"15","Boyacá","15187","Chivata","Boyacá-Chivata"]
[null,"15","Boyacá","15236","Chivor","Boyacá-Chivor"]
[null,"15","Boyacá","15189","Ciénega","Boyacá-Ciénega"]
[null,"15","Boyacá","15204","Combita ","Boyacá-Combita "]
[null,"15","Boyacá","15212","Coper","Boyacá-Coper"]
[null,"15","Boyacá","15215","Corrales","Boyacá-Corrales"]
[null,"15","Boyacá","15218","Covarachia","Boyacá-Covarachia"]
[null,"15","Boyacá","15223","Cubara","Boyacá-Cubara"]
[null,"15","Boyacá","15224","Cucaita","Boyacá-Cucaita"]
[null,"15","Boyacá","15226","Cuitiva","Boyacá-Cuitiva"]
[null,"15","Boyacá","15238","Duitama","Boyacá-Duitama"]
[null,"15","Boyacá","15244","El Cocuy","Boyacá-El Cocuy"]
[null,"15","Boyacá","15248","El Espino","Boyacá-El Espino"]
[null,"15","Boyacá","15272","Firavitoba","Boyacá-Firavitoba"]
[null,"15","Boyacá","15276","Floresta","Boyacá-Floresta"]
[null,"15","Boyacá","15293","Gachantiva","Boyacá-Gachantiva"]
[null,"15","Boyacá","15296","Gameza","Boyacá-Gameza"]
[null,"15","Boyacá","15299","Garagoa","Boyacá-Garagoa"]
[null,"15","Boyacá","15317","Guacamayas","Boyacá-Guacamayas"]
[null,"15","Boyacá","15322","Guateque","Boyacá-Guateque"]
[null,"15","Boyacá","15325","Guayata","Boyacá-Guayata"]
[null,"15","Boyacá","15332","Guican","Boyacá-Guican"]
[null,"15","Boyacá","15362","Iza","Boyacá-Iza"]
[null,"15","Boyacá","15367","Jenesano",{"$f":"CONCATENATE(C259,\"-\",E259)","v":"Boyacá-Jenesano"}]
[null,"15","Boyacá","15368","Jericó-Boyacá","Boyacá-Jericó-Boyacá"]
[null,"15","Boyacá","15380","La Capilla","Boyacá-La Capilla"]
[null,"15","Boyacá","15403","La Uvita","Boyacá-La Uvita"]
[null,"15","Boyacá","15401","La Victoria","Boyacá-La Victoria"]
[null,"15","Boyacá","15377","Labranzagrande","Boyacá-Labranzagrande"]
[null,"15","Boyacá","15407","Leiva","Boyacá-Leiva"]
[null,"15","Boyacá","15425","Macanal","Boyacá-Macanal"]
[null,"15","Boyacá","15442","Maripi","Boyacá-Maripi"]
[null,"15","Boyacá","15455","Miraflores","Boyacá-Miraflores"]
[null,"15","Boyacá","15464","Mongua","Boyacá-Mongua"]
[null,"15","Boyacá","15466","Monguí","Boyacá-Monguí"]
[null,"15","Boyacá","15469","Moniquirá","Boyacá-Moniquirá"]
[null,"15","Boyacá","15476","Motavita","Boyacá-Motavita"]
[null,"15","Boyacá","15480","Muzo","Boyacá-Muzo"]
[null,"15","Boyacá","15491","Nobsa","Boyacá-Nobsa"]
[null,"15","Boyacá","15494","Nuevo Colón","Boyacá-Nuevo Colón"]
[null,"15","Boyacá","15500","Oicata","Boyacá-Oicata"]
[null,"15","Boyacá","15507","Otanche","Boyacá-Otanche"]
[null,"15","Boyacá","15511","Pachavita","Boyacá-Pachavita"]
[null,"15","Boyacá","15514","Páez","Boyacá-Páez"]
[null,"15","Boyacá","15516","Paipa","Boyacá-Paipa"]
[null,"15","Boyacá","15518","Pajarito","Boyacá-Pajarito"]
[null,"15","Boyacá","15522","Panqueba","Boyacá-Panqueba"]
[null,"15","Boyacá","15531","Pauna","Boyacá-Pauna"]
[null,"15","Boyacá","15533","Paya","Boyacá-Paya"]
[null,"15","Boyacá","15537","Paz del Río","Boyacá-Paz del Río"]
[null,"15","Boyacá","15542","Pesca","Boyacá-Pesca"]
[null,"15","Boyacá","15550","Pisba","Boyacá-Pisba"]
[null,"15","Boyacá","15572","Puerto Boyacá","Boyacá-Puerto Boyacá"]
[null,"15","Boyacá","15580","Quipama","Boyacá-Quipama"]
[null,"15","Boyacá","15599","Ramiriquí","Boyacá-Ramiriquí"]
[null,"15","Boyacá","15600","Ráquira","Boyacá-Ráquira"]
[null,"15","Boyacá","15621","Rondón","Boyacá-Rondón"]
[null,"15","Boyacá","15632","Saboya","Boyacá-Saboya"]
[null,"15","Boyacá","15638","Sáchica","Boyacá-Sáchica"]
[null,"15","Boyacá","15646","Samacá","Boyacá-Samacá"]
[null,"15","Boyacá","15660","San Eduardo","Boyacá-San Eduardo"]
[null,"15","Boyacá","15664","San José de Pare","Boyacá-San José de Pare"]
[null,"15","Boyacá","15667","San Luis de Gaceno","Boyacá-San Luis de Gaceno"]
[null,"15","Boyacá","15673","San Mateo","Boyacá-San Mateo"]
[null,"15","Boyacá","15676","San Miguel de Sema","Boyacá-San Miguel de Sema"]
[null,"15","Boyacá","15681","San Pablo de Borbur","Boyacá-San Pablo de Borbur"]
[null,"15","Boyacá","15690","Santa Maria","Boyacá-Santa Maria"]
[null,"15","Boyacá","15693","Santa Rosa de Viterbo","Boyacá-Santa Rosa de Viterbo"]
[null,"15","Boyacá","15696","Santa Sofía","Boyacá-Santa Sofía"]
[null,"15","Boyacá","15686","Santana","Boyacá-Santana"]
[null,"15","Boyacá","15720","Sativanorte","Boyacá-Sativanorte"]
[null,"15","Boyacá","15723","Sativasur","Boyacá-Sativasur"]
[null,"15","Boyacá","15740","Siachoque","Boyacá-Siachoque"]
[null,"15","Boyacá","15753","Soata","Boyacá-Soata"]
[null,"15","Boyacá","15757","Socha","Boyacá-Socha"]
[null,"15","Boyacá","15755","Socota","Boyacá-Socota"]
[null,"15","Boyacá","15759","Sogamoso","Boyacá-Sogamoso"]
[null,"15","Boyacá","15761","Somondoco","Boyacá-Somondoco"]
[null,"15","Boyacá","15762","Sora","Boyacá-Sora"]
[null,"15","Boyacá","15764","Soracá","Boyacá-Soracá"]
[null,"15","Boyacá","15763","Sotaquirá","Boyacá-Sotaquirá"]
[null,"15","Boyacá","15774","Susacon","Boyacá-Susacon"]
[null,"15","Boyacá","15776","Sutamarchán","Boyacá-Sutamarchán"]
[null,"15","Boyacá","15778","Sutatenza","Boyacá-Sutatenza"]
[null,"15","Boyacá","15790","Tasco","Boyacá-Tasco"]
[null,"15","Boyacá","15798","Tenza","Boyacá-Tenza"]
[null,"15","Boyacá","15804","Tibaná","Boyacá-Tibaná"]
[null,"15","Boyacá","15806","Tibasosa",{"$f":"CONCATENATE(C323,\"-\",E323)","v":"Boyacá-Tibasosa"}]
[null,"15","Boyacá","15808","Tinjacá","Boyacá-Tinjacá"]
[null,"15","Boyacá","15810","Tipacoque","Boyacá-Tipacoque"]
[null,"15","Boyacá","15814","Toca","Boyacá-Toca"]
[null,"15","Boyacá","15816","Toguí","Boyacá-Toguí"]
[null,"15","Boyacá","15820","Topaga","Boyacá-Topaga"]
[null,"15","Boyacá","15822","Tota","Boyacá-Tota"]
[null,"15","Boyacá","15001","Tunja + Chíquiza ","Boyacá-Tunja + Chíquiza "]
[null,"15","Boyacá","15832","Tunungua","Boyacá-Tunungua"]
[null,"15","Boyacá","15835","Turmequé","Boyacá-Turmequé"]
[null,"15","Boyacá","15837","Tuta","Boyacá-Tuta"]
[null,"15","Boyacá","15839","Tutasa","Boyacá-Tutasa"]
[null,"15","Boyacá","15842","Umbita","Boyacá-Umbita"]
[null,"15","Boyacá","15861","Ventaquemada","Boyacá-Ventaquemada"]
[null,"15","Boyacá","15879","Viracacha","Boyacá-Viracacha"]
[null,"15","Boyacá","15897","Zetaquira","Boyacá-Zetaquira"]
[null,"17","Caldas","17013","Aguadas","Caldas-Aguadas"]
[null,"17","Caldas","17042","Anserma","Caldas-Anserma"]
[null,"17","Caldas","17050","Aranzazu","Caldas-Aranzazu"]
[null,"17","Caldas","17088","Belalcazar","Caldas-Belalcazar"]
[null,"17","Caldas","17174","Chinchiná","Caldas-Chinchiná"]
[null,"17","Caldas","17272","Filadelfia","Caldas-Filadelfia"]
[null,"17","Caldas","17380","La Dorada","Caldas-La Dorada"]
[null,"17","Caldas","17388","La Merced","Caldas-La Merced"]
[null,"17","Caldas","17001","Manizales","Caldas-Manizales"]
[null,"17","Caldas","17433","Manzanares","Caldas-Manzanares"]
[null,"17","Caldas","17442","Marmato","Caldas-Marmato"]
[null,"17","Caldas","17444","Marquetalia","Caldas-Marquetalia"]
[null,"17","Caldas","17446","Marulanda","Caldas-Marulanda"]
[null,"17","Caldas","17486","Neira","Caldas-Neira"]
[null,"17","Caldas","17495","Norcasia18","Caldas-Norcasia18"]
[null,"17","Caldas","17513","Pacora","Caldas-Pacora"]
[null,"17","Caldas","17524","Palestina","Caldas-Palestina"]
[null,"17","Caldas","17541","Pensilvania","Caldas-Pensilvania"]
[null,"17","Caldas","17614","Riosucio","Caldas-Riosucio"]
[null,"17","Caldas","17616","Risaralda","Caldas-Risaralda"]
[null,"17","Caldas","17653","Salamina","Caldas-Salamina"]
[null,"17","Caldas","17662","Samana","Caldas-Samana"]
[null,"17","Caldas","17665","San Jose19","Caldas-San Jose19"]
[null,"17","Caldas","17777","Supía","Caldas-Supía"]
[null,"17","Caldas","17867","Victoria","Caldas-Victoria"]
[null,"17","Caldas","17873","Villamaría","Caldas-Villamaría"]
[null,"17","Caldas","17877","Viterbo","Caldas-Viterbo"]
[null,"18","Caquetá","18029","Albania","Caquetá-Albania"]
[null,"18","Caquetá","18094","Belén Andaquies","Caquetá-Belén Andaquies"]
[null,"18","Caquetá","18150","Cartagena del Chaira","Caquetá-Cartagena del Chaira"]
[null,"18","Caquetá","18205","Curillo","Caquetá-Curillo"]
[null,"18","Caquetá","18247","El Doncello","Caquetá-El Doncello"]
[null,"18","Caquetá","18256","El Paujil","Caquetá-El Paujil"]
[null,"18","Caquetá","18001","Florencia","Caquetá-Florencia"]
[null,"18","Caquetá","18410","La Montañita","Caquetá-La Montañita"]
[null,"18","Caquetá","18460","Milán","Caquetá-Milán"]
[null,"18","Caquetá","18479","Morelia","Caquetá-Morelia"]
[null,"18","Caquetá","18592","Puerto Rico","Caquetá-Puerto Rico"]
[null,"18","Caquetá","18753","San  Vicente del Caguan","Caquetá-San  Vicente del Caguan"]
[null,"18","Caquetá","18610","San José de Fragua","Caquetá-San José de Fragua"]
[null,"18","Caquetá","18756","Solano","Caquetá-Solano"]
[null,"18","Caquetá","18785","Solita20","Caquetá-Solita20"]
[null,"18","Caquetá","18860","Valparaíso","Caquetá-Valparaíso"]
[null,"85","Casanare","85010","Aguazul","Casanare-Aguazul"]
[null,"85","Casanare","85015","Chameza","Casanare-Chameza"]
[null,"85","Casanare","85125","Hato Corozal","Casanare-Hato Corozal"]
[null,"85","Casanare","85136","La Salina","Casanare-La Salina"]
[null,"85","Casanare","85139","Maní","Casanare-Maní"]
[null,"85","Casanare","85162","Monterrey",{"$f":"CONCATENATE(C387,\"-\",E387)","v":"Casanare-Monterrey"}]
[null,"85","Casanare","85225","Nunchia","Casanare-Nunchia"]
[null,"85","Casanare","85230","Orocue","Casanare-Orocue"]
[null,"85","Casanare","85250","Paz de Ariporo","Casanare-Paz de Ariporo"]
[null,"85","Casanare","85263","Pore","Casanare-Pore"]
[null,"85","Casanare","85279","Recetor","Casanare-Recetor"]
[null,"85","Casanare","85300","Sabanalarga","Casanare-Sabanalarga"]
[null,"85","Casanare","85315","Sacama","Casanare-Sacama"]
[null,"85","Casanare","85325","San Luis de Palenque","Casanare-San Luis de Palenque"]
[null,"85","Casanare","85400","Tamara","Casanare-Tamara"]
[null,"85","Casanare","85410","Tauramena","Casanare-Tauramena"]
[null,"85","Casanare","85430","Trinidad","Casanare-Trinidad"]
[null,"85","Casanare","85440","Villanueva","Casanare-Villanueva"]
[null,"85","Casanare","85001","Yopal","Casanare-Yopal"]
[null,"19","Cauca","19022","Almaguer","Cauca-Almaguer"]
[null,"19","Cauca","19050","Argelia - Cauca","Cauca-Argelia - Cauca"]
[null,"19","Cauca","19075","Balboa","Cauca-Balboa"]
[null,"19","Cauca","19100","Bolívar - Cauca","Cauca-Bolívar - Cauca"]
[null,"19","Cauca","19110","Buenos Aires","Cauca-Buenos Aires"]
[null,"19","Cauca","19130","Cajibio","Cauca-Cajibio"]
[null,"19","Cauca","19137","Caldono","Cauca-Caldono"]
[null,"19","Cauca","19142","Caloto","Cauca-Caloto"]
[null,"19","Cauca","19212","Corinto","Cauca-Corinto"]
[null,"19","Cauca","19256","El Tambo","Cauca-El Tambo"]
[null,"19","Cauca","19290","Florencia - Cauca","Cauca-Florencia - Cauca"]
[null,"19","Cauca","19300","Guachene","Cauca-Guachene"]
[null,"19","Cauca","19318","Guapi","Cauca-Guapi"]
[null,"19","Cauca","19355","Inza","Cauca-Inza"]
[null,"19","Cauca","19364","Jambaló","Cauca-Jambaló"]
[null,"19","Cauca","19392","La Sierra","Cauca-La Sierra"]
[null,"19","Cauca","19397","La Vega","Cauca-La Vega"]
[null,"19","Cauca","19418","López","Cauca-López"]
[null,"19","Cauca","19450","Mercaderes","Cauca-Mercaderes"]
[null,"19","Cauca","19455","Miranda","Cauca-Miranda"]
[null,"19","Cauca","19473","Morales - Cauca","Cauca-Morales - Cauca"]
[null,"19","Cauca","19513","Padilla","Cauca-Padilla"]
[null,"19","Cauca","19517","Páez - Cauca","Cauca-Páez - Cauca"]
[null,"19","Cauca","19532","Patia (El Bordo)","Cauca-Patia (El Bordo)"]
[null,"19","Cauca","19533","Piamonte21","Cauca-Piamonte21"]
[null,"19","Cauca","19548","Piendamo","Cauca-Piendamo"]
[null,"19","Cauca","19001","Popayán","Cauca-Popayán"]
[null,"19","Cauca","19573","Puerto Tejada","Cauca-Puerto Tejada"]
[null,"19","Cauca","19585","Purace","Cauca-Purace"]
[null,"19","Cauca","19622","Rosas","Cauca-Rosas"]
[null,"19","Cauca","19693","San Sebastián","Cauca-San Sebastián"]
[null,"19","Cauca","19701","Santa Rosa - Cauca","Cauca-Santa Rosa - Cauca"]
[null,"19","Cauca","19698","Santander de Quilichao","Cauca-Santander de Quilichao"]
[null,"19","Cauca","19743","Silvia","Cauca-Silvia"]
[null,"19","Cauca","19760","Sotara","Cauca-Sotara"]
[null,"19","Cauca","19780","Suárez","Cauca-Suárez"]
[null,"19","Cauca","19785","Sucre22","Cauca-Sucre22"]
[null,"19","Cauca","19807","Timbío","Cauca-Timbío"]
[null,"19","Cauca","19809","Timbiquí","Cauca-Timbiquí"]
[null,"19","Cauca","19821","Toribio","Cauca-Toribio"]
[null,"19","Cauca","19824","Totoro","Cauca-Totoro"]
[null,"19","Cauca","19845","Villa Rica23","Cauca-Villa Rica23"]
[null,"20","Cesar","20011","Aguachica","Cesar-Aguachica"]
[null,"20","Cesar","20013","Agustín Codazzi","Cesar-Agustín Codazzi"]
[null,"20","Cesar","20032","Astrea","Cesar-Astrea"]
[null,"20","Cesar","20045","Becerril","Cesar-Becerril"]
[null,"20","Cesar","20060","Bosconia","Cesar-Bosconia"]
[null,"20","Cesar","20175","Chimichagua","Cesar-Chimichagua"]
[null,"20","Cesar","20178","Chiriguaná","Cesar-Chiriguaná"]
[null,"20","Cesar","20228","Curumaní","Cesar-Curumaní"]
[null,"20","Cesar","20238","El Copey",{"$f":"CONCATENATE(C451,\"-\",E451)","v":"Cesar-El Copey"}]
[null,"20","Cesar","20250","El Paso","Cesar-El Paso"]
[null,"20","Cesar","20295","Gamarra","Cesar-Gamarra"]
[null,"20","Cesar","20310","González","Cesar-González"]
[null,"20","Cesar","20383","La Gloria","Cesar-La Gloria"]
[null,"20","Cesar","20400","La Jagua Ibirico","Cesar-La Jagua Ibirico"]
[null,"20","Cesar","20443","Manaure Balcón Del Cesar","Cesar-Manaure Balcón Del Cesar"]
[null,"20","Cesar","20517","Pailitas","Cesar-Pailitas"]
[null,"20","Cesar","20550","Pelaya24","Cesar-Pelaya24"]
[null,"20","Cesar","20570","Pueblo Bello25","Cesar-Pueblo Bello25"]
[null,"20","Cesar","20614","Río De Oro","Cesar-Río De Oro"]
[null,"20","Cesar","20621","Robles (La Paz)","Cesar-Robles (La Paz)"]
[null,"20","Cesar","20710","San Alberto","Cesar-San Alberto"]
[null,"20","Cesar","20750","San Diego","Cesar-San Diego"]
[null,"20","Cesar","20770","San Martín","Cesar-San Martín"]
[null,"20","Cesar","20787","Tamalameque24","Cesar-Tamalameque24"]
[null,"20","Cesar","20001","Valledupar","Cesar-Valledupar"]
[null,"27","Chocó","27006","Acandi","Chocó-Acandi"]
[null,"27","Chocó","27025","Alto Baudo(Pie De Pato)","Chocó-Alto Baudo(Pie De Pato)"]
[null,"27","Chocó","27050","Atrato28","Chocó-Atrato28"]
[null,"27","Chocó","27073","Bagado","Chocó-Bagado"]
[null,"27","Chocó","27075","Bahia Solano (Mutis)","Chocó-Bahia Solano (Mutis)"]
[null,"27","Chocó","27077","Bajo Baudo (Pizarro)","Chocó-Bajo Baudo (Pizarro)"]
[null,"27","Chocó","27086","Belén de Bajirá29","Chocó-Belén de Bajirá29"]
[null,"27","Chocó","27099","Bojaya (Bellavista)","Chocó-Bojaya (Bellavista)"]
[null,"27","Chocó","27135","Canton De San Pablo30 + Capurgana","Chocó-Canton De San Pablo30 + Capurgana"]
[null,"27","Chocó","27150","Carmen Del Darien31","Chocó-Carmen Del Darien31"]
[null,"27","Chocó","27160","Certegui32","Chocó-Certegui32"]
[null,"27","Chocó","27205","Condoto","Chocó-Condoto"]
[null,"27","Chocó","27245","El Carmen - Chocó","Chocó-El Carmen - Chocó"]
[null,"27","Chocó","27361","Istmina","Chocó-Istmina"]
[null,"27","Chocó","27372","Jurado","Chocó-Jurado"]
[null,"27","Chocó","27250","Litoral Del San Juan","Chocó-Litoral Del San Juan"]
[null,"27","Chocó","27413","Lloro","Chocó-Lloro"]
[null,"27","Chocó","27425","Medio Atrato33","Chocó-Medio Atrato33"]
[null,"27","Chocó","27430","Medio Baudo (Boca De Pepe)34","Chocó-Medio Baudo (Boca De Pepe)34"]
[null,"27","Chocó","27450","Medio San Juan35","Chocó-Medio San Juan35"]
[null,"27","Chocó","27491","Novita","Chocó-Novita"]
[null,"27","Chocó","27495","Nuqui","Chocó-Nuqui"]
[null,"27","Chocó","27001","Quibdó","Chocó-Quibdó"]
[null,"27","Chocó","27580","Rio Iro36","Chocó-Rio Iro36"]
[null,"27","Chocó","27600","Rio Quito37","Chocó-Rio Quito37"]
[null,"27","Chocó","27615","Riosucio - Chocó","Chocó-Riosucio - Chocó"]
[null,"27","Chocó","27660","San Jose Del Palmar","Chocó-San Jose Del Palmar"]
[null,"27","Chocó","27745","Sipi","Chocó-Sipi"]
[null,"27","Chocó","27787","Tado","Chocó-Tado"]
[null,"27","Chocó","27800","Unguia","Chocó-Unguia"]
[null,"27","Chocó","27810","Union Panamericana38","Chocó-Union Panamericana38"]
[null,"23","Córdoba","23068","Ayapel","Córdoba-Ayapel"]
[null,"23","Córdoba","23079","Buenavista","Córdoba-Buenavista"]
[null,"23","Córdoba","23090","Canalete","Córdoba-Canalete"]
[null,"23","Córdoba","23162","Cereté","Córdoba-Cereté"]
[null,"23","Córdoba","23168","Chima","Córdoba-Chima"]
[null,"23","Córdoba","23182","Chinú","Córdoba-Chinú"]
[null,"23","Córdoba","23189","Cienaga De Oro","Córdoba-Cienaga De Oro"]
[null,"23","Córdoba","23300","Cotorra26","Córdoba-Cotorra26"]
[null,"23","Córdoba","23350","La Apartada27","Córdoba-La Apartada27"]
[null,"23","Córdoba","23417","Lorica","Córdoba-Lorica"]
[null,"23","Córdoba","23419","Los Córdobas","Córdoba-Los Córdobas"]
[null,"23","Córdoba","23464","Momil","Córdoba-Momil"]
[null,"23","Córdoba","23466","Montelíbano","Córdoba-Montelíbano"]
[null,"23","Córdoba","23001","Montería","Córdoba-Montería"]
[null,"23","Córdoba","23500","Moñitos","Córdoba-Moñitos"]
[null,"23","Córdoba","23555","Planeta Rica","Córdoba-Planeta Rica"]
[null,"23","Córdoba","23570","Pueblo Nuevo",{"$f":"CONCATENATE(C515,\"-\",E515)","v":"Córdoba-Pueblo Nuevo"}]
[null,"23","Córdoba","23574","Puerto Escondido","Córdoba-Puerto Escondido"]
[null,"23","Córdoba","23580","Puerto Libertador","Córdoba-Puerto Libertador"]
[null,"23","Córdoba","23586","Purísima","Córdoba-Purísima"]
[null,"23","Córdoba","23660","Sahagún","Córdoba-Sahagún"]
[null,"23","Córdoba","23670","San Andrés Sotavento","Córdoba-San Andrés Sotavento"]
[null,"23","Córdoba","23672","San Antero","Córdoba-San Antero"]
[null,"23","Córdoba","23675","San Bernardo Viento","Córdoba-San Bernardo Viento"]
[null,"23","Córdoba","23678","San Carlos","Córdoba-San Carlos"]
[null,"23","Córdoba","23682","San Jose de URE","Córdoba-San Jose de URE"]
[null,"23","Córdoba","23686","San Pelayo","Córdoba-San Pelayo"]
[null,"23","Córdoba","23807","Tierralta","Córdoba-Tierralta"]
[null,"23","Córdoba","23855","Valencia","Córdoba-Valencia"]
[null,"25","Cundinamarca","25001","Agua de Dios","Cundinamarca-Agua de Dios"]
[null,"25","Cundinamarca","25019","Alban - Cundinam","Cundinamarca-Alban - Cundinam"]
[null,"25","Cundinamarca","25035","Anapoima","Cundinamarca-Anapoima"]
[null,"25","Cundinamarca","25040","Anolaima","Cundinamarca-Anolaima"]
[null,"25","Cundinamarca","25053","Arbelaez","Cundinamarca-Arbelaez"]
[null,"25","Cundinamarca","25086","Beltrán","Cundinamarca-Beltrán"]
[null,"25","Cundinamarca","25095","Bituima","Cundinamarca-Bituima"]
[null,"25","Cundinamarca","25099","Bojacá","Cundinamarca-Bojacá"]
[null,"25","Cundinamarca","25120","Cabrera","Cundinamarca-Cabrera"]
[null,"25","Cundinamarca","25123","Cachipay","Cundinamarca-Cachipay"]
[null,"25","Cundinamarca","25126","Cajicá","Cundinamarca-Cajicá"]
[null,"25","Cundinamarca","25148","Caparrapí","Cundinamarca-Caparrapí"]
[null,"25","Cundinamarca","25151","Caqueza","Cundinamarca-Caqueza"]
[null,"25","Cundinamarca","25154","Carmen de Carupa","Cundinamarca-Carmen de Carupa"]
[null,"25","Cundinamarca","25168","Chaguaní","Cundinamarca-Chaguaní"]
[null,"25","Cundinamarca","25175","Chia","Cundinamarca-Chia"]
[null,"25","Cundinamarca","25178","Chipaque","Cundinamarca-Chipaque"]
[null,"25","Cundinamarca","25181","Choachí","Cundinamarca-Choachí"]
[null,"25","Cundinamarca","25183","Chocontá","Cundinamarca-Chocontá"]
[null,"25","Cundinamarca","25200","Cogua","Cundinamarca-Cogua"]
[null,"25","Cundinamarca","25214","Cota","Cundinamarca-Cota"]
[null,"25","Cundinamarca","25224","Cucunubá","Cundinamarca-Cucunubá"]
[null,"25","Cundinamarca","25245","El Colegio","Cundinamarca-El Colegio"]
[null,"25","Cundinamarca","25258","El Peñón","Cundinamarca-El Peñón"]
[null,"25","Cundinamarca","25260","El Rosal","Cundinamarca-El Rosal"]
[null,"25","Cundinamarca","25269","Facatativa","Cundinamarca-Facatativa"]
[null,"25","Cundinamarca","25279","Fómeque","Cundinamarca-Fómeque"]
[null,"25","Cundinamarca","25281","Fosca","Cundinamarca-Fosca"]
[null,"25","Cundinamarca","25286","Funza","Cundinamarca-Funza"]
[null,"25","Cundinamarca","25288","Fúquene","Cundinamarca-Fúquene"]
[null,"25","Cundinamarca","25290","Fusagasuga","Cundinamarca-Fusagasuga"]
[null,"25","Cundinamarca","25293","Gachalá","Cundinamarca-Gachalá"]
[null,"25","Cundinamarca","25295","Gachancipá","Cundinamarca-Gachancipá"]
[null,"25","Cundinamarca","25297","Gacheta","Cundinamarca-Gacheta"]
[null,"25","Cundinamarca","25299","Gama","Cundinamarca-Gama"]
[null,"25","Cundinamarca","25307","Girardot","Cundinamarca-Girardot"]
[null,"25","Cundinamarca","25312","Granada","Cundinamarca-Granada"]
[null,"25","Cundinamarca","25317","Guachetá","Cundinamarca-Guachetá"]
[null,"25","Cundinamarca","25320","Guaduas","Cundinamarca-Guaduas"]
[null,"25","Cundinamarca","25322","Guasca","Cundinamarca-Guasca"]
[null,"25","Cundinamarca","25324","Guataquí","Cundinamarca-Guataquí"]
[null,"25","Cundinamarca","25326","Guatavita","Cundinamarca-Guatavita"]
[null,"25","Cundinamarca","25328","Guayabal de Siquima","Cundinamarca-Guayabal de Siquima"]
[null,"25","Cundinamarca","25335","Guayabetal","Cundinamarca-Guayabetal"]
[null,"25","Cundinamarca","25339","Gutiérrez","Cundinamarca-Gutiérrez"]
[null,"25","Cundinamarca","25368","Jerusalén","Cundinamarca-Jerusalén"]
[null,"25","Cundinamarca","25372","Junín","Cundinamarca-Junín"]
[null,"25","Cundinamarca","25377","La Calera","Cundinamarca-La Calera"]
[null,"25","Cundinamarca","25386","La Mesa","Cundinamarca-La Mesa"]
[null,"25","Cundinamarca","25394","La Palma","Cundinamarca-La Palma"]
[null,"25","Cundinamarca","25398","La Peña","Cundinamarca-La Peña"]
[null,"25","Cundinamarca","25402","La Vega - Cundinam",{"$f":"CONCATENATE(C579,\"-\",E579)","v":"Cundinamarca-La Vega - Cundinam"}]
[null,"25","Cundinamarca","25407","Lenguazaque","Cundinamarca-Lenguazaque"]
[null,"25","Cundinamarca","25426","Machetá","Cundinamarca-Machetá"]
[null,"25","Cundinamarca","25430","Madrid","Cundinamarca-Madrid"]
[null,"25","Cundinamarca","25436","Manta","Cundinamarca-Manta"]
[null,"25","Cundinamarca","25438","Medina","Cundinamarca-Medina"]
[null,"25","Cundinamarca","25473","Mosquera - Cundinam","Cundinamarca-Mosquera - Cundinam"]
[null,"25","Cundinamarca","25483","Nariño - Cundinam","Cundinamarca-Nariño - Cundinam"]
[null,"25","Cundinamarca","25486","Nemocón","Cundinamarca-Nemocón"]
[null,"25","Cundinamarca","25488","Nilo","Cundinamarca-Nilo"]
[null,"25","Cundinamarca","25489","Nimaima","Cundinamarca-Nimaima"]
[null,"25","Cundinamarca","25491","Nocaima","Cundinamarca-Nocaima"]
[null,"25","Cundinamarca","25506","Ospina Pérez (Venecia)","Cundinamarca-Ospina Pérez (Venecia)"]
[null,"25","Cundinamarca","25513","Pacho","Cundinamarca-Pacho"]
[null,"25","Cundinamarca","25518","Paime","Cundinamarca-Paime"]
[null,"25","Cundinamarca","25524","Pandi","Cundinamarca-Pandi"]
[null,"25","Cundinamarca","25530","Paratebueno","Cundinamarca-Paratebueno"]
[null,"25","Cundinamarca","25535","Pasca","Cundinamarca-Pasca"]
[null,"25","Cundinamarca","25572","Puerto Salgar","Cundinamarca-Puerto Salgar"]
[null,"25","Cundinamarca","25580","Pulí","Cundinamarca-Pulí"]
[null,"25","Cundinamarca","25592","Quebradanegra","Cundinamarca-Quebradanegra"]
[null,"25","Cundinamarca","25594","Quetame","Cundinamarca-Quetame"]
[null,"25","Cundinamarca","25596","Quipile","Cundinamarca-Quipile"]
[null,"25","Cundinamarca","25599","Rafael Reyes (Apulo)","Cundinamarca-Rafael Reyes (Apulo)"]
[null,"25","Cundinamarca","25612","Ricaurte - Cundinam","Cundinamarca-Ricaurte - Cundinam"]
[null,"25","Cundinamarca","25645","San  Antonio del  Tequendama","Cundinamarca-San  Antonio del  Tequendama"]
[null,"25","Cundinamarca","25649","San Bernardo - Cundinam","Cundinamarca-San Bernardo - Cundinam"]
[null,"25","Cundinamarca","25653","San Cayetano - Cundinam","Cundinamarca-San Cayetano - Cundinam"]
[null,"25","Cundinamarca","25658","San Francisco","Cundinamarca-San Francisco"]
[null,"25","Cundinamarca","25662","San Juan de Rioseco","Cundinamarca-San Juan de Rioseco"]
[null,"25","Cundinamarca","25718","Sasaima","Cundinamarca-Sasaima"]
[null,"25","Cundinamarca","25736","Sesquilé","Cundinamarca-Sesquilé"]
[null,"25","Cundinamarca","25740","Sibaté","Cundinamarca-Sibaté"]
[null,"25","Cundinamarca","25743","Silvania","Cundinamarca-Silvania"]
[null,"25","Cundinamarca","25745","Simijaca","Cundinamarca-Simijaca"]
[null,"25","Cundinamarca","25754","Soacha","Cundinamarca-Soacha"]
[null,"25","Cundinamarca","25758","Sopo","Cundinamarca-Sopo"]
[null,"25","Cundinamarca","25769","Subachoque","Cundinamarca-Subachoque"]
[null,"25","Cundinamarca","25772","Suesca","Cundinamarca-Suesca"]
[null,"25","Cundinamarca","25777","Supatá","Cundinamarca-Supatá"]
[null,"25","Cundinamarca","25779","Susa","Cundinamarca-Susa"]
[null,"25","Cundinamarca","25781","Sutatausa","Cundinamarca-Sutatausa"]
[null,"25","Cundinamarca","25785","Tabio","Cundinamarca-Tabio"]
[null,"25","Cundinamarca","25793","Tausa","Cundinamarca-Tausa"]
[null,"25","Cundinamarca","25797","Tena","Cundinamarca-Tena"]
[null,"25","Cundinamarca","25799","Tenjo","Cundinamarca-Tenjo"]
[null,"25","Cundinamarca","25805","Tibacuy","Cundinamarca-Tibacuy"]
[null,"25","Cundinamarca","25807","Tibirita","Cundinamarca-Tibirita"]
[null,"25","Cundinamarca","25815","Tocaima","Cundinamarca-Tocaima"]
[null,"25","Cundinamarca","25817","Tocancipá","Cundinamarca-Tocancipá"]
[null,"25","Cundinamarca","25823","Topaipí","Cundinamarca-Topaipí"]
[null,"25","Cundinamarca","25839","Ubalá","Cundinamarca-Ubalá"]
[null,"25","Cundinamarca","25841","Ubaque","Cundinamarca-Ubaque"]
[null,"25","Cundinamarca","25843","Ubaté","Cundinamarca-Ubaté"]
[null,"25","Cundinamarca","25890","Ulala","Cundinamarca-Ulala"]
[null,"25","Cundinamarca","25845","Une","Cundinamarca-Une"]
[null,"25","Cundinamarca","25851","Utica","Cundinamarca-Utica"]
[null,"25","Cundinamarca","25862","Vergara","Cundinamarca-Vergara"]
[null,"25","Cundinamarca","25867","Viani","Cundinamarca-Viani"]
[null,"25","Cundinamarca","25871","Villagomez","Cundinamarca-Villagomez"]
[null,"25","Cundinamarca","25873","Villapinzón","Cundinamarca-Villapinzón"]
[null,"25","Cundinamarca","25875","Villeta","Cundinamarca-Villeta"]
[null,"25","Cundinamarca","25878","Viota","Cundinamarca-Viota"]
[null,"25","Cundinamarca","25885","Yacopí","Cundinamarca-Yacopí"]
[null,"25","Cundinamarca","25898","Zipacón",{"$f":"CONCATENATE(C643,\"-\",E643)","v":"Cundinamarca-Zipacón"}]
[null,"25","Cundinamarca","25899","Zipaquirá","Cundinamarca-Zipaquirá"]
[null,"94","Guainía","94343","CD. Barranco Minas","Guainía-CD. Barranco Minas"]
[null,"94","Guainía","94886","CD. Cacahual","Guainía-CD. Cacahual"]
[null,"94","Guainía","94885","CD. La Guadalupe","Guainía-CD. La Guadalupe"]
[null,"94","Guainía","94663","CD. Mapiripana41","Guainía-CD. Mapiripana41"]
[null,"94","Guainía","94888","CD. Morichal Nuevo","Guainía-CD. Morichal Nuevo"]
[null,"94","Guainía","94887","CD. Pana Pana y otros","Guainía-CD. Pana Pana y otros"]
[null,"94","Guainía","94884","CD. Puerto Colombia","Guainía-CD. Puerto Colombia"]
[null,"94","Guainía","94883","CD. San Felipe","Guainía-CD. San Felipe"]
[null,"94","Guainía","94001","Puerto Inirida","Guainía-Puerto Inirida"]
[null,"95","Guaviare","95015","Calamar","Guaviare-Calamar"]
[null,"95","Guaviare","95025","El Retorno","Guaviare-El Retorno"]
[null,"95","Guaviare","95200","Miraflores","Guaviare-Miraflores"]
[null,"95","Guaviare","95001","San José del Guaviare","Guaviare-San José del Guaviare"]
[null,"41","Huila","41006","Acevedo","Huila-Acevedo"]
[null,"41","Huila","41013","Agrado","Huila-Agrado"]
[null,"41","Huila","41016","Aipe","Huila-Aipe"]
[null,"41","Huila","41020","Algeciras","Huila-Algeciras"]
[null,"41","Huila","41026","Altamira","Huila-Altamira"]
[null,"41","Huila","41078","Baraya","Huila-Baraya"]
[null,"41","Huila","41132","Campoalegre","Huila-Campoalegre"]
[null,"41","Huila","41206","Colombia","Huila-Colombia"]
[null,"41","Huila","41244","Elias","Huila-Elias"]
[null,"41","Huila","41298","Garzón","Huila-Garzón"]
[null,"41","Huila","41306","Gigante","Huila-Gigante"]
[null,"41","Huila","41319","Guadalupe","Huila-Guadalupe"]
[null,"41","Huila","41349","Hobo","Huila-Hobo"]
[null,"41","Huila","41357","Iquira","Huila-Iquira"]
[null,"41","Huila","41359","Isnos","Huila-Isnos"]
[null,"41","Huila","41378","La Argentina","Huila-La Argentina"]
[null,"41","Huila","41396","La Plata","Huila-La Plata"]
[null,"41","Huila","41483","Nataga","Huila-Nataga"]
[null,"41","Huila","41001","Neiva","Huila-Neiva"]
[null,"41","Huila","41503","Oporapa","Huila-Oporapa"]
[null,"41","Huila","41518","Paicol","Huila-Paicol"]
[null,"41","Huila","41524","Palermo","Huila-Palermo"]
[null,"41","Huila","41530","Palestina","Huila-Palestina"]
[null,"41","Huila","41548","Pital","Huila-Pital"]
[null,"41","Huila","41551","Pitalito","Huila-Pitalito"]
[null,"41","Huila","41615","Rivera","Huila-Rivera"]
[null,"41","Huila","41660","Saladoblanco","Huila-Saladoblanco"]
[null,"41","Huila","41668","San Agustín","Huila-San Agustín"]
[null,"41","Huila","41676","Santa Maria","Huila-Santa Maria"]
[null,"41","Huila","41770","Suaza","Huila-Suaza"]
[null,"41","Huila","41791","Tarqui","Huila-Tarqui"]
[null,"41","Huila","41799","Tello","Huila-Tello"]
[null,"41","Huila","41801","Teruel","Huila-Teruel"]
[null,"41","Huila","41797","Tesalia","Huila-Tesalia"]
[null,"41","Huila","41807","Timana","Huila-Timana"]
[null,"41","Huila","41872","Villavieja","Huila-Villavieja"]
[null,"41","Huila","41885","Yaguara","Huila-Yaguara"]
[null,"44","La Guajira","44035","Albania42","La Guajira-Albania42"]
[null,"44","La Guajira","44078","Barrancas","La Guajira-Barrancas"]
[null,"44","La Guajira","44090","Dibulla43","La Guajira-Dibulla43"]
[null,"44","La Guajira","44098","Distraccion44","La Guajira-Distraccion44"]
[null,"44","La Guajira","44110","El Molino","La Guajira-El Molino"]
[null,"44","La Guajira","44279","Fonseca","La Guajira-Fonseca"]
[null,"44","La Guajira","44378","Hatonuevo45","La Guajira-Hatonuevo45"]
[null,"44","La Guajira","44420","La Jagua del Pilar46","La Guajira-La Jagua del Pilar46"]
[null,"44","La Guajira","44430","Maicao","La Guajira-Maicao"]
[null,"44","La Guajira","44560","Manaure","La Guajira-Manaure"]
[null,"44","La Guajira","44001","Riohacha","La Guajira-Riohacha"]
[null,"44","La Guajira","44650","San Juan del Cesar","La Guajira-San Juan del Cesar"]
[null,"44","La Guajira","44847","Uribia",{"$f":"CONCATENATE(C707,\"-\",E707)","v":"La Guajira-Uribia"}]
[null,"44","La Guajira","44855","Urumita","La Guajira-Urumita"]
[null,"44","La Guajira","44874","Villanueva","La Guajira-Villanueva"]
[null,"47","Magdalena","47030","Algarrobo47","Magdalena-Algarrobo47"]
[null,"47","Magdalena","47053","Aracataca","Magdalena-Aracataca"]
[null,"47","Magdalena","47058","Ariguani","Magdalena-Ariguani"]
[null,"47","Magdalena","47161","Cerro San Antonio","Magdalena-Cerro San Antonio"]
[null,"47","Magdalena","47170","Chivolo","Magdalena-Chivolo"]
[null,"47","Magdalena","47189","Cienaga","Magdalena-Cienaga"]
[null,"47","Magdalena","47205","Concordia48","Magdalena-Concordia48"]
[null,"47","Magdalena","47245","El Banco","Magdalena-El Banco"]
[null,"47","Magdalena","47258","El Piñon","Magdalena-El Piñon"]
[null,"47","Magdalena","47268","El Reten49","Magdalena-El Reten49"]
[null,"47","Magdalena","47288","Fundacion","Magdalena-Fundacion"]
[null,"47","Magdalena","47318","Guamal","Magdalena-Guamal"]
[null,"47","Magdalena","47460","Nueva Granada50","Magdalena-Nueva Granada50"]
[null,"47","Magdalena","47541","Pedraza","Magdalena-Pedraza"]
[null,"47","Magdalena","47545","Pijiño Del Carmen51","Magdalena-Pijiño Del Carmen51"]
[null,"47","Magdalena","47551","Pivijay","Magdalena-Pivijay"]
[null,"47","Magdalena","47555","Plato","Magdalena-Plato"]
[null,"47","Magdalena","47570","Puebloviejo","Magdalena-Puebloviejo"]
[null,"47","Magdalena","47605","Remolino","Magdalena-Remolino"]
[null,"47","Magdalena","47660","Sabanas De San Angel52","Magdalena-Sabanas De San Angel52"]
[null,"47","Magdalena","47675","Salamina","Magdalena-Salamina"]
[null,"47","Magdalena","47692","San Sebastian De Buenavista","Magdalena-San Sebastian De Buenavista"]
[null,"47","Magdalena","47703","San Zenon","Magdalena-San Zenon"]
[null,"47","Magdalena","47707","Santa Ana","Magdalena-Santa Ana"]
[null,"47","Magdalena","47720","Santa Barbara De Pinto53","Magdalena-Santa Barbara De Pinto53"]
[null,"47","Magdalena","47001","Santa Marta","Magdalena-Santa Marta"]
[null,"47","Magdalena","47745","Sitionuevo","Magdalena-Sitionuevo"]
[null,"47","Magdalena","47798","Tenerife","Magdalena-Tenerife"]
[null,"47","Magdalena","47960","Zapayan54","Magdalena-Zapayan54"]
[null,"47","Magdalena","47980","Zona Bananera55","Magdalena-Zona Bananera55"]
[null,"50","Meta","50006","Acacias","Meta-Acacias"]
[null,"50","Meta","50110","Barranca de Upia","Meta-Barranca de Upia"]
[null,"50","Meta","50124","Cabuyaro","Meta-Cabuyaro"]
[null,"50","Meta","50150","Castilla La Nueva","Meta-Castilla La Nueva"]
[null,"50","Meta","50223","Cubarral","Meta-Cubarral"]
[null,"50","Meta","50226","Cumaral","Meta-Cumaral"]
[null,"50","Meta","50245","El Calvario","Meta-El Calvario"]
[null,"50","Meta","50251","El Castillo","Meta-El Castillo"]
[null,"50","Meta","50270","El Dorado","Meta-El Dorado"]
[null,"50","Meta","50287","Fuente de Oro","Meta-Fuente de Oro"]
[null,"50","Meta","50313","Granada","Meta-Granada"]
[null,"50","Meta","50318","Guamal","Meta-Guamal"]
[null,"50","Meta","50350","La Macarena","Meta-La Macarena"]
[null,"50","Meta","50370","La Uribe","Meta-La Uribe"]
[null,"50","Meta","50400","Lejanías","Meta-Lejanías"]
[null,"50","Meta","50325","Mapiripán y pto Elvira","Meta-Mapiripán y pto Elvira"]
[null,"50","Meta","50330","Mesetas","Meta-Mesetas"]
[null,"50","Meta","50450","Puerto Concordia","Meta-Puerto Concordia"]
[null,"50","Meta","50568","Puerto Gaitán","Meta-Puerto Gaitán"]
[null,"50","Meta","50577","Puerto Lleras","Meta-Puerto Lleras"]
[null,"50","Meta","50573","Puerto López","Meta-Puerto López"]
[null,"50","Meta","50590","Puerto Rico","Meta-Puerto Rico"]
[null,"50","Meta","50606","Restrepo","Meta-Restrepo"]
[null,"50","Meta","50683","San  Juan de Arama","Meta-San  Juan de Arama"]
[null,"50","Meta","50680","San Carlos Guaroa","Meta-San Carlos Guaroa"]
[null,"50","Meta","50686","San Juanito","Meta-San Juanito"]
[null,"50","Meta","50689","San Martín","Meta-San Martín"]
[null,"50","Meta","50001","Villavicencio","Meta-Villavicencio"]
[null,"50","Meta","50711","Vista Hermosa","Meta-Vista Hermosa"]
[null,"52","Nariño","52019","Alban","Nariño-Alban"]
[null,"52","Nariño","52022","Aldana","Nariño-Aldana"]
[null,"52","Nariño","52036","Ancuya",{"$f":"CONCATENATE(C771,\"-\",E771)","v":"Nariño-Ancuya"}]
[null,"52","Nariño","52051","Arboleda","Nariño-Arboleda"]
[null,"52","Nariño","52079","Barbacoas ","Nariño-Barbacoas "]
[null,"52","Nariño","52083","Belen","Nariño-Belen"]
[null,"52","Nariño","52110","Buesaco","Nariño-Buesaco"]
[null,"52","Nariño","52240","Chachagui","Nariño-Chachagui"]
[null,"52","Nariño","52203","Colon(Genova)","Nariño-Colon(Genova)"]
[null,"52","Nariño","52207","Consaca","Nariño-Consaca"]
[null,"52","Nariño","52210","Contadero","Nariño-Contadero"]
[null,"52","Nariño","52215","Cordoba","Nariño-Cordoba"]
[null,"52","Nariño","52224","Cuaspud","Nariño-Cuaspud"]
[null,"52","Nariño","52227","Cumbal","Nariño-Cumbal"]
[null,"52","Nariño","52233","Cumbitara","Nariño-Cumbitara"]
[null,"52","Nariño","52250","El Charco","Nariño-El Charco"]
[null,"52","Nariño","52254","El Peñol56","Nariño-El Peñol56"]
[null,"52","Nariño","52256","El Rosario","Nariño-El Rosario"]
[null,"52","Nariño","52258","El Tablon","Nariño-El Tablon"]
[null,"52","Nariño","52260","El Tambo","Nariño-El Tambo"]
[null,"52","Nariño","52287","Funes","Nariño-Funes"]
[null,"52","Nariño","52317","Guachucal","Nariño-Guachucal"]
[null,"52","Nariño","52320","Guaitarilla","Nariño-Guaitarilla"]
[null,"52","Nariño","52323","Gualmatan","Nariño-Gualmatan"]
[null,"52","Nariño","52352","Iles","Nariño-Iles"]
[null,"52","Nariño","52354","Imues","Nariño-Imues"]
[null,"52","Nariño","52356","Ipiales","Nariño-Ipiales"]
[null,"52","Nariño","52378","La Cruz","Nariño-La Cruz"]
[null,"52","Nariño","52381","La Florida","Nariño-La Florida"]
[null,"52","Nariño","52385","La Llanada","Nariño-La Llanada"]
[null,"52","Nariño","52390","La Tola","Nariño-La Tola"]
[null,"52","Nariño","52399","La Union","Nariño-La Union"]
[null,"52","Nariño","52405","Leiva","Nariño-Leiva"]
[null,"52","Nariño","52411","Linares","Nariño-Linares"]
[null,"52","Nariño","52418","Los Andes","Nariño-Los Andes"]
[null,"52","Nariño","52427","Magui","Nariño-Magui"]
[null,"52","Nariño","52435","Mallama","Nariño-Mallama"]
[null,"52","Nariño","52473","Mosquera","Nariño-Mosquera"]
[null,"52","Nariño","52480","Nariño57 (ver Pasto)","Nariño-Nariño57 (ver Pasto)"]
[null,"52","Nariño","52490","Olaya Herrera","Nariño-Olaya Herrera"]
[null,"52","Nariño","52506","Ospina","Nariño-Ospina"]
[null,"52","Nariño","52001","Pasto","Nariño-Pasto"]
[null,"52","Nariño","52520","Pizarro","Nariño-Pizarro"]
[null,"52","Nariño","52540","Policarpa","Nariño-Policarpa"]
[null,"52","Nariño","52560","Potosi","Nariño-Potosi"]
[null,"52","Nariño","52565","Providencia","Nariño-Providencia"]
[null,"52","Nariño","52573","Puerres","Nariño-Puerres"]
[null,"52","Nariño","52585","Pupiales","Nariño-Pupiales"]
[null,"52","Nariño","52612","Ricaurte","Nariño-Ricaurte"]
[null,"52","Nariño","52621","Roberto Payan + San Juan Costa","Nariño-Roberto Payan + San Juan Costa"]
[null,"52","Nariño","52678","Samaniego","Nariño-Samaniego"]
[null,"52","Nariño","52685","San Bernardo","Nariño-San Bernardo"]
[null,"52","Nariño","52687","San Lorenzo","Nariño-San Lorenzo"]
[null,"52","Nariño","52693","San Pablo","Nariño-San Pablo"]
[null,"52","Nariño","52694","San Pedro De Cartago","Nariño-San Pedro De Cartago"]
[null,"52","Nariño","52683","Sandona","Nariño-Sandona"]
[null,"52","Nariño","52696","Santa Barbara","Nariño-Santa Barbara"]
[null,"52","Nariño","52699","Santacruz","Nariño-Santacruz"]
[null,"52","Nariño","52720","Sapuyes","Nariño-Sapuyes"]
[null,"52","Nariño","52786","Taminango","Nariño-Taminango"]
[null,"52","Nariño","52788","Tangua","Nariño-Tangua"]
[null,"52","Nariño","52835","Tumaco + Chacal","Nariño-Tumaco + Chacal"]
[null,"52","Nariño","52838","Tuquerres","Nariño-Tuquerres"]
[null,"52","Nariño","52885","Yacuanquer","Nariño-Yacuanquer"]
[null,"54","Norte de Santander","54003","Abrego","Norte de Santander-Abrego"]
[null,"54","Norte de Santander","54051","Arboledas","Norte de Santander-Arboledas"]
[null,"54","Norte de Santander","54099","Bochalema",{"$f":"CONCATENATE(C835,\"-\",E835)","v":"Norte de Santander-Bochalema"}]
[null,"54","Norte de Santander","54109","Bucarasica","Norte de Santander-Bucarasica"]
[null,"54","Norte de Santander","54128","Cáchira","Norte de Santander-Cáchira"]
[null,"54","Norte de Santander","54125","Cácota","Norte de Santander-Cácota"]
[null,"54","Norte de Santander","54172","Chinácota","Norte de Santander-Chinácota"]
[null,"54","Norte de Santander","54174","Chitagá","Norte de Santander-Chitagá"]
[null,"54","Norte de Santander","54206","Convención","Norte de Santander-Convención"]
[null,"54","Norte de Santander","54001","Cúcuta","Norte de Santander-Cúcuta"]
[null,"54","Norte de Santander","54223","Cucutilla","Norte de Santander-Cucutilla"]
[null,"54","Norte de Santander","54239","Durania","Norte de Santander-Durania"]
[null,"54","Norte de Santander","54245","El Carmen","Norte de Santander-El Carmen"]
[null,"54","Norte de Santander","54250","El Tarra","Norte de Santander-El Tarra"]
[null,"54","Norte de Santander","54261","El Zulia","Norte de Santander-El Zulia"]
[null,"54","Norte de Santander","54313","Gramalote","Norte de Santander-Gramalote"]
[null,"54","Norte de Santander","54344","Hacari","Norte de Santander-Hacari"]
[null,"54","Norte de Santander","54347","Herrán","Norte de Santander-Herrán"]
[null,"54","Norte de Santander","54385","La Esperanza58","Norte de Santander-La Esperanza58"]
[null,"54","Norte de Santander","54398","La Playa","Norte de Santander-La Playa"]
[null,"54","Norte de Santander","54377","Labateca","Norte de Santander-Labateca"]
[null,"54","Norte de Santander","54405","Los Patios","Norte de Santander-Los Patios"]
[null,"54","Norte de Santander","54418","Lourdes","Norte de Santander-Lourdes"]
[null,"54","Norte de Santander","54480","Mutiscua","Norte de Santander-Mutiscua"]
[null,"54","Norte de Santander","54498","Ocaña","Norte de Santander-Ocaña"]
[null,"54","Norte de Santander","54518","Pamplona","Norte de Santander-Pamplona"]
[null,"54","Norte de Santander","54520","Pamplonita","Norte de Santander-Pamplonita"]
[null,"54","Norte de Santander","54553","Puerto Santander59","Norte de Santander-Puerto Santander59"]
[null,"54","Norte de Santander","54599","Ragonvalia","Norte de Santander-Ragonvalia"]
[null,"54","Norte de Santander","54660","Salazar","Norte de Santander-Salazar"]
[null,"54","Norte de Santander","54670","San Calixto","Norte de Santander-San Calixto"]
[null,"54","Norte de Santander","54673","San Cayetano","Norte de Santander-San Cayetano"]
[null,"54","Norte de Santander","54680","Santiago","Norte de Santander-Santiago"]
[null,"54","Norte de Santander","54720","Sardinata","Norte de Santander-Sardinata"]
[null,"54","Norte de Santander","54743","Silos","Norte de Santander-Silos"]
[null,"54","Norte de Santander","54800","Teorama","Norte de Santander-Teorama"]
[null,"54","Norte de Santander","54810","Tibú","Norte de Santander-Tibú"]
[null,"54","Norte de Santander","54820","Toledo","Norte de Santander-Toledo"]
[null,"54","Norte de Santander","54874","Villa del Rosario","Norte de Santander-Villa del Rosario"]
[null,"54","Norte de Santander","54871","Villacaro","Norte de Santander-Villacaro"]
[null,86,"Putumayo","86219","Colón","Putumayo-Colón"]
[null,86,"Putumayo","86001","Mocoa","Putumayo-Mocoa"]
[null,86,"Putumayo","86320","Orito","Putumayo-Orito"]
[null,86,"Putumayo","86568","Puerto Asís","Putumayo-Puerto Asís"]
[null,86,"Putumayo","86569","Puerto Caycedo","Putumayo-Puerto Caycedo"]
[null,86,"Putumayo","86571","Puerto Guzmán","Putumayo-Puerto Guzmán"]
[null,86,"Putumayo","86573","Puerto Leguízamo","Putumayo-Puerto Leguízamo"]
[null,86,"Putumayo","86755","San Francisco","Putumayo-San Francisco"]
[null,86,"Putumayo","86757","San Miguel60","Putumayo-San Miguel60"]
[null,86,"Putumayo","86760","Santiago","Putumayo-Santiago"]
[null,86,"Putumayo","86749","Sibundoy","Putumayo-Sibundoy"]
[null,86,"Putumayo","86865","Valle del Guamuez","Putumayo-Valle del Guamuez"]
[null,86,"Putumayo","86885","Villagarzón","Putumayo-Villagarzón"]
[null,"63","Quindío","63001","Armenia","Quindío-Armenia"]
[null,"63","Quindío","63111","Buenavista","Quindío-Buenavista"]
[null,"63","Quindío","63130","Calarcá","Quindío-Calarcá"]
[null,"63","Quindío","63190","Circasia","Quindío-Circasia"]
[null,"63","Quindío","63212","Córdoba","Quindío-Córdoba"]
[null,"63","Quindío","63272","Filandia","Quindío-Filandia"]
[null,"63","Quindío","63302","Génova","Quindío-Génova"]
[null,"63","Quindío","63401","La Tebaida","Quindío-La Tebaida"]
[null,"63","Quindío","63470","Montenegro","Quindío-Montenegro"]
[null,"63","Quindío","63548","Pijao","Quindío-Pijao"]
[null,"63","Quindío","63594","Quimbaya","Quindío-Quimbaya"]
[null,"63","Quindío","63690","Salento","Quindío-Salento"]
[null,"66","Risaralda","66045","Apia","Risaralda-Apia"]
[null,"66","Risaralda","66075","Balboa",{"$f":"CONCATENATE(C899,\"-\",E899)","v":"Risaralda-Balboa"}]
[null,"66","Risaralda","66088","Belén de Umbría","Risaralda-Belén de Umbría"]
[null,"66","Risaralda","66170","Dos Quebradas","Risaralda-Dos Quebradas"]
[null,"66","Risaralda","66318","Guatica","Risaralda-Guatica"]
[null,"66","Risaralda","66383","La Celia","Risaralda-La Celia"]
[null,"66","Risaralda","66400","La Virginia","Risaralda-La Virginia"]
[null,"66","Risaralda","66440","Marsella","Risaralda-Marsella"]
[null,"66","Risaralda","66456","Mistrato","Risaralda-Mistrato"]
[null,"66","Risaralda","66001","Pereira","Risaralda-Pereira"]
[null,"66","Risaralda","66572","Pueblo Rico","Risaralda-Pueblo Rico"]
[null,"66","Risaralda","66594","Quinchía","Risaralda-Quinchía"]
[null,"66","Risaralda","66682","Santa Rosa de Cabal","Risaralda-Santa Rosa de Cabal"]
[null,"66","Risaralda","66687","Santuario","Risaralda-Santuario"]
[null,"88","San Andres y Providencia","88564","Providencia","San Andres y Providencia-Providencia"]
[null,"88","San Andres y Providencia","88001","San Andrés","San Andres y Providencia-San Andrés"]
[null,"68","Santander","68013","Aguada","Santander-Aguada"]
[null,"68","Santander","68020","Albania","Santander-Albania"]
[null,"68","Santander","68051","Aratoca","Santander-Aratoca"]
[null,"68","Santander","68077","Barbosa","Santander-Barbosa"]
[null,"68","Santander","68079","Barichara","Santander-Barichara"]
[null,"68","Santander","68081","Barrancabermeja","Santander-Barrancabermeja"]
[null,"68","Santander","68092","Betulia","Santander-Betulia"]
[null,"68","Santander","68101","Bolívar","Santander-Bolívar"]
[null,"68","Santander","68001","Bucaramanga","Santander-Bucaramanga"]
[null,"68","Santander","68121","Cabrera","Santander-Cabrera"]
[null,"68","Santander","68132","California","Santander-California"]
[null,"68","Santander","68147","Capitanejo","Santander-Capitanejo"]
[null,"68","Santander","68152","Carcasi","Santander-Carcasi"]
[null,"68","Santander","68160","Cepita","Santander-Cepita"]
[null,"68","Santander","68162","Cerrito","Santander-Cerrito"]
[null,"68","Santander","68167","Charalá","Santander-Charalá"]
[null,"68","Santander","68169","Charta","Santander-Charta"]
[null,"68","Santander","68176","Chima","Santander-Chima"]
[null,"68","Santander","68179","Chipatá","Santander-Chipatá"]
[null,"68","Santander","68190","Cimitarra","Santander-Cimitarra"]
[null,"68","Santander","68207","Concepción","Santander-Concepción"]
[null,"68","Santander","68209","Confines","Santander-Confines"]
[null,"68","Santander","68211","Contratación","Santander-Contratación"]
[null,"68","Santander","68217","Coromoro","Santander-Coromoro"]
[null,"68","Santander","68229","Curití","Santander-Curití"]
[null,"68","Santander","68235","El Carmen","Santander-El Carmen"]
[null,"68","Santander","68245","El Guacamayo","Santander-El Guacamayo"]
[null,"68","Santander","68250","El Peñón","Santander-El Peñón"]
[null,"68","Santander","68255","El Playón","Santander-El Playón"]
[null,"68","Santander","68264","Encino","Santander-Encino"]
[null,"68","Santander","68266","Enciso","Santander-Enciso"]
[null,"68","Santander","68271","Florián","Santander-Florián"]
[null,"68","Santander","68276","Floridablanca","Santander-Floridablanca"]
[null,"68","Santander","68296","Galán","Santander-Galán"]
[null,"68","Santander","68298","Gambita","Santander-Gambita"]
[null,"68","Santander","68307","Girón","Santander-Girón"]
[null,"68","Santander","68318","Guaca","Santander-Guaca"]
[null,"68","Santander","68320","Guadalupe","Santander-Guadalupe"]
[null,"68","Santander","68322","Guapota","Santander-Guapota"]
[null,"68","Santander","68324","Guavatá","Santander-Guavatá"]
[null,"68","Santander","68327","Guepsa","Santander-Guepsa"]
[null,"68","Santander","68344","Hato","Santander-Hato"]
[null,"68","Santander","68368","Jesús Maria","Santander-Jesús Maria"]
[null,"68","Santander","68370","Jordán","Santander-Jordán"]
[null,"68","Santander","68377","La Belleza","Santander-La Belleza"]
[null,"68","Santander","68397","La Paz","Santander-La Paz"]
[null,"68","Santander","68385","Landazuri","Santander-Landazuri"]
[null,"68","Santander","68406","Lebrija","Santander-Lebrija"]
[null,"68","Santander","68418","Los Santos","Santander-Los Santos"]
[null,"68","Santander","68425","Macaravita",{"$f":"CONCATENATE(C963,\"-\",E963)","v":"Santander-Macaravita"}]
[null,"68","Santander","68432","Málaga","Santander-Málaga"]
[null,"68","Santander","68444","Matanza","Santander-Matanza"]
[null,"68","Santander","68464","Mogotes","Santander-Mogotes"]
[null,"68","Santander","68468","Molagavita","Santander-Molagavita"]
[null,"68","Santander","68498","Ocamonte","Santander-Ocamonte"]
[null,"68","Santander","68500","Oiba","Santander-Oiba"]
[null,"68","Santander","68502","Onzaga","Santander-Onzaga"]
[null,"68","Santander","68522","Palmar","Santander-Palmar"]
[null,"68","Santander","68524","Palmas del Socorro","Santander-Palmas del Socorro"]
[null,"68","Santander","68533","Páramo","Santander-Páramo"]
[null,"68","Santander","68547","Piedecuesta","Santander-Piedecuesta"]
[null,"68","Santander","68549","Pinchote","Santander-Pinchote"]
[null,"68","Santander","68572","Puente Nacional","Santander-Puente Nacional"]
[null,"68","Santander","68573","Puerto Parra","Santander-Puerto Parra"]
[null,"68","Santander","68575","Puerto Wilches","Santander-Puerto Wilches"]
[null,"68","Santander","68615","Rionegro","Santander-Rionegro"]
[null,"68","Santander","68655","Sabana de Torres","Santander-Sabana de Torres"]
[null,"68","Santander","68669","San Andrés","Santander-San Andrés"]
[null,"68","Santander","68673","San Benito","Santander-San Benito"]
[null,"68","Santander","68679","San Gil","Santander-San Gil"]
[null,"68","Santander","68682","San Joaquín","Santander-San Joaquín"]
[null,"68","Santander","68684","San José de Miranda","Santander-San José de Miranda"]
[null,"68","Santander","68686","San Miguel","Santander-San Miguel"]
[null,"68","Santander","68689","San Vicente de Chucurí","Santander-San Vicente de Chucurí"]
[null,"68","Santander","68705","Santa Bárbara","Santander-Santa Bárbara"]
[null,"68","Santander","68720","Santa Helena","Santander-Santa Helena"]
[null,"68","Santander","68745","Simacota","Santander-Simacota"]
[null,"68","Santander","68755","Socorro","Santander-Socorro"]
[null,"68","Santander","68770","Suaita","Santander-Suaita"]
[null,"68","Santander","68773","Sucre","Santander-Sucre"]
[null,"68","Santander","68780","Surata","Santander-Surata"]
[null,"68","Santander","68820","Tona","Santander-Tona"]
[null,"68","Santander","68855","Valle San José","Santander-Valle San José"]
[null,"68","Santander","68861","Vélez","Santander-Vélez"]
[null,"68","Santander","68867","Vetas","Santander-Vetas"]
[null,"68","Santander","68872","Villanueva","Santander-Villanueva"]
[null,"68","Santander","68895","Zapatoca","Santander-Zapatoca"]
[null,"70","Sucre","70110","Buenavista","Sucre-Buenavista"]
[null,"70","Sucre","70124","Caimito","Sucre-Caimito"]
[null,"70","Sucre","70230","Chalán","Sucre-Chalán"]
[null,"70","Sucre","70204","Coloso","Sucre-Coloso"]
[null,"70","Sucre","70215","Corozal","Sucre-Corozal"]
[null,"70","Sucre","70221","Coveñas61","Sucre-Coveñas61"]
[null,"70","Sucre","70233","El Roble62","Sucre-El Roble62"]
[null,"70","Sucre","70235","Galeras63","Sucre-Galeras63"]
[null,"70","Sucre","70265","Guaranda","Sucre-Guaranda"]
[null,"70","Sucre","70400","La Unión","Sucre-La Unión"]
[null,"70","Sucre","70418","Los Palmitos","Sucre-Los Palmitos"]
[null,"70","Sucre","70429","Majagual","Sucre-Majagual"]
[null,"70","Sucre","70473","Morroa","Sucre-Morroa"]
[null,"70","Sucre","70508","Ovejas","Sucre-Ovejas"]
[null,"70","Sucre","70523","Palmito","Sucre-Palmito"]
[null,"70","Sucre","70670","Sampués","Sucre-Sampués"]
[null,"70","Sucre","70678","San Benito Abad63","Sucre-San Benito Abad63"]
[null,"70","Sucre","70702","San Juan De Betulia","Sucre-San Juan De Betulia"]
[null,"70","Sucre","70708","San Marcos","Sucre-San Marcos"]
[null,"70","Sucre","70713","San Onofre","Sucre-San Onofre"]
[null,"70","Sucre","70717","San Pedro","Sucre-San Pedro"]
[null,"70","Sucre","70742","Sincé","Sucre-Sincé"]
[null,"70","Sucre","70001","Sincelejo","Sucre-Sincelejo"]
[null,"70","Sucre","70771","Sucre","Sucre-Sucre"]
[null,"70","Sucre","70820","Tolú","Sucre-Tolú"]
[null,"70","Sucre","70823","Toluviejo","Sucre-Toluviejo"]
[null,"73","Tolima","73024","Alpujarra",{"$f":"CONCATENATE(C1027,\"-\",E1027)","v":"Tolima-Alpujarra"}]
[null,"73","Tolima","73026","Alvarado","Tolima-Alvarado"]
[null,"73","Tolima","73030","Ambalema","Tolima-Ambalema"]
[null,"73","Tolima","73043","Anzoategui","Tolima-Anzoategui"]
[null,"73","Tolima","73055","Armero (Guayabal)","Tolima-Armero (Guayabal)"]
[null,"73","Tolima","73067","Ataco","Tolima-Ataco"]
[null,"73","Tolima","73124","Cajamarca","Tolima-Cajamarca"]
[null,"73","Tolima","73148","Carmen de Apicalá","Tolima-Carmen de Apicalá"]
[null,"73","Tolima","73152","Casabianca","Tolima-Casabianca"]
[null,"73","Tolima","73168","Chaparral","Tolima-Chaparral"]
[null,"73","Tolima","73200","Coello","Tolima-Coello"]
[null,"73","Tolima","73217","Coyaima","Tolima-Coyaima"]
[null,"73","Tolima","73226","Cunday","Tolima-Cunday"]
[null,"73","Tolima","73236","Dolores","Tolima-Dolores"]
[null,"73","Tolima","73268","Espinal","Tolima-Espinal"]
[null,"73","Tolima","73270","Falán","Tolima-Falán"]
[null,"73","Tolima","73275","Flandes","Tolima-Flandes"]
[null,"73","Tolima","73283","Fresno","Tolima-Fresno"]
[null,"73","Tolima","73319","Guamo","Tolima-Guamo"]
[null,"73","Tolima","73347","Herveo","Tolima-Herveo"]
[null,"73","Tolima","73349","Honda","Tolima-Honda"]
[null,"73","Tolima","73001","Ibagué","Tolima-Ibagué"]
[null,"73","Tolima","73352","Icononzo","Tolima-Icononzo"]
[null,"73","Tolima","73408","Lérida","Tolima-Lérida"]
[null,"73","Tolima","73411","Líbano","Tolima-Líbano"]
[null,"73","Tolima","73443","Mariquita","Tolima-Mariquita"]
[null,"73","Tolima","73449","Melgar","Tolima-Melgar"]
[null,"73","Tolima","73461","Murillo","Tolima-Murillo"]
[null,"73","Tolima","73483","Natagaima","Tolima-Natagaima"]
[null,"73","Tolima","73504","Ortega","Tolima-Ortega"]
[null,"73","Tolima","73520","Palocabildo64","Tolima-Palocabildo64"]
[null,"73","Tolima","73547","Piedras","Tolima-Piedras"]
[null,"73","Tolima","73555","Planadas","Tolima-Planadas"]
[null,"73","Tolima","73563","Prado","Tolima-Prado"]
[null,"73","Tolima","73585","Purificación","Tolima-Purificación"]
[null,"73","Tolima","73616","Rioblanco","Tolima-Rioblanco"]
[null,"73","Tolima","73622","Roncesvalles","Tolima-Roncesvalles"]
[null,"73","Tolima","73624","Rovira","Tolima-Rovira"]
[null,"73","Tolima","73671","Saldaña","Tolima-Saldaña"]
[null,"73","Tolima","73675","San Antonio","Tolima-San Antonio"]
[null,"73","Tolima","73678","San Luis","Tolima-San Luis"]
[null,"73","Tolima","73686","Santa Isabel","Tolima-Santa Isabel"]
[null,"73","Tolima","73770","Suárez","Tolima-Suárez"]
[null,"73","Tolima","73854","Valle de San Juan","Tolima-Valle de San Juan"]
[null,"73","Tolima","73861","Venadillo","Tolima-Venadillo"]
[null,"73","Tolima","73870","Villahermosa","Tolima-Villahermosa"]
[null,"73","Tolima","73873","Villarrica","Tolima-Villarrica"]
[null,"76","Valle del Cauca","76020","Alcalá","Valle del Cauca-Alcalá"]
[null,"76","Valle del Cauca","76036","Andalucía","Valle del Cauca-Andalucía"]
[null,"76","Valle del Cauca","76041","Ansermanuevo","Valle del Cauca-Ansermanuevo"]
[null,"76","Valle del Cauca","76054","Argelia","Valle del Cauca-Argelia"]
[null,"76","Valle del Cauca","76100","Bolívar","Valle del Cauca-Bolívar"]
[null,"76","Valle del Cauca","76109","Buenaventura","Valle del Cauca-Buenaventura"]
[null,"76","Valle del Cauca","76111","Buga","Valle del Cauca-Buga"]
[null,"76","Valle del Cauca","76113","Bugalagrande","Valle del Cauca-Bugalagrande"]
[null,"76","Valle del Cauca","76122","Caicedonia","Valle del Cauca-Caicedonia"]
[null,"76","Valle del Cauca","76001","Cali","Valle del Cauca-Cali"]
[null,"76","Valle del Cauca","76126","Calima (Darien)","Valle del Cauca-Calima (Darien)"]
[null,"76","Valle del Cauca","76130","Candelaria","Valle del Cauca-Candelaria"]
[null,"76","Valle del Cauca","76147","Cartago","Valle del Cauca-Cartago"]
[null,"76","Valle del Cauca","76233","Dagua","Valle del Cauca-Dagua"]
[null,"76","Valle del Cauca","76243","El Aguila","Valle del Cauca-El Aguila"]
[null,"76","Valle del Cauca","76246","El Cairo","Valle del Cauca-El Cairo"]
[null,"76","Valle del Cauca","76248","El Cerrito","Valle del Cauca-El Cerrito"]
[null,"76","Valle del Cauca","76250","El Dovio",{"$f":"CONCATENATE(C1091,\"-\",E1091)","v":"Valle del Cauca-El Dovio"}]
[null,"76","Valle del Cauca","76275","Florida","Valle del Cauca-Florida"]
[null,"76","Valle del Cauca","76306","Ginebra","Valle del Cauca-Ginebra"]
[null,"76","Valle del Cauca","76318","Guacari","Valle del Cauca-Guacari"]
[null,"76","Valle del Cauca","76364","Jamundí","Valle del Cauca-Jamundí"]
[null,"76","Valle del Cauca","76377","La Cumbre","Valle del Cauca-La Cumbre"]
[null,"76","Valle del Cauca","76400","La Unión","Valle del Cauca-La Unión"]
[null,"76","Valle del Cauca","76403","La Victoria","Valle del Cauca-La Victoria"]
[null,"76","Valle del Cauca","76497","Obando","Valle del Cauca-Obando"]
[null,"76","Valle del Cauca","76520","Palmira","Valle del Cauca-Palmira"]
[null,"76","Valle del Cauca","76563","Pradera","Valle del Cauca-Pradera"]
[null,"76","Valle del Cauca","76606","Restrepo","Valle del Cauca-Restrepo"]
[null,"76","Valle del Cauca","76616","Riofrío","Valle del Cauca-Riofrío"]
[null,"76","Valle del Cauca","76622","Roldanillo","Valle del Cauca-Roldanillo"]
[null,"76","Valle del Cauca","76670","San Pedro","Valle del Cauca-San Pedro"]
[null,"76","Valle del Cauca","76736","Sevilla","Valle del Cauca-Sevilla"]
[null,"76","Valle del Cauca","76823","Toro","Valle del Cauca-Toro"]
[null,"76","Valle del Cauca","76828","Trujillo","Valle del Cauca-Trujillo"]
[null,"76","Valle del Cauca","76834","Tulúa","Valle del Cauca-Tulúa"]
[null,"76","Valle del Cauca","76845","Ulloa","Valle del Cauca-Ulloa"]
[null,"76","Valle del Cauca","76863","Versalles","Valle del Cauca-Versalles"]
[null,"76","Valle del Cauca","76869","Vijes","Valle del Cauca-Vijes"]
[null,"76","Valle del Cauca","76890","Yotoco","Valle del Cauca-Yotoco"]
[null,"76","Valle del Cauca","76892","Yumbo","Valle del Cauca-Yumbo"]
[null,"76","Valle del Cauca","76895","Zarzal","Valle del Cauca-Zarzal"]
[null,"97","Vaupés","97888","Acaricuara","Vaupés-Acaricuara"]
[null,"97","Vaupés","97161","Carurú","Vaupés-Carurú"]
[null,"97","Vaupés","97511","CD. Pacoa","Vaupés-CD. Pacoa"]
[null,"97","Vaupés","97777","CD. Papunaua","Vaupés-CD. Papunaua"]
[null,"97","Vaupés","97889","CD. Yavarate","Vaupés-CD. Yavarate"]
[null,"97","Vaupés","97001","Mitu65","Vaupés-Mitu65"]
[null,"97","Vaupés","97666","Taraira","Vaupés-Taraira"]
[null,"97","Vaupés","97555","Villa Fatima","Vaupés-Villa Fatima"]
[null,"99","Vichada","99773","Cumaribo66","Vichada-Cumaribo66"]
[null,"99","Vichada","99524","La Primavera","Vichada-La Primavera"]
[null,"99","Vichada","99001","Puerto Carreño","Vichada-Puerto Carreño"]
[null,"99","Vichada","99760","San Jose de Ocune","Vichada-San Jose de Ocune"]
[null,"99","Vichada","99572","Santa Rita","Vichada-Santa Rita"]
[null,"99","Vichada","99624","Santa Rosalía","Vichada-Santa Rosalía"]
[null,".",".",".",".",".",".",".",".",null,null,"."]

{"sheet":"Curva","index":3,"n_rows":28,"n_cols":16,"rows_kept":28,"cut":false,"hidden":false,"merged":[[1,2,1,3],[1,15,1,16],[2,2,2,5]]}
[]
[null,null,"Curva de carga",null,null,null,null,null,null,null,null,null,null,null,null,"Factor de diversidad="]
[null,null,"El Operador de Red debe diligenciar la información de las casillas amarillas de la curva de carga típica para el sector residencial rural con la Potencia día natural, fin de semana y total del área de influencia del Operador de Red y el factor de diversidad."]
[null,null,"Hora","Potencia [kW] dia Natural","Potencia [kW] Fin de semana","Potencia [kW] Total "]
[null,null,0]
[null,null,1]
[null,null,2]
[null,null,3]
[null,null,4]
[null,null,5]
[null,null,6]
[null,null,7]
[null,null,8]
[null,null,9]
[null,null,10]
[null,null,11]
[null,null,12]
[null,null,13]
[null,null,14]
[null,null,15]
[null,null,16]
[null,null,17]
[null,null,18]
[null,null,19]
[null,null,20]
[null,null,21]
[null,null,22]
[null,null,23]

{"sheet":"Listas","index":4,"n_rows":1128,"n_cols":9,"rows_kept":1128,"cut":false,"hidden":true,"merged":[]}
[]
[]
[null,null,"Operador de Red",null,"Depto","Cod_dane","Municipio",null,"Vigencia"]
[null,null,"AFINIA",null,"Amazonas","91263","El Encanto (ANM)",null,"2020-12-31"]
[null,null,"AIR-E",null,"Amazonas","91405","La Chorrera (ANM)",null,"2021-12-31"]
[null,null,"CEDENAR",null,"Amazonas","91407","La Pedrera (ANM)",null,"2022-12-31"]
[null,null,"CELSIA TOLIMA",null,"Amazonas","91430","La Victoria (ANM)",null,"2023-12-31"]
[null,null,"CELSIA VALLE",null,"Amazonas","91001","Leticia",null,"2024-12-31"]
[null,null,"CENS",null,"Amazonas","91460","Miriti - Paraná (ANM)",null,"2025-12-31"]
[null,null,"CEO",null,"Amazonas","91530","Puerto Alegría (ANM)",null,"2026-12-31"]
[null,null,"CETSA",null,"Amazonas","91536","Puerto Arica (ANM)",null,"2027-12-31"]
[null,null,"CHEC",null,"Amazonas","91540","Puerto Nariño",null,"2028-12-31"]
[null,null,"DISPAC",null,"Amazonas","91669","Puerto Santander (ANM)",null,"2029-12-31"]
[null,null,"EBSA",null,"Amazonas","91798","Tarapacá (ANM)",null,"2030-12-31"]
[null,null,"EDEQ",null,"Antioquia","05002","Abejorral",null,"2031-12-31"]
[null,null,"EEBP",null,"Antioquia","05004","Abriaquí",null,"2032-12-31"]
[null,null,"EEPEREIRA",null,"Antioquia","05021","Alejandría",null,"2033-12-31"]
[null,null,"ELECTROCAQUETÁ",null,"Antioquia","05030","Amagá",null,"2034-12-31"]
[null,null,"ELECTROHUILA",null,"Antioquia","05031","Amalfi",null,"2035-12-31"]
[null,null,"EMCALI",null,"Antioquia","05034","Andes",null,"2036-12-31"]
[null,null,"EMCARTAGO",null,"Antioquia","05036","Angelópolis",null,"2037-12-31"]
[null,null,"EMEESA",null,"Antioquia","05038","Angostura",null,"2038-12-31"]
[null,null,"EMEVASI",null,"Antioquia","05040","Anorí",null,"2039-12-31"]
[null,null,"EMPRESA MUNICIPAL",null,"Antioquia","05044","Anza",null,"2040-12-31"]
[null,null,"EMSA",null,"Antioquia","05045","Apartadó",null,"2041-12-31"]
[null,null,"ENEL",null,"Antioquia","05051","Arboletes",null,"2042-12-31"]
[null,null,"ENELAR",null,"Antioquia","05055","Argelia",null,"2043-12-31"]
[null,null,"ENERCA",null,"Antioquia","05059","Armenia",null,"2044-12-31"]
[null,null,"ENERGUAVIARE",null,"Antioquia","05079","Barbosa",null,"2045-12-31"]
[null,null,"EPM",null,"Antioquia","05088","Bello",null,"2046-12-31"]
[null,null,"ESSA",null,"Antioquia","05086","Belmira",null,"2047-12-31"]
[null,null,"IPSE",null,"Antioquia","05091","Betania",null,"2048-12-31"]
[null,null,"RUITOQUE",null,"Antioquia","05093","Betulia",null,"2049-12-31"]
[null,null,null,null,"Antioquia","05107","Briceño",null,"2050-12-31"]
[null,null,null,null,"Antioquia","05113","Buriticá"]
[null,null,null,null,"Antioquia","05120","Cáceres"]
[null,null,null,null,"Antioquia","05125","Caicedo"]
[null,null,null,null,"Antioquia","05129","Caldas"]
[null,null,null,null,"Antioquia","05134","Campamento"]
[null,null,null,null,"Antioquia","05138","Cañasgordas"]
[null,null,null,null,"Antioquia","05142","Caracolí"]
[null,null,null,null,"Antioquia","05145","Caramanta"]
[null,null,null,null,"Antioquia","05147","Carepa"]
[null,null,null,null,"Antioquia","05150","Carolina"]
[null,null,null,null,"Antioquia","05154","Caucasia"]
[null,null,null,null,"Antioquia","05172","Chigorodó"]
[null,null,null,null,"Antioquia","05190","Cisneros"]
[null,null,null,null,"Antioquia","05101","Ciudad Bolívar"]
[null,null,null,null,"Antioquia","05197","Cocorná"]
[null,null,null,null,"Antioquia","05206","Concepción"]
[null,null,null,null,"Antioquia","05209","Concordia"]
[null,null,null,null,"Antioquia","05212","Copacabana"]
[null,null,null,null,"Antioquia","05234","Dabeiba"]
[null,null,null,null,"Antioquia","05237","Don Matías"]
[null,null,null,null,"Antioquia","05240","Ebéjico"]
[null,null,null,null,"Antioquia","05250","El Bagre"]
[null,null,null,null,"Antioquia","05148","El Carmen de Viboral"]
[null,null,null,null,"Antioquia","05697","El Santuario"]
[null,null,null,null,"Antioquia","05264","Entrerrios"]
[null,null,null,null,"Antioquia","05266","Envigado"]
[null,null,null,null,"Antioquia","05282","Fredonia"]
[null,null,null,null,"Antioquia","05284","Frontino"]
[null,null,null,null,"Antioquia","05306","Giraldo"]
[null,null,null,null,"Antioquia","05308","Girardota"]
[null,null,null,null,"Antioquia","05310","Gómez Plata"]
[null,null,null,null,"Antioquia","05313","Granada"]
[null,null,null,null,"Antioquia","05315","Guadalupe"]
[null,null,null,null,"Antioquia","05318","Guarne"]
[null,null,null,null,"Antioquia","05321","Guatapé"]
[null,null,null,null,"Antioquia","05347","Heliconia"]
[null,null,null,null,"Antioquia","05353","Hispania"]
[null,null,null,null,"Antioquia","05360","Itagui"]
[null,null,null,null,"Antioquia","05361","Ituango"]
[null,null,null,null,"Antioquia","05364","Jardín"]
[null,null,null,null,"Antioquia","05368","Jericó"]
[null,null,null,null,"Antioquia","05376","La Ceja"]
[null,null,null,null,"Antioquia","05380","La Estrella"]
[null,null,null,null,"Antioquia","05390","La Pintada"]
[null,null,null,null,"Antioquia","05400","La Unión"]
[null,null,null,null,"Antioquia","05411","Liborina"]
[null,null,null,null,"Antioquia","05425","Maceo"]
[null,null,null,null,"Antioquia","05440","Marinilla"]
[null,null,null,null,"Antioquia","05001","Medellín"]
[null,null,null,null,"Antioquia","05467","Montebello"]
[null,null,null,null,"Antioquia","05475","Murindó"]
[null,null,null,null,"Antioquia","05480","Mutatá"]
[null,null,null,null,"Antioquia","05483","Nariño"]
[null,null,null,null,"Antioquia","05495","Nechí"]
[null,null,null,null,"Antioquia","05490","Necoclí"]
[null,null,null,null,"Antioquia","05501","Olaya"]
[null,null,null,null,"Antioquia","05541","Peñol"]
[null,null,null,null,"Antioquia","05543","Peque"]
[null,null,null,null,"Antioquia","05576","Pueblorrico"]
[null,null,null,null,"Antioquia","05579","Puerto Berrío"]
[null,null,null,null,"Antioquia","05585","Puerto Nare"]
[null,null,null,null,"Antioquia","05591","Puerto Triunfo"]
[null,null,null,null,"Antioquia","05604","Remedios"]
[null,null,null,null,"Antioquia","05607","Retiro"]
[null,null,null,null,"Antioquia","05615","Rionegro"]
[null,null,null,null,"Antioquia","05628","Sabanalarga"]
[null,null,null,null,"Antioquia","05631","Sabaneta"]
[null,null,null,null,"Antioquia","05642","Salgar"]
[null,null,null,null,"Antioquia","05647","San Andrés de Cuerquía"]
[null,null,null,null,"Antioquia","05649","San Carlos"]
[null,null,null,null,"Antioquia","05652","San Francisco"]
[null,null,null,null,"Antioquia","05656","San Jerónimo"]
[null,null,null,null,"Antioquia","05658","San José de La Montaña"]
[null,null,null,null,"Antioquia","05659","San Juan de Urabá"]
[null,null,null,null,"Antioquia","05660","San Luis"]
[null,null,null,null,"Antioquia","05664","San Pedro"]
[null,null,null,null,"Antioquia","05665","San Pedro de Uraba"]
[null,null,null,null,"Antioquia","05667","San Rafael"]
[null,null,null,null,"Antioquia","05670","San Roque"]
[null,null,null,null,"Antioquia","05674","San Vicente"]
[null,null,null,null,"Antioquia","05679","Santa Bárbara"]
[null,null,null,null,"Antioquia","05686","Santa Rosa de Osos"]
[null,null,null,null,"Antioquia","05042","Santafé de Antioquia"]
[null,null,null,null,"Antioquia","05690","Santo Domingo"]
[null,null,null,null,"Antioquia","05736","Segovia"]
[null,null,null,null,"Antioquia","05756","Sonson"]
[null,null,null,null,"Antioquia","05761","Sopetrán"]
[null,null,null,null,"Antioquia","05789","Támesis"]
[null,null,null,null,"Antioquia","05790","Tarazá"]
[null,null,null,null,"Antioquia","05792","Tarso"]
[null,null,null,null,"Antioquia","05809","Titiribí"]
[null,null,null,null,"Antioquia","05819","Toledo"]
[null,null,null,null,"Antioquia","05837","Turbo"]
[null,null,null,null,"Antioquia","05842","Uramita"]
[null,null,null,null,"Antioquia","05847","Urrao"]
[null,null,null,null,"Antioquia","05854","Valdivia"]
[null,null,null,null,"Antioquia","05856","Valparaíso"]
[null,null,null,null,"Antioquia","05858","Vegachí"]
[null,null,null,null,"Antioquia","05861","Venecia"]
[null,null,null,null,"Antioquia","05873","Vigía del Fuerte"]
[null,null,null,null,"Antioquia","05885","Yalí"]
[null,null,null,null,"Antioquia","05887","Yarumal"]
[null,null,null,null,"Antioquia","05890","Yolombó"]
[null,null,null,null,"Antioquia","05893","Yondó"]
[null,null,null,null,"Antioquia","05895","Zaragoza"]
[null,null,null,null,"Arauca","81001","Arauca"]
[null,null,null,null,"Arauca","81065","Arauquita"]
[null,null,null,null,"Arauca","81220","Cravo Norte"]
[null,null,null,null,"Arauca","81300","Fortul"]
[null,null,null,null,"Arauca","81591","Puerto Rondón"]
[null,null,null,null,"Arauca","81736","Saravena"]
[null,null,null,null,"Arauca","81794","Tame"]
[null,null,null,null,"Archipiélago de San Andrés","88564","Providencia"]
[null,null,null,null,"Archipiélago de San Andrés","88001","San Andrés"]
[null,null,null,null,"Atlántico","08078","Baranoa"]
[null,null,null,null,"Atlántico","08001","Barranquilla"]
[null,null,null,null,"Atlántico","08137","Campo de La Cruz"]
[null,null,null,null,"Atlántico","08141","Candelaria"]
[null,null,null,null,"Atlántico","08296","Galapa"]
[null,null,null,null,"Atlántico","08372","Juan de Acosta"]
[null,null,null,null,"Atlántico","08421","Luruaco"]
[null,null,null,null,"Atlántico","08433","Malambo"]
[null,null,null,null,"Atlántico","08436","Manatí"]
[null,null,null,null,"Atlántico","08520","Palmar de Varela"]
[null,null,null,null,"Atlántico","08549","Piojó"]
[null,null,null,null,"Atlántico","08558","Polonuevo"]
[null,null,null,null,"Atlántico","08560","Ponedera"]
[null,null,null,null,"Atlántico","08573","Puerto Colombia"]
[null,null,null,null,"Atlántico","08606","Repelón"]
[null,null,null,null,"Atlántico","08634","Sabanagrande"]
[null,null,null,null,"Atlántico","08638","Sabanalarga"]
[null,null,null,null,"Atlántico","08675","Santa Lucía"]
[null,null,null,null,"Atlántico","08685","Santo Tomás"]
[null,null,null,null,"Atlántico","08758","Soledad"]
[null,null,null,null,"Atlántico","08770","Suan"]
[null,null,null,null,"Atlántico","08832","Tubará"]
[null,null,null,null,"Atlántico","08849","Usiacurí"]
[null,null,null,null,"Bogotá, D.C.","11001","Bogotá, D.C."]
[null,null,null,null,"Bolívar","13006","Achí"]
[null,null,null,null,"Bolívar","13030","Altos del Rosario"]
[null,null,null,null,"Bolívar","13042","Arenal"]
[null,null,null,null,"Bolívar","13052","Arjona"]
[null,null,null,null,"Bolívar","13062","Arroyohondo"]
[null,null,null,null,"Bolívar","13074","Barranco de Loba"]
[null,null,null,null,"Bolívar","13140","Calamar"]
[null,null,null,null,"Bolívar","13160","Cantagallo"]
[null,null,null,null,"Bolívar","13001","Cartagena"]
[null,null,null,null,"Bolívar","13188","Cicuco"]
[null,null,null,null,"Bolívar","13222","Clemencia"]
[null,null,null,null,"Bolívar","13212","Córdoba"]
[null,null,null,null,"Bolívar","13244","El Carmen de Bolívar"]
[null,null,null,null,"Bolívar","13248","El Guamo"]
[null,null,null,null,"Bolívar","13268","El Peñón"]
[null,null,null,null,"Bolívar","13300","Hatillo de Loba"]
[null,null,null,null,"Bolívar","13430","Magangué"]
[null,null,null,null,"Bolívar","13433","Mahates"]
[null,null,null,null,"Bolívar","13440","Margarita"]
[null,null,null,null,"Bolívar","13442","María La Baja"]
[null,null,null,null,"Bolívar","13468","Mompós"]
[null,null,null,null,"Bolívar","13458","Montecristo"]
[null,null,null,null,"Bolívar","13473","Morales"]
[null,null,null,null,"Bolívar","13490","Norosí (1)"]
[null,null,null,null,"Bolívar","13549","Pinillos"]
[null,null,null,null,"Bolívar","13580","Regidor"]
[null,null,null,null,"Bolívar","13600","Río Viejo (1)(3)"]
[null,null,null,null,"Bolívar","13620","San Cristóbal"]
[null,null,null,null,"Bolívar","13647","San Estanislao"]
[null,null,null,null,"Bolívar","13650","San Fernando"]
[null,null,null,null,"Bolívar","13654","San Jacinto"]
[null,null,null,null,"Bolívar","13655","San Jacinto del Cauca"]
[null,null,null,null,"Bolívar","13657","San Juan Nepomuceno"]
[null,null,null,null,"Bolívar","13667","San Martín de Loba"]
[null,null,null,null,"Bolívar","13670","San Pablo"]
[null,null,null,null,"Bolívar","13673","Santa Catalina"]
[null,null,null,null,"Bolívar","13683","Santa Rosa"]
[null,null,null,null,"Bolívar","13688","Santa Rosa del Sur"]
[null,null,null,null,"Bolívar","13744","Simití"]
[null,null,null,null,"Bolívar","13760","Soplaviento"]
[null,null,null,null,"Bolívar","13780","Talaigua Nuevo"]
[null,null,null,null,"Bolívar","13810","Tiquisio"]
[null,null,null,null,"Bolívar","13836","Turbaco"]
[null,null,null,null,"Bolívar","13838","Turbaná"]
[null,null,null,null,"Bolívar","13873","Villanueva"]
[null,null,null,null,"Bolívar","13894","Zambrano"]
[null,null,null,null,"Boyacá","15022","Almeida"]
[null,null,null,null,"Boyacá","15047","Aquitania"]
[null,null,null,null,"Boyacá","15051","Arcabuco"]
[null,null,null,null,"Boyacá","15087","Belén"]
[null,null,null,null,"Boyacá","15090","Berbeo"]
[null,null,null,null,"Boyacá","15092","Betéitiva"]
[null,null,null,null,"Boyacá","15097","Boavita"]
[null,null,null,null,"Boyacá","15104","Boyacá"]
[null,null,null,null,"Boyacá","15106","Briceño"]
[null,null,null,null,"Boyacá","15109","Buenavista"]
[null,null,null,null,"Boyacá","15114","Busbanzá"]
[null,null,null,null,"Boyacá","15131","Caldas"]
[null,null,null,null,"Boyacá","15135","Campohermoso"]
[null,null,null,null,"Boyacá","15162","Cerinza"]
[null,null,null,null,"Boyacá","15172","Chinavita"]
[null,null,null,null,"Boyacá","15176","Chiquinquirá"]
[null,null,null,null,"Boyacá","15232","Chíquiza"]
[null,null,null,null,"Boyacá","15180","Chiscas"]
[null,null,null,null,"Boyacá","15183","Chita"]
[null,null,null,null,"Boyacá","15185","Chitaraque"]
[null,null,null,null,"Boyacá","15187","Chivatá"]
[null,null,null,null,"Boyacá","15236","Chivor"]
[null,null,null,null,"Boyacá","15189","Ciénega"]
[null,null,null,null,"Boyacá","15204","Cómbita"]
[null,null,null,null,"Boyacá","15212","Coper"]
[null,null,null,null,"Boyacá","15215","Corrales"]
[null,null,null,null,"Boyacá","15218","Covarachía"]
[null,null,null,null,"Boyacá","15223","Cubará"]
[null,null,null,null,"Boyacá","15224","Cucaita"]
[null,null,null,null,"Boyacá","15226","Cuítiva"]
[null,null,null,null,"Boyacá","15238","Duitama"]
[null,null,null,null,"Boyacá","15244","El Cocuy"]
[null,null,null,null,"Boyacá","15248","El Espino"]
[null,null,null,null,"Boyacá","15272","Firavitoba"]
[null,null,null,null,"Boyacá","15276","Floresta"]
[null,null,null,null,"Boyacá","15293","Gachantivá"]
[null,null,null,null,"Boyacá","15296","Gameza"]
[null,null,null,null,"Boyacá","15299","Garagoa"]
[null,null,null,null,"Boyacá","15317","Guacamayas"]
[null,null,null,null,"Boyacá","15322","Guateque"]
[null,null,null,null,"Boyacá","15325","Guayatá"]
[null,null,null,null,"Boyacá","15332","Güicán"]
[null,null,null,null,"Boyacá","15362","Iza"]
[null,null,null,null,"Boyacá","15367","Jenesano"]
[null,null,null,null,"Boyacá","15368","Jericó"]
[null,null,null,null,"Boyacá","15380","La Capilla"]
[null,null,null,null,"Boyacá","15403","La Uvita"]
[null,null,null,null,"Boyacá","15401","La Victoria"]
[null,null,null,null,"Boyacá","15377","Labranzagrande"]
[null,null,null,null,"Boyacá","15425","Macanal"]
[null,null,null,null,"Boyacá","15442","Maripí"]
[null,null,null,null,"Boyacá","15455","Miraflores"]
[null,null,null,null,"Boyacá","15464","Mongua"]
[null,null,null,null,"Boyacá","15466","Monguí"]
[null,null,null,null,"Boyacá","15469","Moniquirá"]
[null,null,null,null,"Boyacá","15476","Motavita"]
[null,null,null,null,"Boyacá","15480","Muzo"]
[null,null,null,null,"Boyacá","15491","Nobsa"]
[null,null,null,null,"Boyacá","15494","Nuevo Colón"]
[null,null,null,null,"Boyacá","15500","Oicatá"]
[null,null,null,null,"Boyacá","15507","Otanche"]
[null,null,null,null,"Boyacá","15511","Pachavita"]
[null,null,null,null,"Boyacá","15514","Páez"]
[null,null,null,null,"Boyacá","15516","Paipa"]
[null,null,null,null,"Boyacá","15518","Pajarito"]
[null,null,null,null,"Boyacá","15522","Panqueba"]
[null,null,null,null,"Boyacá","15531","Pauna"]
[null,null,null,null,"Boyacá","15533","Paya"]
[null,null,null,null,"Boyacá","15537","Paz de Río"]
[null,null,null,null,"Boyacá","15542","Pesca"]
[null,null,null,null,"Boyacá","15550","Pisba"]
[null,null,null,null,"Boyacá","15572","Puerto Boyacá"]
[null,null,null,null,"Boyacá","15580","Quípama"]
[null,null,null,null,"Boyacá","15599","Ramiriquí"]
[null,null,null,null,"Boyacá","15600","Ráquira"]
[null,null,null,null,"Boyacá","15621","Rondón"]
[null,null,null,null,"Boyacá","15632","Saboyá"]
[null,null,null,null,"Boyacá","15638","Sáchica"]
[null,null,null,null,"Boyacá","15646","Samacá"]
[null,null,null,null,"Boyacá","15660","San Eduardo"]
[null,null,null,null,"Boyacá","15664","San José de Pare"]
[null,null,null,null,"Boyacá","15667","San Luis de Gaceno"]
[null,null,null,null,"Boyacá","15673","San Mateo"]
[null,null,null,null,"Boyacá","15676","San Miguel de Sema"]
[null,null,null,null,"Boyacá","15681","San Pablo de Borbur"]
[null,null,null,null,"Boyacá","15690","Santa María"]
[null,null,null,null,"Boyacá","15693","Santa Rosa de Viterbo"]
[null,null,null,null,"Boyacá","15696","Santa Sofía"]
[null,null,null,null,"Boyacá","15686","Santana"]
[null,null,null,null,"Boyacá","15720","Sativanorte"]
[null,null,null,null,"Boyacá","15723","Sativasur"]
[null,null,null,null,"Boyacá","15740","Siachoque"]
[null,null,null,null,"Boyacá","15753","Soatá"]
[null,null,null,null,"Boyacá","15757","Socha"]
[null,null,null,null,"Boyacá","15755","Socotá"]
[null,null,null,null,"Boyacá","15759","Sogamoso"]
[null,null,null,null,"Boyacá","15761","Somondoco"]
[null,null,null,null,"Boyacá","15762","Sora"]
[null,null,null,null,"Boyacá","15764","Soracá"]
[null,null,null,null,"Boyacá","15763","Sotaquirá"]
[null,null,null,null,"Boyacá","15774","Susacón"]
[null,null,null,null,"Boyacá","15776","Sutamarchán"]
[null,null,null,null,"Boyacá","15778","Sutatenza"]
[null,null,null,null,"Boyacá","15790","Tasco"]
[null,null,null,null,"Boyacá","15798","Tenza"]
[null,null,null,null,"Boyacá","15804","Tibaná"]
[null,null,null,null,"Boyacá","15806","Tibasosa"]
[null,null,null,null,"Boyacá","15808","Tinjacá"]
[null,null,null,null,"Boyacá","15810","Tipacoque"]
[null,null,null,null,"Boyacá","15814","Toca"]
[null,null,null,null,"Boyacá","15816","Togüí"]
[null,null,null,null,"Boyacá","15820","Tópaga"]
[null,null,null,null,"Boyacá","15822","Tota"]
[null,null,null,null,"Boyacá","15001","Tunja"]
[null,null,null,null,"Boyacá","15832","Tununguá"]
[null,null,null,null,"Boyacá","15835","Turmequé"]
[null,null,null,null,"Boyacá","15837","Tuta"]
[null,null,null,null,"Boyacá","15839","Tutazá"]
[null,null,null,null,"Boyacá","15842","Umbita"]
[null,null,null,null,"Boyacá","15861","Ventaquemada"]
[null,null,null,null,"Boyacá","15407","Villa de Leyva"]
[null,null,null,null,"Boyacá","15879","Viracachá"]
[null,null,null,null,"Boyacá","15897","Zetaquira"]
[null,null,null,null,"Caldas","17013","Aguadas"]
[null,null,null,null,"Caldas","17042","Anserma"]
[null,null,null,null,"Caldas","17050","Aranzazu"]
[null,null,null,null,"Caldas","17088","Belalcázar"]
[null,null,null,null,"Caldas","17174","Chinchiná"]
[null,null,null,null,"Caldas","17272","Filadelfia"]
[null,null,null,null,"Caldas","17380","La Dorada"]
[null,null,null,null,"Caldas","17388","La Merced"]
[null,null,null,null,"Caldas","17001","Manizales"]
[null,null,null,null,"Caldas","17433","Manzanares"]
[null,null,null,null,"Caldas","17442","Marmato"]
[null,null,null,null,"Caldas","17444","Marquetalia"]
[null,null,null,null,"Caldas","17446","Marulanda"]
[null,null,null,null,"Caldas","17486","Neira"]
[null,null,null,null,"Caldas","17495","Norcasia"]
[null,null,null,null,"Caldas","17513","Pácora"]
[null,null,null,null,"Caldas","17524","Palestina"]
[null,null,null,null,"Caldas","17541","Pensilvania"]
[null,null,null,null,"Caldas","17614","Riosucio"]
[null,null,null,null,"Caldas","17616","Risaralda"]
[null,null,null,null,"Caldas","17653","Salamina"]
[null,null,null,null,"Caldas","17662","Samaná"]
[null,null,null,null,"Caldas","17665","San José"]
[null,null,null,null,"Caldas","17777","Supía"]
[null,null,null,null,"Caldas","17867","Victoria"]
[null,null,null,null,"Caldas","17873","Villamaría"]
[null,null,null,null,"Caldas","17877","Viterbo"]
[null,null,null,null,"Caquetá","18029","Albania"]
[null,null,null,null,"Caquetá","18094","Belén de Los Andaquies"]
[null,null,null,null,"Caquetá","18150","Cartagena del Chairá"]
[null,null,null,null,"Caquetá","18205","Curillo"]
[null,null,null,null,"Caquetá","18247","El Doncello"]
[null,null,null,null,"Caquetá","18256","El Paujil"]
[null,null,null,null,"Caquetá","18001","Florencia"]
[null,null,null,null,"Caquetá","18410","La Montañita"]
[null,null,null,null,"Caquetá","18460","Milán"]
[null,null,null,null,"Caquetá","18479","Morelia"]
[null,null,null,null,"Caquetá","18592","Puerto Rico"]
[null,null,null,null,"Caquetá","18610","San José del Fragua"]
[null,null,null,null,"Caquetá","18753","San Vicente del Caguán"]
[null,null,null,null,"Caquetá","18756","Solano"]
[null,null,null,null,"Caquetá","18785","Solita"]
[null,null,null,null,"Caquetá","18860","Valparaíso"]
[null,null,null,null,"Casanare","85010","Aguazul"]
[null,null,null,null,"Casanare","85015","Chameza"]
[null,null,null,null,"Casanare","85125","Hato Corozal"]
[null,null,null,null,"Casanare","85136","La Salina"]
[null,null,null,null,"Casanare","85139","Maní"]
[null,null,null,null,"Casanare","85162","Monterrey"]
[null,null,null,null,"Casanare","85225","Nunchía"]
[null,null,null,null,"Casanare","85230","Orocué"]
[null,null,null,null,"Casanare","85250","Paz de Ariporo"]
[null,null,null,null,"Casanare","85263","Pore"]
[null,null,null,null,"Casanare","85279","Recetor"]
[null,null,null,null,"Casanare","85300","Sabanalarga"]
[null,null,null,null,"Casanare","85315","Sácama"]
[null,null,null,null,"Casanare","85325","San Luis de Palenque"]
[null,null,null,null,"Casanare","85400","Támara"]
[null,null,null,null,"Casanare","85410","Tauramena"]
[null,null,null,null,"Casanare","85430","Trinidad"]
[null,null,null,null,"Casanare","85440","Villanueva"]
[null,null,null,null,"Casanare","85001","Yopal"]
[null,null,null,null,"Cauca","19022","Almaguer"]
[null,null,null,null,"Cauca","19050","Argelia"]
[null,null,null,null,"Cauca","19075","Balboa"]
[null,null,null,null,"Cauca","19100","Bolívar"]
[null,null,null,null,"Cauca","19110","Buenos Aires"]
[null,null,null,null,"Cauca","19130","Cajibío"]
[null,null,null,null,"Cauca","19137","Caldono"]
[null,null,null,null,"Cauca","19142","Caloto(1)(3)"]
[null,null,null,null,"Cauca","19212","Corinto"]
[null,null,null,null,"Cauca","19256","El Tambo"]
[null,null,null,null,"Cauca","19290","Florencia"]
[null,null,null,null,"Cauca","19300","Guachené (1) "]
[null,null,null,null,"Cauca","19318","Guapi"]
[null,null,null,null,"Cauca","19355","Inzá"]
[null,null,null,null,"Cauca","19364","Jambaló"]
[null,null,null,null,"Cauca","19392","La Sierra"]
[null,null,null,null,"Cauca","19397","La Vega"]
[null,null,null,null,"Cauca","19418","López"]
[null,null,null,null,"Cauca","19450","Mercaderes"]
[null,null,null,null,"Cauca","19455","Miranda"]
[null,null,null,null,"Cauca","19473","Morales"]
[null,null,null,null,"Cauca","19513","Padilla"]
[null,null,null,null,"Cauca","19517","Paez"]
[null,null,null,null,"Cauca","19532","Patía"]
[null,null,null,null,"Cauca","19533","Piamonte"]
[null,null,null,null,"Cauca","19548","Piendamó"]
[null,null,null,null,"Cauca","19001","Popayán"]
[null,null,null,null,"Cauca","19573","Puerto Tejada"]
[null,null,null,null,"Cauca","19585","Puracé"]
[null,null,null,null,"Cauca","19622","Rosas"]
[null,null,null,null,"Cauca","19693","San Sebastián"]
[null,null,null,null,"Cauca","19701","Santa Rosa"]
[null,null,null,null,"Cauca","19698","Santander de Quilichao"]
[null,null,null,null,"Cauca","19743","Silvia"]
[null,null,null,null,"Cauca","19760","Sotara"]
[null,null,null,null,"Cauca","19780","Suárez"]
[null,null,null,null,"Cauca","19785","Sucre"]
[null,null,null,null,"Cauca","19807","Timbío"]
[null,null,null,null,"Cauca","19809","Timbiquí"]
[null,null,null,null,"Cauca","19821","Toribio"]
[null,null,null,null,"Cauca","19824","Totoró"]
[null,null,null,null,"Cauca","19845","Villa Rica"]
[null,null,null,null,"Cesar","20011","Aguachica"]
[null,null,null,null,"Cesar","20013","Agustín Codazzi"]
[null,null,null,null,"Cesar","20032","Astrea"]
[null,null,null,null,"Cesar","20045","Becerril"]
[null,null,null,null,"Cesar","20060","Bosconia"]
[null,null,null,null,"Cesar","20175","Chimichagua"]
[null,null,null,null,"Cesar","20178","Chiriguaná"]
[null,null,null,null,"Cesar","20228","Curumaní"]
[null,null,null,null,"Cesar","20238","El Copey"]
[null,null,null,null,"Cesar","20250","El Paso"]
[null,null,null,null,"Cesar","20295","Gamarra"]
[null,null,null,null,"Cesar","20310","González"]
[null,null,null,null,"Cesar","20383","La Gloria"]
[null,null,null,null,"Cesar","20400","La Jagua de Ibirico"]
[null,null,null,null,"Cesar","20621","La Paz"]
[null,null,null,null,"Cesar","20443","Manaure"]
[null,null,null,null,"Cesar","20517","Pailitas"]
[null,null,null,null,"Cesar","20550","Pelaya"]
[null,null,null,null,"Cesar","20570","Pueblo Bello"]
[null,null,null,null,"Cesar","20614","Río de Oro"]
[null,null,null,null,"Cesar","20710","San Alberto"]
[null,null,null,null,"Cesar","20750","San Diego"]
[null,null,null,null,"Cesar","20770","San Martín"]
[null,null,null,null,"Cesar","20787","Tamalameque"]
[null,null,null,null,"Cesar","20001","Valledupar"]
[null,null,null,null,"Chocó","27006","Acandí"]
[null,null,null,null,"Chocó","27025","Alto Baudo"]
[null,null,null,null,"Chocó","27050","Atrato"]
[null,null,null,null,"Chocó","27073","Bagadó"]
[null,null,null,null,"Chocó","27075","Bahía Solano"]
[null,null,null,null,"Chocó","27077","Bajo Baudó"]
[null,null,null,null,"Chocó","27099","Bojaya"]
[null,null,null,null,"Chocó","27150","Carmen del Darien"]
[null,null,null,null,"Chocó","27160","Cértegui"]
[null,null,null,null,"Chocó","27205","Condoto"]
[null,null,null,null,"Chocó","27135","El Cantón del San Pablo"]
[null,null,null,null,"Chocó","27245","El Carmen de Atrato"]
[null,null,null,null,"Chocó","27250","El Litoral del San Juan"]
[null,null,null,null,"Chocó","27361","Istmina"]
[null,null,null,null,"Chocó","27372","Juradó"]
[null,null,null,null,"Chocó","27413","Lloró"]
[null,null,null,null,"Chocó","27425","Medio Atrato"]
[null,null,null,null,"Chocó","27430","Medio Baudó"]
[null,null,null,null,"Chocó","27450","Medio San Juan"]
[null,null,null,null,"Chocó","27491","Nóvita"]
[null,null,null,null,"Chocó","27495","Nuquí"]
[null,null,null,null,"Chocó","27001","Quibdó"]
[null,null,null,null,"Chocó","27580","Río Iro"]
[null,null,null,null,"Chocó","27600","Río Quito"]
[null,null,null,null,"Chocó","27615","Riosucio(2)"]
[null,null,null,null,"Chocó","27660","San José del Palmar"]
[null,null,null,null,"Chocó","27745","Sipí"]
[null,null,null,null,"Chocó","27787","Tadó"]
[null,null,null,null,"Chocó","27800","Unguía"]
[null,null,null,null,"Chocó","27810","Unión Panamericana"]
[null,null,null,null,"Córdoba","23068","Ayapel"]
[null,null,null,null,"Córdoba","23079","Buenavista"]
[null,null,null,null,"Córdoba","23090","Canalete"]
[null,null,null,null,"Córdoba","23162","Cereté"]
[null,null,null,null,"Córdoba","23168","Chimá"]
[null,null,null,null,"Córdoba","23182","Chinú"]
[null,null,null,null,"Córdoba","23189","Ciénaga de Oro"]
[null,null,null,null,"Córdoba","23300","Cotorra"]
[null,null,null,null,"Córdoba","23350","La Apartada"]
[null,null,null,null,"Córdoba","23417","Lorica"]
[null,null,null,null,"Córdoba","23419","Los Córdobas"]
[null,null,null,null,"Córdoba","23464","Momil"]
[null,null,null,null,"Córdoba","23466","Montelíbano(1)(3)"]
[null,null,null,null,"Córdoba","23001","Montería"]
[null,null,null,null,"Córdoba","23500","Moñitos"]
[null,null,null,null,"Córdoba","23555","Planeta Rica"]
[null,null,null,null,"Córdoba","23570","Pueblo Nuevo"]
[null,null,null,null,"Córdoba","23574","Puerto Escondido"]
[null,null,null,null,"Córdoba","23580","Puerto Libertador"]
[null,null,null,null,"Córdoba","23586","Purísima"]
[null,null,null,null,"Córdoba","23660","Sahagún"]
[null,null,null,null,"Córdoba","23670","San Andrés Sotavento (1) (3)"]
[null,null,null,null,"Córdoba","23672","San Antero"]
[null,null,null,null,"Córdoba","23675","San Bernardo del Viento"]
[null,null,null,null,"Córdoba","23678","San Carlos"]
[null,null,null,null,"Córdoba","23682","San José de Uré(1)"]
[null,null,null,null,"Córdoba","23686","San Pelayo"]
[null,null,null,null,"Córdoba","23807","Tierralta"]
[null,null,null,null,"Córdoba","23815","Tuchín (1)"]
[null,null,null,null,"Córdoba","23855","Valencia"]
[null,null,null,null,"Cundinamarca","25001","Agua de Dios"]
[null,null,null,null,"Cundinamarca","25019","Albán"]
[null,null,null,null,"Cundinamarca","25035","Anapoima"]
[null,null,null,null,"Cundinamarca","25040","Anolaima"]
[null,null,null,null,"Cundinamarca","25599","Apulo"]
[null,null,null,null,"Cundinamarca","25053","Arbeláez"]
[null,null,null,null,"Cundinamarca","25086","Beltrán"]
[null,null,null,null,"Cundinamarca","25095","Bituima"]
[null,null,null,null,"Cundinamarca","25099","Bojacá"]
[null,null,null,null,"Cundinamarca","25120","Cabrera"]
[null,null,null,null,"Cundinamarca","25123","Cachipay"]
[null,null,null,null,"Cundinamarca","25126","Cajicá"]
[null,null,null,null,"Cundinamarca","25148","Caparrapí"]
[null,null,null,null,"Cundinamarca","25151","Caqueza"]
[null,null,null,null,"Cundinamarca","25154","Carmen de Carupa"]
[null,null,null,null,"Cundinamarca","25168","Chaguaní"]
[null,null,null,null,"Cundinamarca","25175","Chía"]
[null,null,null,null,"Cundinamarca","25178","Chipaque"]
[null,null,null,null,"Cundinamarca","25181","Choachí"]
[null,null,null,null,"Cundinamarca","25183","Chocontá"]
[null,null,null,null,"Cundinamarca","25200","Cogua"]
[null,null,null,null,"Cundinamarca","25214","Cota"]
[null,null,null,null,"Cundinamarca","25224","Cucunubá"]
[null,null,null,null,"Cundinamarca","25245","El Colegio"]
[null,null,null,null,"Cundinamarca","25258","El Peñón"]
[null,null,null,null,"Cundinamarca","25260","El Rosal"]
[null,null,null,null,"Cundinamarca","25269","Facatativá"]
[null,null,null,null,"Cundinamarca","25279","Fomeque"]
[null,null,null,null,"Cundinamarca","25281","Fosca"]
[null,null,null,null,"Cundinamarca","25286","Funza"]
[null,null,null,null,"Cundinamarca","25288","Fúquene"]
[null,null,null,null,"Cundinamarca","25290","Fusagasugá"]
[null,null,null,null,"Cundinamarca","25293","Gachala"]
[null,null,null,null,"Cundinamarca","25295","Gachancipá"]
[null,null,null,null,"Cundinamarca","25297","Gachetá"]
[null,null,null,null,"Cundinamarca","25299","Gama"]
[null,null,null,null,"Cundinamarca","25307","Girardot"]
[null,null,null,null,"Cundinamarca","25312","Granada"]
[null,null,null,null,"Cundinamarca","25317","Guachetá"]
[null,null,null,null,"Cundinamarca","25320","Guaduas"]
[null,null,null,null,"Cundinamarca","25322","Guasca"]
[null,null,null,null,"Cundinamarca","25324","Guataquí"]
[null,null,null,null,"Cundinamarca","25326","Guatavita"]
[null,null,null,null,"Cundinamarca","25328","Guayabal de Siquima"]
[null,null,null,null,"Cundinamarca","25335","Guayabetal"]
[null,null,null,null,"Cundinamarca","25339","Gutiérrez"]
[null,null,null,null,"Cundinamarca","25368","Jerusalén"]
[null,null,null,null,"Cundinamarca","25372","Junín"]
[null,null,null,null,"Cundinamarca","25377","La Calera"]
[null,null,null,null,"Cundinamarca","25386","La Mesa"]
[null,null,null,null,"Cundinamarca","25394","La Palma"]
[null,null,null,null,"Cundinamarca","25398","La Peña"]
[null,null,null,null,"Cundinamarca","25402","La Vega"]
[null,null,null,null,"Cundinamarca","25407","Lenguazaque"]
[null,null,null,null,"Cundinamarca","25426","Macheta"]
[null,null,null,null,"Cundinamarca","25430","Madrid"]
[null,null,null,null,"Cundinamarca","25436","Manta"]
[null,null,null,null,"Cundinamarca","25438","Medina"]
[null,null,null,null,"Cundinamarca","25473","Mosquera"]
[null,null,null,null,"Cundinamarca","25483","Nariño"]
[null,null,null,null,"Cundinamarca","25486","Nemocón"]
[null,null,null,null,"Cundinamarca","25488","Nilo"]
[null,null,null,null,"Cundinamarca","25489","Nimaima"]
[null,null,null,null,"Cundinamarca","25491","Nocaima"]
[null,null,null,null,"Cundinamarca","25513","Pacho"]
[null,null,null,null,"Cundinamarca","25518","Paime"]
[null,null,null,null,"Cundinamarca","25524","Pandi"]
[null,null,null,null,"Cundinamarca","25530","Paratebueno"]
[null,null,null,null,"Cundinamarca","25535","Pasca"]
[null,null,null,null,"Cundinamarca","25572","Puerto Salgar"]
[null,null,null,null,"Cundinamarca","25580","Pulí"]
[null,null,null,null,"Cundinamarca","25592","Quebradanegra"]
[null,null,null,null,"Cundinamarca","25594","Quetame"]
[null,null,null,null,"Cundinamarca","25596","Quipile"]
[null,null,null,null,"Cundinamarca","25612","Ricaurte"]
[null,null,null,null,"Cundinamarca","25645","San Antonio del Tequendama"]
[null,null,null,null,"Cundinamarca","25649","San Bernardo"]
[null,null,null,null,"Cundinamarca","25653","San Cayetano"]
[null,null,null,null,"Cundinamarca","25658","San Francisco"]
[null,null,null,null,"Cundinamarca","25662","San Juan de Río Seco"]
[null,null,null,null,"Cundinamarca","25718","Sasaima"]
[null,null,null,null,"Cundinamarca","25736","Sesquilé"]
[null,null,null,null,"Cundinamarca","25740","Sibaté"]
[null,null,null,null,"Cundinamarca","25743","Silvania"]
[null,null,null,null,"Cundinamarca","25745","Simijaca"]
[null,null,null,null,"Cundinamarca","25754","Soacha"]
[null,null,null,null,"Cundinamarca","25758","Sopó"]
[null,null,null,null,"Cundinamarca","25769","Subachoque"]
[null,null,null,null,"Cundinamarca","25772","Suesca"]
[null,null,null,null,"Cundinamarca","25777","Supatá"]
[null,null,null,null,"Cundinamarca","25779","Susa"]
[null,null,null,null,"Cundinamarca","25781","Sutatausa"]
[null,null,null,null,"Cundinamarca","25785","Tabio"]
[null,null,null,null,"Cundinamarca","25793","Tausa"]
[null,null,null,null,"Cundinamarca","25797","Tena"]
[null,null,null,null,"Cundinamarca","25799","Tenjo"]
[null,null,null,null,"Cundinamarca","25805","Tibacuy"]
[null,null,null,null,"Cundinamarca","25807","Tibirita"]
[null,null,null,null,"Cundinamarca","25815","Tocaima"]
[null,null,null,null,"Cundinamarca","25817","Tocancipá"]
[null,null,null,null,"Cundinamarca","25823","Topaipí"]
[null,null,null,null,"Cundinamarca","25839","Ubalá"]
[null,null,null,null,"Cundinamarca","25841","Ubaque"]
[null,null,null,null,"Cundinamarca","25845","Une"]
[null,null,null,null,"Cundinamarca","25851","Útica"]
[null,null,null,null,"Cundinamarca","25506","Venecia"]
[null,null,null,null,"Cundinamarca","25862","Vergara"]
[null,null,null,null,"Cundinamarca","25867","Vianí"]
[null,null,null,null,"Cundinamarca","25843","Villa de San Diego de Ubate"]
[null,null,null,null,"Cundinamarca","25871","Villagómez"]
[null,null,null,null,"Cundinamarca","25873","Villapinzón"]
[null,null,null,null,"Cundinamarca","25875","Villeta"]
[null,null,null,null,"Cundinamarca","25878","Viotá"]
[null,null,null,null,"Cundinamarca","25885","Yacopí"]
[null,null,null,null,"Cundinamarca","25898","Zipacón"]
[null,null,null,null,"Cundinamarca","25899","Zipaquirá"]
[null,null,null,null,"Guainía","94343","Barranco Minas (ANM)"]
[null,null,null,null,"Guainía","94886","Cacahual (ANM)"]
[null,null,null,null,"Guainía","94001","Inírida"]
[null,null,null,null,"Guainía","94885","La Guadalupe (ANM)"]
[null,null,null,null,"Guainía","94663","Mapiripana (ANM)"]
[null,null,null,null,"Guainía","94888","Morichal (ANM)"]
[null,null,null,null,"Guainía","94887","Pana Pana (ANM)"]
[null,null,null,null,"Guainía","94884","Puerto Colombia (ANM)"]
[null,null,null,null,"Guainía","94883","San Felipe (ANM)"]
[null,null,null,null,"Guaviare","95015","Calamar"]
[null,null,null,null,"Guaviare","95025","El Retorno"]
[null,null,null,null,"Guaviare","95200","Miraflores"]
[null,null,null,null,"Guaviare","95001","San José del Guaviare"]
[null,null,null,null,"Huila","41006","Acevedo"]
[null,null,null,null,"Huila","41013","Agrado"]
[null,null,null,null,"Huila","41016","Aipe"]
[null,null,null,null,"Huila","41020","Algeciras"]
[null,null,null,null,"Huila","41026","Altamira"]
[null,null,null,null,"Huila","41078","Baraya"]
[null,null,null,null,"Huila","41132","Campoalegre"]
[null,null,null,null,"Huila","41206","Colombia"]
[null,null,null,null,"Huila","41244","Elías"]
[null,null,null,null,"Huila","41298","Garzón"]
[null,null,null,null,"Huila","41306","Gigante"]
[null,null,null,null,"Huila","41319","Guadalupe"]
[null,null,null,null,"Huila","41349","Hobo"]
[null,null,null,null,"Huila","41357","Iquira"]
[null,null,null,null,"Huila","41359","Isnos"]
[null,null,null,null,"Huila","41378","La Argentina"]
[null,null,null,null,"Huila","41396","La Plata"]
[null,null,null,null,"Huila","41483","Nátaga"]
[null,null,null,null,"Huila","41001","Neiva"]
[null,null,null,null,"Huila","41503","Oporapa"]
[null,null,null,null,"Huila","41518","Paicol"]
[null,null,null,null,"Huila","41524","Palermo"]
[null,null,null,null,"Huila","41530","Palestina"]
[null,null,null,null,"Huila","41548","Pital"]
[null,null,null,null,"Huila","41551","Pitalito"]
[null,null,null,null,"Huila","41615","Rivera"]
[null,null,null,null,"Huila","41660","Saladoblanco"]
[null,null,null,null,"Huila","41668","San Agustín"]
[null,null,null,null,"Huila","41676","Santa María"]
[null,null,null,null,"Huila","41770","Suaza"]
[null,null,null,null,"Huila","41791","Tarqui"]
[null,null,null,null,"Huila","41799","Tello"]
[null,null,null,null,"Huila","41801","Teruel"]
[null,null,null,null,"Huila","41797","Tesalia"]
[null,null,null,null,"Huila","41807","Timaná"]
[null,null,null,null,"Huila","41872","Villavieja"]
[null,null,null,null,"Huila","41885","Yaguará"]
[null,null,null,null,"La Guajira","44035","Albania"]
[null,null,null,null,"La Guajira","44078","Barrancas"]
[null,null,null,null,"La Guajira","44090","Dibulla"]
[null,null,null,null,"La Guajira","44098","Distracción"]
[null,null,null,null,"La Guajira","44110","El Molino"]
[null,null,null,null,"La Guajira","44279","Fonseca"]
[null,null,null,null,"La Guajira","44378","Hatonuevo"]
[null,null,null,null,"La Guajira","44420","La Jagua del Pilar"]
[null,null,null,null,"La Guajira","44430","Maicao"]
[null,null,null,null,"La Guajira","44560","Manaure"]
[null,null,null,null,"La Guajira","44001","Riohacha"]
[null,null,null,null,"La Guajira","44650","San Juan del Cesar"]
[null,null,null,null,"La Guajira","44847","Uribia"]
[null,null,null,null,"La Guajira","44855","Urumita"]
[null,null,null,null,"La Guajira","44874","Villanueva"]
[null,null,null,null,"Magdalena","47030","Algarrobo"]
[null,null,null,null,"Magdalena","47053","Aracataca"]
[null,null,null,null,"Magdalena","47058","Ariguaní"]
[null,null,null,null,"Magdalena","47161","Cerro San Antonio"]
[null,null,null,null,"Magdalena","47170","Chivolo"]
[null,null,null,null,"Magdalena","47189","Ciénaga"]
[null,null,null,null,"Magdalena","47205","Concordia"]
[null,null,null,null,"Magdalena","47245","El Banco"]
[null,null,null,null,"Magdalena","47258","El Piñon"]
[null,null,null,null,"Magdalena","47268","El Retén"]
[null,null,null,null,"Magdalena","47288","Fundación"]
[null,null,null,null,"Magdalena","47318","Guamal"]
[null,null,null,null,"Magdalena","47460","Nueva Granada"]
[null,null,null,null,"Magdalena","47541","Pedraza"]
[null,null,null,null,"Magdalena","47545","Pijiño del Carmen"]
[null,null,null,null,"Magdalena","47551","Pivijay"]
[null,null,null,null,"Magdalena","47555","Plato"]
[null,null,null,null,"Magdalena","47570","Puebloviejo"]
[null,null,null,null,"Magdalena","47605","Remolino"]
[null,null,null,null,"Magdalena","47660","Sabanas de San Angel"]
[null,null,null,null,"Magdalena","47675","Salamina"]
[null,null,null,null,"Magdalena","47692","San Sebastián de Buenavista"]
[null,null,null,null,"Magdalena","47703","San Zenón"]
[null,null,null,null,"Magdalena","47707","Santa Ana"]
[null,null,null,null,"Magdalena","47720","Santa Bárbara de Pinto"]
[null,null,null,null,"Magdalena","47001","Santa Marta"]
[null,null,null,null,"Magdalena","47745","Sitionuevo"]
[null,null,null,null,"Magdalena","47798","Tenerife"]
[null,null,null,null,"Magdalena","47960","Zapayán"]
[null,null,null,null,"Magdalena","47980","Zona Bananera"]
[null,null,null,null,"Meta","50006","Acacías"]
[null,null,null,null,"Meta","50110","Barranca de Upía"]
[null,null,null,null,"Meta","50124","Cabuyaro"]
[null,null,null,null,"Meta","50150","Castilla la Nueva"]
[null,null,null,null,"Meta","50223","Cubarral"]
[null,null,null,null,"Meta","50226","Cumaral"]
[null,null,null,null,"Meta","50245","El Calvario"]
[null,null,null,null,"Meta","50251","El Castillo"]
[null,null,null,null,"Meta","50270","El Dorado"]
[null,null,null,null,"Meta","50287","Fuente de Oro"]
[null,null,null,null,"Meta","50313","Granada"]
[null,null,null,null,"Meta","50318","Guamal"]
[null,null,null,null,"Meta","50350","La Macarena"]
[null,null,null,null,"Meta","50400","Lejanías"]
[null,null,null,null,"Meta","50325","Mapiripán"]
[null,null,null,null,"Meta","50330","Mesetas"]
[null,null,null,null,"Meta","50450","Puerto Concordia"]
[null,null,null,null,"Meta","50568","Puerto Gaitán"]
[null,null,null,null,"Meta","50577","Puerto Lleras"]
[null,null,null,null,"Meta","50573","Puerto López"]
[null,null,null,null,"Meta","50590","Puerto Rico"]
[null,null,null,null,"Meta","50606","Restrepo"]
[null,null,null,null,"Meta","50680","San Carlos de Guaroa"]
[null,null,null,null,"Meta","50683","San Juan de Arama"]
[null,null,null,null,"Meta","50686","San Juanito"]
[null,null,null,null,"Meta","50689","San Martín"]
[null,null,null,null,"Meta","50370","Uribe"]
[null,null,null,null,"Meta","50001","Villavicencio"]
[null,null,null,null,"Meta","50711","Vistahermosa"]
[null,null,null,null,"Nariño","52019","Albán"]
[null,null,null,null,"Nariño","52022","Aldana"]
[null,null,null,null,"Nariño","52036","Ancuyá"]
[null,null,null,null,"Nariño","52051","Arboleda"]
[null,null,null,null,"Nariño","52079","Barbacoas"]
[null,null,null,null,"Nariño","52083","Belén"]
[null,null,null,null,"Nariño","52110","Buesaco"]
[null,null,null,null,"Nariño","52240","Chachagüí"]
[null,null,null,null,"Nariño","52203","Colón"]
[null,null,null,null,"Nariño","52207","Consaca"]
[null,null,null,null,"Nariño","52210","Contadero"]
[null,null,null,null,"Nariño","52215","Córdoba"]
[null,null,null,null,"Nariño","52224","Cuaspud"]
[null,null,null,null,"Nariño","52227","Cumbal"]
[null,null,null,null,"Nariño","52233","Cumbitara"]
[null,null,null,null,"Nariño","52250","El Charco"]
[null,null,null,null,"Nariño","52254","El Peñol"]
[null,null,null,null,"Nariño","52256","El Rosario"]
[null,null,null,null,"Nariño","52258","El Tablón de Gómez"]
[null,null,null,null,"Nariño","52260","El Tambo"]
[null,null,null,null,"Nariño","52520","Francisco Pizarro"]
[null,null,null,null,"Nariño","52287","Funes"]
[null,null,null,null,"Nariño","52317","Guachucal"]
[null,null,null,null,"Nariño","52320","Guaitarilla"]
[null,null,null,null,"Nariño","52323","Gualmatán"]
[null,null,null,null,"Nariño","52352","Iles"]
[null,null,null,null,"Nariño","52354","Imués"]
[null,null,null,null,"Nariño","52356","Ipiales"]
[null,null,null,null,"Nariño","52378","La Cruz"]
[null,null,null,null,"Nariño","52381","La Florida"]
[null,null,null,null,"Nariño","52385","La Llanada"]
[null,null,null,null,"Nariño","52390","La Tola"]
[null,null,null,null,"Nariño","52399","La Unión"]
[null,null,null,null,"Nariño","52405","Leiva"]
[null,null,null,null,"Nariño","52411","Linares"]
[null,null,null,null,"Nariño","52418","Los Andes"]
[null,null,null,null,"Nariño","52427","Magüi"]
[null,null,null,null,"Nariño","52435","Mallama"]
[null,null,null,null,"Nariño","52473","Mosquera"]
[null,null,null,null,"Nariño","52480","Nariño"]
[null,null,null,null,"Nariño","52490","Olaya Herrera"]
[null,null,null,null,"Nariño","52506","Ospina"]
[null,null,null,null,"Nariño","52001","Pasto"]
[null,null,null,null,"Nariño","52540","Policarpa"]
[null,null,null,null,"Nariño","52560","Potosí"]
[null,null,null,null,"Nariño","52565","Providencia"]
[null,null,null,null,"Nariño","52573","Puerres"]
[null,null,null,null,"Nariño","52585","Pupiales"]
[null,null,null,null,"Nariño","52612","Ricaurte"]
[null,null,null,null,"Nariño","52621","Roberto Payán"]
[null,null,null,null,"Nariño","52678","Samaniego"]
[null,null,null,null,"Nariño","52835","San Andres de Tumaco"]
[null,null,null,null,"Nariño","52685","San Bernardo"]
[null,null,null,null,"Nariño","52687","San Lorenzo"]
[null,null,null,null,"Nariño","52693","San Pablo"]
[null,null,null,null,"Nariño","52694","San Pedro de Cartago"]
[null,null,null,null,"Nariño","52683","Sandoná"]
[null,null,null,null,"Nariño","52696","Santa Bárbara"]
[null,null,null,null,"Nariño","52699","Santacruz"]
[null,null,null,null,"Nariño","52720","Sapuyes"]
[null,null,null,null,"Nariño","52786","Taminango"]
[null,null,null,null,"Nariño","52788","Tangua"]
[null,null,null,null,"Nariño","52838","Túquerres"]
[null,null,null,null,"Nariño","52885","Yacuanquer"]
[null,null,null,null,"Norte de Santander","54003","Abrego"]
[null,null,null,null,"Norte de Santander","54051","Arboledas"]
[null,null,null,null,"Norte de Santander","54099","Bochalema"]
[null,null,null,null,"Norte de Santander","54109","Bucarasica"]
[null,null,null,null,"Norte de Santander","54128","Cachirá"]
[null,null,null,null,"Norte de Santander","54125","Cácota"]
[null,null,null,null,"Norte de Santander","54172","Chinácota"]
[null,null,null,null,"Norte de Santander","54174","Chitagá"]
[null,null,null,null,"Norte de Santander","54206","Convención"]
[null,null,null,null,"Norte de Santander","54001","Cúcuta"]
[null,null,null,null,"Norte de Santander","54223","Cucutilla"]
[null,null,null,null,"Norte de Santander","54239","Durania"]
[null,null,null,null,"Norte de Santander","54245","El Carmen"]
[null,null,null,null,"Norte de Santander","54250","El Tarra"]
[null,null,null,null,"Norte de Santander","54261","El Zulia"]
[null,null,null,null,"Norte de Santander","54313","Gramalote"]
[null,null,null,null,"Norte de Santander","54344","Hacarí"]
[null,null,null,null,"Norte de Santander","54347","Herrán"]
[null,null,null,null,"Norte de Santander","54385","La Esperanza"]
[null,null,null,null,"Norte de Santander","54398","La Playa"]
[null,null,null,null,"Norte de Santander","54377","Labateca"]
[null,null,null,null,"Norte de Santander","54405","Los Patios"]
[null,null,null,null,"Norte de Santander","54418","Lourdes"]
[null,null,null,null,"Norte de Santander","54480","Mutiscua"]
[null,null,null,null,"Norte de Santander","54498","Ocaña"]
[null,null,null,null,"Norte de Santander","54518","Pamplona"]
[null,null,null,null,"Norte de Santander","54520","Pamplonita"]
[null,null,null,null,"Norte de Santander","54553","Puerto Santander"]
[null,null,null,null,"Norte de Santander","54599","Ragonvalia"]
[null,null,null,null,"Norte de Santander","54660","Salazar"]
[null,null,null,null,"Norte de Santander","54670","San Calixto"]
[null,null,null,null,"Norte de Santander","54673","San Cayetano"]
[null,null,null,null,"Norte de Santander","54680","Santiago"]
[null,null,null,null,"Norte de Santander","54720","Sardinata"]
[null,null,null,null,"Norte de Santander","54743","Silos"]
[null,null,null,null,"Norte de Santander","54800","Teorama"]
[null,null,null,null,"Norte de Santander","54810","Tibú"]
[null,null,null,null,"Norte de Santander","54820","Toledo"]
[null,null,null,null,"Norte de Santander","54871","Villa Caro"]
[null,null,null,null,"Norte de Santander","54874","Villa del Rosario"]
[null,null,null,null,"Putumayo","86219","Colón"]
[null,null,null,null,"Putumayo","86573","Leguízamo"]
[null,null,null,null,"Putumayo","86001","Mocoa"]
[null,null,null,null,"Putumayo","86320","Orito"]
[null,null,null,null,"Putumayo","86568","Puerto Asís"]
[null,null,null,null,"Putumayo","86569","Puerto Caicedo"]
[null,null,null,null,"Putumayo","86571","Puerto Guzmán"]
[null,null,null,null,"Putumayo","86755","San Francisco"]
[null,null,null,null,"Putumayo","86757","San Miguel"]
[null,null,null,null,"Putumayo","86760","Santiago"]
[null,null,null,null,"Putumayo","86749","Sibundoy"]
[null,null,null,null,"Putumayo","86865","Valle del Guamuez"]
[null,null,null,null,"Putumayo","86885","Villagarzón"]
[null,null,null,null,"Quindio","63001","Armenia"]
[null,null,null,null,"Quindio","63111","Buenavista"]
[null,null,null,null,"Quindio","63130","Calarca"]
[null,null,null,null,"Quindio","63190","Circasia"]
[null,null,null,null,"Quindio","63212","Córdoba"]
[null,null,null,null,"Quindio","63272","Filandia"]
[null,null,null,null,"Quindio","63302","Génova"]
[null,null,null,null,"Quindio","63401","La Tebaida"]
[null,null,null,null,"Quindio","63470","Montenegro"]
[null,null,null,null,"Quindio","63548","Pijao"]
[null,null,null,null,"Quindio","63594","Quimbaya"]
[null,null,null,null,"Quindio","63690","Salento"]
[null,null,null,null,"Risaralda","66045","Apía"]
[null,null,null,null,"Risaralda","66075","Balboa"]
[null,null,null,null,"Risaralda","66088","Belén de Umbría"]
[null,null,null,null,"Risaralda","66170","Dosquebradas"]
[null,null,null,null,"Risaralda","66318","Guática"]
[null,null,null,null,"Risaralda","66383","La Celia"]
[null,null,null,null,"Risaralda","66400","La Virginia"]
[null,null,null,null,"Risaralda","66440","Marsella"]
[null,null,null,null,"Risaralda","66456","Mistrató"]
[null,null,null,null,"Risaralda","66001","Pereira"]
[null,null,null,null,"Risaralda","66572","Pueblo Rico"]
[null,null,null,null,"Risaralda","66594","Quinchía"]
[null,null,null,null,"Risaralda","66682","Santa Rosa de Cabal"]
[null,null,null,null,"Risaralda","66687","Santuario"]
[null,null,null,null,"San Andres y Providencia","88","Providencia"]
[null,null,null,null,"San Andres y Providencia","88","San Andres"]
[null,null,null,null,"San Andres y Providencia","88","Santa Catalina"]
[null,null,null,null,"Santander","68013","Aguada"]
[null,null,null,null,"Santander","68020","Albania"]
[null,null,null,null,"Santander","68051","Aratoca"]
[null,null,null,null,"Santander","68077","Barbosa"]
[null,null,null,null,"Santander","68079","Barichara"]
[null,null,null,null,"Santander","68081","Barrancabermeja"]
[null,null,null,null,"Santander","68092","Betulia"]
[null,null,null,null,"Santander","68101","Bolívar"]
[null,null,null,null,"Santander","68001","Bucaramanga"]
[null,null,null,null,"Santander","68121","Cabrera"]
[null,null,null,null,"Santander","68132","California"]
[null,null,null,null,"Santander","68147","Capitanejo"]
[null,null,null,null,"Santander","68152","Carcasí"]
[null,null,null,null,"Santander","68160","Cepitá"]
[null,null,null,null,"Santander","68162","Cerrito"]
[null,null,null,null,"Santander","68167","Charalá"]
[null,null,null,null,"Santander","68169","Charta"]
[null,null,null,null,"Santander","68176","Chima"]
[null,null,null,null,"Santander","68179","Chipatá"]
[null,null,null,null,"Santander","68190","Cimitarra"]
[null,null,null,null,"Santander","68207","Concepción"]
[null,null,null,null,"Santander","68209","Confines"]
[null,null,null,null,"Santander","68211","Contratación"]
[null,null,null,null,"Santander","68217","Coromoro"]
[null,null,null,null,"Santander","68229","Curití"]
[null,null,null,null,"Santander","68235","El Carmen de Chucurí"]
[null,null,null,null,"Santander","68245","El Guacamayo"]
[null,null,null,null,"Santander","68250","El Peñón"]
[null,null,null,null,"Santander","68255","El Playón"]
[null,null,null,null,"Santander","68264","Encino"]
[null,null,null,null,"Santander","68266","Enciso"]
[null,null,null,null,"Santander","68271","Florián"]
[null,null,null,null,"Santander","68276","Floridablanca"]
[null,null,null,null,"Santander","68296","Galán"]
[null,null,null,null,"Santander","68298","Gambita"]
[null,null,null,null,"Santander","68307","Girón"]
[null,null,null,null,"Santander","68318","Guaca"]
[null,null,null,null,"Santander","68320","Guadalupe"]
[null,null,null,null,"Santander","68322","Guapotá"]
[null,null,null,null,"Santander","68324","Guavatá"]
[null,null,null,null,"Santander","68327","Güepsa"]
[null,null,null,null,"Santander","68344","Hato"]
[null,null,null,null,"Santander","68368","Jesús María"]
[null,null,null,null,"Santander","68370","Jordán"]
[null,null,null,null,"Santander","68377","La Belleza"]
[null,null,null,null,"Santander","68397","La Paz"]
[null,null,null,null,"Santander","68385","Landázuri"]
[null,null,null,null,"Santander","68406","Lebríja"]
[null,null,null,null,"Santander","68418","Los Santos"]
[null,null,null,null,"Santander","68425","Macaravita"]
[null,null,null,null,"Santander","68432","Málaga"]
[null,null,null,null,"Santander","68444","Matanza"]
[null,null,null,null,"Santander","68464","Mogotes"]
[null,null,null,null,"Santander","68468","Molagavita"]
[null,null,null,null,"Santander","68498","Ocamonte"]
[null,null,null,null,"Santander","68500","Oiba"]
[null,null,null,null,"Santander","68502","Onzaga"]
[null,null,null,null,"Santander","68522","Palmar"]
[null,null,null,null,"Santander","68524","Palmas del Socorro"]
[null,null,null,null,"Santander","68533","Páramo"]
[null,null,null,null,"Santander","68547","Piedecuesta"]
[null,null,null,null,"Santander","68549","Pinchote"]
[null,null,null,null,"Santander","68572","Puente Nacional"]
[null,null,null,null,"Santander","68573","Puerto Parra"]
[null,null,null,null,"Santander","68575","Puerto Wilches"]
[null,null,null,null,"Santander","68615","Rionegro"]
[null,null,null,null,"Santander","68655","Sabana de Torres"]
[null,null,null,null,"Santander","68669","San Andrés"]
[null,null,null,null,"Santander","68673","San Benito"]
[null,null,null,null,"Santander","68679","San Gil"]
[null,null,null,null,"Santander","68682","San Joaquín"]
[null,null,null,null,"Santander","68684","San José de Miranda"]
[null,null,null,null,"Santander","68686","San Miguel"]
[null,null,null,null,"Santander","68689","San Vicente de Chucurí"]
[null,null,null,null,"Santander","68705","Santa Bárbara"]
[null,null,null,null,"Santander","68720","Santa Helena del Opón"]
[null,null,null,null,"Santander","68745","Simacota"]
[null,null,null,null,"Santander","68755","Socorro"]
[null,null,null,null,"Santander","68770","Suaita"]
[null,null,null,null,"Santander","68773","Sucre"]
[null,null,null,null,"Santander","68780","Suratá"]
[null,null,null,null,"Santander","68820","Tona"]
[null,null,null,null,"Santander","68855","Valle de San José"]
[null,null,null,null,"Santander","68861","Vélez"]
[null,null,null,null,"Santander","68867","Vetas"]
[null,null,null,null,"Santander","68872","Villanueva"]
[null,null,null,null,"Santander","68895","Zapatoca"]
[null,null,null,null,"Sucre","70110","Buenavista"]
[null,null,null,null,"Sucre","70124","Caimito"]
[null,null,null,null,"Sucre","70230","Chalán"]
[null,null,null,null,"Sucre","70204","Coloso"]
[null,null,null,null,"Sucre","70215","Corozal"]
[null,null,null,null,"Sucre","70221","Coveñas"]
[null,null,null,null,"Sucre","70233","El Roble"]
[null,null,null,null,"Sucre","70235","Galeras"]
[null,null,null,null,"Sucre","70265","Guaranda"]
[null,null,null,null,"Sucre","70400","La Unión"]
[null,null,null,null,"Sucre","70418","Los Palmitos"]
[null,null,null,null,"Sucre","70429","Majagual"]
[null,null,null,null,"Sucre","70473","Morroa"]
[null,null,null,null,"Sucre","70508","Ovejas"]
[null,null,null,null,"Sucre","70523","Palmito"]
[null,null,null,null,"Sucre","70670","Sampués"]
[null,null,null,null,"Sucre","70678","San Benito Abad"]
[null,null,null,null,"Sucre","70702","San Juan de Betulia"]
[null,null,null,null,"Sucre","70742","San Luis de Sincé"]
[null,null,null,null,"Sucre","70708","San Marcos"]
[null,null,null,null,"Sucre","70713","San Onofre"]
[null,null,null,null,"Sucre","70717","San Pedro"]
[null,null,null,null,"Sucre","70820","Santiago de Tolú"]
[null,null,null,null,"Sucre","70001","Sincelejo"]
[null,null,null,null,"Sucre","70771","Sucre"]
[null,null,null,null,"Sucre","70823","Tolú Viejo"]
[null,null,null,null,"Tolima","73024","Alpujarra"]
[null,null,null,null,"Tolima","73026","Alvarado"]
[null,null,null,null,"Tolima","73030","Ambalema"]
[null,null,null,null,"Tolima","73043","Anzoátegui"]
[null,null,null,null,"Tolima","73055","Armero"]
[null,null,null,null,"Tolima","73067","Ataco"]
[null,null,null,null,"Tolima","73124","Cajamarca"]
[null,null,null,null,"Tolima","73148","Carmen de Apicalá"]
[null,null,null,null,"Tolima","73152","Casabianca"]
[null,null,null,null,"Tolima","73168","Chaparral"]
[null,null,null,null,"Tolima","73200","Coello"]
[null,null,null,null,"Tolima","73217","Coyaima"]
[null,null,null,null,"Tolima","73226","Cunday"]
[null,null,null,null,"Tolima","73236","Dolores"]
[null,null,null,null,"Tolima","73268","Espinal"]
[null,null,null,null,"Tolima","73270","Falan"]
[null,null,null,null,"Tolima","73275","Flandes"]
[null,null,null,null,"Tolima","73283","Fresno"]
[null,null,null,null,"Tolima","73319","Guamo"]
[null,null,null,null,"Tolima","73347","Herveo"]
[null,null,null,null,"Tolima","73349","Honda"]
[null,null,null,null,"Tolima","73001","Ibagué"]
[null,null,null,null,"Tolima","73352","Icononzo"]
[null,null,null,null,"Tolima","73408","Lérida"]
[null,null,null,null,"Tolima","73411","Líbano"]
[null,null,null,null,"Tolima","73443","Mariquita"]
[null,null,null,null,"Tolima","73449","Melgar"]
[null,null,null,null,"Tolima","73461","Murillo"]
[null,null,null,null,"Tolima","73483","Natagaima"]
[null,null,null,null,"Tolima","73504","Ortega"]
[null,null,null,null,"Tolima","73520","Palocabildo"]
[null,null,null,null,"Tolima","73547","Piedras"]
[null,null,null,null,"Tolima","73555","Planadas"]
[null,null,null,null,"Tolima","73563","Prado"]
[null,null,null,null,"Tolima","73585","Purificación"]
[null,null,null,null,"Tolima","73616","Rioblanco"]
[null,null,null,null,"Tolima","73622","Roncesvalles"]
[null,null,null,null,"Tolima","73624","Rovira"]
[null,null,null,null,"Tolima","73671","Saldaña"]
[null,null,null,null,"Tolima","73675","San Antonio"]
[null,null,null,null,"Tolima","73678","San Luis"]
[null,null,null,null,"Tolima","73686","Santa Isabel"]
[null,null,null,null,"Tolima","73770","Suárez"]
[null,null,null,null,"Tolima","73854","Valle de San Juan"]
[null,null,null,null,"Tolima","73861","Venadillo"]
[null,null,null,null,"Tolima","73870","Villahermosa"]
[null,null,null,null,"Tolima","73873","Villarrica"]
[null,null,null,null,"Valle del Cauca","76020","Alcalá"]
[null,null,null,null,"Valle del Cauca","76036","Andalucía"]
[null,null,null,null,"Valle del Cauca","76041","Ansermanuevo"]
[null,null,null,null,"Valle del Cauca","76054","Argelia"]
[null,null,null,null,"Valle del Cauca","76100","Bolívar"]
[null,null,null,null,"Valle del Cauca","76109","Buenaventura"]
[null,null,null,null,"Valle del Cauca","76113","Bugalagrande"]
[null,null,null,null,"Valle del Cauca","76122","Caicedonia"]
[null,null,null,null,"Valle del Cauca","76001","Cali"]
[null,null,null,null,"Valle del Cauca","76126","Calima"]
[null,null,null,null,"Valle del Cauca","76130","Candelaria"]
[null,null,null,null,"Valle del Cauca","76147","Cartago"]
[null,null,null,null,"Valle del Cauca","76233","Dagua"]
[null,null,null,null,"Valle del Cauca","76243","El Águila"]
[null,null,null,null,"Valle del Cauca","76246","El Cairo"]
[null,null,null,null,"Valle del Cauca","76248","El Cerrito"]
[null,null,null,null,"Valle del Cauca","76250","El Dovio"]
[null,null,null,null,"Valle del Cauca","76275","Florida"]
[null,null,null,null,"Valle del Cauca","76306","Ginebra"]
[null,null,null,null,"Valle del Cauca","76318","Guacarí"]
[null,null,null,null,"Valle del Cauca","76111","Guadalajara de Buga"]
[null,null,null,null,"Valle del Cauca","76364","Jamundí"]
[null,null,null,null,"Valle del Cauca","76377","La Cumbre"]
[null,null,null,null,"Valle del Cauca","76400","La Unión"]
[null,null,null,null,"Valle del Cauca","76403","La Victoria"]
[null,null,null,null,"Valle del Cauca","76497","Obando"]
[null,null,null,null,"Valle del Cauca","76520","Palmira"]
[null,null,null,null,"Valle del Cauca","76563","Pradera"]
[null,null,null,null,"Valle del Cauca","76606","Restrepo"]
[null,null,null,null,"Valle del Cauca","76616","Riofrío"]
[null,null,null,null,"Valle del Cauca","76622","Roldanillo"]
[null,null,null,null,"Valle del Cauca","76670","San Pedro"]
[null,null,null,null,"Valle del Cauca","76736","Sevilla"]
[null,null,null,null,"Valle del Cauca","76823","Toro"]
[null,null,null,null,"Valle del Cauca","76828","Trujillo"]
[null,null,null,null,"Valle del Cauca","76834","Tuluá"]
[null,null,null,null,"Valle del Cauca","76845","Ulloa"]
[null,null,null,null,"Valle del Cauca","76863","Versalles"]
[null,null,null,null,"Valle del Cauca","76869","Vijes"]
[null,null,null,null,"Valle del Cauca","76890","Yotoco"]
[null,null,null,null,"Valle del Cauca","76892","Yumbo"]
[null,null,null,null,"Valle del Cauca","76895","Zarzal"]
[null,null,null,null,"Vaupés","97161","Caruru"]
[null,null,null,null,"Vaupés","97001","Mitú"]
[null,null,null,null,"Vaupés","97511","Pacoa (ANM)"]
[null,null,null,null,"Vaupés","97777","Papunaua (ANM)"]
[null,null,null,null,"Vaupés","97666","Taraira"]
[null,null,null,null,"Vaupés","97889","Yavaraté (ANM)"]
[null,null,null,null,"Vichada","99773","Cumaribo"]
[null,null,null,null,"Vichada","99524","La Primavera"]
[null,null,null,null,"Vichada","99001","Puerto Carreño"]
[null,null,null,null,"Vichada","99624","Santa Rosalía"]